Workbook

Sheet الدليل
C5: مصروفات ثابته اساسية | E5: مصروفات متغيره (اداريه وعموميه) | G5: الاقسام / الفروع | I5: مصمم البرنامج
C6: الايجارات | E6: انتقالات | G6: المبيعات | I6: الاسم: محمد احمد الريفى
C7: اجور الموظفين | E7: بريد | G7: الصيانه | I7: الوظيفة الحاليه : رئيس حسابات
C8: فواتير تليفون | E8: ادوات مكتبيه | G8: التسويق | I8: حاصل على خبير اكسيل 2010
C9: فواتير مياه | E9: فارغ1 | I9: من ميكروسوفت مؤسسة certiport
C10: فواتير انترنت | E10: فارغ2 | G10: القاهره | I10: مؤسس صفحة خبير اكسيل على الفيس بوك
C11: فارغ1 | E11: فارغ3 | G11: الاسكندريه | I11: تليفون محمول: 01017616600
C12: فارغ2 | E12: فارغ4 | G12: المنصوره | I12: مصمم برامج اكسيل -مدرب اكسيل
C13: فارغ3 | E13: فارغ5 | I13: بريد الكترونى :
C14: فارغ4 | E14: فارغ6 | I14: service_cfo@yahoo.com
C15: فارغ5 | E15: فارغ7 | I15: xls.financial@gamil.com
C16: فارغ6 | E16: فارغ8 | I16: الفيس بوك
C17: فارغ7 | E17: فارغ9 | I17: https://www.facebook.com/mohamed.elrify2
C18: فارغ8 | E18: فارغ10 | I18: صفحة خبير اكسيل
C19: فارغ9 | E19: فارغ11 | I19: https://www.facebook.com/xlxpert
C20: فارغ10 | E20: فارغ12 | I20: =HYPERLINK(" https://www.facebook.com/xlxpert","رابط الدخول لصفحة خبير اكسيل") -> رابط الدخول لصفحة خبير اكسيل
C21: فارغ11 | E21: فارغ13
C22: فارغ12 | E22: فارغ14 | I22: نبذه مختصره عن البرنامج
C23: فارغ13 | E23: فارغ15 | I23: برنامج المصروفات
C24: فارغ14 | E24: فارغ16 | I24: بغرض التسهيل على المحاسبون وغير المحاسبون لتسهيل تسجيل المصروفات . وقد قمنا بعمل الاصدار الاول فى 2010 ثم الاصدار الثانى فى 2013 وهذا هو الاصدار الثالث فى 2015
C25: فارغ15 | E25: فارغ17
C26: فارغ16 | E26: فارغ18
C27: فارغ17 | E27: فارغ19
C28: فارغ18 | E28: فارغ20
C29: فارغ19 | E29: فارغ21
C30: فارغ20 | E30: فارغ22 | I30: رابط تحميل الاصدار الاول
C31: فارغ21 | E31: فارغ23 | I31: http://www.mediafire.com/download/ec499kuhsxdf110/%D8%A8%D8%B1%D9%86%D8%A7%D9%85%D8%AC+2003xls%D8%A7%D9%84%D9%85%D8%B5%D8%B1%D9%88%D9%81%D8%A7%D8%AA.rar
C32: فارغ22 | E32: فارغ24 | I32: رابط تحميل الاصدار الثانى
C33: فارغ23 | E33: فارغ25 | I33: http://www.mediafire.com/download/c982m2a44jzxba3/%D8%A7%D9%84%D9%86%D8%B3%D8%AE%D9%87+%D8%A7%D9%84%D8%AD%D8%AF%D9%8A%D8%AB%D9%87++%D9%85%D9%84%D9%81+%D8%A7%D9%83%D8%B3%D9%8A%D9%84+++%D8%A7%D9%84%D9%85%D8%B5%D8%B1%D9%88%D9%81%D8%A7%D8%AA+%D8%A8%D8%AF%D9%88%D9%86+%D8%AD%D9%85%D8%A7%D9%8A%D9%87.rar
C34: فارغ24 | E34: فارغ26 | I34: هذا البرنامج مجاتى ومتاح للجميع
C35: فارغ25 | E35: فارغ27 | I35: وهو برنامج وقف خيرى من حق الجميع استخدامه والتعديل فيه بما لايخل المضمون العام له . ولايتعدى على حقوق الملكيه الخاصه بالمصمم
C36: فارغ26 | E36: فارغ28
C37: فارغ27 | E37: فارغ29
C38: فارغ28 | E38: فارغ30
C39: فارغ29 | E39: فارغ31
C40: فارغ30 | E40: فارغ32
C41: فارغ31 | E41: فارغ33
C42: فارغ32 | E42: فارغ34
C43: فارغ33 | E43: فارغ35
C44: فارغ34 | E44: فارغ36
C45: فارغ35 | E45: فارغ37
C46: فارغ36 | E46: فارغ38
C47: فارغ37 | E47: فارغ39
C48: فارغ38 | E48: فارغ40
C49: فارغ39 | E49: فارغ41
C50: فارغ40 | E50: فارغ42
C51: فارغ41 | E51: فارغ43
C52: فارغ42 | E52: فارغ44
C53: فارغ43 | E53: فارغ45
C54: فارغ44 | E54: فارغ
C55: فارغ45 | E55: فارغ
J57: Designed By: MOHAMED ELRIFY

Sheet مصروفات اساسية
D4: =الدليل!J57 -> Designed By: MOHAMED ELRIFY | F4: اجماليات | G4: =اجمالى_كلى_للمتغير -> 22173 | H4: 12736 | I4: 13038 | J4: 13245 | K4: 13454 | L4: 11076 | M4: 1500 | N4: 456 | O4: 900 | P4: 510 | Q4: 888 | R4: 2450 | S4: 2900 | T4: 1900 | U4: 789 | V4: 643 | W4: 669.4 | X4: 695.8 | Y4: 722.2 | Z4: 748.6 | AA4: 775 | AB4: 801.4 | AC4: 827.8 | AD4: 854.2 | AE4: 880.6 | AF4: 907 | AG4: 933.4 | AH4: 959.8 | AI4: 986.2 | AJ4: 1012.6 | AK4: 1500 | AL4: 1300 | AM4: 1091.8 | AN4: 1118.2 | AO4: 1144.6 | AP4: 1171 | AQ4: 1197.4 | AR4: 1223.8 | AS4: 1250.2 | AT4: 1276.6 | AU4: 1303 | AV4: 990 | AW4: 1355.8 | AX4: 1382.2 | AY4: 890 | AZ4: 1435 | BA4: 1461.4 | BB4: 1487.8 | BC4: 1514.2 | BD4: 1546.6 | BE4: =BE$2008 -> 136071.6 | BF4: 136071.6 | BG4: 0
A6: الشهر | B6: التاريخ | C6: رقم المستند | D6: نوع المستند | E6: شرح مختصر | F6: الاقسام / الفروع | G6: =TRANSPOSE(قائمة_مصروفات_ثابته) -> الايجارات | H6: اجور الموظفين | I6: فواتير تليفون | J6: فواتير مياه | K6: فواتير انترنت | L6: فارغ1 | M6: فارغ2 | N6: فارغ3 | O6: فارغ4 | P6: فارغ5 | Q6: فارغ6 | R6: فارغ7 | S6: فارغ8 | T6: فارغ9 | U6: فارغ10 | V6: فارغ11 | W6: فارغ12 | X6: فارغ13 | Y6: فارغ14 | Z6: فارغ15 | AA6: فارغ16 | AB6: فارغ17 | AC6: فارغ18 | AD6: فارغ19 | AE6: فارغ20 | AF6: فارغ21 | AG6: فارغ22 | AH6: فارغ23 | AI6: فارغ24 | AJ6: فارغ25 | AK6: فارغ26 | AL6: فارغ27 | AM6: فارغ28 | AN6: فارغ29 | AO6: فارغ30 | AP6: فارغ31 | AQ6: فارغ32 | AR6: فارغ33 | AS6: فارغ34 | AT6: فارغ35 | AU6: فارغ36 | AV6: فارغ37 | AW6: فارغ38 | AX6: فارغ39 | AY6: فارغ40 | AZ6: فارغ41 | BA6: فارغ42 | BB6: فارغ43 | BC6: فارغ44 | BD6: فارغ45 | BE6: اجمالى المستند | BF6: الاجمالى التراكمى | BG6: الاجمالى التراكمى للقسم
A7: =IF(B7="","",MONTH(B7)) -> 1 | B7: 2015-01-01 | C7: 101 | D7: صرف نقدى | E7: دفع ايجار شهر يناير | F7: المبيعات | G7: 1000 | BD7: 1 | BE7: =SUM(G7:BD7) -> 1001 | BF7: =SUM($BE$7:BE7) -> 1001 | BG7: =SUMIF($F$7:F7,F7,$BE$7:BE7) -> 1001
A8: =IF(B8="","",MONTH(B8)) -> 1 | B8: 2015-01-02 | C8: 102 | D8: شيك | E8: دفع فاتورة الكهرباء عن يناير | F8: المبيعات | G8: 1000 | H8: 689 | BD8: 2 | BE8: =SUM(G8:BD8) -> 1691 | BF8: =SUM($BE$7:BE8) -> 2692 | BG8: =SUMIF($F$7:F8,F8,$BE$7:BE8) -> 2692
A9: 1 | B9: 2015-01-03 | C9: 103 | D9: صرف نقدى | E9: دفع رواتب شهر يناير | F9: المبيعات | G9: 1000 | I9: 890 | BD9: 3 | BE9: 1893 | BF9: =SUM($BE$7:BE9) -> 4585 | BG9: =SUMIF($F$7:F9,F9,$BE$7:BE9) -> 4585
A10: 1 | B10: 2015-01-03 | C10: 103 | D10: صرف نقدى | E10: دفع رواتب شهر يناير | F10: المبيعات | G10: 1 | H10: 2 | I10: 3 | J10: 1000 | K10: 1109 | L10: 1100 | M10: 1500 | N10: 456 | O10: 900 | P10: 510 | Q10: 888 | R10: 2450 | S10: 2900 | T10: 1900 | U10: 789 | V10: 643 | W10: 669.4 | X10: 695.8 | Y10: 722.2 | Z10: 748.6 | AA10: 775 | AB10: 801.4 | AC10: 827.8 | AD10: 854.2 | AE10: 880.6 | AF10: 907 | AG10: 933.4 | AH10: 959.8 | AI10: 986.2 | AJ10: 1012.6 | AK10: 1500 | AL10: 1300 | AM10: 1091.8 | AN10: 1118.2 | AO10: 1144.6 | AP10: 1171 | AQ10: 1197.4 | AR10: 1223.8 | AS10: 1250.2 | AT10: 1276.6 | AU10: 1303 | AV10: 990 | AW10: 1355.8 | AX10: 1382.2 | AY10: 890 | AZ10: 1435 | BA10: 1461.4 | BB10: 1487.8 | BC10: 1514.2 | BD10: 1540.6 | BE10: 53558.6 | BF10: =SUM($BE$7:BE10) -> 58143.6 | BG10: =SUMIF($F$7:F10,F10,$BE$7:BE10) -> 58143.6
A11: 2 | B11: 2015-02-01 | C11: 104 | D11: صرف نقدى | F11: الصيانه | G11: 6787 | BE11: 6787 | BF11: =SUM($BE$7:BE11) -> 64930.6 | BG11: =SUMIF($F$7:F11,F11,$BE$7:BE11) -> 6787
A12: 3 | B12: 2015-03-01 | C12: 105 | D12: شيك | E12: بيان.... | F12: القاهره | G12: 1234 | H12: 1200 | I12: 1210 | J12: 1220 | K12: 1230 | L12: 1345 | BE12: 7439 | BF12: =SUM($BE$7:BE12) -> 72369.6 | BG12: =SUMIF($F$7:F12,F12,$BE$7:BE12) -> 7439
A13: 4 | B13: 2015-04-01 | C13: 106 | D13: صرف نقدى | G13: 1235 | H13: 1201 | I13: 1211 | J13: 1221 | K13: 1231 | L13: 999 | BE13: 7098 | BF13: =SUM($BE$7:BE13) -> 79467.6 | BG13: =SUMIF($F$7:F13,F13,$BE$7:BE13) -> 0
A14: 5 | B14: 2015-05-01 | C14: 107 | D14: شيك | E14: بيان.... | G14: 1236 | H14: 1202 | I14: 1212 | J14: 1222 | K14: 1232 | L14: 989 | BE14: 7093 | BF14: =SUM($BE$7:BE14) -> 86560.6 | BG14: =SUMIF($F$7:F14,F14,$BE$7:BE14) -> 0
A15: 6 | B15: 2015-06-01 | C15: 108 | D15: صرف نقدى | G15: 1237 | H15: 1203 | I15: 1213 | J15: 1223 | K15: 1233 | L15: 979 | BE15: 7088 | BF15: =SUM($BE$7:BE15) -> 93648.6 | BG15: =SUMIF($F$7:F15,F15,$BE$7:BE15) -> 0
A16: 7 | B16: 2015-07-01 | C16: 109 | D16: شيك | E16: بيان.... | G16: 1238 | H16: 1204 | I16: 1214 | J16: 1224 | K16: 1234 | L16: 969 | BE16: 7083 | BF16: =SUM($BE$7:BE16) -> 100731.6 | BG16: =SUMIF($F$7:F16,F16,$BE$7:BE16) -> 0
A17: 8 | B17: 2015-08-01 | C17: 110 | D17: صرف نقدى | G17: 1239 | H17: 1205 | I17: 1215 | J17: 1225 | K17: 1235 | L17: 959 | BE17: 7078 | BF17: =SUM($BE$7:BE17) -> 107809.6 | BG17: =SUMIF($F$7:F17,F17,$BE$7:BE17) -> 0
A18: 9 | B18: 2015-09-01 | C18: 111 | D18: شيك | E18: بيان.... | G18: 1240 | H18: 1206 | I18: 1216 | J18: 1226 | K18: 1236 | L18: 949 | BE18: 7073 | BF18: =SUM($BE$7:BE18) -> 114882.6 | BG18: =SUMIF($F$7:F18,F18,$BE$7:BE18) -> 0
A19: 10 | B19: 2015-10-01 | C19: 112 | D19: صرف نقدى | G19: 1241 | H19: 1207 | I19: 1217 | J19: 1227 | K19: 1237 | L19: 939 | BE19: 7068 | BF19: =SUM($BE$7:BE19) -> 121950.6 | BG19: =SUMIF($F$7:F19,F19,$BE$7:BE19) -> 0
A20: 11 | B20: 2015-11-01 | C20: 113 | D20: شيك | E20: بيان.... | G20: 1242 | H20: 1208 | I20: 1218 | J20: 1228 | K20: 1238 | L20: 929 | BE20: 7063 | BF20: =SUM($BE$7:BE20) -> 129013.6 | BG20: =SUMIF($F$7:F20,F20,$BE$7:BE20) -> 0
A21: 12 | B21: 2015-12-01 | C21: 114 | D21: صرف نقدى | G21: 1243 | H21: 1209 | I21: 1219 | J21: 1229 | K21: 1239 | L21: 919 | BE21: 7058 | BF21: =SUM($BE$7:BE21) -> 136071.6 | BG21: =SUMIF($F$7:F21,F21,$BE$7:BE21) -> 0
BE22: 0 | BF22: =SUM($BE$7:BE22) -> 136071.6 | BG22: =SUMIF($F$7:F22,F22,$BE$7:BE22) -> 0
BE23: 0 | BF23: =SUM($BE$7:BE23) -> 136071.6 | BG23: =SUMIF($F$7:F23,F23,$BE$7:BE23) -> 0
BE24: 0 | BF24: =SUM($BE$7:BE24) -> 136071.6 | BG24: =SUMIF($F$7:F24,F24,$BE$7:BE24) -> 0
BE25: 0 | BF25: =SUM($BE$7:BE25) -> 136071.6 | BG25: =SUMIF($F$7:F25,F25,$BE$7:BE25) -> 0
BE26: 0 | BF26: =SUM($BE$7:BE26) -> 136071.6 | BG26: =SUMIF($F$7:F26,F26,$BE$7:BE26) -> 0
BE27: 0 | BF27: =SUM($BE$7:BE27) -> 136071.6 | BG27: =SUMIF($F$7:F27,F27,$BE$7:BE27) -> 0
BE28: 0 | BF28: =SUM($BE$7:BE28) -> 136071.6 | BG28: =SUMIF($F$7:F28,F28,$BE$7:BE28) -> 0
BE29: 0 | BF29: =SUM($BE$7:BE29) -> 136071.6 | BG29: =SUMIF($F$7:F29,F29,$BE$7:BE29) -> 0
BE30: 0 | BF30: =SUM($BE$7:BE30) -> 136071.6 | BG30: =SUMIF($F$7:F30,F30,$BE$7:BE30) -> 0
BE31: 0 | BF31: =SUM($BE$7:BE31) -> 136071.6 | BG31: =SUMIF($F$7:F31,F31,$BE$7:BE31) -> 0
BE32: 0 | BF32: =SUM($BE$7:BE32) -> 136071.6 | BG32: =SUMIF($F$7:F32,F32,$BE$7:BE32) -> 0
BE33: 0 | BF33: =SUM($BE$7:BE33) -> 136071.6 | BG33: =SUMIF($F$7:F33,F33,$BE$7:BE33) -> 0
BE34: 0 | BF34: =SUM($BE$7:BE34) -> 136071.6 | BG34: =SUMIF($F$7:F34,F34,$BE$7:BE34) -> 0
BE35: 0 | BF35: =SUM($BE$7:BE35) -> 136071.6 | BG35: =SUMIF($F$7:F35,F35,$BE$7:BE35) -> 0
BE36: 0 | BF36: =SUM($BE$7:BE36) -> 136071.6 | BG36: =SUMIF($F$7:F36,F36,$BE$7:BE36) -> 0
BE37: 0 | BF37: =SUM($BE$7:BE37) -> 136071.6 | BG37: =SUMIF($F$7:F37,F37,$BE$7:BE37) -> 0
BE38: 0 | BF38: =SUM($BE$7:BE38) -> 136071.6 | BG38: =SUMIF($F$7:F38,F38,$BE$7:BE38) -> 0
BE39: 0 | BF39: =SUM($BE$7:BE39) -> 136071.6 | BG39: =SUMIF($F$7:F39,F39,$BE$7:BE39) -> 0
BE40: 0 | BF40: =SUM($BE$7:BE40) -> 136071.6 | BG40: =SUMIF($F$7:F40,F40,$BE$7:BE40) -> 0
BE41: 0 | BF41: =SUM($BE$7:BE41) -> 136071.6 | BG41: =SUMIF($F$7:F41,F41,$BE$7:BE41) -> 0
BE42: 0 | BF42: =SUM($BE$7:BE42) -> 136071.6 | BG42: =SUMIF($F$7:F42,F42,$BE$7:BE42) -> 0
BE43: 0 | BF43: =SUM($BE$7:BE43) -> 136071.6 | BG43: =SUMIF($F$7:F43,F43,$BE$7:BE43) -> 0
BE44: 0 | BF44: =SUM($BE$7:BE44) -> 136071.6 | BG44: =SUMIF($F$7:F44,F44,$BE$7:BE44) -> 0
BE45: 0 | BF45: =SUM($BE$7:BE45) -> 136071.6 | BG45: =SUMIF($F$7:F45,F45,$BE$7:BE45) -> 0
BE46: 0 | BF46: =SUM($BE$7:BE46) -> 136071.6 | BG46: =SUMIF($F$7:F46,F46,$BE$7:BE46) -> 0
BE47: 0 | BF47: =SUM($BE$7:BE47) -> 136071.6 | BG47: =SUMIF($F$7:F47,F47,$BE$7:BE47) -> 0
BE48: 0 | BF48: =SUM($BE$7:BE48) -> 136071.6 | BG48: =SUMIF($F$7:F48,F48,$BE$7:BE48) -> 0
BE49: 0 | BF49: =SUM($BE$7:BE49) -> 136071.6 | BG49: =SUMIF($F$7:F49,F49,$BE$7:BE49) -> 0
BE50: 0 | BF50: =SUM($BE$7:BE50) -> 136071.6 | BG50: =SUMIF($F$7:F50,F50,$BE$7:BE50) -> 0
BE51: 0 | BF51: =SUM($BE$7:BE51) -> 136071.6 | BG51: =SUMIF($F$7:F51,F51,$BE$7:BE51) -> 0
BE52: 0 | BF52: =SUM($BE$7:BE52) -> 136071.6 | BG52: =SUMIF($F$7:F52,F52,$BE$7:BE52) -> 0
BE53: 0 | BF53: =SUM($BE$7:BE53) -> 136071.6 | BG53: =SUMIF($F$7:F53,F53,$BE$7:BE53) -> 0
BE54: 0 | BF54: =SUM($BE$7:BE54) -> 136071.6 | BG54: =SUMIF($F$7:F54,F54,$BE$7:BE54) -> 0
BE55: 0 | BF55: =SUM($BE$7:BE55) -> 136071.6 | BG55: =SUMIF($F$7:F55,F55,$BE$7:BE55) -> 0
BE56: 0 | BF56: =SUM($BE$7:BE56) -> 136071.6 | BG56: =SUMIF($F$7:F56,F56,$BE$7:BE56) -> 0
BE57: 0 | BF57: =SUM($BE$7:BE57) -> 136071.6 | BG57: =SUMIF($F$7:F57,F57,$BE$7:BE57) -> 0
BE58: 0 | BF58: =SUM($BE$7:BE58) -> 136071.6 | BG58: =SUMIF($F$7:F58,F58,$BE$7:BE58) -> 0
BE59: 0 | BF59: =SUM($BE$7:BE59) -> 136071.6 | BG59: =SUMIF($F$7:F59,F59,$BE$7:BE59) -> 0
BE60: 0 | BF60: =SUM($BE$7:BE60) -> 136071.6 | BG60: =SUMIF($F$7:F60,F60,$BE$7:BE60) -> 0
BE61: 0 | BF61: =SUM($BE$7:BE61) -> 136071.6 | BG61: =SUMIF($F$7:F61,F61,$BE$7:BE61) -> 0
BE62: 0 | BF62: =SUM($BE$7:BE62) -> 136071.6 | BG62: =SUMIF($F$7:F62,F62,$BE$7:BE62) -> 0
BE63: 0 | BF63: =SUM($BE$7:BE63) -> 136071.6 | BG63: =SUMIF($F$7:F63,F63,$BE$7:BE63) -> 0
BE64: 0 | BF64: =SUM($BE$7:BE64) -> 136071.6 | BG64: =SUMIF($F$7:F64,F64,$BE$7:BE64) -> 0
BE65: 0 | BF65: =SUM($BE$7:BE65) -> 136071.6 | BG65: =SUMIF($F$7:F65,F65,$BE$7:BE65) -> 0
BE66: 0 | BF66: =SUM($BE$7:BE66) -> 136071.6 | BG66: =SUMIF($F$7:F66,F66,$BE$7:BE66) -> 0
BE67: 0 | BF67: =SUM($BE$7:BE67) -> 136071.6 | BG67: =SUMIF($F$7:F67,F67,$BE$7:BE67) -> 0
BE68: 0 | BF68: =SUM($BE$7:BE68) -> 136071.6 | BG68: =SUMIF($F$7:F68,F68,$BE$7:BE68) -> 0
BE69: 0 | BF69: =SUM($BE$7:BE69) -> 136071.6 | BG69: =SUMIF($F$7:F69,F69,$BE$7:BE69) -> 0
BE70: 0 | BF70: =SUM($BE$7:BE70) -> 136071.6 | BG70: =SUMIF($F$7:F70,F70,$BE$7:BE70) -> 0
BE71: 0 | BF71: =SUM($BE$7:BE71) -> 136071.6 | BG71: =SUMIF($F$7:F71,F71,$BE$7:BE71) -> 0
A72: =IF(B72="","",MONTH(B72)) ->  | BE72: =SUM(G72:BD72) -> 0 | BF72: =SUM($BE$7:BE72) -> 136071.6 | BG72: =SUMIF($F$7:F72,F72,$BE$7:BE72) -> 0
BE73: 0 | BF73: =SUM($BE$7:BE73) -> 136071.6 | BG73: =SUMIF($F$7:F73,F73,$BE$7:BE73) -> 0
BE74: 0 | BF74: =SUM($BE$7:BE74) -> 136071.6 | BG74: =SUMIF($F$7:F74,F74,$BE$7:BE74) -> 0
BE75: 0 | BF75: =SUM($BE$7:BE75) -> 136071.6 | BG75: =SUMIF($F$7:F75,F75,$BE$7:BE75) -> 0
BE76: 0 | BF76: =SUM($BE$7:BE76) -> 136071.6 | BG76: =SUMIF($F$7:F76,F76,$BE$7:BE76) -> 0
BE77: 0 | BF77: =SUM($BE$7:BE77) -> 136071.6 | BG77: =SUMIF($F$7:F77,F77,$BE$7:BE77) -> 0
BE78: 0 | BF78: =SUM($BE$7:BE78) -> 136071.6 | BG78: =SUMIF($F$7:F78,F78,$BE$7:BE78) -> 0
BE79: 0 | BF79: =SUM($BE$7:BE79) -> 136071.6 | BG79: =SUMIF($F$7:F79,F79,$BE$7:BE79) -> 0
BE80: 0 | BF80: =SUM($BE$7:BE80) -> 136071.6 | BG80: =SUMIF($F$7:F80,F80,$BE$7:BE80) -> 0
BE81: 0 | BF81: =SUM($BE$7:BE81) -> 136071.6 | BG81: =SUMIF($F$7:F81,F81,$BE$7:BE81) -> 0
BE82: 0 | BF82: =SUM($BE$7:BE82) -> 136071.6 | BG82: =SUMIF($F$7:F82,F82,$BE$7:BE82) -> 0
BE83: 0 | BF83: =SUM($BE$7:BE83) -> 136071.6 | BG83: =SUMIF($F$7:F83,F83,$BE$7:BE83) -> 0
BE84: 0 | BF84: =SUM($BE$7:BE84) -> 136071.6 | BG84: =SUMIF($F$7:F84,F84,$BE$7:BE84) -> 0
BE85: 0 | BF85: =SUM($BE$7:BE85) -> 136071.6 | BG85: =SUMIF($F$7:F85,F85,$BE$7:BE85) -> 0
BE86: 0 | BF86: =SUM($BE$7:BE86) -> 136071.6 | BG86: =SUMIF($F$7:F86,F86,$BE$7:BE86) -> 0
BE87: 0 | BF87: =SUM($BE$7:BE87) -> 136071.6 | BG87: =SUMIF($F$7:F87,F87,$BE$7:BE87) -> 0
BE88: 0 | BF88: =SUM($BE$7:BE88) -> 136071.6 | BG88: =SUMIF($F$7:F88,F88,$BE$7:BE88) -> 0
BE89: 0 | BF89: =SUM($BE$7:BE89) -> 136071.6 | BG89: =SUMIF($F$7:F89,F89,$BE$7:BE89) -> 0
BE90: 0 | BF90: =SUM($BE$7:BE90) -> 136071.6 | BG90: =SUMIF($F$7:F90,F90,$BE$7:BE90) -> 0
BE91: 0 | BF91: =SUM($BE$7:BE91) -> 136071.6 | BG91: =SUMIF($F$7:F91,F91,$BE$7:BE91) -> 0
BE92: 0 | BF92: =SUM($BE$7:BE92) -> 136071.6 | BG92: =SUMIF($F$7:F92,F92,$BE$7:BE92) -> 0
BE93: 0 | BF93: =SUM($BE$7:BE93) -> 136071.6 | BG93: =SUMIF($F$7:F93,F93,$BE$7:BE93) -> 0
BE94: 0 | BF94: =SUM($BE$7:BE94) -> 136071.6 | BG94: =SUMIF($F$7:F94,F94,$BE$7:BE94) -> 0
BE95: 0 | BF95: =SUM($BE$7:BE95) -> 136071.6 | BG95: =SUMIF($F$7:F95,F95,$BE$7:BE95) -> 0
BE96: 0 | BF96: =SUM($BE$7:BE96) -> 136071.6 | BG96: =SUMIF($F$7:F96,F96,$BE$7:BE96) -> 0
BE97: 0 | BF97: =SUM($BE$7:BE97) -> 136071.6 | BG97: =SUMIF($F$7:F97,F97,$BE$7:BE97) -> 0
BE98: 0 | BF98: =SUM($BE$7:BE98) -> 136071.6 | BG98: =SUMIF($F$7:F98,F98,$BE$7:BE98) -> 0
BE99: 0 | BF99: =SUM($BE$7:BE99) -> 136071.6 | BG99: =SUMIF($F$7:F99,F99,$BE$7:BE99) -> 0
BE100: 0 | BF100: =SUM($BE$7:BE100) -> 136071.6 | BG100: =SUMIF($F$7:F100,F100,$BE$7:BE100) -> 0
BE101: 0 | BF101: =SUM($BE$7:BE101) -> 136071.6 | BG101: =SUMIF($F$7:F101,F101,$BE$7:BE101) -> 0
BE102: 0 | BF102: =SUM($BE$7:BE102) -> 136071.6 | BG102: =SUMIF($F$7:F102,F102,$BE$7:BE102) -> 0
BE103: 0 | BF103: =SUM($BE$7:BE103) -> 136071.6 | BG103: =SUMIF($F$7:F103,F103,$BE$7:BE103) -> 0
BE104: 0 | BF104: =SUM($BE$7:BE104) -> 136071.6 | BG104: =SUMIF($F$7:F104,F104,$BE$7:BE104) -> 0
BE105: 0 | BF105: =SUM($BE$7:BE105) -> 136071.6 | BG105: =SUMIF($F$7:F105,F105,$BE$7:BE105) -> 0
BE106: 0 | BF106: =SUM($BE$7:BE106) -> 136071.6 | BG106: =SUMIF($F$7:F106,F106,$BE$7:BE106) -> 0
BE107: 0 | BF107: =SUM($BE$7:BE107) -> 136071.6 | BG107: =SUMIF($F$7:F107,F107,$BE$7:BE107) -> 0
BE108: 0 | BF108: =SUM($BE$7:BE108) -> 136071.6 | BG108: =SUMIF($F$7:F108,F108,$BE$7:BE108) -> 0
BE109: 0 | BF109: =SUM($BE$7:BE109) -> 136071.6 | BG109: =SUMIF($F$7:F109,F109,$BE$7:BE109) -> 0
BE110: 0 | BF110: =SUM($BE$7:BE110) -> 136071.6 | BG110: =SUMIF($F$7:F110,F110,$BE$7:BE110) -> 0
BE111: 0 | BF111: =SUM($BE$7:BE111) -> 136071.6 | BG111: =SUMIF($F$7:F111,F111,$BE$7:BE111) -> 0
BE112: 0 | BF112: =SUM($BE$7:BE112) -> 136071.6 | BG112: =SUMIF($F$7:F112,F112,$BE$7:BE112) -> 0
BE113: 0 | BF113: =SUM($BE$7:BE113) -> 136071.6 | BG113: =SUMIF($F$7:F113,F113,$BE$7:BE113) -> 0
BE114: 0 | BF114: =SUM($BE$7:BE114) -> 136071.6 | BG114: =SUMIF($F$7:F114,F114,$BE$7:BE114) -> 0
BE115: 0 | BF115: =SUM($BE$7:BE115) -> 136071.6 | BG115: =SUMIF($F$7:F115,F115,$BE$7:BE115) -> 0
BE116: 0 | BF116: =SUM($BE$7:BE116) -> 136071.6 | BG116: =SUMIF($F$7:F116,F116,$BE$7:BE116) -> 0
BE117: 0 | BF117: =SUM($BE$7:BE117) -> 136071.6 | BG117: =SUMIF($F$7:F117,F117,$BE$7:BE117) -> 0
BE118: 0 | BF118: =SUM($BE$7:BE118) -> 136071.6 | BG118: =SUMIF($F$7:F118,F118,$BE$7:BE118) -> 0
BE119: 0 | BF119: =SUM($BE$7:BE119) -> 136071.6 | BG119: =SUMIF($F$7:F119,F119,$BE$7:BE119) -> 0
BE120: 0 | BF120: =SUM($BE$7:BE120) -> 136071.6 | BG120: =SUMIF($F$7:F120,F120,$BE$7:BE120) -> 0
BE121: 0 | BF121: =SUM($BE$7:BE121) -> 136071.6 | BG121: =SUMIF($F$7:F121,F121,$BE$7:BE121) -> 0
BE122: 0 | BF122: =SUM($BE$7:BE122) -> 136071.6 | BG122: =SUMIF($F$7:F122,F122,$BE$7:BE122) -> 0
BE123: 0 | BF123: =SUM($BE$7:BE123) -> 136071.6 | BG123: =SUMIF($F$7:F123,F123,$BE$7:BE123) -> 0
BE124: 0 | BF124: =SUM($BE$7:BE124) -> 136071.6 | BG124: =SUMIF($F$7:F124,F124,$BE$7:BE124) -> 0
BE125: 0 | BF125: =SUM($BE$7:BE125) -> 136071.6 | BG125: =SUMIF($F$7:F125,F125,$BE$7:BE125) -> 0
BE126: 0 | BF126: =SUM($BE$7:BE126) -> 136071.6 | BG126: =SUMIF($F$7:F126,F126,$BE$7:BE126) -> 0
BE127: 0 | BF127: =SUM($BE$7:BE127) -> 136071.6 | BG127: =SUMIF($F$7:F127,F127,$BE$7:BE127) -> 0
BE128: 0 | BF128: =SUM($BE$7:BE128) -> 136071.6 | BG128: =SUMIF($F$7:F128,F128,$BE$7:BE128) -> 0
BE129: 0 | BF129: =SUM($BE$7:BE129) -> 136071.6 | BG129: =SUMIF($F$7:F129,F129,$BE$7:BE129) -> 0
BE130: 0 | BF130: =SUM($BE$7:BE130) -> 136071.6 | BG130: =SUMIF($F$7:F130,F130,$BE$7:BE130) -> 0
BE131: 0 | BF131: =SUM($BE$7:BE131) -> 136071.6 | BG131: =SUMIF($F$7:F131,F131,$BE$7:BE131) -> 0
BE132: 0 | BF132: =SUM($BE$7:BE132) -> 136071.6 | BG132: =SUMIF($F$7:F132,F132,$BE$7:BE132) -> 0
BE133: 0 | BF133: =SUM($BE$7:BE133) -> 136071.6 | BG133: =SUMIF($F$7:F133,F133,$BE$7:BE133) -> 0
BE134: 0 | BF134: =SUM($BE$7:BE134) -> 136071.6 | BG134: =SUMIF($F$7:F134,F134,$BE$7:BE134) -> 0
BE135: 0 | BF135: =SUM($BE$7:BE135) -> 136071.6 | BG135: =SUMIF($F$7:F135,F135,$BE$7:BE135) -> 0
A136: =IF(B136="","",MONTH(B136)) ->  | BE136: =SUM(G136:BD136) -> 0 | BF136: =SUM($BE$7:BE136) -> 136071.6 | BG136: =SUMIF($F$7:F136,F136,$BE$7:BE136) -> 0
BE137: 0 | BF137: =SUM($BE$7:BE137) -> 136071.6 | BG137: =SUMIF($F$7:F137,F137,$BE$7:BE137) -> 0
BE138: 0 | BF138: =SUM($BE$7:BE138) -> 136071.6 | BG138: =SUMIF($F$7:F138,F138,$BE$7:BE138) -> 0
BE139: 0 | BF139: =SUM($BE$7:BE139) -> 136071.6 | BG139: =SUMIF($F$7:F139,F139,$BE$7:BE139) -> 0
BE140: 0 | BF140: =SUM($BE$7:BE140) -> 136071.6 | BG140: =SUMIF($F$7:F140,F140,$BE$7:BE140) -> 0
BE141: 0 | BF141: =SUM($BE$7:BE141) -> 136071.6 | BG141: =SUMIF($F$7:F141,F141,$BE$7:BE141) -> 0
BE142: 0 | BF142: =SUM($BE$7:BE142) -> 136071.6 | BG142: =SUMIF($F$7:F142,F142,$BE$7:BE142) -> 0
BE143: 0 | BF143: =SUM($BE$7:BE143) -> 136071.6 | BG143: =SUMIF($F$7:F143,F143,$BE$7:BE143) -> 0
BE144: 0 | BF144: =SUM($BE$7:BE144) -> 136071.6 | BG144: =SUMIF($F$7:F144,F144,$BE$7:BE144) -> 0
BE145: 0 | BF145: =SUM($BE$7:BE145) -> 136071.6 | BG145: =SUMIF($F$7:F145,F145,$BE$7:BE145) -> 0
BE146: 0 | BF146: =SUM($BE$7:BE146) -> 136071.6 | BG146: =SUMIF($F$7:F146,F146,$BE$7:BE146) -> 0
BE147: 0 | BF147: =SUM($BE$7:BE147) -> 136071.6 | BG147: =SUMIF($F$7:F147,F147,$BE$7:BE147) -> 0
BE148: 0 | BF148: =SUM($BE$7:BE148) -> 136071.6 | BG148: =SUMIF($F$7:F148,F148,$BE$7:BE148) -> 0
BE149: 0 | BF149: =SUM($BE$7:BE149) -> 136071.6 | BG149: =SUMIF($F$7:F149,F149,$BE$7:BE149) -> 0
BE150: 0 | BF150: =SUM($BE$7:BE150) -> 136071.6 | BG150: =SUMIF($F$7:F150,F150,$BE$7:BE150) -> 0
BE151: 0 | BF151: =SUM($BE$7:BE151) -> 136071.6 | BG151: =SUMIF($F$7:F151,F151,$BE$7:BE151) -> 0
BE152: 0 | BF152: =SUM($BE$7:BE152) -> 136071.6 | BG152: =SUMIF($F$7:F152,F152,$BE$7:BE152) -> 0
BE153: 0 | BF153: =SUM($BE$7:BE153) -> 136071.6 | BG153: =SUMIF($F$7:F153,F153,$BE$7:BE153) -> 0
BE154: 0 | BF154: =SUM($BE$7:BE154) -> 136071.6 | BG154: =SUMIF($F$7:F154,F154,$BE$7:BE154) -> 0
BE155: 0 | BF155: =SUM($BE$7:BE155) -> 136071.6 | BG155: =SUMIF($F$7:F155,F155,$BE$7:BE155) -> 0
BE156: 0 | BF156: =SUM($BE$7:BE156) -> 136071.6 | BG156: =SUMIF($F$7:F156,F156,$BE$7:BE156) -> 0
BE157: 0 | BF157: =SUM($BE$7:BE157) -> 136071.6 | BG157: =SUMIF($F$7:F157,F157,$BE$7:BE157) -> 0
BE158: 0 | BF158: =SUM($BE$7:BE158) -> 136071.6 | BG158: =SUMIF($F$7:F158,F158,$BE$7:BE158) -> 0
BE159: 0 | BF159: =SUM($BE$7:BE159) -> 136071.6 | BG159: =SUMIF($F$7:F159,F159,$BE$7:BE159) -> 0
BE160: 0 | BF160: =SUM($BE$7:BE160) -> 136071.6 | BG160: =SUMIF($F$7:F160,F160,$BE$7:BE160) -> 0
BE161: 0 | BF161: =SUM($BE$7:BE161) -> 136071.6 | BG161: =SUMIF($F$7:F161,F161,$BE$7:BE161) -> 0
BE162: 0 | BF162: =SUM($BE$7:BE162) -> 136071.6 | BG162: =SUMIF($F$7:F162,F162,$BE$7:BE162) -> 0
BE163: 0 | BF163: =SUM($BE$7:BE163) -> 136071.6 | BG163: =SUMIF($F$7:F163,F163,$BE$7:BE163) -> 0
BE164: 0 | BF164: =SUM($BE$7:BE164) -> 136071.6 | BG164: =SUMIF($F$7:F164,F164,$BE$7:BE164) -> 0
BE165: 0 | BF165: =SUM($BE$7:BE165) -> 136071.6 | BG165: =SUMIF($F$7:F165,F165,$BE$7:BE165) -> 0
BE166: 0 | BF166: =SUM($BE$7:BE166) -> 136071.6 | BG166: =SUMIF($F$7:F166,F166,$BE$7:BE166) -> 0
BE167: 0 | BF167: =SUM($BE$7:BE167) -> 136071.6 | BG167: =SUMIF($F$7:F167,F167,$BE$7:BE167) -> 0
BE168: 0 | BF168: =SUM($BE$7:BE168) -> 136071.6 | BG168: =SUMIF($F$7:F168,F168,$BE$7:BE168) -> 0
BE169: 0 | BF169: =SUM($BE$7:BE169) -> 136071.6 | BG169: =SUMIF($F$7:F169,F169,$BE$7:BE169) -> 0
BE170: 0 | BF170: =SUM($BE$7:BE170) -> 136071.6 | BG170: =SUMIF($F$7:F170,F170,$BE$7:BE170) -> 0
BE171: 0 | BF171: =SUM($BE$7:BE171) -> 136071.6 | BG171: =SUMIF($F$7:F171,F171,$BE$7:BE171) -> 0
BE172: 0 | BF172: =SUM($BE$7:BE172) -> 136071.6 | BG172: =SUMIF($F$7:F172,F172,$BE$7:BE172) -> 0
BE173: 0 | BF173: =SUM($BE$7:BE173) -> 136071.6 | BG173: =SUMIF($F$7:F173,F173,$BE$7:BE173) -> 0
BE174: 0 | BF174: =SUM($BE$7:BE174) -> 136071.6 | BG174: =SUMIF($F$7:F174,F174,$BE$7:BE174) -> 0
BE175: 0 | BF175: =SUM($BE$7:BE175) -> 136071.6 | BG175: =SUMIF($F$7:F175,F175,$BE$7:BE175) -> 0
BE176: 0 | BF176: =SUM($BE$7:BE176) -> 136071.6 | BG176: =SUMIF($F$7:F176,F176,$BE$7:BE176) -> 0
BE177: 0 | BF177: =SUM($BE$7:BE177) -> 136071.6 | BG177: =SUMIF($F$7:F177,F177,$BE$7:BE177) -> 0
BE178: 0 | BF178: =SUM($BE$7:BE178) -> 136071.6 | BG178: =SUMIF($F$7:F178,F178,$BE$7:BE178) -> 0
BE179: 0 | BF179: =SUM($BE$7:BE179) -> 136071.6 | BG179: =SUMIF($F$7:F179,F179,$BE$7:BE179) -> 0
BE180: 0 | BF180: =SUM($BE$7:BE180) -> 136071.6 | BG180: =SUMIF($F$7:F180,F180,$BE$7:BE180) -> 0
BE181: 0 | BF181: =SUM($BE$7:BE181) -> 136071.6 | BG181: =SUMIF($F$7:F181,F181,$BE$7:BE181) -> 0
BE182: 0 | BF182: =SUM($BE$7:BE182) -> 136071.6 | BG182: =SUMIF($F$7:F182,F182,$BE$7:BE182) -> 0
BE183: 0 | BF183: =SUM($BE$7:BE183) -> 136071.6 | BG183: =SUMIF($F$7:F183,F183,$BE$7:BE183) -> 0
BE184: 0 | BF184: =SUM($BE$7:BE184) -> 136071.6 | BG184: =SUMIF($F$7:F184,F184,$BE$7:BE184) -> 0
BE185: 0 | BF185: =SUM($BE$7:BE185) -> 136071.6 | BG185: =SUMIF($F$7:F185,F185,$BE$7:BE185) -> 0
BE186: 0 | BF186: =SUM($BE$7:BE186) -> 136071.6 | BG186: =SUMIF($F$7:F186,F186,$BE$7:BE186) -> 0
BE187: 0 | BF187: =SUM($BE$7:BE187) -> 136071.6 | BG187: =SUMIF($F$7:F187,F187,$BE$7:BE187) -> 0
BE188: 0 | BF188: =SUM($BE$7:BE188) -> 136071.6 | BG188: =SUMIF($F$7:F188,F188,$BE$7:BE188) -> 0
BE189: 0 | BF189: =SUM($BE$7:BE189) -> 136071.6 | BG189: =SUMIF($F$7:F189,F189,$BE$7:BE189) -> 0
BE190: 0 | BF190: =SUM($BE$7:BE190) -> 136071.6 | BG190: =SUMIF($F$7:F190,F190,$BE$7:BE190) -> 0
BE191: 0 | BF191: =SUM($BE$7:BE191) -> 136071.6 | BG191: =SUMIF($F$7:F191,F191,$BE$7:BE191) -> 0
BE192: 0 | BF192: =SUM($BE$7:BE192) -> 136071.6 | BG192: =SUMIF($F$7:F192,F192,$BE$7:BE192) -> 0
BE193: 0 | BF193: =SUM($BE$7:BE193) -> 136071.6 | BG193: =SUMIF($F$7:F193,F193,$BE$7:BE193) -> 0
BE194: 0 | BF194: =SUM($BE$7:BE194) -> 136071.6 | BG194: =SUMIF($F$7:F194,F194,$BE$7:BE194) -> 0
BE195: 0 | BF195: =SUM($BE$7:BE195) -> 136071.6 | BG195: =SUMIF($F$7:F195,F195,$BE$7:BE195) -> 0
BE196: 0 | BF196: =SUM($BE$7:BE196) -> 136071.6 | BG196: =SUMIF($F$7:F196,F196,$BE$7:BE196) -> 0
BE197: 0 | BF197: =SUM($BE$7:BE197) -> 136071.6 | BG197: =SUMIF($F$7:F197,F197,$BE$7:BE197) -> 0
BE198: 0 | BF198: =SUM($BE$7:BE198) -> 136071.6 | BG198: =SUMIF($F$7:F198,F198,$BE$7:BE198) -> 0
BE199: 0 | BF199: =SUM($BE$7:BE199) -> 136071.6 | BG199: =SUMIF($F$7:F199,F199,$BE$7:BE199) -> 0
A200: =IF(B200="","",MONTH(B200)) ->  | BE200: =SUM(G200:BD200) -> 0 | BF200: =SUM($BE$7:BE200) -> 136071.6 | BG200: =SUMIF($F$7:F200,F200,$BE$7:BE200) -> 0
BE201: 0 | BF201: =SUM($BE$7:BE201) -> 136071.6 | BG201: =SUMIF($F$7:F201,F201,$BE$7:BE201) -> 0
BE202: 0 | BF202: =SUM($BE$7:BE202) -> 136071.6 | BG202: =SUMIF($F$7:F202,F202,$BE$7:BE202) -> 0
BE203: 0 | BF203: =SUM($BE$7:BE203) -> 136071.6 | BG203: =SUMIF($F$7:F203,F203,$BE$7:BE203) -> 0
BE204: 0 | BF204: =SUM($BE$7:BE204) -> 136071.6 | BG204: =SUMIF($F$7:F204,F204,$BE$7:BE204) -> 0
... 920 more rows

Sheet مصروفات متغيره
D4: ='مصروفات اساسية'!$D$4 -> Designed By: MOHAMED ELRIFY | F4: اجماليات | G4: =الاجمالى_الكلى_ثابت -> 1001 | H4: 2 | I4: 3 | J4: 1000 | K4: 1109 | L4: 1100 | M4: 1500 | N4: 456 | O4: 900 | P4: 510 | Q4: 888 | R4: 2450 | S4: 2900 | T4: 1900 | U4: 789 | V4: 643 | W4: 669.4 | X4: 695.8 | Y4: 722.2 | Z4: 748.6 | AA4: 775 | AB4: 801.4 | AC4: 827.8 | AD4: 854.2 | AE4: 880.6 | AF4: 907 | AG4: 933.4 | AH4: 959.8 | AI4: 986.2 | AJ4: 1012.6 | AK4: 1500 | AL4: 1300 | AM4: 1091.8 | AN4: 1118.2 | AO4: 1144.6 | AP4: 1171 | AQ4: 1197.4 | AR4: 1223.8 | AS4: 1250.2 | AT4: 1276.6 | AU4: 1303 | AV4: 990 | AW4: 1355.8 | AX4: 1382.2 | AY4: 890 | AZ4: 1435 | BA4: 1461.4 | BB4: 1487.8 | BC4: 1514.2 | BD4: 1544.6 | BE4: =BE$2008 -> 54562.6 | BF4: 54562.6 | BG4: 0
B6: التاريخ | C6: رقم المستند | D6: نوع المستند | E6: شرح مختصر | F6: الاقسام / الفروع | G6: =TRANSPOSE(قائمة_مصروفات_متغيره) -> انتقالات | H6: بريد | I6: ادوات مكتبيه | J6: فارغ1 | K6: فارغ2 | L6: فارغ3 | M6: فارغ4 | N6: فارغ5 | O6: فارغ6 | P6: فارغ7 | Q6: فارغ8 | R6: فارغ9 | S6: فارغ10 | T6: فارغ11 | U6: فارغ12 | V6: فارغ13 | W6: فارغ14 | X6: فارغ15 | Y6: فارغ16 | Z6: فارغ17 | AA6: فارغ18 | AB6: فارغ19 | AC6: فارغ20 | AD6: فارغ21 | AE6: فارغ22 | AF6: فارغ23 | AG6: فارغ24 | AH6: فارغ25 | AI6: فارغ26 | AJ6: فارغ27 | AK6: فارغ28 | AL6: فارغ29 | AM6: فارغ30 | AN6: فارغ31 | AO6: فارغ32 | AP6: فارغ33 | AQ6: فارغ34 | AR6: فارغ35 | AS6: فارغ36 | AT6: فارغ37 | AU6: فارغ38 | AV6: فارغ39 | AW6: فارغ40 | AX6: فارغ41 | AY6: فارغ42 | AZ6: فارغ43 | BA6: فارغ44 | BB6: فارغ45 | BC6: فارغ | BD6: فارغ | BE6: اجمالى المستند | BF6: الاجمالى التراكمى | BG6: الاجمالى التراكمى للقسم
A7: =IF(B7="","",MONTH(B7)) -> 1 | B7: 2015-01-01 | C7: 101 | D7: صرف نقدى | E7: دفع ايجار شهر يناير | F7: المبيعات | G7: 1000 | BD7: 1 | BE7: =SUM(G7:BD7) -> 1001 | BF7: =SUM($BE$7:BE7) -> 1001 | BG7: =SUMIF($F$7:F7,F7,$BE$7:BE7) -> 1001
A8: =IF(B8="","",MONTH(B8)) -> 1 | B8: 2015-01-02 | C8: 102 | D8: شيك | E8: دفع فاتورة الكهرباء عن يناير | F8: المبيعات | G8: 1 | H8: 2 | I8: 3 | J8: 1000 | K8: 1109 | L8: 1100 | M8: 1500 | N8: 456 | O8: 900 | P8: 510 | Q8: 888 | R8: 2450 | S8: 2900 | T8: 1900 | U8: 789 | V8: 643 | W8: 669.4 | X8: 695.8 | Y8: 722.2 | Z8: 748.6 | AA8: 775 | AB8: 801.4 | AC8: 827.8 | AD8: 854.2 | AE8: 880.6 | AF8: 907 | AG8: 933.4 | AH8: 959.8 | AI8: 986.2 | AJ8: 1012.6 | AK8: 1500 | AL8: 1300 | AM8: 1091.8 | AN8: 1118.2 | AO8: 1144.6 | AP8: 1171 | AQ8: 1197.4 | AR8: 1223.8 | AS8: 1250.2 | AT8: 1276.6 | AU8: 1303 | AV8: 990 | AW8: 1355.8 | AX8: 1382.2 | AY8: 890 | AZ8: 1435 | BA8: 1461.4 | BB8: 1487.8 | BC8: 1514.2 | BD8: 1540.6 | BE8: =SUM(G8:BD8) -> 53558.6 | BF8: =SUM($BE$7:BE8) -> 54559.6 | BG8: =SUMIF($F$7:F8,F8,$BE$7:BE8) -> 54559.6
A9: 1 | B9: 2015-01-03 | C9: 103 | D9: صرف نقدى | E9: دفع رواتب شهر يناير | F9: المبيعات | BD9: 3 | BE9: 3 | BF9: =SUM($BE$7:BE9) -> 54562.6 | BG9: =SUMIF($F$7:F9,F9,$BE$7:BE9) -> 54562.6
BE10: 0 | BF10: =SUM($BE$7:BE10) -> 54562.6 | BG10: =SUMIF($F$7:F10,F10,$BE$7:BE10) -> 0
BE11: 0 | BF11: =SUM($BE$7:BE11) -> 54562.6 | BG11: =SUMIF($F$7:F11,F11,$BE$7:BE11) -> 0
BE12: 0 | BF12: =SUM($BE$7:BE12) -> 54562.6 | BG12: =SUMIF($F$7:F12,F12,$BE$7:BE12) -> 0
BE13: 0 | BF13: =SUM($BE$7:BE13) -> 54562.6 | BG13: =SUMIF($F$7:F13,F13,$BE$7:BE13) -> 0
BE14: 0 | BF14: =SUM($BE$7:BE14) -> 54562.6 | BG14: =SUMIF($F$7:F14,F14,$BE$7:BE14) -> 0
BE15: 0 | BF15: =SUM($BE$7:BE15) -> 54562.6 | BG15: =SUMIF($F$7:F15,F15,$BE$7:BE15) -> 0
BE16: 0 | BF16: =SUM($BE$7:BE16) -> 54562.6 | BG16: =SUMIF($F$7:F16,F16,$BE$7:BE16) -> 0
BE17: 0 | BF17: =SUM($BE$7:BE17) -> 54562.6 | BG17: =SUMIF($F$7:F17,F17,$BE$7:BE17) -> 0
BE18: 0 | BF18: =SUM($BE$7:BE18) -> 54562.6 | BG18: =SUMIF($F$7:F18,F18,$BE$7:BE18) -> 0
BE19: 0 | BF19: =SUM($BE$7:BE19) -> 54562.6 | BG19: =SUMIF($F$7:F19,F19,$BE$7:BE19) -> 0
BE20: 0 | BF20: =SUM($BE$7:BE20) -> 54562.6 | BG20: =SUMIF($F$7:F20,F20,$BE$7:BE20) -> 0
BE21: 0 | BF21: =SUM($BE$7:BE21) -> 54562.6 | BG21: =SUMIF($F$7:F21,F21,$BE$7:BE21) -> 0
BE22: 0 | BF22: =SUM($BE$7:BE22) -> 54562.6 | BG22: =SUMIF($F$7:F22,F22,$BE$7:BE22) -> 0
BE23: 0 | BF23: =SUM($BE$7:BE23) -> 54562.6 | BG23: =SUMIF($F$7:F23,F23,$BE$7:BE23) -> 0
BE24: 0 | BF24: =SUM($BE$7:BE24) -> 54562.6 | BG24: =SUMIF($F$7:F24,F24,$BE$7:BE24) -> 0
BE25: 0 | BF25: =SUM($BE$7:BE25) -> 54562.6 | BG25: =SUMIF($F$7:F25,F25,$BE$7:BE25) -> 0
BE26: 0 | BF26: =SUM($BE$7:BE26) -> 54562.6 | BG26: =SUMIF($F$7:F26,F26,$BE$7:BE26) -> 0
BE27: 0 | BF27: =SUM($BE$7:BE27) -> 54562.6 | BG27: =SUMIF($F$7:F27,F27,$BE$7:BE27) -> 0
BE28: 0 | BF28: =SUM($BE$7:BE28) -> 54562.6 | BG28: =SUMIF($F$7:F28,F28,$BE$7:BE28) -> 0
BE29: 0 | BF29: =SUM($BE$7:BE29) -> 54562.6 | BG29: =SUMIF($F$7:F29,F29,$BE$7:BE29) -> 0
BE30: 0 | BF30: =SUM($BE$7:BE30) -> 54562.6 | BG30: =SUMIF($F$7:F30,F30,$BE$7:BE30) -> 0
BE31: 0 | BF31: =SUM($BE$7:BE31) -> 54562.6 | BG31: =SUMIF($F$7:F31,F31,$BE$7:BE31) -> 0
BE32: 0 | BF32: =SUM($BE$7:BE32) -> 54562.6 | BG32: =SUMIF($F$7:F32,F32,$BE$7:BE32) -> 0
BE33: 0 | BF33: =SUM($BE$7:BE33) -> 54562.6 | BG33: =SUMIF($F$7:F33,F33,$BE$7:BE33) -> 0
BE34: 0 | BF34: =SUM($BE$7:BE34) -> 54562.6 | BG34: =SUMIF($F$7:F34,F34,$BE$7:BE34) -> 0
BE35: 0 | BF35: =SUM($BE$7:BE35) -> 54562.6 | BG35: =SUMIF($F$7:F35,F35,$BE$7:BE35) -> 0
BE36: 0 | BF36: =SUM($BE$7:BE36) -> 54562.6 | BG36: =SUMIF($F$7:F36,F36,$BE$7:BE36) -> 0
BE37: 0 | BF37: =SUM($BE$7:BE37) -> 54562.6 | BG37: =SUMIF($F$7:F37,F37,$BE$7:BE37) -> 0
BE38: 0 | BF38: =SUM($BE$7:BE38) -> 54562.6 | BG38: =SUMIF($F$7:F38,F38,$BE$7:BE38) -> 0
BE39: 0 | BF39: =SUM($BE$7:BE39) -> 54562.6 | BG39: =SUMIF($F$7:F39,F39,$BE$7:BE39) -> 0
BE40: 0 | BF40: =SUM($BE$7:BE40) -> 54562.6 | BG40: =SUMIF($F$7:F40,F40,$BE$7:BE40) -> 0
BE41: 0 | BF41: =SUM($BE$7:BE41) -> 54562.6 | BG41: =SUMIF($F$7:F41,F41,$BE$7:BE41) -> 0
BE42: 0 | BF42: =SUM($BE$7:BE42) -> 54562.6 | BG42: =SUMIF($F$7:F42,F42,$BE$7:BE42) -> 0
BE43: 0 | BF43: =SUM($BE$7:BE43) -> 54562.6 | BG43: =SUMIF($F$7:F43,F43,$BE$7:BE43) -> 0
BE44: 0 | BF44: =SUM($BE$7:BE44) -> 54562.6 | BG44: =SUMIF($F$7:F44,F44,$BE$7:BE44) -> 0
BE45: 0 | BF45: =SUM($BE$7:BE45) -> 54562.6 | BG45: =SUMIF($F$7:F45,F45,$BE$7:BE45) -> 0
BE46: 0 | BF46: =SUM($BE$7:BE46) -> 54562.6 | BG46: =SUMIF($F$7:F46,F46,$BE$7:BE46) -> 0
BE47: 0 | BF47: =SUM($BE$7:BE47) -> 54562.6 | BG47: =SUMIF($F$7:F47,F47,$BE$7:BE47) -> 0
BE48: 0 | BF48: =SUM($BE$7:BE48) -> 54562.6 | BG48: =SUMIF($F$7:F48,F48,$BE$7:BE48) -> 0
BE49: 0 | BF49: =SUM($BE$7:BE49) -> 54562.6 | BG49: =SUMIF($F$7:F49,F49,$BE$7:BE49) -> 0
BE50: 0 | BF50: =SUM($BE$7:BE50) -> 54562.6 | BG50: =SUMIF($F$7:F50,F50,$BE$7:BE50) -> 0
BE51: 0 | BF51: =SUM($BE$7:BE51) -> 54562.6 | BG51: =SUMIF($F$7:F51,F51,$BE$7:BE51) -> 0
BE52: 0 | BF52: =SUM($BE$7:BE52) -> 54562.6 | BG52: =SUMIF($F$7:F52,F52,$BE$7:BE52) -> 0
BE53: 0 | BF53: =SUM($BE$7:BE53) -> 54562.6 | BG53: =SUMIF($F$7:F53,F53,$BE$7:BE53) -> 0
BE54: 0 | BF54: =SUM($BE$7:BE54) -> 54562.6 | BG54: =SUMIF($F$7:F54,F54,$BE$7:BE54) -> 0
BE55: 0 | BF55: =SUM($BE$7:BE55) -> 54562.6 | BG55: =SUMIF($F$7:F55,F55,$BE$7:BE55) -> 0
BE56: 0 | BF56: =SUM($BE$7:BE56) -> 54562.6 | BG56: =SUMIF($F$7:F56,F56,$BE$7:BE56) -> 0
BE57: 0 | BF57: =SUM($BE$7:BE57) -> 54562.6 | BG57: =SUMIF($F$7:F57,F57,$BE$7:BE57) -> 0
BE58: 0 | BF58: =SUM($BE$7:BE58) -> 54562.6 | BG58: =SUMIF($F$7:F58,F58,$BE$7:BE58) -> 0
BE59: 0 | BF59: =SUM($BE$7:BE59) -> 54562.6 | BG59: =SUMIF($F$7:F59,F59,$BE$7:BE59) -> 0
BE60: 0 | BF60: =SUM($BE$7:BE60) -> 54562.6 | BG60: =SUMIF($F$7:F60,F60,$BE$7:BE60) -> 0
BE61: 0 | BF61: =SUM($BE$7:BE61) -> 54562.6 | BG61: =SUMIF($F$7:F61,F61,$BE$7:BE61) -> 0
BE62: 0 | BF62: =SUM($BE$7:BE62) -> 54562.6 | BG62: =SUMIF($F$7:F62,F62,$BE$7:BE62) -> 0
BE63: 0 | BF63: =SUM($BE$7:BE63) -> 54562.6 | BG63: =SUMIF($F$7:F63,F63,$BE$7:BE63) -> 0
BE64: 0 | BF64: =SUM($BE$7:BE64) -> 54562.6 | BG64: =SUMIF($F$7:F64,F64,$BE$7:BE64) -> 0
BE65: 0 | BF65: =SUM($BE$7:BE65) -> 54562.6 | BG65: =SUMIF($F$7:F65,F65,$BE$7:BE65) -> 0
BE66: 0 | BF66: =SUM($BE$7:BE66) -> 54562.6 | BG66: =SUMIF($F$7:F66,F66,$BE$7:BE66) -> 0
BE67: 0 | BF67: =SUM($BE$7:BE67) -> 54562.6 | BG67: =SUMIF($F$7:F67,F67,$BE$7:BE67) -> 0
BE68: 0 | BF68: =SUM($BE$7:BE68) -> 54562.6 | BG68: =SUMIF($F$7:F68,F68,$BE$7:BE68) -> 0
BE69: 0 | BF69: =SUM($BE$7:BE69) -> 54562.6 | BG69: =SUMIF($F$7:F69,F69,$BE$7:BE69) -> 0
BE70: 0 | BF70: =SUM($BE$7:BE70) -> 54562.6 | BG70: =SUMIF($F$7:F70,F70,$BE$7:BE70) -> 0
BE71: 0 | BF71: =SUM($BE$7:BE71) -> 54562.6 | BG71: =SUMIF($F$7:F71,F71,$BE$7:BE71) -> 0
A72: =IF(B72="","",MONTH(B72)) ->  | BE72: =SUM(G72:BD72) -> 0 | BF72: =SUM($BE$7:BE72) -> 54562.6 | BG72: =SUMIF($F$7:F72,F72,$BE$7:BE72) -> 0
BE73: 0 | BF73: =SUM($BE$7:BE73) -> 54562.6 | BG73: =SUMIF($F$7:F73,F73,$BE$7:BE73) -> 0
BE74: 0 | BF74: =SUM($BE$7:BE74) -> 54562.6 | BG74: =SUMIF($F$7:F74,F74,$BE$7:BE74) -> 0
BE75: 0 | BF75: =SUM($BE$7:BE75) -> 54562.6 | BG75: =SUMIF($F$7:F75,F75,$BE$7:BE75) -> 0
BE76: 0 | BF76: =SUM($BE$7:BE76) -> 54562.6 | BG76: =SUMIF($F$7:F76,F76,$BE$7:BE76) -> 0
BE77: 0 | BF77: =SUM($BE$7:BE77) -> 54562.6 | BG77: =SUMIF($F$7:F77,F77,$BE$7:BE77) -> 0
BE78: 0 | BF78: =SUM($BE$7:BE78) -> 54562.6 | BG78: =SUMIF($F$7:F78,F78,$BE$7:BE78) -> 0
BE79: 0 | BF79: =SUM($BE$7:BE79) -> 54562.6 | BG79: =SUMIF($F$7:F79,F79,$BE$7:BE79) -> 0
BE80: 0 | BF80: =SUM($BE$7:BE80) -> 54562.6 | BG80: =SUMIF($F$7:F80,F80,$BE$7:BE80) -> 0
BE81: 0 | BF81: =SUM($BE$7:BE81) -> 54562.6 | BG81: =SUMIF($F$7:F81,F81,$BE$7:BE81) -> 0
BE82: 0 | BF82: =SUM($BE$7:BE82) -> 54562.6 | BG82: =SUMIF($F$7:F82,F82,$BE$7:BE82) -> 0
BE83: 0 | BF83: =SUM($BE$7:BE83) -> 54562.6 | BG83: =SUMIF($F$7:F83,F83,$BE$7:BE83) -> 0
BE84: 0 | BF84: =SUM($BE$7:BE84) -> 54562.6 | BG84: =SUMIF($F$7:F84,F84,$BE$7:BE84) -> 0
BE85: 0 | BF85: =SUM($BE$7:BE85) -> 54562.6 | BG85: =SUMIF($F$7:F85,F85,$BE$7:BE85) -> 0
BE86: 0 | BF86: =SUM($BE$7:BE86) -> 54562.6 | BG86: =SUMIF($F$7:F86,F86,$BE$7:BE86) -> 0
BE87: 0 | BF87: =SUM($BE$7:BE87) -> 54562.6 | BG87: =SUMIF($F$7:F87,F87,$BE$7:BE87) -> 0
BE88: 0 | BF88: =SUM($BE$7:BE88) -> 54562.6 | BG88: =SUMIF($F$7:F88,F88,$BE$7:BE88) -> 0
BE89: 0 | BF89: =SUM($BE$7:BE89) -> 54562.6 | BG89: =SUMIF($F$7:F89,F89,$BE$7:BE89) -> 0
BE90: 0 | BF90: =SUM($BE$7:BE90) -> 54562.6 | BG90: =SUMIF($F$7:F90,F90,$BE$7:BE90) -> 0
BE91: 0 | BF91: =SUM($BE$7:BE91) -> 54562.6 | BG91: =SUMIF($F$7:F91,F91,$BE$7:BE91) -> 0
BE92: 0 | BF92: =SUM($BE$7:BE92) -> 54562.6 | BG92: =SUMIF($F$7:F92,F92,$BE$7:BE92) -> 0
BE93: 0 | BF93: =SUM($BE$7:BE93) -> 54562.6 | BG93: =SUMIF($F$7:F93,F93,$BE$7:BE93) -> 0
BE94: 0 | BF94: =SUM($BE$7:BE94) -> 54562.6 | BG94: =SUMIF($F$7:F94,F94,$BE$7:BE94) -> 0
BE95: 0 | BF95: =SUM($BE$7:BE95) -> 54562.6 | BG95: =SUMIF($F$7:F95,F95,$BE$7:BE95) -> 0
BE96: 0 | BF96: =SUM($BE$7:BE96) -> 54562.6 | BG96: =SUMIF($F$7:F96,F96,$BE$7:BE96) -> 0
BE97: 0 | BF97: =SUM($BE$7:BE97) -> 54562.6 | BG97: =SUMIF($F$7:F97,F97,$BE$7:BE97) -> 0
BE98: 0 | BF98: =SUM($BE$7:BE98) -> 54562.6 | BG98: =SUMIF($F$7:F98,F98,$BE$7:BE98) -> 0
BE99: 0 | BF99: =SUM($BE$7:BE99) -> 54562.6 | BG99: =SUMIF($F$7:F99,F99,$BE$7:BE99) -> 0
BE100: 0 | BF100: =SUM($BE$7:BE100) -> 54562.6 | BG100: =SUMIF($F$7:F100,F100,$BE$7:BE100) -> 0
BE101: 0 | BF101: =SUM($BE$7:BE101) -> 54562.6 | BG101: =SUMIF($F$7:F101,F101,$BE$7:BE101) -> 0
BE102: 0 | BF102: =SUM($BE$7:BE102) -> 54562.6 | BG102: =SUMIF($F$7:F102,F102,$BE$7:BE102) -> 0
BE103: 0 | BF103: =SUM($BE$7:BE103) -> 54562.6 | BG103: =SUMIF($F$7:F103,F103,$BE$7:BE103) -> 0
BE104: 0 | BF104: =SUM($BE$7:BE104) -> 54562.6 | BG104: =SUMIF($F$7:F104,F104,$BE$7:BE104) -> 0
BE105: 0 | BF105: =SUM($BE$7:BE105) -> 54562.6 | BG105: =SUMIF($F$7:F105,F105,$BE$7:BE105) -> 0
BE106: 0 | BF106: =SUM($BE$7:BE106) -> 54562.6 | BG106: =SUMIF($F$7:F106,F106,$BE$7:BE106) -> 0
BE107: 0 | BF107: =SUM($BE$7:BE107) -> 54562.6 | BG107: =SUMIF($F$7:F107,F107,$BE$7:BE107) -> 0
BE108: 0 | BF108: =SUM($BE$7:BE108) -> 54562.6 | BG108: =SUMIF($F$7:F108,F108,$BE$7:BE108) -> 0
BE109: 0 | BF109: =SUM($BE$7:BE109) -> 54562.6 | BG109: =SUMIF($F$7:F109,F109,$BE$7:BE109) -> 0
BE110: 0 | BF110: =SUM($BE$7:BE110) -> 54562.6 | BG110: =SUMIF($F$7:F110,F110,$BE$7:BE110) -> 0
BE111: 0 | BF111: =SUM($BE$7:BE111) -> 54562.6 | BG111: =SUMIF($F$7:F111,F111,$BE$7:BE111) -> 0
BE112: 0 | BF112: =SUM($BE$7:BE112) -> 54562.6 | BG112: =SUMIF($F$7:F112,F112,$BE$7:BE112) -> 0
BE113: 0 | BF113: =SUM($BE$7:BE113) -> 54562.6 | BG113: =SUMIF($F$7:F113,F113,$BE$7:BE113) -> 0
BE114: 0 | BF114: =SUM($BE$7:BE114) -> 54562.6 | BG114: =SUMIF($F$7:F114,F114,$BE$7:BE114) -> 0
BE115: 0 | BF115: =SUM($BE$7:BE115) -> 54562.6 | BG115: =SUMIF($F$7:F115,F115,$BE$7:BE115) -> 0
BE116: 0 | BF116: =SUM($BE$7:BE116) -> 54562.6 | BG116: =SUMIF($F$7:F116,F116,$BE$7:BE116) -> 0
BE117: 0 | BF117: =SUM($BE$7:BE117) -> 54562.6 | BG117: =SUMIF($F$7:F117,F117,$BE$7:BE117) -> 0
BE118: 0 | BF118: =SUM($BE$7:BE118) -> 54562.6 | BG118: =SUMIF($F$7:F118,F118,$BE$7:BE118) -> 0
BE119: 0 | BF119: =SUM($BE$7:BE119) -> 54562.6 | BG119: =SUMIF($F$7:F119,F119,$BE$7:BE119) -> 0
BE120: 0 | BF120: =SUM($BE$7:BE120) -> 54562.6 | BG120: =SUMIF($F$7:F120,F120,$BE$7:BE120) -> 0
BE121: 0 | BF121: =SUM($BE$7:BE121) -> 54562.6 | BG121: =SUMIF($F$7:F121,F121,$BE$7:BE121) -> 0
BE122: 0 | BF122: =SUM($BE$7:BE122) -> 54562.6 | BG122: =SUMIF($F$7:F122,F122,$BE$7:BE122) -> 0
BE123: 0 | BF123: =SUM($BE$7:BE123) -> 54562.6 | BG123: =SUMIF($F$7:F123,F123,$BE$7:BE123) -> 0
BE124: 0 | BF124: =SUM($BE$7:BE124) -> 54562.6 | BG124: =SUMIF($F$7:F124,F124,$BE$7:BE124) -> 0
BE125: 0 | BF125: =SUM($BE$7:BE125) -> 54562.6 | BG125: =SUMIF($F$7:F125,F125,$BE$7:BE125) -> 0
BE126: 0 | BF126: =SUM($BE$7:BE126) -> 54562.6 | BG126: =SUMIF($F$7:F126,F126,$BE$7:BE126) -> 0
BE127: 0 | BF127: =SUM($BE$7:BE127) -> 54562.6 | BG127: =SUMIF($F$7:F127,F127,$BE$7:BE127) -> 0
BE128: 0 | BF128: =SUM($BE$7:BE128) -> 54562.6 | BG128: =SUMIF($F$7:F128,F128,$BE$7:BE128) -> 0
BE129: 0 | BF129: =SUM($BE$7:BE129) -> 54562.6 | BG129: =SUMIF($F$7:F129,F129,$BE$7:BE129) -> 0
BE130: 0 | BF130: =SUM($BE$7:BE130) -> 54562.6 | BG130: =SUMIF($F$7:F130,F130,$BE$7:BE130) -> 0
BE131: 0 | BF131: =SUM($BE$7:BE131) -> 54562.6 | BG131: =SUMIF($F$7:F131,F131,$BE$7:BE131) -> 0
BE132: 0 | BF132: =SUM($BE$7:BE132) -> 54562.6 | BG132: =SUMIF($F$7:F132,F132,$BE$7:BE132) -> 0
BE133: 0 | BF133: =SUM($BE$7:BE133) -> 54562.6 | BG133: =SUMIF($F$7:F133,F133,$BE$7:BE133) -> 0
BE134: 0 | BF134: =SUM($BE$7:BE134) -> 54562.6 | BG134: =SUMIF($F$7:F134,F134,$BE$7:BE134) -> 0
BE135: 0 | BF135: =SUM($BE$7:BE135) -> 54562.6 | BG135: =SUMIF($F$7:F135,F135,$BE$7:BE135) -> 0
A136: =IF(B136="","",MONTH(B136)) ->  | BE136: =SUM(G136:BD136) -> 0 | BF136: =SUM($BE$7:BE136) -> 54562.6 | BG136: =SUMIF($F$7:F136,F136,$BE$7:BE136) -> 0
BE137: 0 | BF137: =SUM($BE$7:BE137) -> 54562.6 | BG137: =SUMIF($F$7:F137,F137,$BE$7:BE137) -> 0
BE138: 0 | BF138: =SUM($BE$7:BE138) -> 54562.6 | BG138: =SUMIF($F$7:F138,F138,$BE$7:BE138) -> 0
BE139: 0 | BF139: =SUM($BE$7:BE139) -> 54562.6 | BG139: =SUMIF($F$7:F139,F139,$BE$7:BE139) -> 0
BE140: 0 | BF140: =SUM($BE$7:BE140) -> 54562.6 | BG140: =SUMIF($F$7:F140,F140,$BE$7:BE140) -> 0
BE141: 0 | BF141: =SUM($BE$7:BE141) -> 54562.6 | BG141: =SUMIF($F$7:F141,F141,$BE$7:BE141) -> 0
BE142: 0 | BF142: =SUM($BE$7:BE142) -> 54562.6 | BG142: =SUMIF($F$7:F142,F142,$BE$7:BE142) -> 0
BE143: 0 | BF143: =SUM($BE$7:BE143) -> 54562.6 | BG143: =SUMIF($F$7:F143,F143,$BE$7:BE143) -> 0
BE144: 0 | BF144: =SUM($BE$7:BE144) -> 54562.6 | BG144: =SUMIF($F$7:F144,F144,$BE$7:BE144) -> 0
BE145: 0 | BF145: =SUM($BE$7:BE145) -> 54562.6 | BG145: =SUMIF($F$7:F145,F145,$BE$7:BE145) -> 0
BE146: 0 | BF146: =SUM($BE$7:BE146) -> 54562.6 | BG146: =SUMIF($F$7:F146,F146,$BE$7:BE146) -> 0
BE147: 0 | BF147: =SUM($BE$7:BE147) -> 54562.6 | BG147: =SUMIF($F$7:F147,F147,$BE$7:BE147) -> 0
BE148: 0 | BF148: =SUM($BE$7:BE148) -> 54562.6 | BG148: =SUMIF($F$7:F148,F148,$BE$7:BE148) -> 0
BE149: 0 | BF149: =SUM($BE$7:BE149) -> 54562.6 | BG149: =SUMIF($F$7:F149,F149,$BE$7:BE149) -> 0
BE150: 0 | BF150: =SUM($BE$7:BE150) -> 54562.6 | BG150: =SUMIF($F$7:F150,F150,$BE$7:BE150) -> 0
BE151: 0 | BF151: =SUM($BE$7:BE151) -> 54562.6 | BG151: =SUMIF($F$7:F151,F151,$BE$7:BE151) -> 0
BE152: 0 | BF152: =SUM($BE$7:BE152) -> 54562.6 | BG152: =SUMIF($F$7:F152,F152,$BE$7:BE152) -> 0
BE153: 0 | BF153: =SUM($BE$7:BE153) -> 54562.6 | BG153: =SUMIF($F$7:F153,F153,$BE$7:BE153) -> 0
BE154: 0 | BF154: =SUM($BE$7:BE154) -> 54562.6 | BG154: =SUMIF($F$7:F154,F154,$BE$7:BE154) -> 0
BE155: 0 | BF155: =SUM($BE$7:BE155) -> 54562.6 | BG155: =SUMIF($F$7:F155,F155,$BE$7:BE155) -> 0
BE156: 0 | BF156: =SUM($BE$7:BE156) -> 54562.6 | BG156: =SUMIF($F$7:F156,F156,$BE$7:BE156) -> 0
BE157: 0 | BF157: =SUM($BE$7:BE157) -> 54562.6 | BG157: =SUMIF($F$7:F157,F157,$BE$7:BE157) -> 0
BE158: 0 | BF158: =SUM($BE$7:BE158) -> 54562.6 | BG158: =SUMIF($F$7:F158,F158,$BE$7:BE158) -> 0
BE159: 0 | BF159: =SUM($BE$7:BE159) -> 54562.6 | BG159: =SUMIF($F$7:F159,F159,$BE$7:BE159) -> 0
BE160: 0 | BF160: =SUM($BE$7:BE160) -> 54562.6 | BG160: =SUMIF($F$7:F160,F160,$BE$7:BE160) -> 0
BE161: 0 | BF161: =SUM($BE$7:BE161) -> 54562.6 | BG161: =SUMIF($F$7:F161,F161,$BE$7:BE161) -> 0
BE162: 0 | BF162: =SUM($BE$7:BE162) -> 54562.6 | BG162: =SUMIF($F$7:F162,F162,$BE$7:BE162) -> 0
BE163: 0 | BF163: =SUM($BE$7:BE163) -> 54562.6 | BG163: =SUMIF($F$7:F163,F163,$BE$7:BE163) -> 0
BE164: 0 | BF164: =SUM($BE$7:BE164) -> 54562.6 | BG164: =SUMIF($F$7:F164,F164,$BE$7:BE164) -> 0
BE165: 0 | BF165: =SUM($BE$7:BE165) -> 54562.6 | BG165: =SUMIF($F$7:F165,F165,$BE$7:BE165) -> 0
BE166: 0 | BF166: =SUM($BE$7:BE166) -> 54562.6 | BG166: =SUMIF($F$7:F166,F166,$BE$7:BE166) -> 0
BE167: 0 | BF167: =SUM($BE$7:BE167) -> 54562.6 | BG167: =SUMIF($F$7:F167,F167,$BE$7:BE167) -> 0
BE168: 0 | BF168: =SUM($BE$7:BE168) -> 54562.6 | BG168: =SUMIF($F$7:F168,F168,$BE$7:BE168) -> 0
BE169: 0 | BF169: =SUM($BE$7:BE169) -> 54562.6 | BG169: =SUMIF($F$7:F169,F169,$BE$7:BE169) -> 0
BE170: 0 | BF170: =SUM($BE$7:BE170) -> 54562.6 | BG170: =SUMIF($F$7:F170,F170,$BE$7:BE170) -> 0
BE171: 0 | BF171: =SUM($BE$7:BE171) -> 54562.6 | BG171: =SUMIF($F$7:F171,F171,$BE$7:BE171) -> 0
BE172: 0 | BF172: =SUM($BE$7:BE172) -> 54562.6 | BG172: =SUMIF($F$7:F172,F172,$BE$7:BE172) -> 0
BE173: 0 | BF173: =SUM($BE$7:BE173) -> 54562.6 | BG173: =SUMIF($F$7:F173,F173,$BE$7:BE173) -> 0
BE174: 0 | BF174: =SUM($BE$7:BE174) -> 54562.6 | BG174: =SUMIF($F$7:F174,F174,$BE$7:BE174) -> 0
BE175: 0 | BF175: =SUM($BE$7:BE175) -> 54562.6 | BG175: =SUMIF($F$7:F175,F175,$BE$7:BE175) -> 0
BE176: 0 | BF176: =SUM($BE$7:BE176) -> 54562.6 | BG176: =SUMIF($F$7:F176,F176,$BE$7:BE176) -> 0
BE177: 0 | BF177: =SUM($BE$7:BE177) -> 54562.6 | BG177: =SUMIF($F$7:F177,F177,$BE$7:BE177) -> 0
BE178: 0 | BF178: =SUM($BE$7:BE178) -> 54562.6 | BG178: =SUMIF($F$7:F178,F178,$BE$7:BE178) -> 0
BE179: 0 | BF179: =SUM($BE$7:BE179) -> 54562.6 | BG179: =SUMIF($F$7:F179,F179,$BE$7:BE179) -> 0
BE180: 0 | BF180: =SUM($BE$7:BE180) -> 54562.6 | BG180: =SUMIF($F$7:F180,F180,$BE$7:BE180) -> 0
BE181: 0 | BF181: =SUM($BE$7:BE181) -> 54562.6 | BG181: =SUMIF($F$7:F181,F181,$BE$7:BE181) -> 0
BE182: 0 | BF182: =SUM($BE$7:BE182) -> 54562.6 | BG182: =SUMIF($F$7:F182,F182,$BE$7:BE182) -> 0
BE183: 0 | BF183: =SUM($BE$7:BE183) -> 54562.6 | BG183: =SUMIF($F$7:F183,F183,$BE$7:BE183) -> 0
BE184: 0 | BF184: =SUM($BE$7:BE184) -> 54562.6 | BG184: =SUMIF($F$7:F184,F184,$BE$7:BE184) -> 0
BE185: 0 | BF185: =SUM($BE$7:BE185) -> 54562.6 | BG185: =SUMIF($F$7:F185,F185,$BE$7:BE185) -> 0
BE186: 0 | BF186: =SUM($BE$7:BE186) -> 54562.6 | BG186: =SUMIF($F$7:F186,F186,$BE$7:BE186) -> 0
BE187: 0 | BF187: =SUM($BE$7:BE187) -> 54562.6 | BG187: =SUMIF($F$7:F187,F187,$BE$7:BE187) -> 0
BE188: 0 | BF188: =SUM($BE$7:BE188) -> 54562.6 | BG188: =SUMIF($F$7:F188,F188,$BE$7:BE188) -> 0
BE189: 0 | BF189: =SUM($BE$7:BE189) -> 54562.6 | BG189: =SUMIF($F$7:F189,F189,$BE$7:BE189) -> 0
BE190: 0 | BF190: =SUM($BE$7:BE190) -> 54562.6 | BG190: =SUMIF($F$7:F190,F190,$BE$7:BE190) -> 0
BE191: 0 | BF191: =SUM($BE$7:BE191) -> 54562.6 | BG191: =SUMIF($F$7:F191,F191,$BE$7:BE191) -> 0
BE192: 0 | BF192: =SUM($BE$7:BE192) -> 54562.6 | BG192: =SUMIF($F$7:F192,F192,$BE$7:BE192) -> 0
BE193: 0 | BF193: =SUM($BE$7:BE193) -> 54562.6 | BG193: =SUMIF($F$7:F193,F193,$BE$7:BE193) -> 0
BE194: 0 | BF194: =SUM($BE$7:BE194) -> 54562.6 | BG194: =SUMIF($F$7:F194,F194,$BE$7:BE194) -> 0
BE195: 0 | BF195: =SUM($BE$7:BE195) -> 54562.6 | BG195: =SUMIF($F$7:F195,F195,$BE$7:BE195) -> 0
BE196: 0 | BF196: =SUM($BE$7:BE196) -> 54562.6 | BG196: =SUMIF($F$7:F196,F196,$BE$7:BE196) -> 0
BE197: 0 | BF197: =SUM($BE$7:BE197) -> 54562.6 | BG197: =SUMIF($F$7:F197,F197,$BE$7:BE197) -> 0
BE198: 0 | BF198: =SUM($BE$7:BE198) -> 54562.6 | BG198: =SUMIF($F$7:F198,F198,$BE$7:BE198) -> 0
BE199: 0 | BF199: =SUM($BE$7:BE199) -> 54562.6 | BG199: =SUMIF($F$7:F199,F199,$BE$7:BE199) -> 0
A200: =IF(B200="","",MONTH(B200)) ->  | BE200: =SUM(G200:BD200) -> 0 | BF200: =SUM($BE$7:BE200) -> 54562.6 | BG200: =SUMIF($F$7:F200,F200,$BE$7:BE200) -> 0
BE201: 0 | BF201: =SUM($BE$7:BE201) -> 54562.6 | BG201: =SUMIF($F$7:F201,F201,$BE$7:BE201) -> 0
BE202: 0 | BF202: =SUM($BE$7:BE202) -> 54562.6 | BG202: =SUMIF($F$7:F202,F202,$BE$7:BE202) -> 0
BE203: 0 | BF203: =SUM($BE$7:BE203) -> 54562.6 | BG203: =SUMIF($F$7:F203,F203,$BE$7:BE203) -> 0
BE204: 0 | BF204: =SUM($BE$7:BE204) -> 54562.6 | BG204: =SUMIF($F$7:F204,F204,$BE$7:BE204) -> 0
... 920 more rows

Sheet تقرير فتره
D3: القسم | E3: المبيعات
D4: الفتره من | E4: 2015-01-01 | L4: ="تقرير" &" "&"مصروفات قسم"&" "&$E$3 -> تقرير مصروفات قسم المبيعات
D5: الفتره الى | E5: 2015-01-03 | L5: ="عن الفتره من" &" "&TEXT($E$4,"dd/mm/yyyy")&" "&"الى الفتره"&" "&TEXT($E$5,"dd/mm/yyyy") -> عن الفتره من 01/01/2015 الى الفتره 03/01/2015
D7: اجماليات الحساب | E7: =SUM($E$10:$E$59) -> 58143.6 | G7: اجماليات الحساب | H7: =SUM($I$10:$I$59) -> 57621.4
D9: مصروفات ثابته اساسية | E9: المبالغ | F9: مخطط بيانى | G9: مصروفات متغيره (اداريه وعموميه) | H9: المبالغ | I9: مخطط بيانى
D10: =IF(الدليل!C6="","",الدليل!C6) -> الايجارات | E10: =IF(D10<>"",SUMPRODUCT(('مصروفات اساسية'!$F$7:$F$2005='تقرير فتره'!$E$3)*('مصروفات اساسية'!$G$6:$BD$6='تقرير فتره'!$D10)*('مصروفات اساسية'!$B$7:$B$2005>='تقرير فتره'!$E$4)*('مصروفات اساسية'!$B$7:$B$2005<='تقرير فتره'!$E$5)*('مصروفات اساسية'!$G$7:$BD$2005)),"") -> 3001 | F10: =E10 -> 3001 | G10: =IF(الدليل!E6="","",الدليل!E6) -> انتقالات | H10: =IF(G10<>"",SUMPRODUCT(('مصروفات متغيره'!$F$7:$F$2005='تقرير فتره'!$E$3)*('مصروفات متغيره'!$G$6:$BD$6='تقرير فتره'!$G10)*('مصروفات متغيره'!$B$7:$B$2005>='تقرير فتره'!$E$4)*('مصروفات متغيره'!$B$7:$B$2005<='تقرير فتره'!$E$5)*('مصروفات متغيره'!$G$7:$BD$2005)),"") -> 1001 | I10: =H10 -> 1001
D11: =IF(الدليل!C7="","",الدليل!C7) -> اجور الموظفين | E11: =IF(D11<>"",SUMPRODUCT(('مصروفات اساسية'!$F$7:$F$2005='تقرير فتره'!$E$3)*('مصروفات اساسية'!$G$6:$BD$6='تقرير فتره'!$D11)*('مصروفات اساسية'!$B$7:$B$2005>='تقرير فتره'!$E$4)*('مصروفات اساسية'!$B$7:$B$2005<='تقرير فتره'!$E$5)*('مصروفات اساسية'!$G$7:$BD$2005)),"") -> 691 | F11: =E11 -> 691 | G11: =IF(الدليل!E7="","",الدليل!E7) -> بريد | H11: =IF(G11<>"",SUMPRODUCT(('مصروفات متغيره'!$F$7:$F$2005='تقرير فتره'!$E$3)*('مصروفات متغيره'!$G$6:$BD$6='تقرير فتره'!$G11)*('مصروفات متغيره'!$B$7:$B$2005>='تقرير فتره'!$E$4)*('مصروفات متغيره'!$B$7:$B$2005<='تقرير فتره'!$E$5)*('مصروفات متغيره'!$G$7:$BD$2005)),"") -> 2 | I11: =H11 -> 2
D12: =IF(الدليل!C8="","",الدليل!C8) -> فواتير تليفون | E12: =IF(D12<>"",SUMPRODUCT(('مصروفات اساسية'!$F$7:$F$2005='تقرير فتره'!$E$3)*('مصروفات اساسية'!$G$6:$BD$6='تقرير فتره'!$D12)*('مصروفات اساسية'!$B$7:$B$2005>='تقرير فتره'!$E$4)*('مصروفات اساسية'!$B$7:$B$2005<='تقرير فتره'!$E$5)*('مصروفات اساسية'!$G$7:$BD$2005)),"") -> 893 | F12: 893 | G12: =IF(الدليل!E8="","",الدليل!E8) -> ادوات مكتبيه | H12: =IF(G12<>"",SUMPRODUCT(('مصروفات متغيره'!$F$7:$F$2005='تقرير فتره'!$E$3)*('مصروفات متغيره'!$G$6:$BD$6='تقرير فتره'!$G12)*('مصروفات متغيره'!$B$7:$B$2005>='تقرير فتره'!$E$4)*('مصروفات متغيره'!$B$7:$B$2005<='تقرير فتره'!$E$5)*('مصروفات متغيره'!$G$7:$BD$2005)),"") -> 3 | I12: 3
D13: =IF(الدليل!C9="","",الدليل!C9) -> فواتير مياه | E13: =IF(D13<>"",SUMPRODUCT(('مصروفات اساسية'!$F$7:$F$2005='تقرير فتره'!$E$3)*('مصروفات اساسية'!$G$6:$BD$6='تقرير فتره'!$D13)*('مصروفات اساسية'!$B$7:$B$2005>='تقرير فتره'!$E$4)*('مصروفات اساسية'!$B$7:$B$2005<='تقرير فتره'!$E$5)*('مصروفات اساسية'!$G$7:$BD$2005)),"") -> 1000 | F13: 1000 | G13: =IF(الدليل!E9="","",الدليل!E9) -> فارغ1 | H13: =IF(G13<>"",SUMPRODUCT(('مصروفات متغيره'!$F$7:$F$2005='تقرير فتره'!$E$3)*('مصروفات متغيره'!$G$6:$BD$6='تقرير فتره'!$G13)*('مصروفات متغيره'!$B$7:$B$2005>='تقرير فتره'!$E$4)*('مصروفات متغيره'!$B$7:$B$2005<='تقرير فتره'!$E$5)*('مصروفات متغيره'!$G$7:$BD$2005)),"") -> 1000 | I13: 1000
D14: =IF(الدليل!C10="","",الدليل!C10) -> فواتير انترنت | E14: =IF(D14<>"",SUMPRODUCT(('مصروفات اساسية'!$F$7:$F$2005='تقرير فتره'!$E$3)*('مصروفات اساسية'!$G$6:$BD$6='تقرير فتره'!$D14)*('مصروفات اساسية'!$B$7:$B$2005>='تقرير فتره'!$E$4)*('مصروفات اساسية'!$B$7:$B$2005<='تقرير فتره'!$E$5)*('مصروفات اساسية'!$G$7:$BD$2005)),"") -> 1109 | F14: 1109 | G14: =IF(الدليل!E10="","",الدليل!E10) -> فارغ2 | H14: =IF(G14<>"",SUMPRODUCT(('مصروفات متغيره'!$F$7:$F$2005='تقرير فتره'!$E$3)*('مصروفات متغيره'!$G$6:$BD$6='تقرير فتره'!$G14)*('مصروفات متغيره'!$B$7:$B$2005>='تقرير فتره'!$E$4)*('مصروفات متغيره'!$B$7:$B$2005<='تقرير فتره'!$E$5)*('مصروفات متغيره'!$G$7:$BD$2005)),"") -> 1109 | I14: 1109
D15: =IF(الدليل!C11="","",الدليل!C11) -> فارغ1 | E15: =IF(D15<>"",SUMPRODUCT(('مصروفات اساسية'!$F$7:$F$2005='تقرير فتره'!$E$3)*('مصروفات اساسية'!$G$6:$BD$6='تقرير فتره'!$D15)*('مصروفات اساسية'!$B$7:$B$2005>='تقرير فتره'!$E$4)*('مصروفات اساسية'!$B$7:$B$2005<='تقرير فتره'!$E$5)*('مصروفات اساسية'!$G$7:$BD$2005)),"") -> 1100 | F15: 1100 | G15: =IF(الدليل!E11="","",الدليل!E11) -> فارغ3 | H15: =IF(G15<>"",SUMPRODUCT(('مصروفات متغيره'!$F$7:$F$2005='تقرير فتره'!$E$3)*('مصروفات متغيره'!$G$6:$BD$6='تقرير فتره'!$G15)*('مصروفات متغيره'!$B$7:$B$2005>='تقرير فتره'!$E$4)*('مصروفات متغيره'!$B$7:$B$2005<='تقرير فتره'!$E$5)*('مصروفات متغيره'!$G$7:$BD$2005)),"") -> 1100 | I15: 1100
D16: =IF(الدليل!C12="","",الدليل!C12) -> فارغ2 | E16: =IF(D16<>"",SUMPRODUCT(('مصروفات اساسية'!$F$7:$F$2005='تقرير فتره'!$E$3)*('مصروفات اساسية'!$G$6:$BD$6='تقرير فتره'!$D16)*('مصروفات اساسية'!$B$7:$B$2005>='تقرير فتره'!$E$4)*('مصروفات اساسية'!$B$7:$B$2005<='تقرير فتره'!$E$5)*('مصروفات اساسية'!$G$7:$BD$2005)),"") -> 1500 | F16: 1500 | G16: =IF(الدليل!E12="","",الدليل!E12) -> فارغ4 | H16: =IF(G16<>"",SUMPRODUCT(('مصروفات متغيره'!$F$7:$F$2005='تقرير فتره'!$E$3)*('مصروفات متغيره'!$G$6:$BD$6='تقرير فتره'!$G16)*('مصروفات متغيره'!$B$7:$B$2005>='تقرير فتره'!$E$4)*('مصروفات متغيره'!$B$7:$B$2005<='تقرير فتره'!$E$5)*('مصروفات متغيره'!$G$7:$BD$2005)),"") -> 1500 | I16: 1500 | K16: =IFERROR(INDEX($D$10:$E$59,SMALL(IF($D$10:$D$59<>"",$C$10:$C$59,""),$C15),1),"") -> 
D17: =IF(الدليل!C13="","",الدليل!C13) -> فارغ3 | E17: =IF(D17<>"",SUMPRODUCT(('مصروفات اساسية'!$F$7:$F$2005='تقرير فتره'!$E$3)*('مصروفات اساسية'!$G$6:$BD$6='تقرير فتره'!$D17)*('مصروفات اساسية'!$B$7:$B$2005>='تقرير فتره'!$E$4)*('مصروفات اساسية'!$B$7:$B$2005<='تقرير فتره'!$E$5)*('مصروفات اساسية'!$G$7:$BD$2005)),"") -> 456 | F17: 456 | G17: =IF(الدليل!E13="","",الدليل!E13) -> فارغ5 | H17: =IF(G17<>"",SUMPRODUCT(('مصروفات متغيره'!$F$7:$F$2005='تقرير فتره'!$E$3)*('مصروفات متغيره'!$G$6:$BD$6='تقرير فتره'!$G17)*('مصروفات متغيره'!$B$7:$B$2005>='تقرير فتره'!$E$4)*('مصروفات متغيره'!$B$7:$B$2005<='تقرير فتره'!$E$5)*('مصروفات متغيره'!$G$7:$BD$2005)),"") -> 456 | I17: 456 | K17: =IFERROR(INDEX($D$10:$E$59,SMALL(IF($D$10:$D$59<>"",$C$10:$C$59,""),$C16),1),"") -> 
D18: =IF(الدليل!C14="","",الدليل!C14) -> فارغ4 | E18: =IF(D18<>"",SUMPRODUCT(('مصروفات اساسية'!$F$7:$F$2005='تقرير فتره'!$E$3)*('مصروفات اساسية'!$G$6:$BD$6='تقرير فتره'!$D18)*('مصروفات اساسية'!$B$7:$B$2005>='تقرير فتره'!$E$4)*('مصروفات اساسية'!$B$7:$B$2005<='تقرير فتره'!$E$5)*('مصروفات اساسية'!$G$7:$BD$2005)),"") -> 900 | F18: 900 | G18: =IF(الدليل!E14="","",الدليل!E14) -> فارغ6 | H18: =IF(G18<>"",SUMPRODUCT(('مصروفات متغيره'!$F$7:$F$2005='تقرير فتره'!$E$3)*('مصروفات متغيره'!$G$6:$BD$6='تقرير فتره'!$G18)*('مصروفات متغيره'!$B$7:$B$2005>='تقرير فتره'!$E$4)*('مصروفات متغيره'!$B$7:$B$2005<='تقرير فتره'!$E$5)*('مصروفات متغيره'!$G$7:$BD$2005)),"") -> 900 | I18: 900 | K18: =IFERROR(INDEX($D$10:$E$59,SMALL(IF($D$10:$D$59<>"",$C$10:$C$59,""),$C17),1),"") -> 
D19: =IF(الدليل!C15="","",الدليل!C15) -> فارغ5 | E19: =IF(D19<>"",SUMPRODUCT(('مصروفات اساسية'!$F$7:$F$2005='تقرير فتره'!$E$3)*('مصروفات اساسية'!$G$6:$BD$6='تقرير فتره'!$D19)*('مصروفات اساسية'!$B$7:$B$2005>='تقرير فتره'!$E$4)*('مصروفات اساسية'!$B$7:$B$2005<='تقرير فتره'!$E$5)*('مصروفات اساسية'!$G$7:$BD$2005)),"") -> 510 | F19: 510 | G19: =IF(الدليل!E15="","",الدليل!E15) -> فارغ7 | H19: =IF(G19<>"",SUMPRODUCT(('مصروفات متغيره'!$F$7:$F$2005='تقرير فتره'!$E$3)*('مصروفات متغيره'!$G$6:$BD$6='تقرير فتره'!$G19)*('مصروفات متغيره'!$B$7:$B$2005>='تقرير فتره'!$E$4)*('مصروفات متغيره'!$B$7:$B$2005<='تقرير فتره'!$E$5)*('مصروفات متغيره'!$G$7:$BD$2005)),"") -> 510 | I19: 510 | K19: =IFERROR(INDEX($D$10:$E$59,SMALL(IF($D$10:$D$59<>"",$C$10:$C$59,""),$C18),1),"") -> 
D20: =IF(الدليل!C16="","",الدليل!C16) -> فارغ6 | E20: =IF(D20<>"",SUMPRODUCT(('مصروفات اساسية'!$F$7:$F$2005='تقرير فتره'!$E$3)*('مصروفات اساسية'!$G$6:$BD$6='تقرير فتره'!$D20)*('مصروفات اساسية'!$B$7:$B$2005>='تقرير فتره'!$E$4)*('مصروفات اساسية'!$B$7:$B$2005<='تقرير فتره'!$E$5)*('مصروفات اساسية'!$G$7:$BD$2005)),"") -> 888 | F20: 888 | G20: =IF(الدليل!E16="","",الدليل!E16) -> فارغ8 | H20: =IF(G20<>"",SUMPRODUCT(('مصروفات متغيره'!$F$7:$F$2005='تقرير فتره'!$E$3)*('مصروفات متغيره'!$G$6:$BD$6='تقرير فتره'!$G20)*('مصروفات متغيره'!$B$7:$B$2005>='تقرير فتره'!$E$4)*('مصروفات متغيره'!$B$7:$B$2005<='تقرير فتره'!$E$5)*('مصروفات متغيره'!$G$7:$BD$2005)),"") -> 888 | I20: 888 | K20: =IFERROR(INDEX($D$10:$E$59,SMALL(IF($D$10:$D$59<>"",$C$10:$C$59,""),$C19),1),"") -> 
D21: =IF(الدليل!C17="","",الدليل!C17) -> فارغ7 | E21: =IF(D21<>"",SUMPRODUCT(('مصروفات اساسية'!$F$7:$F$2005='تقرير فتره'!$E$3)*('مصروفات اساسية'!$G$6:$BD$6='تقرير فتره'!$D21)*('مصروفات اساسية'!$B$7:$B$2005>='تقرير فتره'!$E$4)*('مصروفات اساسية'!$B$7:$B$2005<='تقرير فتره'!$E$5)*('مصروفات اساسية'!$G$7:$BD$2005)),"") -> 2450 | F21: 2450 | G21: =IF(الدليل!E17="","",الدليل!E17) -> فارغ9 | H21: =IF(G21<>"",SUMPRODUCT(('مصروفات متغيره'!$F$7:$F$2005='تقرير فتره'!$E$3)*('مصروفات متغيره'!$G$6:$BD$6='تقرير فتره'!$G21)*('مصروفات متغيره'!$B$7:$B$2005>='تقرير فتره'!$E$4)*('مصروفات متغيره'!$B$7:$B$2005<='تقرير فتره'!$E$5)*('مصروفات متغيره'!$G$7:$BD$2005)),"") -> 2450 | I21: 2450 | K21: =IFERROR(INDEX($D$10:$E$59,SMALL(IF($D$10:$D$59<>"",$C$10:$C$59,""),$C20),1),"") -> 
D22: =IF(الدليل!C18="","",الدليل!C18) -> فارغ8 | E22: =IF(D22<>"",SUMPRODUCT(('مصروفات اساسية'!$F$7:$F$2005='تقرير فتره'!$E$3)*('مصروفات اساسية'!$G$6:$BD$6='تقرير فتره'!$D22)*('مصروفات اساسية'!$B$7:$B$2005>='تقرير فتره'!$E$4)*('مصروفات اساسية'!$B$7:$B$2005<='تقرير فتره'!$E$5)*('مصروفات اساسية'!$G$7:$BD$2005)),"") -> 2900 | F22: 2900 | G22: =IF(الدليل!E18="","",الدليل!E18) -> فارغ10 | H22: =IF(G22<>"",SUMPRODUCT(('مصروفات متغيره'!$F$7:$F$2005='تقرير فتره'!$E$3)*('مصروفات متغيره'!$G$6:$BD$6='تقرير فتره'!$G22)*('مصروفات متغيره'!$B$7:$B$2005>='تقرير فتره'!$E$4)*('مصروفات متغيره'!$B$7:$B$2005<='تقرير فتره'!$E$5)*('مصروفات متغيره'!$G$7:$BD$2005)),"") -> 2900 | I22: 2900 | K22: =IFERROR(INDEX($D$10:$E$59,SMALL(IF($D$10:$D$59<>"",$C$10:$C$59,""),$C21),1),"") -> 
D23: =IF(الدليل!C19="","",الدليل!C19) -> فارغ9 | E23: =IF(D23<>"",SUMPRODUCT(('مصروفات اساسية'!$F$7:$F$2005='تقرير فتره'!$E$3)*('مصروفات اساسية'!$G$6:$BD$6='تقرير فتره'!$D23)*('مصروفات اساسية'!$B$7:$B$2005>='تقرير فتره'!$E$4)*('مصروفات اساسية'!$B$7:$B$2005<='تقرير فتره'!$E$5)*('مصروفات اساسية'!$G$7:$BD$2005)),"") -> 1900 | F23: 1900 | G23: =IF(الدليل!E19="","",الدليل!E19) -> فارغ11 | H23: =IF(G23<>"",SUMPRODUCT(('مصروفات متغيره'!$F$7:$F$2005='تقرير فتره'!$E$3)*('مصروفات متغيره'!$G$6:$BD$6='تقرير فتره'!$G23)*('مصروفات متغيره'!$B$7:$B$2005>='تقرير فتره'!$E$4)*('مصروفات متغيره'!$B$7:$B$2005<='تقرير فتره'!$E$5)*('مصروفات متغيره'!$G$7:$BD$2005)),"") -> 1900 | I23: 1900
D24: =IF(الدليل!C20="","",الدليل!C20) -> فارغ10 | E24: =IF(D24<>"",SUMPRODUCT(('مصروفات اساسية'!$F$7:$F$2005='تقرير فتره'!$E$3)*('مصروفات اساسية'!$G$6:$BD$6='تقرير فتره'!$D24)*('مصروفات اساسية'!$B$7:$B$2005>='تقرير فتره'!$E$4)*('مصروفات اساسية'!$B$7:$B$2005<='تقرير فتره'!$E$5)*('مصروفات اساسية'!$G$7:$BD$2005)),"") -> 789 | F24: 789 | G24: =IF(الدليل!E20="","",الدليل!E20) -> فارغ12 | H24: =IF(G24<>"",SUMPRODUCT(('مصروفات متغيره'!$F$7:$F$2005='تقرير فتره'!$E$3)*('مصروفات متغيره'!$G$6:$BD$6='تقرير فتره'!$G24)*('مصروفات متغيره'!$B$7:$B$2005>='تقرير فتره'!$E$4)*('مصروفات متغيره'!$B$7:$B$2005<='تقرير فتره'!$E$5)*('مصروفات متغيره'!$G$7:$BD$2005)),"") -> 789 | I24: 789
D25: =IF(الدليل!C21="","",الدليل!C21) -> فارغ11 | E25: =IF(D25<>"",SUMPRODUCT(('مصروفات اساسية'!$F$7:$F$2005='تقرير فتره'!$E$3)*('مصروفات اساسية'!$G$6:$BD$6='تقرير فتره'!$D25)*('مصروفات اساسية'!$B$7:$B$2005>='تقرير فتره'!$E$4)*('مصروفات اساسية'!$B$7:$B$2005<='تقرير فتره'!$E$5)*('مصروفات اساسية'!$G$7:$BD$2005)),"") -> 643 | F25: 643 | G25: =IF(الدليل!E21="","",الدليل!E21) -> فارغ13 | H25: =IF(G25<>"",SUMPRODUCT(('مصروفات متغيره'!$F$7:$F$2005='تقرير فتره'!$E$3)*('مصروفات متغيره'!$G$6:$BD$6='تقرير فتره'!$G25)*('مصروفات متغيره'!$B$7:$B$2005>='تقرير فتره'!$E$4)*('مصروفات متغيره'!$B$7:$B$2005<='تقرير فتره'!$E$5)*('مصروفات متغيره'!$G$7:$BD$2005)),"") -> 643 | I25: 643
D26: =IF(الدليل!C22="","",الدليل!C22) -> فارغ12 | E26: =IF(D26<>"",SUMPRODUCT(('مصروفات اساسية'!$F$7:$F$2005='تقرير فتره'!$E$3)*('مصروفات اساسية'!$G$6:$BD$6='تقرير فتره'!$D26)*('مصروفات اساسية'!$B$7:$B$2005>='تقرير فتره'!$E$4)*('مصروفات اساسية'!$B$7:$B$2005<='تقرير فتره'!$E$5)*('مصروفات اساسية'!$G$7:$BD$2005)),"") -> 669.4 | F26: 669.4 | G26: =IF(الدليل!E22="","",الدليل!E22) -> فارغ14 | H26: =IF(G26<>"",SUMPRODUCT(('مصروفات متغيره'!$F$7:$F$2005='تقرير فتره'!$E$3)*('مصروفات متغيره'!$G$6:$BD$6='تقرير فتره'!$G26)*('مصروفات متغيره'!$B$7:$B$2005>='تقرير فتره'!$E$4)*('مصروفات متغيره'!$B$7:$B$2005<='تقرير فتره'!$E$5)*('مصروفات متغيره'!$G$7:$BD$2005)),"") -> 669.4 | I26: 669.4
D27: =IF(الدليل!C23="","",الدليل!C23) -> فارغ13 | E27: =IF(D27<>"",SUMPRODUCT(('مصروفات اساسية'!$F$7:$F$2005='تقرير فتره'!$E$3)*('مصروفات اساسية'!$G$6:$BD$6='تقرير فتره'!$D27)*('مصروفات اساسية'!$B$7:$B$2005>='تقرير فتره'!$E$4)*('مصروفات اساسية'!$B$7:$B$2005<='تقرير فتره'!$E$5)*('مصروفات اساسية'!$G$7:$BD$2005)),"") -> 695.8 | F27: 695.8 | G27: =IF(الدليل!E23="","",الدليل!E23) -> فارغ15 | H27: =IF(G27<>"",SUMPRODUCT(('مصروفات متغيره'!$F$7:$F$2005='تقرير فتره'!$E$3)*('مصروفات متغيره'!$G$6:$BD$6='تقرير فتره'!$G27)*('مصروفات متغيره'!$B$7:$B$2005>='تقرير فتره'!$E$4)*('مصروفات متغيره'!$B$7:$B$2005<='تقرير فتره'!$E$5)*('مصروفات متغيره'!$G$7:$BD$2005)),"") -> 695.8 | I27: 695.8
D28: =IF(الدليل!C24="","",الدليل!C24) -> فارغ14 | E28: =IF(D28<>"",SUMPRODUCT(('مصروفات اساسية'!$F$7:$F$2005='تقرير فتره'!$E$3)*('مصروفات اساسية'!$G$6:$BD$6='تقرير فتره'!$D28)*('مصروفات اساسية'!$B$7:$B$2005>='تقرير فتره'!$E$4)*('مصروفات اساسية'!$B$7:$B$2005<='تقرير فتره'!$E$5)*('مصروفات اساسية'!$G$7:$BD$2005)),"") -> 722.2 | F28: 722.2 | G28: =IF(الدليل!E24="","",الدليل!E24) -> فارغ16 | H28: =IF(G28<>"",SUMPRODUCT(('مصروفات متغيره'!$F$7:$F$2005='تقرير فتره'!$E$3)*('مصروفات متغيره'!$G$6:$BD$6='تقرير فتره'!$G28)*('مصروفات متغيره'!$B$7:$B$2005>='تقرير فتره'!$E$4)*('مصروفات متغيره'!$B$7:$B$2005<='تقرير فتره'!$E$5)*('مصروفات متغيره'!$G$7:$BD$2005)),"") -> 722.2 | I28: 722.2
D29: =IF(الدليل!C25="","",الدليل!C25) -> فارغ15 | E29: =IF(D29<>"",SUMPRODUCT(('مصروفات اساسية'!$F$7:$F$2005='تقرير فتره'!$E$3)*('مصروفات اساسية'!$G$6:$BD$6='تقرير فتره'!$D29)*('مصروفات اساسية'!$B$7:$B$2005>='تقرير فتره'!$E$4)*('مصروفات اساسية'!$B$7:$B$2005<='تقرير فتره'!$E$5)*('مصروفات اساسية'!$G$7:$BD$2005)),"") -> 748.6 | F29: 748.6 | G29: =IF(الدليل!E25="","",الدليل!E25) -> فارغ17 | H29: =IF(G29<>"",SUMPRODUCT(('مصروفات متغيره'!$F$7:$F$2005='تقرير فتره'!$E$3)*('مصروفات متغيره'!$G$6:$BD$6='تقرير فتره'!$G29)*('مصروفات متغيره'!$B$7:$B$2005>='تقرير فتره'!$E$4)*('مصروفات متغيره'!$B$7:$B$2005<='تقرير فتره'!$E$5)*('مصروفات متغيره'!$G$7:$BD$2005)),"") -> 748.6 | I29: 748.6
D30: =IF(الدليل!C26="","",الدليل!C26) -> فارغ16 | E30: =IF(D30<>"",SUMPRODUCT(('مصروفات اساسية'!$F$7:$F$2005='تقرير فتره'!$E$3)*('مصروفات اساسية'!$G$6:$BD$6='تقرير فتره'!$D30)*('مصروفات اساسية'!$B$7:$B$2005>='تقرير فتره'!$E$4)*('مصروفات اساسية'!$B$7:$B$2005<='تقرير فتره'!$E$5)*('مصروفات اساسية'!$G$7:$BD$2005)),"") -> 775 | F30: 775 | G30: =IF(الدليل!E26="","",الدليل!E26) -> فارغ18 | H30: =IF(G30<>"",SUMPRODUCT(('مصروفات متغيره'!$F$7:$F$2005='تقرير فتره'!$E$3)*('مصروفات متغيره'!$G$6:$BD$6='تقرير فتره'!$G30)*('مصروفات متغيره'!$B$7:$B$2005>='تقرير فتره'!$E$4)*('مصروفات متغيره'!$B$7:$B$2005<='تقرير فتره'!$E$5)*('مصروفات متغيره'!$G$7:$BD$2005)),"") -> 775 | I30: 775
D31: =IF(الدليل!C27="","",الدليل!C27) -> فارغ17 | E31: =IF(D31<>"",SUMPRODUCT(('مصروفات اساسية'!$F$7:$F$2005='تقرير فتره'!$E$3)*('مصروفات اساسية'!$G$6:$BD$6='تقرير فتره'!$D31)*('مصروفات اساسية'!$B$7:$B$2005>='تقرير فتره'!$E$4)*('مصروفات اساسية'!$B$7:$B$2005<='تقرير فتره'!$E$5)*('مصروفات اساسية'!$G$7:$BD$2005)),"") -> 801.4 | F31: 801.4 | G31: =IF(الدليل!E27="","",الدليل!E27) -> فارغ19 | H31: =IF(G31<>"",SUMPRODUCT(('مصروفات متغيره'!$F$7:$F$2005='تقرير فتره'!$E$3)*('مصروفات متغيره'!$G$6:$BD$6='تقرير فتره'!$G31)*('مصروفات متغيره'!$B$7:$B$2005>='تقرير فتره'!$E$4)*('مصروفات متغيره'!$B$7:$B$2005<='تقرير فتره'!$E$5)*('مصروفات متغيره'!$G$7:$BD$2005)),"") -> 801.4 | I31: 801.4
D32: =IF(الدليل!C28="","",الدليل!C28) -> فارغ18 | E32: =IF(D32<>"",SUMPRODUCT(('مصروفات اساسية'!$F$7:$F$2005='تقرير فتره'!$E$3)*('مصروفات اساسية'!$G$6:$BD$6='تقرير فتره'!$D32)*('مصروفات اساسية'!$B$7:$B$2005>='تقرير فتره'!$E$4)*('مصروفات اساسية'!$B$7:$B$2005<='تقرير فتره'!$E$5)*('مصروفات اساسية'!$G$7:$BD$2005)),"") -> 827.8 | F32: 827.8 | G32: =IF(الدليل!E28="","",الدليل!E28) -> فارغ20 | H32: =IF(G32<>"",SUMPRODUCT(('مصروفات متغيره'!$F$7:$F$2005='تقرير فتره'!$E$3)*('مصروفات متغيره'!$G$6:$BD$6='تقرير فتره'!$G32)*('مصروفات متغيره'!$B$7:$B$2005>='تقرير فتره'!$E$4)*('مصروفات متغيره'!$B$7:$B$2005<='تقرير فتره'!$E$5)*('مصروفات متغيره'!$G$7:$BD$2005)),"") -> 827.8 | I32: 827.8
D33: =IF(الدليل!C29="","",الدليل!C29) -> فارغ19 | E33: =IF(D33<>"",SUMPRODUCT(('مصروفات اساسية'!$F$7:$F$2005='تقرير فتره'!$E$3)*('مصروفات اساسية'!$G$6:$BD$6='تقرير فتره'!$D33)*('مصروفات اساسية'!$B$7:$B$2005>='تقرير فتره'!$E$4)*('مصروفات اساسية'!$B$7:$B$2005<='تقرير فتره'!$E$5)*('مصروفات اساسية'!$G$7:$BD$2005)),"") -> 854.2 | F33: 854.2 | G33: =IF(الدليل!E29="","",الدليل!E29) -> فارغ21 | H33: =IF(G33<>"",SUMPRODUCT(('مصروفات متغيره'!$F$7:$F$2005='تقرير فتره'!$E$3)*('مصروفات متغيره'!$G$6:$BD$6='تقرير فتره'!$G33)*('مصروفات متغيره'!$B$7:$B$2005>='تقرير فتره'!$E$4)*('مصروفات متغيره'!$B$7:$B$2005<='تقرير فتره'!$E$5)*('مصروفات متغيره'!$G$7:$BD$2005)),"") -> 854.2 | I33: 854.2
D34: =IF(الدليل!C30="","",الدليل!C30) -> فارغ20 | E34: =IF(D34<>"",SUMPRODUCT(('مصروفات اساسية'!$F$7:$F$2005='تقرير فتره'!$E$3)*('مصروفات اساسية'!$G$6:$BD$6='تقرير فتره'!$D34)*('مصروفات اساسية'!$B$7:$B$2005>='تقرير فتره'!$E$4)*('مصروفات اساسية'!$B$7:$B$2005<='تقرير فتره'!$E$5)*('مصروفات اساسية'!$G$7:$BD$2005)),"") -> 880.6 | F34: 880.6 | G34: =IF(الدليل!E30="","",الدليل!E30) -> فارغ22 | H34: =IF(G34<>"",SUMPRODUCT(('مصروفات متغيره'!$F$7:$F$2005='تقرير فتره'!$E$3)*('مصروفات متغيره'!$G$6:$BD$6='تقرير فتره'!$G34)*('مصروفات متغيره'!$B$7:$B$2005>='تقرير فتره'!$E$4)*('مصروفات متغيره'!$B$7:$B$2005<='تقرير فتره'!$E$5)*('مصروفات متغيره'!$G$7:$BD$2005)),"") -> 880.6 | I34: 880.6
D35: =IF(الدليل!C31="","",الدليل!C31) -> فارغ21 | E35: =IF(D35<>"",SUMPRODUCT(('مصروفات اساسية'!$F$7:$F$2005='تقرير فتره'!$E$3)*('مصروفات اساسية'!$G$6:$BD$6='تقرير فتره'!$D35)*('مصروفات اساسية'!$B$7:$B$2005>='تقرير فتره'!$E$4)*('مصروفات اساسية'!$B$7:$B$2005<='تقرير فتره'!$E$5)*('مصروفات اساسية'!$G$7:$BD$2005)),"") -> 907 | F35: 907 | G35: =IF(الدليل!E31="","",الدليل!E31) -> فارغ23 | H35: =IF(G35<>"",SUMPRODUCT(('مصروفات متغيره'!$F$7:$F$2005='تقرير فتره'!$E$3)*('مصروفات متغيره'!$G$6:$BD$6='تقرير فتره'!$G35)*('مصروفات متغيره'!$B$7:$B$2005>='تقرير فتره'!$E$4)*('مصروفات متغيره'!$B$7:$B$2005<='تقرير فتره'!$E$5)*('مصروفات متغيره'!$G$7:$BD$2005)),"") -> 907 | I35: 907
D36: =IF(الدليل!C32="","",الدليل!C32) -> فارغ22 | E36: =IF(D36<>"",SUMPRODUCT(('مصروفات اساسية'!$F$7:$F$2005='تقرير فتره'!$E$3)*('مصروفات اساسية'!$G$6:$BD$6='تقرير فتره'!$D36)*('مصروفات اساسية'!$B$7:$B$2005>='تقرير فتره'!$E$4)*('مصروفات اساسية'!$B$7:$B$2005<='تقرير فتره'!$E$5)*('مصروفات اساسية'!$G$7:$BD$2005)),"") -> 933.4 | F36: 933.4 | G36: =IF(الدليل!E32="","",الدليل!E32) -> فارغ24 | H36: =IF(G36<>"",SUMPRODUCT(('مصروفات متغيره'!$F$7:$F$2005='تقرير فتره'!$E$3)*('مصروفات متغيره'!$G$6:$BD$6='تقرير فتره'!$G36)*('مصروفات متغيره'!$B$7:$B$2005>='تقرير فتره'!$E$4)*('مصروفات متغيره'!$B$7:$B$2005<='تقرير فتره'!$E$5)*('مصروفات متغيره'!$G$7:$BD$2005)),"") -> 933.4 | I36: 933.4
D37: =IF(الدليل!C33="","",الدليل!C33) -> فارغ23 | E37: =IF(D37<>"",SUMPRODUCT(('مصروفات اساسية'!$F$7:$F$2005='تقرير فتره'!$E$3)*('مصروفات اساسية'!$G$6:$BD$6='تقرير فتره'!$D37)*('مصروفات اساسية'!$B$7:$B$2005>='تقرير فتره'!$E$4)*('مصروفات اساسية'!$B$7:$B$2005<='تقرير فتره'!$E$5)*('مصروفات اساسية'!$G$7:$BD$2005)),"") -> 959.8 | F37: 959.8 | G37: =IF(الدليل!E33="","",الدليل!E33) -> فارغ25 | H37: =IF(G37<>"",SUMPRODUCT(('مصروفات متغيره'!$F$7:$F$2005='تقرير فتره'!$E$3)*('مصروفات متغيره'!$G$6:$BD$6='تقرير فتره'!$G37)*('مصروفات متغيره'!$B$7:$B$2005>='تقرير فتره'!$E$4)*('مصروفات متغيره'!$B$7:$B$2005<='تقرير فتره'!$E$5)*('مصروفات متغيره'!$G$7:$BD$2005)),"") -> 959.8 | I37: 959.8
D38: =IF(الدليل!C34="","",الدليل!C34) -> فارغ24 | E38: =IF(D38<>"",SUMPRODUCT(('مصروفات اساسية'!$F$7:$F$2005='تقرير فتره'!$E$3)*('مصروفات اساسية'!$G$6:$BD$6='تقرير فتره'!$D38)*('مصروفات اساسية'!$B$7:$B$2005>='تقرير فتره'!$E$4)*('مصروفات اساسية'!$B$7:$B$2005<='تقرير فتره'!$E$5)*('مصروفات اساسية'!$G$7:$BD$2005)),"") -> 986.2 | F38: 986.2 | G38: =IF(الدليل!E34="","",الدليل!E34) -> فارغ26 | H38: =IF(G38<>"",SUMPRODUCT(('مصروفات متغيره'!$F$7:$F$2005='تقرير فتره'!$E$3)*('مصروفات متغيره'!$G$6:$BD$6='تقرير فتره'!$G38)*('مصروفات متغيره'!$B$7:$B$2005>='تقرير فتره'!$E$4)*('مصروفات متغيره'!$B$7:$B$2005<='تقرير فتره'!$E$5)*('مصروفات متغيره'!$G$7:$BD$2005)),"") -> 986.2 | I38: 986.2
D39: =IF(الدليل!C35="","",الدليل!C35) -> فارغ25 | E39: =IF(D39<>"",SUMPRODUCT(('مصروفات اساسية'!$F$7:$F$2005='تقرير فتره'!$E$3)*('مصروفات اساسية'!$G$6:$BD$6='تقرير فتره'!$D39)*('مصروفات اساسية'!$B$7:$B$2005>='تقرير فتره'!$E$4)*('مصروفات اساسية'!$B$7:$B$2005<='تقرير فتره'!$E$5)*('مصروفات اساسية'!$G$7:$BD$2005)),"") -> 1012.6 | F39: 1012.6 | G39: =IF(الدليل!E35="","",الدليل!E35) -> فارغ27 | H39: =IF(G39<>"",SUMPRODUCT(('مصروفات متغيره'!$F$7:$F$2005='تقرير فتره'!$E$3)*('مصروفات متغيره'!$G$6:$BD$6='تقرير فتره'!$G39)*('مصروفات متغيره'!$B$7:$B$2005>='تقرير فتره'!$E$4)*('مصروفات متغيره'!$B$7:$B$2005<='تقرير فتره'!$E$5)*('مصروفات متغيره'!$G$7:$BD$2005)),"") -> 1012.6 | I39: 1012.6
D40: =IF(الدليل!C36="","",الدليل!C36) -> فارغ26 | E40: =IF(D40<>"",SUMPRODUCT(('مصروفات اساسية'!$F$7:$F$2005='تقرير فتره'!$E$3)*('مصروفات اساسية'!$G$6:$BD$6='تقرير فتره'!$D40)*('مصروفات اساسية'!$B$7:$B$2005>='تقرير فتره'!$E$4)*('مصروفات اساسية'!$B$7:$B$2005<='تقرير فتره'!$E$5)*('مصروفات اساسية'!$G$7:$BD$2005)),"") -> 1500 | F40: 1500 | G40: =IF(الدليل!E36="","",الدليل!E36) -> فارغ28 | H40: =IF(G40<>"",SUMPRODUCT(('مصروفات متغيره'!$F$7:$F$2005='تقرير فتره'!$E$3)*('مصروفات متغيره'!$G$6:$BD$6='تقرير فتره'!$G40)*('مصروفات متغيره'!$B$7:$B$2005>='تقرير فتره'!$E$4)*('مصروفات متغيره'!$B$7:$B$2005<='تقرير فتره'!$E$5)*('مصروفات متغيره'!$G$7:$BD$2005)),"") -> 1500 | I40: 1500
D41: =IF(الدليل!C37="","",الدليل!C37) -> فارغ27 | E41: =IF(D41<>"",SUMPRODUCT(('مصروفات اساسية'!$F$7:$F$2005='تقرير فتره'!$E$3)*('مصروفات اساسية'!$G$6:$BD$6='تقرير فتره'!$D41)*('مصروفات اساسية'!$B$7:$B$2005>='تقرير فتره'!$E$4)*('مصروفات اساسية'!$B$7:$B$2005<='تقرير فتره'!$E$5)*('مصروفات اساسية'!$G$7:$BD$2005)),"") -> 1300 | F41: 1300 | G41: =IF(الدليل!E37="","",الدليل!E37) -> فارغ29 | H41: =IF(G41<>"",SUMPRODUCT(('مصروفات متغيره'!$F$7:$F$2005='تقرير فتره'!$E$3)*('مصروفات متغيره'!$G$6:$BD$6='تقرير فتره'!$G41)*('مصروفات متغيره'!$B$7:$B$2005>='تقرير فتره'!$E$4)*('مصروفات متغيره'!$B$7:$B$2005<='تقرير فتره'!$E$5)*('مصروفات متغيره'!$G$7:$BD$2005)),"") -> 1300 | I41: 1300
D42: =IF(الدليل!C38="","",الدليل!C38) -> فارغ28 | E42: =IF(D42<>"",SUMPRODUCT(('مصروفات اساسية'!$F$7:$F$2005='تقرير فتره'!$E$3)*('مصروفات اساسية'!$G$6:$BD$6='تقرير فتره'!$D42)*('مصروفات اساسية'!$B$7:$B$2005>='تقرير فتره'!$E$4)*('مصروفات اساسية'!$B$7:$B$2005<='تقرير فتره'!$E$5)*('مصروفات اساسية'!$G$7:$BD$2005)),"") -> 1091.8 | F42: 1091.8 | G42: =IF(الدليل!E38="","",الدليل!E38) -> فارغ30 | H42: =IF(G42<>"",SUMPRODUCT(('مصروفات متغيره'!$F$7:$F$2005='تقرير فتره'!$E$3)*('مصروفات متغيره'!$G$6:$BD$6='تقرير فتره'!$G42)*('مصروفات متغيره'!$B$7:$B$2005>='تقرير فتره'!$E$4)*('مصروفات متغيره'!$B$7:$B$2005<='تقرير فتره'!$E$5)*('مصروفات متغيره'!$G$7:$BD$2005)),"") -> 1091.8 | I42: 1091.8
D43: =IF(الدليل!C39="","",الدليل!C39) -> فارغ29 | E43: =IF(D43<>"",SUMPRODUCT(('مصروفات اساسية'!$F$7:$F$2005='تقرير فتره'!$E$3)*('مصروفات اساسية'!$G$6:$BD$6='تقرير فتره'!$D43)*('مصروفات اساسية'!$B$7:$B$2005>='تقرير فتره'!$E$4)*('مصروفات اساسية'!$B$7:$B$2005<='تقرير فتره'!$E$5)*('مصروفات اساسية'!$G$7:$BD$2005)),"") -> 1118.2 | F43: 1118.2 | G43: =IF(الدليل!E39="","",الدليل!E39) -> فارغ31 | H43: =IF(G43<>"",SUMPRODUCT(('مصروفات متغيره'!$F$7:$F$2005='تقرير فتره'!$E$3)*('مصروفات متغيره'!$G$6:$BD$6='تقرير فتره'!$G43)*('مصروفات متغيره'!$B$7:$B$2005>='تقرير فتره'!$E$4)*('مصروفات متغيره'!$B$7:$B$2005<='تقرير فتره'!$E$5)*('مصروفات متغيره'!$G$7:$BD$2005)),"") -> 1118.2 | I43: 1118.2
D44: =IF(الدليل!C40="","",الدليل!C40) -> فارغ30 | E44: =IF(D44<>"",SUMPRODUCT(('مصروفات اساسية'!$F$7:$F$2005='تقرير فتره'!$E$3)*('مصروفات اساسية'!$G$6:$BD$6='تقرير فتره'!$D44)*('مصروفات اساسية'!$B$7:$B$2005>='تقرير فتره'!$E$4)*('مصروفات اساسية'!$B$7:$B$2005<='تقرير فتره'!$E$5)*('مصروفات اساسية'!$G$7:$BD$2005)),"") -> 1144.6 | F44: 1144.6 | G44: =IF(الدليل!E40="","",الدليل!E40) -> فارغ32 | H44: =IF(G44<>"",SUMPRODUCT(('مصروفات متغيره'!$F$7:$F$2005='تقرير فتره'!$E$3)*('مصروفات متغيره'!$G$6:$BD$6='تقرير فتره'!$G44)*('مصروفات متغيره'!$B$7:$B$2005>='تقرير فتره'!$E$4)*('مصروفات متغيره'!$B$7:$B$2005<='تقرير فتره'!$E$5)*('مصروفات متغيره'!$G$7:$BD$2005)),"") -> 1144.6 | I44: 1144.6
D45: =IF(الدليل!C41="","",الدليل!C41) -> فارغ31 | E45: =IF(D45<>"",SUMPRODUCT(('مصروفات اساسية'!$F$7:$F$2005='تقرير فتره'!$E$3)*('مصروفات اساسية'!$G$6:$BD$6='تقرير فتره'!$D45)*('مصروفات اساسية'!$B$7:$B$2005>='تقرير فتره'!$E$4)*('مصروفات اساسية'!$B$7:$B$2005<='تقرير فتره'!$E$5)*('مصروفات اساسية'!$G$7:$BD$2005)),"") -> 1171 | F45: 1171 | G45: =IF(الدليل!E41="","",الدليل!E41) -> فارغ33 | H45: =IF(G45<>"",SUMPRODUCT(('مصروفات متغيره'!$F$7:$F$2005='تقرير فتره'!$E$3)*('مصروفات متغيره'!$G$6:$BD$6='تقرير فتره'!$G45)*('مصروفات متغيره'!$B$7:$B$2005>='تقرير فتره'!$E$4)*('مصروفات متغيره'!$B$7:$B$2005<='تقرير فتره'!$E$5)*('مصروفات متغيره'!$G$7:$BD$2005)),"") -> 1171 | I45: 1171
D46: =IF(الدليل!C42="","",الدليل!C42) -> فارغ32 | E46: =IF(D46<>"",SUMPRODUCT(('مصروفات اساسية'!$F$7:$F$2005='تقرير فتره'!$E$3)*('مصروفات اساسية'!$G$6:$BD$6='تقرير فتره'!$D46)*('مصروفات اساسية'!$B$7:$B$2005>='تقرير فتره'!$E$4)*('مصروفات اساسية'!$B$7:$B$2005<='تقرير فتره'!$E$5)*('مصروفات اساسية'!$G$7:$BD$2005)),"") -> 1197.4 | F46: 1197.4 | G46: =IF(الدليل!E42="","",الدليل!E42) -> فارغ34 | H46: =IF(G46<>"",SUMPRODUCT(('مصروفات متغيره'!$F$7:$F$2005='تقرير فتره'!$E$3)*('مصروفات متغيره'!$G$6:$BD$6='تقرير فتره'!$G46)*('مصروفات متغيره'!$B$7:$B$2005>='تقرير فتره'!$E$4)*('مصروفات متغيره'!$B$7:$B$2005<='تقرير فتره'!$E$5)*('مصروفات متغيره'!$G$7:$BD$2005)),"") -> 1197.4 | I46: 1197.4
D47: =IF(الدليل!C43="","",الدليل!C43) -> فارغ33 | E47: =IF(D47<>"",SUMPRODUCT(('مصروفات اساسية'!$F$7:$F$2005='تقرير فتره'!$E$3)*('مصروفات اساسية'!$G$6:$BD$6='تقرير فتره'!$D47)*('مصروفات اساسية'!$B$7:$B$2005>='تقرير فتره'!$E$4)*('مصروفات اساسية'!$B$7:$B$2005<='تقرير فتره'!$E$5)*('مصروفات اساسية'!$G$7:$BD$2005)),"") -> 1223.8 | F47: 1223.8 | G47: =IF(الدليل!E43="","",الدليل!E43) -> فارغ35 | H47: =IF(G47<>"",SUMPRODUCT(('مصروفات متغيره'!$F$7:$F$2005='تقرير فتره'!$E$3)*('مصروفات متغيره'!$G$6:$BD$6='تقرير فتره'!$G47)*('مصروفات متغيره'!$B$7:$B$2005>='تقرير فتره'!$E$4)*('مصروفات متغيره'!$B$7:$B$2005<='تقرير فتره'!$E$5)*('مصروفات متغيره'!$G$7:$BD$2005)),"") -> 1223.8 | I47: 1223.8
D48: =IF(الدليل!C44="","",الدليل!C44) -> فارغ34 | E48: =IF(D48<>"",SUMPRODUCT(('مصروفات اساسية'!$F$7:$F$2005='تقرير فتره'!$E$3)*('مصروفات اساسية'!$G$6:$BD$6='تقرير فتره'!$D48)*('مصروفات اساسية'!$B$7:$B$2005>='تقرير فتره'!$E$4)*('مصروفات اساسية'!$B$7:$B$2005<='تقرير فتره'!$E$5)*('مصروفات اساسية'!$G$7:$BD$2005)),"") -> 1250.2 | F48: 1250.2 | G48: =IF(الدليل!E44="","",الدليل!E44) -> فارغ36 | H48: =IF(G48<>"",SUMPRODUCT(('مصروفات متغيره'!$F$7:$F$2005='تقرير فتره'!$E$3)*('مصروفات متغيره'!$G$6:$BD$6='تقرير فتره'!$G48)*('مصروفات متغيره'!$B$7:$B$2005>='تقرير فتره'!$E$4)*('مصروفات متغيره'!$B$7:$B$2005<='تقرير فتره'!$E$5)*('مصروفات متغيره'!$G$7:$BD$2005)),"") -> 1250.2 | I48: 1250.2
D49: =IF(الدليل!C45="","",الدليل!C45) -> فارغ35 | E49: =IF(D49<>"",SUMPRODUCT(('مصروفات اساسية'!$F$7:$F$2005='تقرير فتره'!$E$3)*('مصروفات اساسية'!$G$6:$BD$6='تقرير فتره'!$D49)*('مصروفات اساسية'!$B$7:$B$2005>='تقرير فتره'!$E$4)*('مصروفات اساسية'!$B$7:$B$2005<='تقرير فتره'!$E$5)*('مصروفات اساسية'!$G$7:$BD$2005)),"") -> 1276.6 | F49: 1276.6 | G49: =IF(الدليل!E45="","",الدليل!E45) -> فارغ37 | H49: =IF(G49<>"",SUMPRODUCT(('مصروفات متغيره'!$F$7:$F$2005='تقرير فتره'!$E$3)*('مصروفات متغيره'!$G$6:$BD$6='تقرير فتره'!$G49)*('مصروفات متغيره'!$B$7:$B$2005>='تقرير فتره'!$E$4)*('مصروفات متغيره'!$B$7:$B$2005<='تقرير فتره'!$E$5)*('مصروفات متغيره'!$G$7:$BD$2005)),"") -> 1276.6 | I49: 1276.6
D50: =IF(الدليل!C46="","",الدليل!C46) -> فارغ36 | E50: =IF(D50<>"",SUMPRODUCT(('مصروفات اساسية'!$F$7:$F$2005='تقرير فتره'!$E$3)*('مصروفات اساسية'!$G$6:$BD$6='تقرير فتره'!$D50)*('مصروفات اساسية'!$B$7:$B$2005>='تقرير فتره'!$E$4)*('مصروفات اساسية'!$B$7:$B$2005<='تقرير فتره'!$E$5)*('مصروفات اساسية'!$G$7:$BD$2005)),"") -> 1303 | F50: 1303 | G50: =IF(الدليل!E46="","",الدليل!E46) -> فارغ38 | H50: =IF(G50<>"",SUMPRODUCT(('مصروفات متغيره'!$F$7:$F$2005='تقرير فتره'!$E$3)*('مصروفات متغيره'!$G$6:$BD$6='تقرير فتره'!$G50)*('مصروفات متغيره'!$B$7:$B$2005>='تقرير فتره'!$E$4)*('مصروفات متغيره'!$B$7:$B$2005<='تقرير فتره'!$E$5)*('مصروفات متغيره'!$G$7:$BD$2005)),"") -> 1303 | I50: 1303
D51: =IF(الدليل!C47="","",الدليل!C47) -> فارغ37 | E51: =IF(D51<>"",SUMPRODUCT(('مصروفات اساسية'!$F$7:$F$2005='تقرير فتره'!$E$3)*('مصروفات اساسية'!$G$6:$BD$6='تقرير فتره'!$D51)*('مصروفات اساسية'!$B$7:$B$2005>='تقرير فتره'!$E$4)*('مصروفات اساسية'!$B$7:$B$2005<='تقرير فتره'!$E$5)*('مصروفات اساسية'!$G$7:$BD$2005)),"") -> 990 | F51: 990 | G51: =IF(الدليل!E47="","",الدليل!E47) -> فارغ39 | H51: =IF(G51<>"",SUMPRODUCT(('مصروفات متغيره'!$F$7:$F$2005='تقرير فتره'!$E$3)*('مصروفات متغيره'!$G$6:$BD$6='تقرير فتره'!$G51)*('مصروفات متغيره'!$B$7:$B$2005>='تقرير فتره'!$E$4)*('مصروفات متغيره'!$B$7:$B$2005<='تقرير فتره'!$E$5)*('مصروفات متغيره'!$G$7:$BD$2005)),"") -> 990 | I51: 990
D52: =IF(الدليل!C48="","",الدليل!C48) -> فارغ38 | E52: =IF(D52<>"",SUMPRODUCT(('مصروفات اساسية'!$F$7:$F$2005='تقرير فتره'!$E$3)*('مصروفات اساسية'!$G$6:$BD$6='تقرير فتره'!$D52)*('مصروفات اساسية'!$B$7:$B$2005>='تقرير فتره'!$E$4)*('مصروفات اساسية'!$B$7:$B$2005<='تقرير فتره'!$E$5)*('مصروفات اساسية'!$G$7:$BD$2005)),"") -> 1355.8 | F52: 1355.8 | G52: =IF(الدليل!E48="","",الدليل!E48) -> فارغ40 | H52: =IF(G52<>"",SUMPRODUCT(('مصروفات متغيره'!$F$7:$F$2005='تقرير فتره'!$E$3)*('مصروفات متغيره'!$G$6:$BD$6='تقرير فتره'!$G52)*('مصروفات متغيره'!$B$7:$B$2005>='تقرير فتره'!$E$4)*('مصروفات متغيره'!$B$7:$B$2005<='تقرير فتره'!$E$5)*('مصروفات متغيره'!$G$7:$BD$2005)),"") -> 1355.8 | I52: 1355.8
D53: =IF(الدليل!C49="","",الدليل!C49) -> فارغ39 | E53: =IF(D53<>"",SUMPRODUCT(('مصروفات اساسية'!$F$7:$F$2005='تقرير فتره'!$E$3)*('مصروفات اساسية'!$G$6:$BD$6='تقرير فتره'!$D53)*('مصروفات اساسية'!$B$7:$B$2005>='تقرير فتره'!$E$4)*('مصروفات اساسية'!$B$7:$B$2005<='تقرير فتره'!$E$5)*('مصروفات اساسية'!$G$7:$BD$2005)),"") -> 1382.2 | F53: 1382.2 | G53: =IF(الدليل!E49="","",الدليل!E49) -> فارغ41 | H53: =IF(G53<>"",SUMPRODUCT(('مصروفات متغيره'!$F$7:$F$2005='تقرير فتره'!$E$3)*('مصروفات متغيره'!$G$6:$BD$6='تقرير فتره'!$G53)*('مصروفات متغيره'!$B$7:$B$2005>='تقرير فتره'!$E$4)*('مصروفات متغيره'!$B$7:$B$2005<='تقرير فتره'!$E$5)*('مصروفات متغيره'!$G$7:$BD$2005)),"") -> 1382.2 | I53: 1382.2
D54: =IF(الدليل!C50="","",الدليل!C50) -> فارغ40 | E54: =IF(D54<>"",SUMPRODUCT(('مصروفات اساسية'!$F$7:$F$2005='تقرير فتره'!$E$3)*('مصروفات اساسية'!$G$6:$BD$6='تقرير فتره'!$D54)*('مصروفات اساسية'!$B$7:$B$2005>='تقرير فتره'!$E$4)*('مصروفات اساسية'!$B$7:$B$2005<='تقرير فتره'!$E$5)*('مصروفات اساسية'!$G$7:$BD$2005)),"") -> 890 | F54: 890 | G54: =IF(الدليل!E50="","",الدليل!E50) -> فارغ42 | H54: =IF(G54<>"",SUMPRODUCT(('مصروفات متغيره'!$F$7:$F$2005='تقرير فتره'!$E$3)*('مصروفات متغيره'!$G$6:$BD$6='تقرير فتره'!$G54)*('مصروفات متغيره'!$B$7:$B$2005>='تقرير فتره'!$E$4)*('مصروفات متغيره'!$B$7:$B$2005<='تقرير فتره'!$E$5)*('مصروفات متغيره'!$G$7:$BD$2005)),"") -> 890 | I54: 890
D55: =IF(الدليل!C51="","",الدليل!C51) -> فارغ41 | E55: =IF(D55<>"",SUMPRODUCT(('مصروفات اساسية'!$F$7:$F$2005='تقرير فتره'!$E$3)*('مصروفات اساسية'!$G$6:$BD$6='تقرير فتره'!$D55)*('مصروفات اساسية'!$B$7:$B$2005>='تقرير فتره'!$E$4)*('مصروفات اساسية'!$B$7:$B$2005<='تقرير فتره'!$E$5)*('مصروفات اساسية'!$G$7:$BD$2005)),"") -> 1435 | F55: 1435 | G55: =IF(الدليل!E51="","",الدليل!E51) -> فارغ43 | H55: =IF(G55<>"",SUMPRODUCT(('مصروفات متغيره'!$F$7:$F$2005='تقرير فتره'!$E$3)*('مصروفات متغيره'!$G$6:$BD$6='تقرير فتره'!$G55)*('مصروفات متغيره'!$B$7:$B$2005>='تقرير فتره'!$E$4)*('مصروفات متغيره'!$B$7:$B$2005<='تقرير فتره'!$E$5)*('مصروفات متغيره'!$G$7:$BD$2005)),"") -> 1435 | I55: 1435
D56: =IF(الدليل!C52="","",الدليل!C52) -> فارغ42 | E56: =IF(D56<>"",SUMPRODUCT(('مصروفات اساسية'!$F$7:$F$2005='تقرير فتره'!$E$3)*('مصروفات اساسية'!$G$6:$BD$6='تقرير فتره'!$D56)*('مصروفات اساسية'!$B$7:$B$2005>='تقرير فتره'!$E$4)*('مصروفات اساسية'!$B$7:$B$2005<='تقرير فتره'!$E$5)*('مصروفات اساسية'!$G$7:$BD$2005)),"") -> 1461.4 | F56: 1461.4 | G56: =IF(الدليل!E52="","",الدليل!E52) -> فارغ44 | H56: =IF(G56<>"",SUMPRODUCT(('مصروفات متغيره'!$F$7:$F$2005='تقرير فتره'!$E$3)*('مصروفات متغيره'!$G$6:$BD$6='تقرير فتره'!$G56)*('مصروفات متغيره'!$B$7:$B$2005>='تقرير فتره'!$E$4)*('مصروفات متغيره'!$B$7:$B$2005<='تقرير فتره'!$E$5)*('مصروفات متغيره'!$G$7:$BD$2005)),"") -> 1461.4 | I56: 1461.4
D57: =IF(الدليل!C53="","",الدليل!C53) -> فارغ43 | E57: =IF(D57<>"",SUMPRODUCT(('مصروفات اساسية'!$F$7:$F$2005='تقرير فتره'!$E$3)*('مصروفات اساسية'!$G$6:$BD$6='تقرير فتره'!$D57)*('مصروفات اساسية'!$B$7:$B$2005>='تقرير فتره'!$E$4)*('مصروفات اساسية'!$B$7:$B$2005<='تقرير فتره'!$E$5)*('مصروفات اساسية'!$G$7:$BD$2005)),"") -> 1487.8 | F57: 1487.8 | G57: =IF(الدليل!E53="","",الدليل!E53) -> فارغ45 | H57: =IF(G57<>"",SUMPRODUCT(('مصروفات متغيره'!$F$7:$F$2005='تقرير فتره'!$E$3)*('مصروفات متغيره'!$G$6:$BD$6='تقرير فتره'!$G57)*('مصروفات متغيره'!$B$7:$B$2005>='تقرير فتره'!$E$4)*('مصروفات متغيره'!$B$7:$B$2005<='تقرير فتره'!$E$5)*('مصروفات متغيره'!$G$7:$BD$2005)),"") -> 1487.8 | I57: 1487.8
D58: =IF(الدليل!C54="","",الدليل!C54) -> فارغ44 | E58: =IF(D58<>"",SUMPRODUCT(('مصروفات اساسية'!$F$7:$F$2005='تقرير فتره'!$E$3)*('مصروفات اساسية'!$G$6:$BD$6='تقرير فتره'!$D58)*('مصروفات اساسية'!$B$7:$B$2005>='تقرير فتره'!$E$4)*('مصروفات اساسية'!$B$7:$B$2005<='تقرير فتره'!$E$5)*('مصروفات اساسية'!$G$7:$BD$2005)),"") -> 1514.2 | F58: 1514.2 | G58: =IF(الدليل!E54="","",الدليل!E54) -> فارغ | H58: =IF(G58<>"",SUMPRODUCT(('مصروفات متغيره'!$F$7:$F$2005='تقرير فتره'!$E$3)*('مصروفات متغيره'!$G$6:$BD$6='تقرير فتره'!$G58)*('مصروفات متغيره'!$B$7:$B$2005>='تقرير فتره'!$E$4)*('مصروفات متغيره'!$B$7:$B$2005<='تقرير فتره'!$E$5)*('مصروفات متغيره'!$G$7:$BD$2005)),"") -> 3058.8 | I58: 3058.8
D59: =IF(الدليل!C55="","",الدليل!C55) -> فارغ45 | E59: =IF(D59<>"",SUMPRODUCT(('مصروفات اساسية'!$F$7:$F$2005='تقرير فتره'!$E$3)*('مصروفات اساسية'!$G$6:$BD$6='تقرير فتره'!$D59)*('مصروفات اساسية'!$B$7:$B$2005>='تقرير فتره'!$E$4)*('مصروفات اساسية'!$B$7:$B$2005<='تقرير فتره'!$E$5)*('مصروفات اساسية'!$G$7:$BD$2005)),"") -> 1546.6 | F59: 1546.6 | G59: =IF(الدليل!E55="","",الدليل!E55) -> فارغ | H59: =IF(G59<>"",SUMPRODUCT(('مصروفات متغيره'!$F$7:$F$2005='تقرير فتره'!$E$3)*('مصروفات متغيره'!$G$6:$BD$6='تقرير فتره'!$G59)*('مصروفات متغيره'!$B$7:$B$2005>='تقرير فتره'!$E$4)*('مصروفات متغيره'!$B$7:$B$2005<='تقرير فتره'!$E$5)*('مصروفات متغيره'!$G$7:$BD$2005)),"") -> 3058.8 | I59: 3058.8 | L59: =الدليل!J57 -> Designed By: MOHAMED ELRIFY
D60: اجماليات | E60: =SUM($E$10:$E$59) -> 58143.6 | G60: اجماليات | H60: =SUM($I$10:$I$59) -> 57621.4 | L60: تصميم واعداد : محمد الريفى
E61: =IF(D61<>"",SUMPRODUCT(('مصروفات اساسية'!$F$7:$F$2005='تقرير فتره'!$E$3)*('مصروفات اساسية'!$G$6:$BD$6='تقرير فتره'!$D61)*('مصروفات اساسية'!$B$7:$B$2005>='تقرير فتره'!$E$4)*('مصروفات اساسية'!$B$7:$B$2005<='تقرير فتره'!$E$5)*('مصروفات اساسية'!$G$7:$BD$2005)),"") ->  | H61: =IF(G61<>"",SUMPRODUCT(('مصروفات متغيره'!$F$7:$F$2005='تقرير فتره'!$E$3)*('مصروفات متغيره'!$G$6:$BD$6='تقرير فتره'!$G61)*('مصروفات متغيره'!$B$7:$B$2005>='تقرير فتره'!$E$4)*('مصروفات متغيره'!$B$7:$B$2005<='تقرير فتره'!$E$5)*('مصروفات متغيره'!$G$7:$BD$2005)),"") -> 
E62: =IF(D62<>"",SUMPRODUCT(('مصروفات اساسية'!$F$7:$F$2005='تقرير فتره'!$E$3)*('مصروفات اساسية'!$G$6:$BD$6='تقرير فتره'!$D62)*('مصروفات اساسية'!$B$7:$B$2005>='تقرير فتره'!$E$4)*('مصروفات اساسية'!$B$7:$B$2005<='تقرير فتره'!$E$5)*('مصروفات اساسية'!$G$7:$BD$2005)),"") ->  | H62: =IF(G62<>"",SUMPRODUCT(('مصروفات متغيره'!$F$7:$F$2005='تقرير فتره'!$E$3)*('مصروفات متغيره'!$G$6:$BD$6='تقرير فتره'!$G62)*('مصروفات متغيره'!$B$7:$B$2005>='تقرير فتره'!$E$4)*('مصروفات متغيره'!$B$7:$B$2005<='تقرير فتره'!$E$5)*('مصروفات متغيره'!$G$7:$BD$2005)),"") -> 
E63: =IF(D63<>"",SUMPRODUCT(('مصروفات اساسية'!$F$7:$F$2005='تقرير فتره'!$E$3)*('مصروفات اساسية'!$G$6:$BD$6='تقرير فتره'!$D63)*('مصروفات اساسية'!$B$7:$B$2005>='تقرير فتره'!$E$4)*('مصروفات اساسية'!$B$7:$B$2005<='تقرير فتره'!$E$5)*('مصروفات اساسية'!$G$7:$BD$2005)),"") ->  | H63: =IF(G63<>"",SUMPRODUCT(('مصروفات متغيره'!$F$7:$F$2005='تقرير فتره'!$E$3)*('مصروفات متغيره'!$G$6:$BD$6='تقرير فتره'!$G63)*('مصروفات متغيره'!$B$7:$B$2005>='تقرير فتره'!$E$4)*('مصروفات متغيره'!$B$7:$B$2005<='تقرير فتره'!$E$5)*('مصروفات متغيره'!$G$7:$BD$2005)),"") -> 
E64: =IF(D64<>"",SUMPRODUCT(('مصروفات اساسية'!$F$7:$F$2005='تقرير فتره'!$E$3)*('مصروفات اساسية'!$G$6:$BD$6='تقرير فتره'!$D64)*('مصروفات اساسية'!$B$7:$B$2005>='تقرير فتره'!$E$4)*('مصروفات اساسية'!$B$7:$B$2005<='تقرير فتره'!$E$5)*('مصروفات اساسية'!$G$7:$BD$2005)),"") ->  | H64: =IF(G64<>"",SUMPRODUCT(('مصروفات متغيره'!$F$7:$F$2005='تقرير فتره'!$E$3)*('مصروفات متغيره'!$G$6:$BD$6='تقرير فتره'!$G64)*('مصروفات متغيره'!$B$7:$B$2005>='تقرير فتره'!$E$4)*('مصروفات متغيره'!$B$7:$B$2005<='تقرير فتره'!$E$5)*('مصروفات متغيره'!$G$7:$BD$2005)),"") -> 
E65: =IF(D65<>"",SUMPRODUCT(('مصروفات اساسية'!$F$7:$F$2005='تقرير فتره'!$E$3)*('مصروفات اساسية'!$G$6:$BD$6='تقرير فتره'!$D65)*('مصروفات اساسية'!$B$7:$B$2005>='تقرير فتره'!$E$4)*('مصروفات اساسية'!$B$7:$B$2005<='تقرير فتره'!$E$5)*('مصروفات اساسية'!$G$7:$BD$2005)),"") ->  | H65: =IF(G65<>"",SUMPRODUCT(('مصروفات متغيره'!$F$7:$F$2005='تقرير فتره'!$E$3)*('مصروفات متغيره'!$G$6:$BD$6='تقرير فتره'!$G65)*('مصروفات متغيره'!$B$7:$B$2005>='تقرير فتره'!$E$4)*('مصروفات متغيره'!$B$7:$B$2005<='تقرير فتره'!$E$5)*('مصروفات متغيره'!$G$7:$BD$2005)),"") -> 
E66: =IF(D66<>"",SUMPRODUCT(('مصروفات اساسية'!$F$7:$F$2005='تقرير فتره'!$E$3)*('مصروفات اساسية'!$G$6:$BD$6='تقرير فتره'!$D66)*('مصروفات اساسية'!$B$7:$B$2005>='تقرير فتره'!$E$4)*('مصروفات اساسية'!$B$7:$B$2005<='تقرير فتره'!$E$5)*('مصروفات اساسية'!$G$7:$BD$2005)),"") ->  | H66: =IF(G66<>"",SUMPRODUCT(('مصروفات متغيره'!$F$7:$F$2005='تقرير فتره'!$E$3)*('مصروفات متغيره'!$G$6:$BD$6='تقرير فتره'!$G66)*('مصروفات متغيره'!$B$7:$B$2005>='تقرير فتره'!$E$4)*('مصروفات متغيره'!$B$7:$B$2005<='تقرير فتره'!$E$5)*('مصروفات متغيره'!$G$7:$BD$2005)),"") -> 
E67: =IF(D67<>"",SUMPRODUCT(('مصروفات اساسية'!$F$7:$F$2005='تقرير فتره'!$E$3)*('مصروفات اساسية'!$G$6:$BD$6='تقرير فتره'!$D67)*('مصروفات اساسية'!$B$7:$B$2005>='تقرير فتره'!$E$4)*('مصروفات اساسية'!$B$7:$B$2005<='تقرير فتره'!$E$5)*('مصروفات اساسية'!$G$7:$BD$2005)),"") ->  | H67: =IF(G67<>"",SUMPRODUCT(('مصروفات متغيره'!$F$7:$F$2005='تقرير فتره'!$E$3)*('مصروفات متغيره'!$G$6:$BD$6='تقرير فتره'!$G67)*('مصروفات متغيره'!$B$7:$B$2005>='تقرير فتره'!$E$4)*('مصروفات متغيره'!$B$7:$B$2005<='تقرير فتره'!$E$5)*('مصروفات متغيره'!$G$7:$BD$2005)),"") -> 
E68: =IF(D68<>"",SUMPRODUCT(('مصروفات اساسية'!$F$7:$F$2005='تقرير فتره'!$E$3)*('مصروفات اساسية'!$G$6:$BD$6='تقرير فتره'!$D68)*('مصروفات اساسية'!$B$7:$B$2005>='تقرير فتره'!$E$4)*('مصروفات اساسية'!$B$7:$B$2005<='تقرير فتره'!$E$5)*('مصروفات اساسية'!$G$7:$BD$2005)),"") ->  | H68: =IF(G68<>"",SUMPRODUCT(('مصروفات متغيره'!$F$7:$F$2005='تقرير فتره'!$E$3)*('مصروفات متغيره'!$G$6:$BD$6='تقرير فتره'!$G68)*('مصروفات متغيره'!$B$7:$B$2005>='تقرير فتره'!$E$4)*('مصروفات متغيره'!$B$7:$B$2005<='تقرير فتره'!$E$5)*('مصروفات متغيره'!$G$7:$BD$2005)),"") -> 
E69: =IF(D69<>"",SUMPRODUCT(('مصروفات اساسية'!$F$7:$F$2005='تقرير فتره'!$E$3)*('مصروفات اساسية'!$G$6:$BD$6='تقرير فتره'!$D69)*('مصروفات اساسية'!$B$7:$B$2005>='تقرير فتره'!$E$4)*('مصروفات اساسية'!$B$7:$B$2005<='تقرير فتره'!$E$5)*('مصروفات اساسية'!$G$7:$BD$2005)),"") ->  | H69: =IF(G69<>"",SUMPRODUCT(('مصروفات متغيره'!$F$7:$F$2005='تقرير فتره'!$E$3)*('مصروفات متغيره'!$G$6:$BD$6='تقرير فتره'!$G69)*('مصروفات متغيره'!$B$7:$B$2005>='تقرير فتره'!$E$4)*('مصروفات متغيره'!$B$7:$B$2005<='تقرير فتره'!$E$5)*('مصروفات متغيره'!$G$7:$BD$2005)),"") -> 
E70: =IF(D70<>"",SUMPRODUCT(('مصروفات اساسية'!$F$7:$F$2005='تقرير فتره'!$E$3)*('مصروفات اساسية'!$G$6:$BD$6='تقرير فتره'!$D70)*('مصروفات اساسية'!$B$7:$B$2005>='تقرير فتره'!$E$4)*('مصروفات اساسية'!$B$7:$B$2005<='تقرير فتره'!$E$5)*('مصروفات اساسية'!$G$7:$BD$2005)),"") ->  | H70: =IF(G70<>"",SUMPRODUCT(('مصروفات متغيره'!$F$7:$F$2005='تقرير فتره'!$E$3)*('مصروفات متغيره'!$G$6:$BD$6='تقرير فتره'!$G70)*('مصروفات متغيره'!$B$7:$B$2005>='تقرير فتره'!$E$4)*('مصروفات متغيره'!$B$7:$B$2005<='تقرير فتره'!$E$5)*('مصروفات متغيره'!$G$7:$BD$2005)),"") -> 
E71: =IF(D71<>"",SUMPRODUCT(('مصروفات اساسية'!$F$7:$F$2005='تقرير فتره'!$E$3)*('مصروفات اساسية'!$G$6:$BD$6='تقرير فتره'!$D71)*('مصروفات اساسية'!$B$7:$B$2005>='تقرير فتره'!$E$4)*('مصروفات اساسية'!$B$7:$B$2005<='تقرير فتره'!$E$5)*('مصروفات اساسية'!$G$7:$BD$2005)),"") ->  | H71: =IF(G71<>"",SUMPRODUCT(('مصروفات متغيره'!$F$7:$F$2005='تقرير فتره'!$E$3)*('مصروفات متغيره'!$G$6:$BD$6='تقرير فتره'!$G71)*('مصروفات متغيره'!$B$7:$B$2005>='تقرير فتره'!$E$4)*('مصروفات متغيره'!$B$7:$B$2005<='تقرير فتره'!$E$5)*('مصروفات متغيره'!$G$7:$BD$2005)),"") -> 
E72: =IF(D72<>"",SUMPRODUCT(('مصروفات اساسية'!$F$7:$F$2005='تقرير فتره'!$E$3)*('مصروفات اساسية'!$G$6:$BD$6='تقرير فتره'!$D72)*('مصروفات اساسية'!$B$7:$B$2005>='تقرير فتره'!$E$4)*('مصروفات اساسية'!$B$7:$B$2005<='تقرير فتره'!$E$5)*('مصروفات اساسية'!$G$7:$BD$2005)),"") ->  | H72: =IF(G72<>"",SUMPRODUCT(('مصروفات متغيره'!$F$7:$F$2005='تقرير فتره'!$E$3)*('مصروفات متغيره'!$G$6:$BD$6='تقرير فتره'!$G72)*('مصروفات متغيره'!$B$7:$B$2005>='تقرير فتره'!$E$4)*('مصروفات متغيره'!$B$7:$B$2005<='تقرير فتره'!$E$5)*('مصروفات متغيره'!$G$7:$BD$2005)),"") -> 
E73: =IF(D73<>"",SUMPRODUCT(('مصروفات اساسية'!$F$7:$F$2005='تقرير فتره'!$E$3)*('مصروفات اساسية'!$G$6:$BD$6='تقرير فتره'!$D73)*('مصروفات اساسية'!$B$7:$B$2005>='تقرير فتره'!$E$4)*('مصروفات اساسية'!$B$7:$B$2005<='تقرير فتره'!$E$5)*('مصروفات اساسية'!$G$7:$BD$2005)),"") ->  | H73: =IF(G73<>"",SUMPRODUCT(('مصروفات متغيره'!$F$7:$F$2005='تقرير فتره'!$E$3)*('مصروفات متغيره'!$G$6:$BD$6='تقرير فتره'!$G73)*('مصروفات متغيره'!$B$7:$B$2005>='تقرير فتره'!$E$4)*('مصروفات متغيره'!$B$7:$B$2005<='تقرير فتره'!$E$5)*('مصروفات متغيره'!$G$7:$BD$2005)),"") -> 
E74: =IF(D74<>"",SUMPRODUCT(('مصروفات اساسية'!$F$7:$F$2005='تقرير فتره'!$E$3)*('مصروفات اساسية'!$G$6:$BD$6='تقرير فتره'!$D74)*('مصروفات اساسية'!$B$7:$B$2005>='تقرير فتره'!$E$4)*('مصروفات اساسية'!$B$7:$B$2005<='تقرير فتره'!$E$5)*('مصروفات اساسية'!$G$7:$BD$2005)),"") ->  | H74: =IF(G74<>"",SUMPRODUCT(('مصروفات متغيره'!$F$7:$F$2005='تقرير فتره'!$E$3)*('مصروفات متغيره'!$G$6:$BD$6='تقرير فتره'!$G74)*('مصروفات متغيره'!$B$7:$B$2005>='تقرير فتره'!$E$4)*('مصروفات متغيره'!$B$7:$B$2005<='تقرير فتره'!$E$5)*('مصروفات متغيره'!$G$7:$BD$2005)),"") -> 
E75: =IF(D75<>"",SUMPRODUCT(('مصروفات اساسية'!$F$7:$F$2005='تقرير فتره'!$E$3)*('مصروفات اساسية'!$G$6:$BD$6='تقرير فتره'!$D75)*('مصروفات اساسية'!$B$7:$B$2005>='تقرير فتره'!$E$4)*('مصروفات اساسية'!$B$7:$B$2005<='تقرير فتره'!$E$5)*('مصروفات اساسية'!$G$7:$BD$2005)),"") ->  | F75: =E75 ->  | H75: =IF(G75<>"",SUMPRODUCT(('مصروفات متغيره'!$F$7:$F$2005='تقرير فتره'!$E$3)*('مصروفات متغيره'!$G$6:$BD$6='تقرير فتره'!$G75)*('مصروفات متغيره'!$B$7:$B$2005>='تقرير فتره'!$E$4)*('مصروفات متغيره'!$B$7:$B$2005<='تقرير فتره'!$E$5)*('مصروفات متغيره'!$G$7:$BD$2005)),"") -> 
E76: =IF(D76<>"",SUMPRODUCT(('مصروفات اساسية'!$F$7:$F$2005='تقرير فتره'!$E$3)*('مصروفات اساسية'!$G$6:$BD$6='تقرير فتره'!$D76)*('مصروفات اساسية'!$B$7:$B$2005>='تقرير فتره'!$E$4)*('مصروفات اساسية'!$B$7:$B$2005<='تقرير فتره'!$E$5)*('مصروفات اساسية'!$G$7:$BD$2005)),"") ->  | H76: =IF(G76<>"",SUMPRODUCT(('مصروفات متغيره'!$F$7:$F$2005='تقرير فتره'!$E$3)*('مصروفات متغيره'!$G$6:$BD$6='تقرير فتره'!$G76)*('مصروفات متغيره'!$B$7:$B$2005>='تقرير فتره'!$E$4)*('مصروفات متغيره'!$B$7:$B$2005<='تقرير فتره'!$E$5)*('مصروفات متغيره'!$G$7:$BD$2005)),"") -> 
E77: =IF(D77<>"",SUMPRODUCT(('مصروفات اساسية'!$F$7:$F$2005='تقرير فتره'!$E$3)*('مصروفات اساسية'!$G$6:$BD$6='تقرير فتره'!$D77)*('مصروفات اساسية'!$B$7:$B$2005>='تقرير فتره'!$E$4)*('مصروفات اساسية'!$B$7:$B$2005<='تقرير فتره'!$E$5)*('مصروفات اساسية'!$G$7:$BD$2005)),"") ->  | H77: =IF(G77<>"",SUMPRODUCT(('مصروفات متغيره'!$F$7:$F$2005='تقرير فتره'!$E$3)*('مصروفات متغيره'!$G$6:$BD$6='تقرير فتره'!$G77)*('مصروفات متغيره'!$B$7:$B$2005>='تقرير فتره'!$E$4)*('مصروفات متغيره'!$B$7:$B$2005<='تقرير فتره'!$E$5)*('مصروفات متغيره'!$G$7:$BD$2005)),"") -> 
E78: =IF(D78<>"",SUMPRODUCT(('مصروفات اساسية'!$F$7:$F$2005='تقرير فتره'!$E$3)*('مصروفات اساسية'!$G$6:$BD$6='تقرير فتره'!$D78)*('مصروفات اساسية'!$B$7:$B$2005>='تقرير فتره'!$E$4)*('مصروفات اساسية'!$B$7:$B$2005<='تقرير فتره'!$E$5)*('مصروفات اساسية'!$G$7:$BD$2005)),"") ->  | H78: =IF(G78<>"",SUMPRODUCT(('مصروفات متغيره'!$F$7:$F$2005='تقرير فتره'!$E$3)*('مصروفات متغيره'!$G$6:$BD$6='تقرير فتره'!$G78)*('مصروفات متغيره'!$B$7:$B$2005>='تقرير فتره'!$E$4)*('مصروفات متغيره'!$B$7:$B$2005<='تقرير فتره'!$E$5)*('مصروفات متغيره'!$G$7:$BD$2005)),"") -> 
E79: =IF(D79<>"",SUMPRODUCT(('مصروفات اساسية'!$F$7:$F$2005='تقرير فتره'!$E$3)*('مصروفات اساسية'!$G$6:$BD$6='تقرير فتره'!$D79)*('مصروفات اساسية'!$B$7:$B$2005>='تقرير فتره'!$E$4)*('مصروفات اساسية'!$B$7:$B$2005<='تقرير فتره'!$E$5)*('مصروفات اساسية'!$G$7:$BD$2005)),"") ->  | H79: =IF(G79<>"",SUMPRODUCT(('مصروفات متغيره'!$F$7:$F$2005='تقرير فتره'!$E$3)*('مصروفات متغيره'!$G$6:$BD$6='تقرير فتره'!$G79)*('مصروفات متغيره'!$B$7:$B$2005>='تقرير فتره'!$E$4)*('مصروفات متغيره'!$B$7:$B$2005<='تقرير فتره'!$E$5)*('مصروفات متغيره'!$G$7:$BD$2005)),"") -> 
E80: =IF(D80<>"",SUMPRODUCT(('مصروفات اساسية'!$F$7:$F$2005='تقرير فتره'!$E$3)*('مصروفات اساسية'!$G$6:$BD$6='تقرير فتره'!$D80)*('مصروفات اساسية'!$B$7:$B$2005>='تقرير فتره'!$E$4)*('مصروفات اساسية'!$B$7:$B$2005<='تقرير فتره'!$E$5)*('مصروفات اساسية'!$G$7:$BD$2005)),"") ->  | H80: =IF(G80<>"",SUMPRODUCT(('مصروفات متغيره'!$F$7:$F$2005='تقرير فتره'!$E$3)*('مصروفات متغيره'!$G$6:$BD$6='تقرير فتره'!$G80)*('مصروفات متغيره'!$B$7:$B$2005>='تقرير فتره'!$E$4)*('مصروفات متغيره'!$B$7:$B$2005<='تقرير فتره'!$E$5)*('مصروفات متغيره'!$G$7:$BD$2005)),"") -> 
E81: =IF(D81<>"",SUMPRODUCT(('مصروفات اساسية'!$F$7:$F$2005='تقرير فتره'!$E$3)*('مصروفات اساسية'!$G$6:$BD$6='تقرير فتره'!$D81)*('مصروفات اساسية'!$B$7:$B$2005>='تقرير فتره'!$E$4)*('مصروفات اساسية'!$B$7:$B$2005<='تقرير فتره'!$E$5)*('مصروفات اساسية'!$G$7:$BD$2005)),"") ->  | H81: =IF(G81<>"",SUMPRODUCT(('مصروفات متغيره'!$F$7:$F$2005='تقرير فتره'!$E$3)*('مصروفات متغيره'!$G$6:$BD$6='تقرير فتره'!$G81)*('مصروفات متغيره'!$B$7:$B$2005>='تقرير فتره'!$E$4)*('مصروفات متغيره'!$B$7:$B$2005<='تقرير فتره'!$E$5)*('مصروفات متغيره'!$G$7:$BD$2005)),"") -> 
E82: =IF(D82<>"",SUMPRODUCT(('مصروفات اساسية'!$F$7:$F$2005='تقرير فتره'!$E$3)*('مصروفات اساسية'!$G$6:$BD$6='تقرير فتره'!$D82)*('مصروفات اساسية'!$B$7:$B$2005>='تقرير فتره'!$E$4)*('مصروفات اساسية'!$B$7:$B$2005<='تقرير فتره'!$E$5)*('مصروفات اساسية'!$G$7:$BD$2005)),"") ->  | H82: =IF(G82<>"",SUMPRODUCT(('مصروفات متغيره'!$F$7:$F$2005='تقرير فتره'!$E$3)*('مصروفات متغيره'!$G$6:$BD$6='تقرير فتره'!$G82)*('مصروفات متغيره'!$B$7:$B$2005>='تقرير فتره'!$E$4)*('مصروفات متغيره'!$B$7:$B$2005<='تقرير فتره'!$E$5)*('مصروفات متغيره'!$G$7:$BD$2005)),"") -> 
E83: =IF(D83<>"",SUMPRODUCT(('مصروفات اساسية'!$F$7:$F$2005='تقرير فتره'!$E$3)*('مصروفات اساسية'!$G$6:$BD$6='تقرير فتره'!$D83)*('مصروفات اساسية'!$B$7:$B$2005>='تقرير فتره'!$E$4)*('مصروفات اساسية'!$B$7:$B$2005<='تقرير فتره'!$E$5)*('مصروفات اساسية'!$G$7:$BD$2005)),"") ->  | H83: =IF(G83<>"",SUMPRODUCT(('مصروفات متغيره'!$F$7:$F$2005='تقرير فتره'!$E$3)*('مصروفات متغيره'!$G$6:$BD$6='تقرير فتره'!$G83)*('مصروفات متغيره'!$B$7:$B$2005>='تقرير فتره'!$E$4)*('مصروفات متغيره'!$B$7:$B$2005<='تقرير فتره'!$E$5)*('مصروفات متغيره'!$G$7:$BD$2005)),"") -> 
E84: =IF(D84<>"",SUMPRODUCT(('مصروفات اساسية'!$F$7:$F$2005='تقرير فتره'!$E$3)*('مصروفات اساسية'!$G$6:$BD$6='تقرير فتره'!$D84)*('مصروفات اساسية'!$B$7:$B$2005>='تقرير فتره'!$E$4)*('مصروفات اساسية'!$B$7:$B$2005<='تقرير فتره'!$E$5)*('مصروفات اساسية'!$G$7:$BD$2005)),"") ->  | H84: =IF(G84<>"",SUMPRODUCT(('مصروفات متغيره'!$F$7:$F$2005='تقرير فتره'!$E$3)*('مصروفات متغيره'!$G$6:$BD$6='تقرير فتره'!$G84)*('مصروفات متغيره'!$B$7:$B$2005>='تقرير فتره'!$E$4)*('مصروفات متغيره'!$B$7:$B$2005<='تقرير فتره'!$E$5)*('مصروفات متغيره'!$G$7:$BD$2005)),"") -> 
E85: =IF(D85<>"",SUMPRODUCT(('مصروفات اساسية'!$F$7:$F$2005='تقرير فتره'!$E$3)*('مصروفات اساسية'!$G$6:$BD$6='تقرير فتره'!$D85)*('مصروفات اساسية'!$B$7:$B$2005>='تقرير فتره'!$E$4)*('مصروفات اساسية'!$B$7:$B$2005<='تقرير فتره'!$E$5)*('مصروفات اساسية'!$G$7:$BD$2005)),"") ->  | H85: =IF(G85<>"",SUMPRODUCT(('مصروفات متغيره'!$F$7:$F$2005='تقرير فتره'!$E$3)*('مصروفات متغيره'!$G$6:$BD$6='تقرير فتره'!$G85)*('مصروفات متغيره'!$B$7:$B$2005>='تقرير فتره'!$E$4)*('مصروفات متغيره'!$B$7:$B$2005<='تقرير فتره'!$E$5)*('مصروفات متغيره'!$G$7:$BD$2005)),"") -> 
E86: =IF(D86<>"",SUMPRODUCT(('مصروفات اساسية'!$F$7:$F$2005='تقرير فتره'!$E$3)*('مصروفات اساسية'!$G$6:$BD$6='تقرير فتره'!$D86)*('مصروفات اساسية'!$B$7:$B$2005>='تقرير فتره'!$E$4)*('مصروفات اساسية'!$B$7:$B$2005<='تقرير فتره'!$E$5)*('مصروفات اساسية'!$G$7:$BD$2005)),"") ->  | H86: =IF(G86<>"",SUMPRODUCT(('مصروفات متغيره'!$F$7:$F$2005='تقرير فتره'!$E$3)*('مصروفات متغيره'!$G$6:$BD$6='تقرير فتره'!$G86)*('مصروفات متغيره'!$B$7:$B$2005>='تقرير فتره'!$E$4)*('مصروفات متغيره'!$B$7:$B$2005<='تقرير فتره'!$E$5)*('مصروفات متغيره'!$G$7:$BD$2005)),"") -> 
E87: =IF(D87<>"",SUMPRODUCT(('مصروفات اساسية'!$F$7:$F$2005='تقرير فتره'!$E$3)*('مصروفات اساسية'!$G$6:$BD$6='تقرير فتره'!$D87)*('مصروفات اساسية'!$B$7:$B$2005>='تقرير فتره'!$E$4)*('مصروفات اساسية'!$B$7:$B$2005<='تقرير فتره'!$E$5)*('مصروفات اساسية'!$G$7:$BD$2005)),"") ->  | H87: =IF(G87<>"",SUMPRODUCT(('مصروفات متغيره'!$F$7:$F$2005='تقرير فتره'!$E$3)*('مصروفات متغيره'!$G$6:$BD$6='تقرير فتره'!$G87)*('مصروفات متغيره'!$B$7:$B$2005>='تقرير فتره'!$E$4)*('مصروفات متغيره'!$B$7:$B$2005<='تقرير فتره'!$E$5)*('مصروفات متغيره'!$G$7:$BD$2005)),"") -> 
E88: =IF(D88<>"",SUMPRODUCT(('مصروفات اساسية'!$F$7:$F$2005='تقرير فتره'!$E$3)*('مصروفات اساسية'!$G$6:$BD$6='تقرير فتره'!$D88)*('مصروفات اساسية'!$B$7:$B$2005>='تقرير فتره'!$E$4)*('مصروفات اساسية'!$B$7:$B$2005<='تقرير فتره'!$E$5)*('مصروفات اساسية'!$G$7:$BD$2005)),"") ->  | H88: =IF(G88<>"",SUMPRODUCT(('مصروفات متغيره'!$F$7:$F$2005='تقرير فتره'!$E$3)*('مصروفات متغيره'!$G$6:$BD$6='تقرير فتره'!$G88)*('مصروفات متغيره'!$B$7:$B$2005>='تقرير فتره'!$E$4)*('مصروفات متغيره'!$B$7:$B$2005<='تقرير فتره'!$E$5)*('مصروفات متغيره'!$G$7:$BD$2005)),"") -> 
E89: =IF(D89<>"",SUMPRODUCT(('مصروفات اساسية'!$F$7:$F$2005='تقرير فتره'!$E$3)*('مصروفات اساسية'!$G$6:$BD$6='تقرير فتره'!$D89)*('مصروفات اساسية'!$B$7:$B$2005>='تقرير فتره'!$E$4)*('مصروفات اساسية'!$B$7:$B$2005<='تقرير فتره'!$E$5)*('مصروفات اساسية'!$G$7:$BD$2005)),"") ->  | H89: =IF(G89<>"",SUMPRODUCT(('مصروفات متغيره'!$F$7:$F$2005='تقرير فتره'!$E$3)*('مصروفات متغيره'!$G$6:$BD$6='تقرير فتره'!$G89)*('مصروفات متغيره'!$B$7:$B$2005>='تقرير فتره'!$E$4)*('مصروفات متغيره'!$B$7:$B$2005<='تقرير فتره'!$E$5)*('مصروفات متغيره'!$G$7:$BD$2005)),"") -> 
E90: =IF(D90<>"",SUMPRODUCT(('مصروفات اساسية'!$F$7:$F$2005='تقرير فتره'!$E$3)*('مصروفات اساسية'!$G$6:$BD$6='تقرير فتره'!$D90)*('مصروفات اساسية'!$B$7:$B$2005>='تقرير فتره'!$E$4)*('مصروفات اساسية'!$B$7:$B$2005<='تقرير فتره'!$E$5)*('مصروفات اساسية'!$G$7:$BD$2005)),"") ->  | H90: =IF(G90<>"",SUMPRODUCT(('مصروفات متغيره'!$F$7:$F$2005='تقرير فتره'!$E$3)*('مصروفات متغيره'!$G$6:$BD$6='تقرير فتره'!$G90)*('مصروفات متغيره'!$B$7:$B$2005>='تقرير فتره'!$E$4)*('مصروفات متغيره'!$B$7:$B$2005<='تقرير فتره'!$E$5)*('مصروفات متغيره'!$G$7:$BD$2005)),"") -> 
E91: =IF(D91<>"",SUMPRODUCT(('مصروفات اساسية'!$F$7:$F$2005='تقرير فتره'!$E$3)*('مصروفات اساسية'!$G$6:$BD$6='تقرير فتره'!$D91)*('مصروفات اساسية'!$B$7:$B$2005>='تقرير فتره'!$E$4)*('مصروفات اساسية'!$B$7:$B$2005<='تقرير فتره'!$E$5)*('مصروفات اساسية'!$G$7:$BD$2005)),"") ->  | H91: =IF(G91<>"",SUMPRODUCT(('مصروفات متغيره'!$F$7:$F$2005='تقرير فتره'!$E$3)*('مصروفات متغيره'!$G$6:$BD$6='تقرير فتره'!$G91)*('مصروفات متغيره'!$B$7:$B$2005>='تقرير فتره'!$E$4)*('مصروفات متغيره'!$B$7:$B$2005<='تقرير فتره'!$E$5)*('مصروفات متغيره'!$G$7:$BD$2005)),"") -> 
E92: =IF(D92<>"",SUMPRODUCT(('مصروفات اساسية'!$F$7:$F$2005='تقرير فتره'!$E$3)*('مصروفات اساسية'!$G$6:$BD$6='تقرير فتره'!$D92)*('مصروفات اساسية'!$B$7:$B$2005>='تقرير فتره'!$E$4)*('مصروفات اساسية'!$B$7:$B$2005<='تقرير فتره'!$E$5)*('مصروفات اساسية'!$G$7:$BD$2005)),"") ->  | H92: =IF(G92<>"",SUMPRODUCT(('مصروفات متغيره'!$F$7:$F$2005='تقرير فتره'!$E$3)*('مصروفات متغيره'!$G$6:$BD$6='تقرير فتره'!$G92)*('مصروفات متغيره'!$B$7:$B$2005>='تقرير فتره'!$E$4)*('مصروفات متغيره'!$B$7:$B$2005<='تقرير فتره'!$E$5)*('مصروفات متغيره'!$G$7:$BD$2005)),"") -> 
E93: =IF(D93<>"",SUMPRODUCT(('مصروفات اساسية'!$F$7:$F$2005='تقرير فتره'!$E$3)*('مصروفات اساسية'!$G$6:$BD$6='تقرير فتره'!$D93)*('مصروفات اساسية'!$B$7:$B$2005>='تقرير فتره'!$E$4)*('مصروفات اساسية'!$B$7:$B$2005<='تقرير فتره'!$E$5)*('مصروفات اساسية'!$G$7:$BD$2005)),"") ->  | H93: =IF(G93<>"",SUMPRODUCT(('مصروفات متغيره'!$F$7:$F$2005='تقرير فتره'!$E$3)*('مصروفات متغيره'!$G$6:$BD$6='تقرير فتره'!$G93)*('مصروفات متغيره'!$B$7:$B$2005>='تقرير فتره'!$E$4)*('مصروفات متغيره'!$B$7:$B$2005<='تقرير فتره'!$E$5)*('مصروفات متغيره'!$G$7:$BD$2005)),"") -> 
E94: =IF(D94<>"",SUMPRODUCT(('مصروفات اساسية'!$F$7:$F$2005='تقرير فتره'!$E$3)*('مصروفات اساسية'!$G$6:$BD$6='تقرير فتره'!$D94)*('مصروفات اساسية'!$B$7:$B$2005>='تقرير فتره'!$E$4)*('مصروفات اساسية'!$B$7:$B$2005<='تقرير فتره'!$E$5)*('مصروفات اساسية'!$G$7:$BD$2005)),"") ->  | H94: =IF(G94<>"",SUMPRODUCT(('مصروفات متغيره'!$F$7:$F$2005='تقرير فتره'!$E$3)*('مصروفات متغيره'!$G$6:$BD$6='تقرير فتره'!$G94)*('مصروفات متغيره'!$B$7:$B$2005>='تقرير فتره'!$E$4)*('مصروفات متغيره'!$B$7:$B$2005<='تقرير فتره'!$E$5)*('مصروفات متغيره'!$G$7:$BD$2005)),"") -> 
E95: =IF(D95<>"",SUMPRODUCT(('مصروفات اساسية'!$F$7:$F$2005='تقرير فتره'!$E$3)*('مصروفات اساسية'!$G$6:$BD$6='تقرير فتره'!$D95)*('مصروفات اساسية'!$B$7:$B$2005>='تقرير فتره'!$E$4)*('مصروفات اساسية'!$B$7:$B$2005<='تقرير فتره'!$E$5)*('مصروفات اساسية'!$G$7:$BD$2005)),"") ->  | H95: =IF(G95<>"",SUMPRODUCT(('مصروفات متغيره'!$F$7:$F$2005='تقرير فتره'!$E$3)*('مصروفات متغيره'!$G$6:$BD$6='تقرير فتره'!$G95)*('مصروفات متغيره'!$B$7:$B$2005>='تقرير فتره'!$E$4)*('مصروفات متغيره'!$B$7:$B$2005<='تقرير فتره'!$E$5)*('مصروفات متغيره'!$G$7:$BD$2005)),"") -> 
E96: =IF(D96<>"",SUMPRODUCT(('مصروفات اساسية'!$F$7:$F$2005='تقرير فتره'!$E$3)*('مصروفات اساسية'!$G$6:$BD$6='تقرير فتره'!$D96)*('مصروفات اساسية'!$B$7:$B$2005>='تقرير فتره'!$E$4)*('مصروفات اساسية'!$B$7:$B$2005<='تقرير فتره'!$E$5)*('مصروفات اساسية'!$G$7:$BD$2005)),"") ->  | H96: =IF(G96<>"",SUMPRODUCT(('مصروفات متغيره'!$F$7:$F$2005='تقرير فتره'!$E$3)*('مصروفات متغيره'!$G$6:$BD$6='تقرير فتره'!$G96)*('مصروفات متغيره'!$B$7:$B$2005>='تقرير فتره'!$E$4)*('مصروفات متغيره'!$B$7:$B$2005<='تقرير فتره'!$E$5)*('مصروفات متغيره'!$G$7:$BD$2005)),"") -> 
E97: =IF(D97<>"",SUMPRODUCT(('مصروفات اساسية'!$F$7:$F$2005='تقرير فتره'!$E$3)*('مصروفات اساسية'!$G$6:$BD$6='تقرير فتره'!$D97)*('مصروفات اساسية'!$B$7:$B$2005>='تقرير فتره'!$E$4)*('مصروفات اساسية'!$B$7:$B$2005<='تقرير فتره'!$E$5)*('مصروفات اساسية'!$G$7:$BD$2005)),"") ->  | H97: =IF(G97<>"",SUMPRODUCT(('مصروفات متغيره'!$F$7:$F$2005='تقرير فتره'!$E$3)*('مصروفات متغيره'!$G$6:$BD$6='تقرير فتره'!$G97)*('مصروفات متغيره'!$B$7:$B$2005>='تقرير فتره'!$E$4)*('مصروفات متغيره'!$B$7:$B$2005<='تقرير فتره'!$E$5)*('مصروفات متغيره'!$G$7:$BD$2005)),"") -> 
E98: =IF(D98<>"",SUMPRODUCT(('مصروفات اساسية'!$F$7:$F$2005='تقرير فتره'!$E$3)*('مصروفات اساسية'!$G$6:$BD$6='تقرير فتره'!$D98)*('مصروفات اساسية'!$B$7:$B$2005>='تقرير فتره'!$E$4)*('مصروفات اساسية'!$B$7:$B$2005<='تقرير فتره'!$E$5)*('مصروفات اساسية'!$G$7:$BD$2005)),"") ->  | H98: =IF(G98<>"",SUMPRODUCT(('مصروفات متغيره'!$F$7:$F$2005='تقرير فتره'!$E$3)*('مصروفات متغيره'!$G$6:$BD$6='تقرير فتره'!$G98)*('مصروفات متغيره'!$B$7:$B$2005>='تقرير فتره'!$E$4)*('مصروفات متغيره'!$B$7:$B$2005<='تقرير فتره'!$E$5)*('مصروفات متغيره'!$G$7:$BD$2005)),"") -> 
E99: =IF(D99<>"",SUMPRODUCT(('مصروفات اساسية'!$F$7:$F$2005='تقرير فتره'!$E$3)*('مصروفات اساسية'!$G$6:$BD$6='تقرير فتره'!$D99)*('مصروفات اساسية'!$B$7:$B$2005>='تقرير فتره'!$E$4)*('مصروفات اساسية'!$B$7:$B$2005<='تقرير فتره'!$E$5)*('مصروفات اساسية'!$G$7:$BD$2005)),"") ->  | H99: =IF(G99<>"",SUMPRODUCT(('مصروفات متغيره'!$F$7:$F$2005='تقرير فتره'!$E$3)*('مصروفات متغيره'!$G$6:$BD$6='تقرير فتره'!$G99)*('مصروفات متغيره'!$B$7:$B$2005>='تقرير فتره'!$E$4)*('مصروفات متغيره'!$B$7:$B$2005<='تقرير فتره'!$E$5)*('مصروفات متغيره'!$G$7:$BD$2005)),"") -> 
E100: =IF(D100<>"",SUMPRODUCT(('مصروفات اساسية'!$F$7:$F$2005='تقرير فتره'!$E$3)*('مصروفات اساسية'!$G$6:$BD$6='تقرير فتره'!$D100)*('مصروفات اساسية'!$B$7:$B$2005>='تقرير فتره'!$E$4)*('مصروفات اساسية'!$B$7:$B$2005<='تقرير فتره'!$E$5)*('مصروفات اساسية'!$G$7:$BD$2005)),"") ->  | H100: =IF(G100<>"",SUMPRODUCT(('مصروفات متغيره'!$F$7:$F$2005='تقرير فتره'!$E$3)*('مصروفات متغيره'!$G$6:$BD$6='تقرير فتره'!$G100)*('مصروفات متغيره'!$B$7:$B$2005>='تقرير فتره'!$E$4)*('مصروفات متغيره'!$B$7:$B$2005<='تقرير فتره'!$E$5)*('مصروفات متغيره'!$G$7:$BD$2005)),"") -> 

Sheet تقرير شهرى
B2: =الدليل!J57 -> Designed By: MOHAMED ELRIFY
D3: 1 | E3: 2 | F3: 3 | G3: 4 | H3: 5 | I3: 6 | J3: 7 | K3: 8 | L3: 9 | M3: 10 | N3: 11 | O3: 12
C4: المصروفات الاساسية | D4: يناير | E4: فبراير | F4: مارس | G4: أبريل | H4: مايو | I4: يونيو | J4: يوليو | K4: أغسطس | L4: سبتمبر | M4: أكتوبر | N4: نوفمبر | O4: ديسمبر | P4: الاجمالى | Q4: مخطط | R4: مخطط
C5: =IF($C$4=$U$5,IF(الدليل!$C6="","",الدليل!C6),IF(الدليل!$E6="","",الدليل!E6)) -> الايجارات | D5: =IF($C$4=$U$5,SUMPRODUCT(('مصروفات اساسية'!$G$7:$BD$2005)*('مصروفات اساسية'!$A$7:$A$2005='تقرير شهرى'!D$3)*('مصروفات اساسية'!$G$6:$BD$6='تقرير شهرى'!$C5)), SUMPRODUCT(('مصروفات متغيره'!$G$7:$BD$2005)*('مصروفات متغيره'!$A$7:$A$2005='تقرير شهرى'!D$3)*('مصروفات متغيره'!$G$6:$BD$6='تقرير شهرى'!$C5))) -> 3001 | E5: =IF($C$4=$U$5,SUMPRODUCT(('مصروفات اساسية'!$G$7:$BD$2005)*('مصروفات اساسية'!$A$7:$A$2005='تقرير شهرى'!E$3)*('مصروفات اساسية'!$G$6:$BD$6='تقرير شهرى'!$C5)), SUMPRODUCT(('مصروفات متغيره'!$G$7:$BD$2005)*('مصروفات متغيره'!$A$7:$A$2005='تقرير شهرى'!E$3)*('مصروفات متغيره'!$G$6:$BD$6='تقرير شهرى'!$C5))) -> 6787 | F5: =IF($C$4=$U$5,SUMPRODUCT(('مصروفات اساسية'!$G$7:$BD$2005)*('مصروفات اساسية'!$A$7:$A$2005='تقرير شهرى'!F$3)*('مصروفات اساسية'!$G$6:$BD$6='تقرير شهرى'!$C5)), SUMPRODUCT(('مصروفات متغيره'!$G$7:$BD$2005)*('مصروفات متغيره'!$A$7:$A$2005='تقرير شهرى'!F$3)*('مصروفات متغيره'!$G$6:$BD$6='تقرير شهرى'!$C5))) -> 1234 | G5: =IF($C$4=$U$5,SUMPRODUCT(('مصروفات اساسية'!$G$7:$BD$2005)*('مصروفات اساسية'!$A$7:$A$2005='تقرير شهرى'!G$3)*('مصروفات اساسية'!$G$6:$BD$6='تقرير شهرى'!$C5)), SUMPRODUCT(('مصروفات متغيره'!$G$7:$BD$2005)*('مصروفات متغيره'!$A$7:$A$2005='تقرير شهرى'!G$3)*('مصروفات متغيره'!$G$6:$BD$6='تقرير شهرى'!$C5))) -> 1235 | H5: =IF($C$4=$U$5,SUMPRODUCT(('مصروفات اساسية'!$G$7:$BD$2005)*('مصروفات اساسية'!$A$7:$A$2005='تقرير شهرى'!H$3)*('مصروفات اساسية'!$G$6:$BD$6='تقرير شهرى'!$C5)), SUMPRODUCT(('مصروفات متغيره'!$G$7:$BD$2005)*('مصروفات متغيره'!$A$7:$A$2005='تقرير شهرى'!H$3)*('مصروفات متغيره'!$G$6:$BD$6='تقرير شهرى'!$C5))) -> 1236 | I5: =IF($C$4=$U$5,SUMPRODUCT(('مصروفات اساسية'!$G$7:$BD$2005)*('مصروفات اساسية'!$A$7:$A$2005='تقرير شهرى'!I$3)*('مصروفات اساسية'!$G$6:$BD$6='تقرير شهرى'!$C5)), SUMPRODUCT(('مصروفات متغيره'!$G$7:$BD$2005)*('مصروفات متغيره'!$A$7:$A$2005='تقرير شهرى'!I$3)*('مصروفات متغيره'!$G$6:$BD$6='تقرير شهرى'!$C5))) -> 1237 | J5: =IF($C$4=$U$5,SUMPRODUCT(('مصروفات اساسية'!$G$7:$BD$2005)*('مصروفات اساسية'!$A$7:$A$2005='تقرير شهرى'!J$3)*('مصروفات اساسية'!$G$6:$BD$6='تقرير شهرى'!$C5)), SUMPRODUCT(('مصروفات متغيره'!$G$7:$BD$2005)*('مصروفات متغيره'!$A$7:$A$2005='تقرير شهرى'!J$3)*('مصروفات متغيره'!$G$6:$BD$6='تقرير شهرى'!$C5))) -> 1238 | K5: =IF($C$4=$U$5,SUMPRODUCT(('مصروفات اساسية'!$G$7:$BD$2005)*('مصروفات اساسية'!$A$7:$A$2005='تقرير شهرى'!K$3)*('مصروفات اساسية'!$G$6:$BD$6='تقرير شهرى'!$C5)), SUMPRODUCT(('مصروفات متغيره'!$G$7:$BD$2005)*('مصروفات متغيره'!$A$7:$A$2005='تقرير شهرى'!K$3)*('مصروفات متغيره'!$G$6:$BD$6='تقرير شهرى'!$C5))) -> 1239 | L5: =IF($C$4=$U$5,SUMPRODUCT(('مصروفات اساسية'!$G$7:$BD$2005)*('مصروفات اساسية'!$A$7:$A$2005='تقرير شهرى'!L$3)*('مصروفات اساسية'!$G$6:$BD$6='تقرير شهرى'!$C5)), SUMPRODUCT(('مصروفات متغيره'!$G$7:$BD$2005)*('مصروفات متغيره'!$A$7:$A$2005='تقرير شهرى'!L$3)*('مصروفات متغيره'!$G$6:$BD$6='تقرير شهرى'!$C5))) -> 1240 | M5: =IF($C$4=$U$5,SUMPRODUCT(('مصروفات اساسية'!$G$7:$BD$2005)*('مصروفات اساسية'!$A$7:$A$2005='تقرير شهرى'!M$3)*('مصروفات اساسية'!$G$6:$BD$6='تقرير شهرى'!$C5)), SUMPRODUCT(('مصروفات متغيره'!$G$7:$BD$2005)*('مصروفات متغيره'!$A$7:$A$2005='تقرير شهرى'!M$3)*('مصروفات متغيره'!$G$6:$BD$6='تقرير شهرى'!$C5))) -> 1241 | N5: =IF($C$4=$U$5,SUMPRODUCT(('مصروفات اساسية'!$G$7:$BD$2005)*('مصروفات اساسية'!$A$7:$A$2005='تقرير شهرى'!N$3)*('مصروفات اساسية'!$G$6:$BD$6='تقرير شهرى'!$C5)), SUMPRODUCT(('مصروفات متغيره'!$G$7:$BD$2005)*('مصروفات متغيره'!$A$7:$A$2005='تقرير شهرى'!N$3)*('مصروفات متغيره'!$G$6:$BD$6='تقرير شهرى'!$C5))) -> 1242 | O5: =IF($C$4=$U$5,SUMPRODUCT(('مصروفات اساسية'!$G$7:$BD$2005)*('مصروفات اساسية'!$A$7:$A$2005='تقرير شهرى'!O$3)*('مصروفات اساسية'!$G$6:$BD$6='تقرير شهرى'!$C5)), SUMPRODUCT(('مصروفات متغيره'!$G$7:$BD$2005)*('مصروفات متغيره'!$A$7:$A$2005='تقرير شهرى'!O$3)*('مصروفات متغيره'!$G$6:$BD$6='تقرير شهرى'!$C5))) -> 1243 | P5: =SUM(D5:O5) -> 22173 | Q5: =P5 -> 22173 | U5: المصروفات الاساسية
C6: =IF($C$4=$U$5,IF(الدليل!$C7="","",الدليل!C7),IF(الدليل!$E7="","",الدليل!E7)) -> اجور الموظفين | D6: =IF($C$4=$U$5,SUMPRODUCT(('مصروفات اساسية'!$G$7:$BD$2005)*('مصروفات اساسية'!$A$7:$A$2005='تقرير شهرى'!D$3)*('مصروفات اساسية'!$G$6:$BD$6='تقرير شهرى'!$C6)), SUMPRODUCT(('مصروفات متغيره'!$G$7:$BD$2005)*('مصروفات متغيره'!$A$7:$A$2005='تقرير شهرى'!D$3)*('مصروفات متغيره'!$G$6:$BD$6='تقرير شهرى'!$C6))) -> 691 | E6: =IF($C$4=$U$5,SUMPRODUCT(('مصروفات اساسية'!$G$7:$BD$2005)*('مصروفات اساسية'!$A$7:$A$2005='تقرير شهرى'!E$3)*('مصروفات اساسية'!$G$6:$BD$6='تقرير شهرى'!$C6)), SUMPRODUCT(('مصروفات متغيره'!$G$7:$BD$2005)*('مصروفات متغيره'!$A$7:$A$2005='تقرير شهرى'!E$3)*('مصروفات متغيره'!$G$6:$BD$6='تقرير شهرى'!$C6))) -> 0 | F6: =IF($C$4=$U$5,SUMPRODUCT(('مصروفات اساسية'!$G$7:$BD$2005)*('مصروفات اساسية'!$A$7:$A$2005='تقرير شهرى'!F$3)*('مصروفات اساسية'!$G$6:$BD$6='تقرير شهرى'!$C6)), SUMPRODUCT(('مصروفات متغيره'!$G$7:$BD$2005)*('مصروفات متغيره'!$A$7:$A$2005='تقرير شهرى'!F$3)*('مصروفات متغيره'!$G$6:$BD$6='تقرير شهرى'!$C6))) -> 1200 | G6: =IF($C$4=$U$5,SUMPRODUCT(('مصروفات اساسية'!$G$7:$BD$2005)*('مصروفات اساسية'!$A$7:$A$2005='تقرير شهرى'!G$3)*('مصروفات اساسية'!$G$6:$BD$6='تقرير شهرى'!$C6)), SUMPRODUCT(('مصروفات متغيره'!$G$7:$BD$2005)*('مصروفات متغيره'!$A$7:$A$2005='تقرير شهرى'!G$3)*('مصروفات متغيره'!$G$6:$BD$6='تقرير شهرى'!$C6))) -> 1201 | H6: =IF($C$4=$U$5,SUMPRODUCT(('مصروفات اساسية'!$G$7:$BD$2005)*('مصروفات اساسية'!$A$7:$A$2005='تقرير شهرى'!H$3)*('مصروفات اساسية'!$G$6:$BD$6='تقرير شهرى'!$C6)), SUMPRODUCT(('مصروفات متغيره'!$G$7:$BD$2005)*('مصروفات متغيره'!$A$7:$A$2005='تقرير شهرى'!H$3)*('مصروفات متغيره'!$G$6:$BD$6='تقرير شهرى'!$C6))) -> 1202 | I6: =IF($C$4=$U$5,SUMPRODUCT(('مصروفات اساسية'!$G$7:$BD$2005)*('مصروفات اساسية'!$A$7:$A$2005='تقرير شهرى'!I$3)*('مصروفات اساسية'!$G$6:$BD$6='تقرير شهرى'!$C6)), SUMPRODUCT(('مصروفات متغيره'!$G$7:$BD$2005)*('مصروفات متغيره'!$A$7:$A$2005='تقرير شهرى'!I$3)*('مصروفات متغيره'!$G$6:$BD$6='تقرير شهرى'!$C6))) -> 1203 | J6: =IF($C$4=$U$5,SUMPRODUCT(('مصروفات اساسية'!$G$7:$BD$2005)*('مصروفات اساسية'!$A$7:$A$2005='تقرير شهرى'!J$3)*('مصروفات اساسية'!$G$6:$BD$6='تقرير شهرى'!$C6)), SUMPRODUCT(('مصروفات متغيره'!$G$7:$BD$2005)*('مصروفات متغيره'!$A$7:$A$2005='تقرير شهرى'!J$3)*('مصروفات متغيره'!$G$6:$BD$6='تقرير شهرى'!$C6))) -> 1204 | K6: =IF($C$4=$U$5,SUMPRODUCT(('مصروفات اساسية'!$G$7:$BD$2005)*('مصروفات اساسية'!$A$7:$A$2005='تقرير شهرى'!K$3)*('مصروفات اساسية'!$G$6:$BD$6='تقرير شهرى'!$C6)), SUMPRODUCT(('مصروفات متغيره'!$G$7:$BD$2005)*('مصروفات متغيره'!$A$7:$A$2005='تقرير شهرى'!K$3)*('مصروفات متغيره'!$G$6:$BD$6='تقرير شهرى'!$C6))) -> 1205 | L6: =IF($C$4=$U$5,SUMPRODUCT(('مصروفات اساسية'!$G$7:$BD$2005)*('مصروفات اساسية'!$A$7:$A$2005='تقرير شهرى'!L$3)*('مصروفات اساسية'!$G$6:$BD$6='تقرير شهرى'!$C6)), SUMPRODUCT(('مصروفات متغيره'!$G$7:$BD$2005)*('مصروفات متغيره'!$A$7:$A$2005='تقرير شهرى'!L$3)*('مصروفات متغيره'!$G$6:$BD$6='تقرير شهرى'!$C6))) -> 1206 | M6: =IF($C$4=$U$5,SUMPRODUCT(('مصروفات اساسية'!$G$7:$BD$2005)*('مصروفات اساسية'!$A$7:$A$2005='تقرير شهرى'!M$3)*('مصروفات اساسية'!$G$6:$BD$6='تقرير شهرى'!$C6)), SUMPRODUCT(('مصروفات متغيره'!$G$7:$BD$2005)*('مصروفات متغيره'!$A$7:$A$2005='تقرير شهرى'!M$3)*('مصروفات متغيره'!$G$6:$BD$6='تقرير شهرى'!$C6))) -> 1207 | N6: =IF($C$4=$U$5,SUMPRODUCT(('مصروفات اساسية'!$G$7:$BD$2005)*('مصروفات اساسية'!$A$7:$A$2005='تقرير شهرى'!N$3)*('مصروفات اساسية'!$G$6:$BD$6='تقرير شهرى'!$C6)), SUMPRODUCT(('مصروفات متغيره'!$G$7:$BD$2005)*('مصروفات متغيره'!$A$7:$A$2005='تقرير شهرى'!N$3)*('مصروفات متغيره'!$G$6:$BD$6='تقرير شهرى'!$C6))) -> 1208 | O6: =IF($C$4=$U$5,SUMPRODUCT(('مصروفات اساسية'!$G$7:$BD$2005)*('مصروفات اساسية'!$A$7:$A$2005='تقرير شهرى'!O$3)*('مصروفات اساسية'!$G$6:$BD$6='تقرير شهرى'!$C6)), SUMPRODUCT(('مصروفات متغيره'!$G$7:$BD$2005)*('مصروفات متغيره'!$A$7:$A$2005='تقرير شهرى'!O$3)*('مصروفات متغيره'!$G$6:$BD$6='تقرير شهرى'!$C6))) -> 1209 | P6: =SUM(D6:O6) -> 12736 | Q6: =P6 -> 12736 | U6: المصروفات المتغيرة
C7: =IF($C$4=$U$5,IF(الدليل!$C8="","",الدليل!C8),IF(الدليل!$E8="","",الدليل!E8)) -> فواتير تليفون | D7: =IF($C$4=$U$5,SUMPRODUCT(('مصروفات اساسية'!$G$7:$BD$2005)*('مصروفات اساسية'!$A$7:$A$2005='تقرير شهرى'!D$3)*('مصروفات اساسية'!$G$6:$BD$6='تقرير شهرى'!$C7)), SUMPRODUCT(('مصروفات متغيره'!$G$7:$BD$2005)*('مصروفات متغيره'!$A$7:$A$2005='تقرير شهرى'!D$3)*('مصروفات متغيره'!$G$6:$BD$6='تقرير شهرى'!$C7))) -> 893 | E7: =IF($C$4=$U$5,SUMPRODUCT(('مصروفات اساسية'!$G$7:$BD$2005)*('مصروفات اساسية'!$A$7:$A$2005='تقرير شهرى'!E$3)*('مصروفات اساسية'!$G$6:$BD$6='تقرير شهرى'!$C7)), SUMPRODUCT(('مصروفات متغيره'!$G$7:$BD$2005)*('مصروفات متغيره'!$A$7:$A$2005='تقرير شهرى'!E$3)*('مصروفات متغيره'!$G$6:$BD$6='تقرير شهرى'!$C7))) -> 0 | F7: =IF($C$4=$U$5,SUMPRODUCT(('مصروفات اساسية'!$G$7:$BD$2005)*('مصروفات اساسية'!$A$7:$A$2005='تقرير شهرى'!F$3)*('مصروفات اساسية'!$G$6:$BD$6='تقرير شهرى'!$C7)), SUMPRODUCT(('مصروفات متغيره'!$G$7:$BD$2005)*('مصروفات متغيره'!$A$7:$A$2005='تقرير شهرى'!F$3)*('مصروفات متغيره'!$G$6:$BD$6='تقرير شهرى'!$C7))) -> 1210 | G7: =IF($C$4=$U$5,SUMPRODUCT(('مصروفات اساسية'!$G$7:$BD$2005)*('مصروفات اساسية'!$A$7:$A$2005='تقرير شهرى'!G$3)*('مصروفات اساسية'!$G$6:$BD$6='تقرير شهرى'!$C7)), SUMPRODUCT(('مصروفات متغيره'!$G$7:$BD$2005)*('مصروفات متغيره'!$A$7:$A$2005='تقرير شهرى'!G$3)*('مصروفات متغيره'!$G$6:$BD$6='تقرير شهرى'!$C7))) -> 1211 | H7: =IF($C$4=$U$5,SUMPRODUCT(('مصروفات اساسية'!$G$7:$BD$2005)*('مصروفات اساسية'!$A$7:$A$2005='تقرير شهرى'!H$3)*('مصروفات اساسية'!$G$6:$BD$6='تقرير شهرى'!$C7)), SUMPRODUCT(('مصروفات متغيره'!$G$7:$BD$2005)*('مصروفات متغيره'!$A$7:$A$2005='تقرير شهرى'!H$3)*('مصروفات متغيره'!$G$6:$BD$6='تقرير شهرى'!$C7))) -> 1212 | I7: =IF($C$4=$U$5,SUMPRODUCT(('مصروفات اساسية'!$G$7:$BD$2005)*('مصروفات اساسية'!$A$7:$A$2005='تقرير شهرى'!I$3)*('مصروفات اساسية'!$G$6:$BD$6='تقرير شهرى'!$C7)), SUMPRODUCT(('مصروفات متغيره'!$G$7:$BD$2005)*('مصروفات متغيره'!$A$7:$A$2005='تقرير شهرى'!I$3)*('مصروفات متغيره'!$G$6:$BD$6='تقرير شهرى'!$C7))) -> 1213 | J7: =IF($C$4=$U$5,SUMPRODUCT(('مصروفات اساسية'!$G$7:$BD$2005)*('مصروفات اساسية'!$A$7:$A$2005='تقرير شهرى'!J$3)*('مصروفات اساسية'!$G$6:$BD$6='تقرير شهرى'!$C7)), SUMPRODUCT(('مصروفات متغيره'!$G$7:$BD$2005)*('مصروفات متغيره'!$A$7:$A$2005='تقرير شهرى'!J$3)*('مصروفات متغيره'!$G$6:$BD$6='تقرير شهرى'!$C7))) -> 1214 | K7: =IF($C$4=$U$5,SUMPRODUCT(('مصروفات اساسية'!$G$7:$BD$2005)*('مصروفات اساسية'!$A$7:$A$2005='تقرير شهرى'!K$3)*('مصروفات اساسية'!$G$6:$BD$6='تقرير شهرى'!$C7)), SUMPRODUCT(('مصروفات متغيره'!$G$7:$BD$2005)*('مصروفات متغيره'!$A$7:$A$2005='تقرير شهرى'!K$3)*('مصروفات متغيره'!$G$6:$BD$6='تقرير شهرى'!$C7))) -> 1215 | L7: =IF($C$4=$U$5,SUMPRODUCT(('مصروفات اساسية'!$G$7:$BD$2005)*('مصروفات اساسية'!$A$7:$A$2005='تقرير شهرى'!L$3)*('مصروفات اساسية'!$G$6:$BD$6='تقرير شهرى'!$C7)), SUMPRODUCT(('مصروفات متغيره'!$G$7:$BD$2005)*('مصروفات متغيره'!$A$7:$A$2005='تقرير شهرى'!L$3)*('مصروفات متغيره'!$G$6:$BD$6='تقرير شهرى'!$C7))) -> 1216 | M7: =IF($C$4=$U$5,SUMPRODUCT(('مصروفات اساسية'!$G$7:$BD$2005)*('مصروفات اساسية'!$A$7:$A$2005='تقرير شهرى'!M$3)*('مصروفات اساسية'!$G$6:$BD$6='تقرير شهرى'!$C7)), SUMPRODUCT(('مصروفات متغيره'!$G$7:$BD$2005)*('مصروفات متغيره'!$A$7:$A$2005='تقرير شهرى'!M$3)*('مصروفات متغيره'!$G$6:$BD$6='تقرير شهرى'!$C7))) -> 1217 | N7: =IF($C$4=$U$5,SUMPRODUCT(('مصروفات اساسية'!$G$7:$BD$2005)*('مصروفات اساسية'!$A$7:$A$2005='تقرير شهرى'!N$3)*('مصروفات اساسية'!$G$6:$BD$6='تقرير شهرى'!$C7)), SUMPRODUCT(('مصروفات متغيره'!$G$7:$BD$2005)*('مصروفات متغيره'!$A$7:$A$2005='تقرير شهرى'!N$3)*('مصروفات متغيره'!$G$6:$BD$6='تقرير شهرى'!$C7))) -> 1218 | O7: =IF($C$4=$U$5,SUMPRODUCT(('مصروفات اساسية'!$G$7:$BD$2005)*('مصروفات اساسية'!$A$7:$A$2005='تقرير شهرى'!O$3)*('مصروفات اساسية'!$G$6:$BD$6='تقرير شهرى'!$C7)), SUMPRODUCT(('مصروفات متغيره'!$G$7:$BD$2005)*('مصروفات متغيره'!$A$7:$A$2005='تقرير شهرى'!O$3)*('مصروفات متغيره'!$G$6:$BD$6='تقرير شهرى'!$C7))) -> 1219 | P7: 13038 | Q7: 13038
C8: =IF($C$4=$U$5,IF(الدليل!$C9="","",الدليل!C9),IF(الدليل!$E9="","",الدليل!E9)) -> فواتير مياه | D8: =IF($C$4=$U$5,SUMPRODUCT(('مصروفات اساسية'!$G$7:$BD$2005)*('مصروفات اساسية'!$A$7:$A$2005='تقرير شهرى'!D$3)*('مصروفات اساسية'!$G$6:$BD$6='تقرير شهرى'!$C8)), SUMPRODUCT(('مصروفات متغيره'!$G$7:$BD$2005)*('مصروفات متغيره'!$A$7:$A$2005='تقرير شهرى'!D$3)*('مصروفات متغيره'!$G$6:$BD$6='تقرير شهرى'!$C8))) -> 1000 | E8: =IF($C$4=$U$5,SUMPRODUCT(('مصروفات اساسية'!$G$7:$BD$2005)*('مصروفات اساسية'!$A$7:$A$2005='تقرير شهرى'!E$3)*('مصروفات اساسية'!$G$6:$BD$6='تقرير شهرى'!$C8)), SUMPRODUCT(('مصروفات متغيره'!$G$7:$BD$2005)*('مصروفات متغيره'!$A$7:$A$2005='تقرير شهرى'!E$3)*('مصروفات متغيره'!$G$6:$BD$6='تقرير شهرى'!$C8))) -> 0 | F8: =IF($C$4=$U$5,SUMPRODUCT(('مصروفات اساسية'!$G$7:$BD$2005)*('مصروفات اساسية'!$A$7:$A$2005='تقرير شهرى'!F$3)*('مصروفات اساسية'!$G$6:$BD$6='تقرير شهرى'!$C8)), SUMPRODUCT(('مصروفات متغيره'!$G$7:$BD$2005)*('مصروفات متغيره'!$A$7:$A$2005='تقرير شهرى'!F$3)*('مصروفات متغيره'!$G$6:$BD$6='تقرير شهرى'!$C8))) -> 1220 | G8: =IF($C$4=$U$5,SUMPRODUCT(('مصروفات اساسية'!$G$7:$BD$2005)*('مصروفات اساسية'!$A$7:$A$2005='تقرير شهرى'!G$3)*('مصروفات اساسية'!$G$6:$BD$6='تقرير شهرى'!$C8)), SUMPRODUCT(('مصروفات متغيره'!$G$7:$BD$2005)*('مصروفات متغيره'!$A$7:$A$2005='تقرير شهرى'!G$3)*('مصروفات متغيره'!$G$6:$BD$6='تقرير شهرى'!$C8))) -> 1221 | H8: =IF($C$4=$U$5,SUMPRODUCT(('مصروفات اساسية'!$G$7:$BD$2005)*('مصروفات اساسية'!$A$7:$A$2005='تقرير شهرى'!H$3)*('مصروفات اساسية'!$G$6:$BD$6='تقرير شهرى'!$C8)), SUMPRODUCT(('مصروفات متغيره'!$G$7:$BD$2005)*('مصروفات متغيره'!$A$7:$A$2005='تقرير شهرى'!H$3)*('مصروفات متغيره'!$G$6:$BD$6='تقرير شهرى'!$C8))) -> 1222 | I8: =IF($C$4=$U$5,SUMPRODUCT(('مصروفات اساسية'!$G$7:$BD$2005)*('مصروفات اساسية'!$A$7:$A$2005='تقرير شهرى'!I$3)*('مصروفات اساسية'!$G$6:$BD$6='تقرير شهرى'!$C8)), SUMPRODUCT(('مصروفات متغيره'!$G$7:$BD$2005)*('مصروفات متغيره'!$A$7:$A$2005='تقرير شهرى'!I$3)*('مصروفات متغيره'!$G$6:$BD$6='تقرير شهرى'!$C8))) -> 1223 | J8: =IF($C$4=$U$5,SUMPRODUCT(('مصروفات اساسية'!$G$7:$BD$2005)*('مصروفات اساسية'!$A$7:$A$2005='تقرير شهرى'!J$3)*('مصروفات اساسية'!$G$6:$BD$6='تقرير شهرى'!$C8)), SUMPRODUCT(('مصروفات متغيره'!$G$7:$BD$2005)*('مصروفات متغيره'!$A$7:$A$2005='تقرير شهرى'!J$3)*('مصروفات متغيره'!$G$6:$BD$6='تقرير شهرى'!$C8))) -> 1224 | K8: =IF($C$4=$U$5,SUMPRODUCT(('مصروفات اساسية'!$G$7:$BD$2005)*('مصروفات اساسية'!$A$7:$A$2005='تقرير شهرى'!K$3)*('مصروفات اساسية'!$G$6:$BD$6='تقرير شهرى'!$C8)), SUMPRODUCT(('مصروفات متغيره'!$G$7:$BD$2005)*('مصروفات متغيره'!$A$7:$A$2005='تقرير شهرى'!K$3)*('مصروفات متغيره'!$G$6:$BD$6='تقرير شهرى'!$C8))) -> 1225 | L8: =IF($C$4=$U$5,SUMPRODUCT(('مصروفات اساسية'!$G$7:$BD$2005)*('مصروفات اساسية'!$A$7:$A$2005='تقرير شهرى'!L$3)*('مصروفات اساسية'!$G$6:$BD$6='تقرير شهرى'!$C8)), SUMPRODUCT(('مصروفات متغيره'!$G$7:$BD$2005)*('مصروفات متغيره'!$A$7:$A$2005='تقرير شهرى'!L$3)*('مصروفات متغيره'!$G$6:$BD$6='تقرير شهرى'!$C8))) -> 1226 | M8: =IF($C$4=$U$5,SUMPRODUCT(('مصروفات اساسية'!$G$7:$BD$2005)*('مصروفات اساسية'!$A$7:$A$2005='تقرير شهرى'!M$3)*('مصروفات اساسية'!$G$6:$BD$6='تقرير شهرى'!$C8)), SUMPRODUCT(('مصروفات متغيره'!$G$7:$BD$2005)*('مصروفات متغيره'!$A$7:$A$2005='تقرير شهرى'!M$3)*('مصروفات متغيره'!$G$6:$BD$6='تقرير شهرى'!$C8))) -> 1227 | N8: =IF($C$4=$U$5,SUMPRODUCT(('مصروفات اساسية'!$G$7:$BD$2005)*('مصروفات اساسية'!$A$7:$A$2005='تقرير شهرى'!N$3)*('مصروفات اساسية'!$G$6:$BD$6='تقرير شهرى'!$C8)), SUMPRODUCT(('مصروفات متغيره'!$G$7:$BD$2005)*('مصروفات متغيره'!$A$7:$A$2005='تقرير شهرى'!N$3)*('مصروفات متغيره'!$G$6:$BD$6='تقرير شهرى'!$C8))) -> 1228 | O8: =IF($C$4=$U$5,SUMPRODUCT(('مصروفات اساسية'!$G$7:$BD$2005)*('مصروفات اساسية'!$A$7:$A$2005='تقرير شهرى'!O$3)*('مصروفات اساسية'!$G$6:$BD$6='تقرير شهرى'!$C8)), SUMPRODUCT(('مصروفات متغيره'!$G$7:$BD$2005)*('مصروفات متغيره'!$A$7:$A$2005='تقرير شهرى'!O$3)*('مصروفات متغيره'!$G$6:$BD$6='تقرير شهرى'!$C8))) -> 1229 | P8: 13245 | Q8: 13245
C9: =IF($C$4=$U$5,IF(الدليل!$C10="","",الدليل!C10),IF(الدليل!$E10="","",الدليل!E10)) -> فواتير انترنت | D9: =IF($C$4=$U$5,SUMPRODUCT(('مصروفات اساسية'!$G$7:$BD$2005)*('مصروفات اساسية'!$A$7:$A$2005='تقرير شهرى'!D$3)*('مصروفات اساسية'!$G$6:$BD$6='تقرير شهرى'!$C9)), SUMPRODUCT(('مصروفات متغيره'!$G$7:$BD$2005)*('مصروفات متغيره'!$A$7:$A$2005='تقرير شهرى'!D$3)*('مصروفات متغيره'!$G$6:$BD$6='تقرير شهرى'!$C9))) -> 1109 | E9: =IF($C$4=$U$5,SUMPRODUCT(('مصروفات اساسية'!$G$7:$BD$2005)*('مصروفات اساسية'!$A$7:$A$2005='تقرير شهرى'!E$3)*('مصروفات اساسية'!$G$6:$BD$6='تقرير شهرى'!$C9)), SUMPRODUCT(('مصروفات متغيره'!$G$7:$BD$2005)*('مصروفات متغيره'!$A$7:$A$2005='تقرير شهرى'!E$3)*('مصروفات متغيره'!$G$6:$BD$6='تقرير شهرى'!$C9))) -> 0 | F9: =IF($C$4=$U$5,SUMPRODUCT(('مصروفات اساسية'!$G$7:$BD$2005)*('مصروفات اساسية'!$A$7:$A$2005='تقرير شهرى'!F$3)*('مصروفات اساسية'!$G$6:$BD$6='تقرير شهرى'!$C9)), SUMPRODUCT(('مصروفات متغيره'!$G$7:$BD$2005)*('مصروفات متغيره'!$A$7:$A$2005='تقرير شهرى'!F$3)*('مصروفات متغيره'!$G$6:$BD$6='تقرير شهرى'!$C9))) -> 1230 | G9: =IF($C$4=$U$5,SUMPRODUCT(('مصروفات اساسية'!$G$7:$BD$2005)*('مصروفات اساسية'!$A$7:$A$2005='تقرير شهرى'!G$3)*('مصروفات اساسية'!$G$6:$BD$6='تقرير شهرى'!$C9)), SUMPRODUCT(('مصروفات متغيره'!$G$7:$BD$2005)*('مصروفات متغيره'!$A$7:$A$2005='تقرير شهرى'!G$3)*('مصروفات متغيره'!$G$6:$BD$6='تقرير شهرى'!$C9))) -> 1231 | H9: =IF($C$4=$U$5,SUMPRODUCT(('مصروفات اساسية'!$G$7:$BD$2005)*('مصروفات اساسية'!$A$7:$A$2005='تقرير شهرى'!H$3)*('مصروفات اساسية'!$G$6:$BD$6='تقرير شهرى'!$C9)), SUMPRODUCT(('مصروفات متغيره'!$G$7:$BD$2005)*('مصروفات متغيره'!$A$7:$A$2005='تقرير شهرى'!H$3)*('مصروفات متغيره'!$G$6:$BD$6='تقرير شهرى'!$C9))) -> 1232 | I9: =IF($C$4=$U$5,SUMPRODUCT(('مصروفات اساسية'!$G$7:$BD$2005)*('مصروفات اساسية'!$A$7:$A$2005='تقرير شهرى'!I$3)*('مصروفات اساسية'!$G$6:$BD$6='تقرير شهرى'!$C9)), SUMPRODUCT(('مصروفات متغيره'!$G$7:$BD$2005)*('مصروفات متغيره'!$A$7:$A$2005='تقرير شهرى'!I$3)*('مصروفات متغيره'!$G$6:$BD$6='تقرير شهرى'!$C9))) -> 1233 | J9: =IF($C$4=$U$5,SUMPRODUCT(('مصروفات اساسية'!$G$7:$BD$2005)*('مصروفات اساسية'!$A$7:$A$2005='تقرير شهرى'!J$3)*('مصروفات اساسية'!$G$6:$BD$6='تقرير شهرى'!$C9)), SUMPRODUCT(('مصروفات متغيره'!$G$7:$BD$2005)*('مصروفات متغيره'!$A$7:$A$2005='تقرير شهرى'!J$3)*('مصروفات متغيره'!$G$6:$BD$6='تقرير شهرى'!$C9))) -> 1234 | K9: =IF($C$4=$U$5,SUMPRODUCT(('مصروفات اساسية'!$G$7:$BD$2005)*('مصروفات اساسية'!$A$7:$A$2005='تقرير شهرى'!K$3)*('مصروفات اساسية'!$G$6:$BD$6='تقرير شهرى'!$C9)), SUMPRODUCT(('مصروفات متغيره'!$G$7:$BD$2005)*('مصروفات متغيره'!$A$7:$A$2005='تقرير شهرى'!K$3)*('مصروفات متغيره'!$G$6:$BD$6='تقرير شهرى'!$C9))) -> 1235 | L9: =IF($C$4=$U$5,SUMPRODUCT(('مصروفات اساسية'!$G$7:$BD$2005)*('مصروفات اساسية'!$A$7:$A$2005='تقرير شهرى'!L$3)*('مصروفات اساسية'!$G$6:$BD$6='تقرير شهرى'!$C9)), SUMPRODUCT(('مصروفات متغيره'!$G$7:$BD$2005)*('مصروفات متغيره'!$A$7:$A$2005='تقرير شهرى'!L$3)*('مصروفات متغيره'!$G$6:$BD$6='تقرير شهرى'!$C9))) -> 1236 | M9: =IF($C$4=$U$5,SUMPRODUCT(('مصروفات اساسية'!$G$7:$BD$2005)*('مصروفات اساسية'!$A$7:$A$2005='تقرير شهرى'!M$3)*('مصروفات اساسية'!$G$6:$BD$6='تقرير شهرى'!$C9)), SUMPRODUCT(('مصروفات متغيره'!$G$7:$BD$2005)*('مصروفات متغيره'!$A$7:$A$2005='تقرير شهرى'!M$3)*('مصروفات متغيره'!$G$6:$BD$6='تقرير شهرى'!$C9))) -> 1237 | N9: =IF($C$4=$U$5,SUMPRODUCT(('مصروفات اساسية'!$G$7:$BD$2005)*('مصروفات اساسية'!$A$7:$A$2005='تقرير شهرى'!N$3)*('مصروفات اساسية'!$G$6:$BD$6='تقرير شهرى'!$C9)), SUMPRODUCT(('مصروفات متغيره'!$G$7:$BD$2005)*('مصروفات متغيره'!$A$7:$A$2005='تقرير شهرى'!N$3)*('مصروفات متغيره'!$G$6:$BD$6='تقرير شهرى'!$C9))) -> 1238 | O9: =IF($C$4=$U$5,SUMPRODUCT(('مصروفات اساسية'!$G$7:$BD$2005)*('مصروفات اساسية'!$A$7:$A$2005='تقرير شهرى'!O$3)*('مصروفات اساسية'!$G$6:$BD$6='تقرير شهرى'!$C9)), SUMPRODUCT(('مصروفات متغيره'!$G$7:$BD$2005)*('مصروفات متغيره'!$A$7:$A$2005='تقرير شهرى'!O$3)*('مصروفات متغيره'!$G$6:$BD$6='تقرير شهرى'!$C9))) -> 1239 | P9: 13454 | Q9: 13454
C10: =IF($C$4=$U$5,IF(الدليل!$C11="","",الدليل!C11),IF(الدليل!$E11="","",الدليل!E11)) -> فارغ1 | D10: =IF($C$4=$U$5,SUMPRODUCT(('مصروفات اساسية'!$G$7:$BD$2005)*('مصروفات اساسية'!$A$7:$A$2005='تقرير شهرى'!D$3)*('مصروفات اساسية'!$G$6:$BD$6='تقرير شهرى'!$C10)), SUMPRODUCT(('مصروفات متغيره'!$G$7:$BD$2005)*('مصروفات متغيره'!$A$7:$A$2005='تقرير شهرى'!D$3)*('مصروفات متغيره'!$G$6:$BD$6='تقرير شهرى'!$C10))) -> 1100 | E10: =IF($C$4=$U$5,SUMPRODUCT(('مصروفات اساسية'!$G$7:$BD$2005)*('مصروفات اساسية'!$A$7:$A$2005='تقرير شهرى'!E$3)*('مصروفات اساسية'!$G$6:$BD$6='تقرير شهرى'!$C10)), SUMPRODUCT(('مصروفات متغيره'!$G$7:$BD$2005)*('مصروفات متغيره'!$A$7:$A$2005='تقرير شهرى'!E$3)*('مصروفات متغيره'!$G$6:$BD$6='تقرير شهرى'!$C10))) -> 0 | F10: =IF($C$4=$U$5,SUMPRODUCT(('مصروفات اساسية'!$G$7:$BD$2005)*('مصروفات اساسية'!$A$7:$A$2005='تقرير شهرى'!F$3)*('مصروفات اساسية'!$G$6:$BD$6='تقرير شهرى'!$C10)), SUMPRODUCT(('مصروفات متغيره'!$G$7:$BD$2005)*('مصروفات متغيره'!$A$7:$A$2005='تقرير شهرى'!F$3)*('مصروفات متغيره'!$G$6:$BD$6='تقرير شهرى'!$C10))) -> 1345 | G10: =IF($C$4=$U$5,SUMPRODUCT(('مصروفات اساسية'!$G$7:$BD$2005)*('مصروفات اساسية'!$A$7:$A$2005='تقرير شهرى'!G$3)*('مصروفات اساسية'!$G$6:$BD$6='تقرير شهرى'!$C10)), SUMPRODUCT(('مصروفات متغيره'!$G$7:$BD$2005)*('مصروفات متغيره'!$A$7:$A$2005='تقرير شهرى'!G$3)*('مصروفات متغيره'!$G$6:$BD$6='تقرير شهرى'!$C10))) -> 999 | H10: =IF($C$4=$U$5,SUMPRODUCT(('مصروفات اساسية'!$G$7:$BD$2005)*('مصروفات اساسية'!$A$7:$A$2005='تقرير شهرى'!H$3)*('مصروفات اساسية'!$G$6:$BD$6='تقرير شهرى'!$C10)), SUMPRODUCT(('مصروفات متغيره'!$G$7:$BD$2005)*('مصروفات متغيره'!$A$7:$A$2005='تقرير شهرى'!H$3)*('مصروفات متغيره'!$G$6:$BD$6='تقرير شهرى'!$C10))) -> 989 | I10: =IF($C$4=$U$5,SUMPRODUCT(('مصروفات اساسية'!$G$7:$BD$2005)*('مصروفات اساسية'!$A$7:$A$2005='تقرير شهرى'!I$3)*('مصروفات اساسية'!$G$6:$BD$6='تقرير شهرى'!$C10)), SUMPRODUCT(('مصروفات متغيره'!$G$7:$BD$2005)*('مصروفات متغيره'!$A$7:$A$2005='تقرير شهرى'!I$3)*('مصروفات متغيره'!$G$6:$BD$6='تقرير شهرى'!$C10))) -> 979 | J10: =IF($C$4=$U$5,SUMPRODUCT(('مصروفات اساسية'!$G$7:$BD$2005)*('مصروفات اساسية'!$A$7:$A$2005='تقرير شهرى'!J$3)*('مصروفات اساسية'!$G$6:$BD$6='تقرير شهرى'!$C10)), SUMPRODUCT(('مصروفات متغيره'!$G$7:$BD$2005)*('مصروفات متغيره'!$A$7:$A$2005='تقرير شهرى'!J$3)*('مصروفات متغيره'!$G$6:$BD$6='تقرير شهرى'!$C10))) -> 969 | K10: =IF($C$4=$U$5,SUMPRODUCT(('مصروفات اساسية'!$G$7:$BD$2005)*('مصروفات اساسية'!$A$7:$A$2005='تقرير شهرى'!K$3)*('مصروفات اساسية'!$G$6:$BD$6='تقرير شهرى'!$C10)), SUMPRODUCT(('مصروفات متغيره'!$G$7:$BD$2005)*('مصروفات متغيره'!$A$7:$A$2005='تقرير شهرى'!K$3)*('مصروفات متغيره'!$G$6:$BD$6='تقرير شهرى'!$C10))) -> 959 | L10: =IF($C$4=$U$5,SUMPRODUCT(('مصروفات اساسية'!$G$7:$BD$2005)*('مصروفات اساسية'!$A$7:$A$2005='تقرير شهرى'!L$3)*('مصروفات اساسية'!$G$6:$BD$6='تقرير شهرى'!$C10)), SUMPRODUCT(('مصروفات متغيره'!$G$7:$BD$2005)*('مصروفات متغيره'!$A$7:$A$2005='تقرير شهرى'!L$3)*('مصروفات متغيره'!$G$6:$BD$6='تقرير شهرى'!$C10))) -> 949 | M10: =IF($C$4=$U$5,SUMPRODUCT(('مصروفات اساسية'!$G$7:$BD$2005)*('مصروفات اساسية'!$A$7:$A$2005='تقرير شهرى'!M$3)*('مصروفات اساسية'!$G$6:$BD$6='تقرير شهرى'!$C10)), SUMPRODUCT(('مصروفات متغيره'!$G$7:$BD$2005)*('مصروفات متغيره'!$A$7:$A$2005='تقرير شهرى'!M$3)*('مصروفات متغيره'!$G$6:$BD$6='تقرير شهرى'!$C10))) -> 939 | N10: =IF($C$4=$U$5,SUMPRODUCT(('مصروفات اساسية'!$G$7:$BD$2005)*('مصروفات اساسية'!$A$7:$A$2005='تقرير شهرى'!N$3)*('مصروفات اساسية'!$G$6:$BD$6='تقرير شهرى'!$C10)), SUMPRODUCT(('مصروفات متغيره'!$G$7:$BD$2005)*('مصروفات متغيره'!$A$7:$A$2005='تقرير شهرى'!N$3)*('مصروفات متغيره'!$G$6:$BD$6='تقرير شهرى'!$C10))) -> 929 | O10: =IF($C$4=$U$5,SUMPRODUCT(('مصروفات اساسية'!$G$7:$BD$2005)*('مصروفات اساسية'!$A$7:$A$2005='تقرير شهرى'!O$3)*('مصروفات اساسية'!$G$6:$BD$6='تقرير شهرى'!$C10)), SUMPRODUCT(('مصروفات متغيره'!$G$7:$BD$2005)*('مصروفات متغيره'!$A$7:$A$2005='تقرير شهرى'!O$3)*('مصروفات متغيره'!$G$6:$BD$6='تقرير شهرى'!$C10))) -> 919 | P10: 11076 | Q10: 11076
C11: =IF($C$4=$U$5,IF(الدليل!$C12="","",الدليل!C12),IF(الدليل!$E12="","",الدليل!E12)) -> فارغ2 | D11: =IF($C$4=$U$5,SUMPRODUCT(('مصروفات اساسية'!$G$7:$BD$2005)*('مصروفات اساسية'!$A$7:$A$2005='تقرير شهرى'!D$3)*('مصروفات اساسية'!$G$6:$BD$6='تقرير شهرى'!$C11)), SUMPRODUCT(('مصروفات متغيره'!$G$7:$BD$2005)*('مصروفات متغيره'!$A$7:$A$2005='تقرير شهرى'!D$3)*('مصروفات متغيره'!$G$6:$BD$6='تقرير شهرى'!$C11))) -> 1500 | E11: =IF($C$4=$U$5,SUMPRODUCT(('مصروفات اساسية'!$G$7:$BD$2005)*('مصروفات اساسية'!$A$7:$A$2005='تقرير شهرى'!E$3)*('مصروفات اساسية'!$G$6:$BD$6='تقرير شهرى'!$C11)), SUMPRODUCT(('مصروفات متغيره'!$G$7:$BD$2005)*('مصروفات متغيره'!$A$7:$A$2005='تقرير شهرى'!E$3)*('مصروفات متغيره'!$G$6:$BD$6='تقرير شهرى'!$C11))) -> 0 | F11: =IF($C$4=$U$5,SUMPRODUCT(('مصروفات اساسية'!$G$7:$BD$2005)*('مصروفات اساسية'!$A$7:$A$2005='تقرير شهرى'!F$3)*('مصروفات اساسية'!$G$6:$BD$6='تقرير شهرى'!$C11)), SUMPRODUCT(('مصروفات متغيره'!$G$7:$BD$2005)*('مصروفات متغيره'!$A$7:$A$2005='تقرير شهرى'!F$3)*('مصروفات متغيره'!$G$6:$BD$6='تقرير شهرى'!$C11))) -> 0 | G11: =IF($C$4=$U$5,SUMPRODUCT(('مصروفات اساسية'!$G$7:$BD$2005)*('مصروفات اساسية'!$A$7:$A$2005='تقرير شهرى'!G$3)*('مصروفات اساسية'!$G$6:$BD$6='تقرير شهرى'!$C11)), SUMPRODUCT(('مصروفات متغيره'!$G$7:$BD$2005)*('مصروفات متغيره'!$A$7:$A$2005='تقرير شهرى'!G$3)*('مصروفات متغيره'!$G$6:$BD$6='تقرير شهرى'!$C11))) -> 0 | H11: =IF($C$4=$U$5,SUMPRODUCT(('مصروفات اساسية'!$G$7:$BD$2005)*('مصروفات اساسية'!$A$7:$A$2005='تقرير شهرى'!H$3)*('مصروفات اساسية'!$G$6:$BD$6='تقرير شهرى'!$C11)), SUMPRODUCT(('مصروفات متغيره'!$G$7:$BD$2005)*('مصروفات متغيره'!$A$7:$A$2005='تقرير شهرى'!H$3)*('مصروفات متغيره'!$G$6:$BD$6='تقرير شهرى'!$C11))) -> 0 | I11: =IF($C$4=$U$5,SUMPRODUCT(('مصروفات اساسية'!$G$7:$BD$2005)*('مصروفات اساسية'!$A$7:$A$2005='تقرير شهرى'!I$3)*('مصروفات اساسية'!$G$6:$BD$6='تقرير شهرى'!$C11)), SUMPRODUCT(('مصروفات متغيره'!$G$7:$BD$2005)*('مصروفات متغيره'!$A$7:$A$2005='تقرير شهرى'!I$3)*('مصروفات متغيره'!$G$6:$BD$6='تقرير شهرى'!$C11))) -> 0 | J11: =IF($C$4=$U$5,SUMPRODUCT(('مصروفات اساسية'!$G$7:$BD$2005)*('مصروفات اساسية'!$A$7:$A$2005='تقرير شهرى'!J$3)*('مصروفات اساسية'!$G$6:$BD$6='تقرير شهرى'!$C11)), SUMPRODUCT(('مصروفات متغيره'!$G$7:$BD$2005)*('مصروفات متغيره'!$A$7:$A$2005='تقرير شهرى'!J$3)*('مصروفات متغيره'!$G$6:$BD$6='تقرير شهرى'!$C11))) -> 0 | K11: =IF($C$4=$U$5,SUMPRODUCT(('مصروفات اساسية'!$G$7:$BD$2005)*('مصروفات اساسية'!$A$7:$A$2005='تقرير شهرى'!K$3)*('مصروفات اساسية'!$G$6:$BD$6='تقرير شهرى'!$C11)), SUMPRODUCT(('مصروفات متغيره'!$G$7:$BD$2005)*('مصروفات متغيره'!$A$7:$A$2005='تقرير شهرى'!K$3)*('مصروفات متغيره'!$G$6:$BD$6='تقرير شهرى'!$C11))) -> 0 | L11: =IF($C$4=$U$5,SUMPRODUCT(('مصروفات اساسية'!$G$7:$BD$2005)*('مصروفات اساسية'!$A$7:$A$2005='تقرير شهرى'!L$3)*('مصروفات اساسية'!$G$6:$BD$6='تقرير شهرى'!$C11)), SUMPRODUCT(('مصروفات متغيره'!$G$7:$BD$2005)*('مصروفات متغيره'!$A$7:$A$2005='تقرير شهرى'!L$3)*('مصروفات متغيره'!$G$6:$BD$6='تقرير شهرى'!$C11))) -> 0 | M11: =IF($C$4=$U$5,SUMPRODUCT(('مصروفات اساسية'!$G$7:$BD$2005)*('مصروفات اساسية'!$A$7:$A$2005='تقرير شهرى'!M$3)*('مصروفات اساسية'!$G$6:$BD$6='تقرير شهرى'!$C11)), SUMPRODUCT(('مصروفات متغيره'!$G$7:$BD$2005)*('مصروفات متغيره'!$A$7:$A$2005='تقرير شهرى'!M$3)*('مصروفات متغيره'!$G$6:$BD$6='تقرير شهرى'!$C11))) -> 0 | N11: =IF($C$4=$U$5,SUMPRODUCT(('مصروفات اساسية'!$G$7:$BD$2005)*('مصروفات اساسية'!$A$7:$A$2005='تقرير شهرى'!N$3)*('مصروفات اساسية'!$G$6:$BD$6='تقرير شهرى'!$C11)), SUMPRODUCT(('مصروفات متغيره'!$G$7:$BD$2005)*('مصروفات متغيره'!$A$7:$A$2005='تقرير شهرى'!N$3)*('مصروفات متغيره'!$G$6:$BD$6='تقرير شهرى'!$C11))) -> 0 | O11: =IF($C$4=$U$5,SUMPRODUCT(('مصروفات اساسية'!$G$7:$BD$2005)*('مصروفات اساسية'!$A$7:$A$2005='تقرير شهرى'!O$3)*('مصروفات اساسية'!$G$6:$BD$6='تقرير شهرى'!$C11)), SUMPRODUCT(('مصروفات متغيره'!$G$7:$BD$2005)*('مصروفات متغيره'!$A$7:$A$2005='تقرير شهرى'!O$3)*('مصروفات متغيره'!$G$6:$BD$6='تقرير شهرى'!$C11))) -> 0 | P11: 1500 | Q11: 1500
C12: =IF($C$4=$U$5,IF(الدليل!$C13="","",الدليل!C13),IF(الدليل!$E13="","",الدليل!E13)) -> فارغ3 | D12: =IF($C$4=$U$5,SUMPRODUCT(('مصروفات اساسية'!$G$7:$BD$2005)*('مصروفات اساسية'!$A$7:$A$2005='تقرير شهرى'!D$3)*('مصروفات اساسية'!$G$6:$BD$6='تقرير شهرى'!$C12)), SUMPRODUCT(('مصروفات متغيره'!$G$7:$BD$2005)*('مصروفات متغيره'!$A$7:$A$2005='تقرير شهرى'!D$3)*('مصروفات متغيره'!$G$6:$BD$6='تقرير شهرى'!$C12))) -> 456 | E12: =IF($C$4=$U$5,SUMPRODUCT(('مصروفات اساسية'!$G$7:$BD$2005)*('مصروفات اساسية'!$A$7:$A$2005='تقرير شهرى'!E$3)*('مصروفات اساسية'!$G$6:$BD$6='تقرير شهرى'!$C12)), SUMPRODUCT(('مصروفات متغيره'!$G$7:$BD$2005)*('مصروفات متغيره'!$A$7:$A$2005='تقرير شهرى'!E$3)*('مصروفات متغيره'!$G$6:$BD$6='تقرير شهرى'!$C12))) -> 0 | F12: =IF($C$4=$U$5,SUMPRODUCT(('مصروفات اساسية'!$G$7:$BD$2005)*('مصروفات اساسية'!$A$7:$A$2005='تقرير شهرى'!F$3)*('مصروفات اساسية'!$G$6:$BD$6='تقرير شهرى'!$C12)), SUMPRODUCT(('مصروفات متغيره'!$G$7:$BD$2005)*('مصروفات متغيره'!$A$7:$A$2005='تقرير شهرى'!F$3)*('مصروفات متغيره'!$G$6:$BD$6='تقرير شهرى'!$C12))) -> 0 | G12: =IF($C$4=$U$5,SUMPRODUCT(('مصروفات اساسية'!$G$7:$BD$2005)*('مصروفات اساسية'!$A$7:$A$2005='تقرير شهرى'!G$3)*('مصروفات اساسية'!$G$6:$BD$6='تقرير شهرى'!$C12)), SUMPRODUCT(('مصروفات متغيره'!$G$7:$BD$2005)*('مصروفات متغيره'!$A$7:$A$2005='تقرير شهرى'!G$3)*('مصروفات متغيره'!$G$6:$BD$6='تقرير شهرى'!$C12))) -> 0 | H12: =IF($C$4=$U$5,SUMPRODUCT(('مصروفات اساسية'!$G$7:$BD$2005)*('مصروفات اساسية'!$A$7:$A$2005='تقرير شهرى'!H$3)*('مصروفات اساسية'!$G$6:$BD$6='تقرير شهرى'!$C12)), SUMPRODUCT(('مصروفات متغيره'!$G$7:$BD$2005)*('مصروفات متغيره'!$A$7:$A$2005='تقرير شهرى'!H$3)*('مصروفات متغيره'!$G$6:$BD$6='تقرير شهرى'!$C12))) -> 0 | I12: =IF($C$4=$U$5,SUMPRODUCT(('مصروفات اساسية'!$G$7:$BD$2005)*('مصروفات اساسية'!$A$7:$A$2005='تقرير شهرى'!I$3)*('مصروفات اساسية'!$G$6:$BD$6='تقرير شهرى'!$C12)), SUMPRODUCT(('مصروفات متغيره'!$G$7:$BD$2005)*('مصروفات متغيره'!$A$7:$A$2005='تقرير شهرى'!I$3)*('مصروفات متغيره'!$G$6:$BD$6='تقرير شهرى'!$C12))) -> 0 | J12: =IF($C$4=$U$5,SUMPRODUCT(('مصروفات اساسية'!$G$7:$BD$2005)*('مصروفات اساسية'!$A$7:$A$2005='تقرير شهرى'!J$3)*('مصروفات اساسية'!$G$6:$BD$6='تقرير شهرى'!$C12)), SUMPRODUCT(('مصروفات متغيره'!$G$7:$BD$2005)*('مصروفات متغيره'!$A$7:$A$2005='تقرير شهرى'!J$3)*('مصروفات متغيره'!$G$6:$BD$6='تقرير شهرى'!$C12))) -> 0 | K12: =IF($C$4=$U$5,SUMPRODUCT(('مصروفات اساسية'!$G$7:$BD$2005)*('مصروفات اساسية'!$A$7:$A$2005='تقرير شهرى'!K$3)*('مصروفات اساسية'!$G$6:$BD$6='تقرير شهرى'!$C12)), SUMPRODUCT(('مصروفات متغيره'!$G$7:$BD$2005)*('مصروفات متغيره'!$A$7:$A$2005='تقرير شهرى'!K$3)*('مصروفات متغيره'!$G$6:$BD$6='تقرير شهرى'!$C12))) -> 0 | L12: =IF($C$4=$U$5,SUMPRODUCT(('مصروفات اساسية'!$G$7:$BD$2005)*('مصروفات اساسية'!$A$7:$A$2005='تقرير شهرى'!L$3)*('مصروفات اساسية'!$G$6:$BD$6='تقرير شهرى'!$C12)), SUMPRODUCT(('مصروفات متغيره'!$G$7:$BD$2005)*('مصروفات متغيره'!$A$7:$A$2005='تقرير شهرى'!L$3)*('مصروفات متغيره'!$G$6:$BD$6='تقرير شهرى'!$C12))) -> 0 | M12: =IF($C$4=$U$5,SUMPRODUCT(('مصروفات اساسية'!$G$7:$BD$2005)*('مصروفات اساسية'!$A$7:$A$2005='تقرير شهرى'!M$3)*('مصروفات اساسية'!$G$6:$BD$6='تقرير شهرى'!$C12)), SUMPRODUCT(('مصروفات متغيره'!$G$7:$BD$2005)*('مصروفات متغيره'!$A$7:$A$2005='تقرير شهرى'!M$3)*('مصروفات متغيره'!$G$6:$BD$6='تقرير شهرى'!$C12))) -> 0 | N12: =IF($C$4=$U$5,SUMPRODUCT(('مصروفات اساسية'!$G$7:$BD$2005)*('مصروفات اساسية'!$A$7:$A$2005='تقرير شهرى'!N$3)*('مصروفات اساسية'!$G$6:$BD$6='تقرير شهرى'!$C12)), SUMPRODUCT(('مصروفات متغيره'!$G$7:$BD$2005)*('مصروفات متغيره'!$A$7:$A$2005='تقرير شهرى'!N$3)*('مصروفات متغيره'!$G$6:$BD$6='تقرير شهرى'!$C12))) -> 0 | O12: =IF($C$4=$U$5,SUMPRODUCT(('مصروفات اساسية'!$G$7:$BD$2005)*('مصروفات اساسية'!$A$7:$A$2005='تقرير شهرى'!O$3)*('مصروفات اساسية'!$G$6:$BD$6='تقرير شهرى'!$C12)), SUMPRODUCT(('مصروفات متغيره'!$G$7:$BD$2005)*('مصروفات متغيره'!$A$7:$A$2005='تقرير شهرى'!O$3)*('مصروفات متغيره'!$G$6:$BD$6='تقرير شهرى'!$C12))) -> 0 | P12: 456 | Q12: 456
C13: =IF($C$4=$U$5,IF(الدليل!$C14="","",الدليل!C14),IF(الدليل!$E14="","",الدليل!E14)) -> فارغ4 | D13: =IF($C$4=$U$5,SUMPRODUCT(('مصروفات اساسية'!$G$7:$BD$2005)*('مصروفات اساسية'!$A$7:$A$2005='تقرير شهرى'!D$3)*('مصروفات اساسية'!$G$6:$BD$6='تقرير شهرى'!$C13)), SUMPRODUCT(('مصروفات متغيره'!$G$7:$BD$2005)*('مصروفات متغيره'!$A$7:$A$2005='تقرير شهرى'!D$3)*('مصروفات متغيره'!$G$6:$BD$6='تقرير شهرى'!$C13))) -> 900 | E13: =IF($C$4=$U$5,SUMPRODUCT(('مصروفات اساسية'!$G$7:$BD$2005)*('مصروفات اساسية'!$A$7:$A$2005='تقرير شهرى'!E$3)*('مصروفات اساسية'!$G$6:$BD$6='تقرير شهرى'!$C13)), SUMPRODUCT(('مصروفات متغيره'!$G$7:$BD$2005)*('مصروفات متغيره'!$A$7:$A$2005='تقرير شهرى'!E$3)*('مصروفات متغيره'!$G$6:$BD$6='تقرير شهرى'!$C13))) -> 0 | F13: =IF($C$4=$U$5,SUMPRODUCT(('مصروفات اساسية'!$G$7:$BD$2005)*('مصروفات اساسية'!$A$7:$A$2005='تقرير شهرى'!F$3)*('مصروفات اساسية'!$G$6:$BD$6='تقرير شهرى'!$C13)), SUMPRODUCT(('مصروفات متغيره'!$G$7:$BD$2005)*('مصروفات متغيره'!$A$7:$A$2005='تقرير شهرى'!F$3)*('مصروفات متغيره'!$G$6:$BD$6='تقرير شهرى'!$C13))) -> 0 | G13: =IF($C$4=$U$5,SUMPRODUCT(('مصروفات اساسية'!$G$7:$BD$2005)*('مصروفات اساسية'!$A$7:$A$2005='تقرير شهرى'!G$3)*('مصروفات اساسية'!$G$6:$BD$6='تقرير شهرى'!$C13)), SUMPRODUCT(('مصروفات متغيره'!$G$7:$BD$2005)*('مصروفات متغيره'!$A$7:$A$2005='تقرير شهرى'!G$3)*('مصروفات متغيره'!$G$6:$BD$6='تقرير شهرى'!$C13))) -> 0 | H13: =IF($C$4=$U$5,SUMPRODUCT(('مصروفات اساسية'!$G$7:$BD$2005)*('مصروفات اساسية'!$A$7:$A$2005='تقرير شهرى'!H$3)*('مصروفات اساسية'!$G$6:$BD$6='تقرير شهرى'!$C13)), SUMPRODUCT(('مصروفات متغيره'!$G$7:$BD$2005)*('مصروفات متغيره'!$A$7:$A$2005='تقرير شهرى'!H$3)*('مصروفات متغيره'!$G$6:$BD$6='تقرير شهرى'!$C13))) -> 0 | I13: =IF($C$4=$U$5,SUMPRODUCT(('مصروفات اساسية'!$G$7:$BD$2005)*('مصروفات اساسية'!$A$7:$A$2005='تقرير شهرى'!I$3)*('مصروفات اساسية'!$G$6:$BD$6='تقرير شهرى'!$C13)), SUMPRODUCT(('مصروفات متغيره'!$G$7:$BD$2005)*('مصروفات متغيره'!$A$7:$A$2005='تقرير شهرى'!I$3)*('مصروفات متغيره'!$G$6:$BD$6='تقرير شهرى'!$C13))) -> 0 | J13: =IF($C$4=$U$5,SUMPRODUCT(('مصروفات اساسية'!$G$7:$BD$2005)*('مصروفات اساسية'!$A$7:$A$2005='تقرير شهرى'!J$3)*('مصروفات اساسية'!$G$6:$BD$6='تقرير شهرى'!$C13)), SUMPRODUCT(('مصروفات متغيره'!$G$7:$BD$2005)*('مصروفات متغيره'!$A$7:$A$2005='تقرير شهرى'!J$3)*('مصروفات متغيره'!$G$6:$BD$6='تقرير شهرى'!$C13))) -> 0 | K13: =IF($C$4=$U$5,SUMPRODUCT(('مصروفات اساسية'!$G$7:$BD$2005)*('مصروفات اساسية'!$A$7:$A$2005='تقرير شهرى'!K$3)*('مصروفات اساسية'!$G$6:$BD$6='تقرير شهرى'!$C13)), SUMPRODUCT(('مصروفات متغيره'!$G$7:$BD$2005)*('مصروفات متغيره'!$A$7:$A$2005='تقرير شهرى'!K$3)*('مصروفات متغيره'!$G$6:$BD$6='تقرير شهرى'!$C13))) -> 0 | L13: =IF($C$4=$U$5,SUMPRODUCT(('مصروفات اساسية'!$G$7:$BD$2005)*('مصروفات اساسية'!$A$7:$A$2005='تقرير شهرى'!L$3)*('مصروفات اساسية'!$G$6:$BD$6='تقرير شهرى'!$C13)), SUMPRODUCT(('مصروفات متغيره'!$G$7:$BD$2005)*('مصروفات متغيره'!$A$7:$A$2005='تقرير شهرى'!L$3)*('مصروفات متغيره'!$G$6:$BD$6='تقرير شهرى'!$C13))) -> 0 | M13: =IF($C$4=$U$5,SUMPRODUCT(('مصروفات اساسية'!$G$7:$BD$2005)*('مصروفات اساسية'!$A$7:$A$2005='تقرير شهرى'!M$3)*('مصروفات اساسية'!$G$6:$BD$6='تقرير شهرى'!$C13)), SUMPRODUCT(('مصروفات متغيره'!$G$7:$BD$2005)*('مصروفات متغيره'!$A$7:$A$2005='تقرير شهرى'!M$3)*('مصروفات متغيره'!$G$6:$BD$6='تقرير شهرى'!$C13))) -> 0 | N13: =IF($C$4=$U$5,SUMPRODUCT(('مصروفات اساسية'!$G$7:$BD$2005)*('مصروفات اساسية'!$A$7:$A$2005='تقرير شهرى'!N$3)*('مصروفات اساسية'!$G$6:$BD$6='تقرير شهرى'!$C13)), SUMPRODUCT(('مصروفات متغيره'!$G$7:$BD$2005)*('مصروفات متغيره'!$A$7:$A$2005='تقرير شهرى'!N$3)*('مصروفات متغيره'!$G$6:$BD$6='تقرير شهرى'!$C13))) -> 0 | O13: =IF($C$4=$U$5,SUMPRODUCT(('مصروفات اساسية'!$G$7:$BD$2005)*('مصروفات اساسية'!$A$7:$A$2005='تقرير شهرى'!O$3)*('مصروفات اساسية'!$G$6:$BD$6='تقرير شهرى'!$C13)), SUMPRODUCT(('مصروفات متغيره'!$G$7:$BD$2005)*('مصروفات متغيره'!$A$7:$A$2005='تقرير شهرى'!O$3)*('مصروفات متغيره'!$G$6:$BD$6='تقرير شهرى'!$C13))) -> 0 | P13: 900 | Q13: 900
C14: =IF($C$4=$U$5,IF(الدليل!$C15="","",الدليل!C15),IF(الدليل!$E15="","",الدليل!E15)) -> فارغ5 | D14: =IF($C$4=$U$5,SUMPRODUCT(('مصروفات اساسية'!$G$7:$BD$2005)*('مصروفات اساسية'!$A$7:$A$2005='تقرير شهرى'!D$3)*('مصروفات اساسية'!$G$6:$BD$6='تقرير شهرى'!$C14)), SUMPRODUCT(('مصروفات متغيره'!$G$7:$BD$2005)*('مصروفات متغيره'!$A$7:$A$2005='تقرير شهرى'!D$3)*('مصروفات متغيره'!$G$6:$BD$6='تقرير شهرى'!$C14))) -> 510 | E14: =IF($C$4=$U$5,SUMPRODUCT(('مصروفات اساسية'!$G$7:$BD$2005)*('مصروفات اساسية'!$A$7:$A$2005='تقرير شهرى'!E$3)*('مصروفات اساسية'!$G$6:$BD$6='تقرير شهرى'!$C14)), SUMPRODUCT(('مصروفات متغيره'!$G$7:$BD$2005)*('مصروفات متغيره'!$A$7:$A$2005='تقرير شهرى'!E$3)*('مصروفات متغيره'!$G$6:$BD$6='تقرير شهرى'!$C14))) -> 0 | F14: =IF($C$4=$U$5,SUMPRODUCT(('مصروفات اساسية'!$G$7:$BD$2005)*('مصروفات اساسية'!$A$7:$A$2005='تقرير شهرى'!F$3)*('مصروفات اساسية'!$G$6:$BD$6='تقرير شهرى'!$C14)), SUMPRODUCT(('مصروفات متغيره'!$G$7:$BD$2005)*('مصروفات متغيره'!$A$7:$A$2005='تقرير شهرى'!F$3)*('مصروفات متغيره'!$G$6:$BD$6='تقرير شهرى'!$C14))) -> 0 | G14: =IF($C$4=$U$5,SUMPRODUCT(('مصروفات اساسية'!$G$7:$BD$2005)*('مصروفات اساسية'!$A$7:$A$2005='تقرير شهرى'!G$3)*('مصروفات اساسية'!$G$6:$BD$6='تقرير شهرى'!$C14)), SUMPRODUCT(('مصروفات متغيره'!$G$7:$BD$2005)*('مصروفات متغيره'!$A$7:$A$2005='تقرير شهرى'!G$3)*('مصروفات متغيره'!$G$6:$BD$6='تقرير شهرى'!$C14))) -> 0 | H14: =IF($C$4=$U$5,SUMPRODUCT(('مصروفات اساسية'!$G$7:$BD$2005)*('مصروفات اساسية'!$A$7:$A$2005='تقرير شهرى'!H$3)*('مصروفات اساسية'!$G$6:$BD$6='تقرير شهرى'!$C14)), SUMPRODUCT(('مصروفات متغيره'!$G$7:$BD$2005)*('مصروفات متغيره'!$A$7:$A$2005='تقرير شهرى'!H$3)*('مصروفات متغيره'!$G$6:$BD$6='تقرير شهرى'!$C14))) -> 0 | I14: =IF($C$4=$U$5,SUMPRODUCT(('مصروفات اساسية'!$G$7:$BD$2005)*('مصروفات اساسية'!$A$7:$A$2005='تقرير شهرى'!I$3)*('مصروفات اساسية'!$G$6:$BD$6='تقرير شهرى'!$C14)), SUMPRODUCT(('مصروفات متغيره'!$G$7:$BD$2005)*('مصروفات متغيره'!$A$7:$A$2005='تقرير شهرى'!I$3)*('مصروفات متغيره'!$G$6:$BD$6='تقرير شهرى'!$C14))) -> 0 | J14: =IF($C$4=$U$5,SUMPRODUCT(('مصروفات اساسية'!$G$7:$BD$2005)*('مصروفات اساسية'!$A$7:$A$2005='تقرير شهرى'!J$3)*('مصروفات اساسية'!$G$6:$BD$6='تقرير شهرى'!$C14)), SUMPRODUCT(('مصروفات متغيره'!$G$7:$BD$2005)*('مصروفات متغيره'!$A$7:$A$2005='تقرير شهرى'!J$3)*('مصروفات متغيره'!$G$6:$BD$6='تقرير شهرى'!$C14))) -> 0 | K14: =IF($C$4=$U$5,SUMPRODUCT(('مصروفات اساسية'!$G$7:$BD$2005)*('مصروفات اساسية'!$A$7:$A$2005='تقرير شهرى'!K$3)*('مصروفات اساسية'!$G$6:$BD$6='تقرير شهرى'!$C14)), SUMPRODUCT(('مصروفات متغيره'!$G$7:$BD$2005)*('مصروفات متغيره'!$A$7:$A$2005='تقرير شهرى'!K$3)*('مصروفات متغيره'!$G$6:$BD$6='تقرير شهرى'!$C14))) -> 0 | L14: =IF($C$4=$U$5,SUMPRODUCT(('مصروفات اساسية'!$G$7:$BD$2005)*('مصروفات اساسية'!$A$7:$A$2005='تقرير شهرى'!L$3)*('مصروفات اساسية'!$G$6:$BD$6='تقرير شهرى'!$C14)), SUMPRODUCT(('مصروفات متغيره'!$G$7:$BD$2005)*('مصروفات متغيره'!$A$7:$A$2005='تقرير شهرى'!L$3)*('مصروفات متغيره'!$G$6:$BD$6='تقرير شهرى'!$C14))) -> 0 | M14: =IF($C$4=$U$5,SUMPRODUCT(('مصروفات اساسية'!$G$7:$BD$2005)*('مصروفات اساسية'!$A$7:$A$2005='تقرير شهرى'!M$3)*('مصروفات اساسية'!$G$6:$BD$6='تقرير شهرى'!$C14)), SUMPRODUCT(('مصروفات متغيره'!$G$7:$BD$2005)*('مصروفات متغيره'!$A$7:$A$2005='تقرير شهرى'!M$3)*('مصروفات متغيره'!$G$6:$BD$6='تقرير شهرى'!$C14))) -> 0 | N14: =IF($C$4=$U$5,SUMPRODUCT(('مصروفات اساسية'!$G$7:$BD$2005)*('مصروفات اساسية'!$A$7:$A$2005='تقرير شهرى'!N$3)*('مصروفات اساسية'!$G$6:$BD$6='تقرير شهرى'!$C14)), SUMPRODUCT(('مصروفات متغيره'!$G$7:$BD$2005)*('مصروفات متغيره'!$A$7:$A$2005='تقرير شهرى'!N$3)*('مصروفات متغيره'!$G$6:$BD$6='تقرير شهرى'!$C14))) -> 0 | O14: =IF($C$4=$U$5,SUMPRODUCT(('مصروفات اساسية'!$G$7:$BD$2005)*('مصروفات اساسية'!$A$7:$A$2005='تقرير شهرى'!O$3)*('مصروفات اساسية'!$G$6:$BD$6='تقرير شهرى'!$C14)), SUMPRODUCT(('مصروفات متغيره'!$G$7:$BD$2005)*('مصروفات متغيره'!$A$7:$A$2005='تقرير شهرى'!O$3)*('مصروفات متغيره'!$G$6:$BD$6='تقرير شهرى'!$C14))) -> 0 | P14: 510 | Q14: 510
C15: =IF($C$4=$U$5,IF(الدليل!$C16="","",الدليل!C16),IF(الدليل!$E16="","",الدليل!E16)) -> فارغ6 | D15: =IF($C$4=$U$5,SUMPRODUCT(('مصروفات اساسية'!$G$7:$BD$2005)*('مصروفات اساسية'!$A$7:$A$2005='تقرير شهرى'!D$3)*('مصروفات اساسية'!$G$6:$BD$6='تقرير شهرى'!$C15)), SUMPRODUCT(('مصروفات متغيره'!$G$7:$BD$2005)*('مصروفات متغيره'!$A$7:$A$2005='تقرير شهرى'!D$3)*('مصروفات متغيره'!$G$6:$BD$6='تقرير شهرى'!$C15))) -> 888 | E15: =IF($C$4=$U$5,SUMPRODUCT(('مصروفات اساسية'!$G$7:$BD$2005)*('مصروفات اساسية'!$A$7:$A$2005='تقرير شهرى'!E$3)*('مصروفات اساسية'!$G$6:$BD$6='تقرير شهرى'!$C15)), SUMPRODUCT(('مصروفات متغيره'!$G$7:$BD$2005)*('مصروفات متغيره'!$A$7:$A$2005='تقرير شهرى'!E$3)*('مصروفات متغيره'!$G$6:$BD$6='تقرير شهرى'!$C15))) -> 0 | F15: =IF($C$4=$U$5,SUMPRODUCT(('مصروفات اساسية'!$G$7:$BD$2005)*('مصروفات اساسية'!$A$7:$A$2005='تقرير شهرى'!F$3)*('مصروفات اساسية'!$G$6:$BD$6='تقرير شهرى'!$C15)), SUMPRODUCT(('مصروفات متغيره'!$G$7:$BD$2005)*('مصروفات متغيره'!$A$7:$A$2005='تقرير شهرى'!F$3)*('مصروفات متغيره'!$G$6:$BD$6='تقرير شهرى'!$C15))) -> 0 | G15: =IF($C$4=$U$5,SUMPRODUCT(('مصروفات اساسية'!$G$7:$BD$2005)*('مصروفات اساسية'!$A$7:$A$2005='تقرير شهرى'!G$3)*('مصروفات اساسية'!$G$6:$BD$6='تقرير شهرى'!$C15)), SUMPRODUCT(('مصروفات متغيره'!$G$7:$BD$2005)*('مصروفات متغيره'!$A$7:$A$2005='تقرير شهرى'!G$3)*('مصروفات متغيره'!$G$6:$BD$6='تقرير شهرى'!$C15))) -> 0 | H15: =IF($C$4=$U$5,SUMPRODUCT(('مصروفات اساسية'!$G$7:$BD$2005)*('مصروفات اساسية'!$A$7:$A$2005='تقرير شهرى'!H$3)*('مصروفات اساسية'!$G$6:$BD$6='تقرير شهرى'!$C15)), SUMPRODUCT(('مصروفات متغيره'!$G$7:$BD$2005)*('مصروفات متغيره'!$A$7:$A$2005='تقرير شهرى'!H$3)*('مصروفات متغيره'!$G$6:$BD$6='تقرير شهرى'!$C15))) -> 0 | I15: =IF($C$4=$U$5,SUMPRODUCT(('مصروفات اساسية'!$G$7:$BD$2005)*('مصروفات اساسية'!$A$7:$A$2005='تقرير شهرى'!I$3)*('مصروفات اساسية'!$G$6:$BD$6='تقرير شهرى'!$C15)), SUMPRODUCT(('مصروفات متغيره'!$G$7:$BD$2005)*('مصروفات متغيره'!$A$7:$A$2005='تقرير شهرى'!I$3)*('مصروفات متغيره'!$G$6:$BD$6='تقرير شهرى'!$C15))) -> 0 | J15: =IF($C$4=$U$5,SUMPRODUCT(('مصروفات اساسية'!$G$7:$BD$2005)*('مصروفات اساسية'!$A$7:$A$2005='تقرير شهرى'!J$3)*('مصروفات اساسية'!$G$6:$BD$6='تقرير شهرى'!$C15)), SUMPRODUCT(('مصروفات متغيره'!$G$7:$BD$2005)*('مصروفات متغيره'!$A$7:$A$2005='تقرير شهرى'!J$3)*('مصروفات متغيره'!$G$6:$BD$6='تقرير شهرى'!$C15))) -> 0 | K15: =IF($C$4=$U$5,SUMPRODUCT(('مصروفات اساسية'!$G$7:$BD$2005)*('مصروفات اساسية'!$A$7:$A$2005='تقرير شهرى'!K$3)*('مصروفات اساسية'!$G$6:$BD$6='تقرير شهرى'!$C15)), SUMPRODUCT(('مصروفات متغيره'!$G$7:$BD$2005)*('مصروفات متغيره'!$A$7:$A$2005='تقرير شهرى'!K$3)*('مصروفات متغيره'!$G$6:$BD$6='تقرير شهرى'!$C15))) -> 0 | L15: =IF($C$4=$U$5,SUMPRODUCT(('مصروفات اساسية'!$G$7:$BD$2005)*('مصروفات اساسية'!$A$7:$A$2005='تقرير شهرى'!L$3)*('مصروفات اساسية'!$G$6:$BD$6='تقرير شهرى'!$C15)), SUMPRODUCT(('مصروفات متغيره'!$G$7:$BD$2005)*('مصروفات متغيره'!$A$7:$A$2005='تقرير شهرى'!L$3)*('مصروفات متغيره'!$G$6:$BD$6='تقرير شهرى'!$C15))) -> 0 | M15: =IF($C$4=$U$5,SUMPRODUCT(('مصروفات اساسية'!$G$7:$BD$2005)*('مصروفات اساسية'!$A$7:$A$2005='تقرير شهرى'!M$3)*('مصروفات اساسية'!$G$6:$BD$6='تقرير شهرى'!$C15)), SUMPRODUCT(('مصروفات متغيره'!$G$7:$BD$2005)*('مصروفات متغيره'!$A$7:$A$2005='تقرير شهرى'!M$3)*('مصروفات متغيره'!$G$6:$BD$6='تقرير شهرى'!$C15))) -> 0 | N15: =IF($C$4=$U$5,SUMPRODUCT(('مصروفات اساسية'!$G$7:$BD$2005)*('مصروفات اساسية'!$A$7:$A$2005='تقرير شهرى'!N$3)*('مصروفات اساسية'!$G$6:$BD$6='تقرير شهرى'!$C15)), SUMPRODUCT(('مصروفات متغيره'!$G$7:$BD$2005)*('مصروفات متغيره'!$A$7:$A$2005='تقرير شهرى'!N$3)*('مصروفات متغيره'!$G$6:$BD$6='تقرير شهرى'!$C15))) -> 0 | O15: =IF($C$4=$U$5,SUMPRODUCT(('مصروفات اساسية'!$G$7:$BD$2005)*('مصروفات اساسية'!$A$7:$A$2005='تقرير شهرى'!O$3)*('مصروفات اساسية'!$G$6:$BD$6='تقرير شهرى'!$C15)), SUMPRODUCT(('مصروفات متغيره'!$G$7:$BD$2005)*('مصروفات متغيره'!$A$7:$A$2005='تقرير شهرى'!O$3)*('مصروفات متغيره'!$G$6:$BD$6='تقرير شهرى'!$C15))) -> 0 | P15: 888 | Q15: 888
C16: =IF($C$4=$U$5,IF(الدليل!$C17="","",الدليل!C17),IF(الدليل!$E17="","",الدليل!E17)) -> فارغ7 | D16: =IF($C$4=$U$5,SUMPRODUCT(('مصروفات اساسية'!$G$7:$BD$2005)*('مصروفات اساسية'!$A$7:$A$2005='تقرير شهرى'!D$3)*('مصروفات اساسية'!$G$6:$BD$6='تقرير شهرى'!$C16)), SUMPRODUCT(('مصروفات متغيره'!$G$7:$BD$2005)*('مصروفات متغيره'!$A$7:$A$2005='تقرير شهرى'!D$3)*('مصروفات متغيره'!$G$6:$BD$6='تقرير شهرى'!$C16))) -> 2450 | E16: =IF($C$4=$U$5,SUMPRODUCT(('مصروفات اساسية'!$G$7:$BD$2005)*('مصروفات اساسية'!$A$7:$A$2005='تقرير شهرى'!E$3)*('مصروفات اساسية'!$G$6:$BD$6='تقرير شهرى'!$C16)), SUMPRODUCT(('مصروفات متغيره'!$G$7:$BD$2005)*('مصروفات متغيره'!$A$7:$A$2005='تقرير شهرى'!E$3)*('مصروفات متغيره'!$G$6:$BD$6='تقرير شهرى'!$C16))) -> 0 | F16: =IF($C$4=$U$5,SUMPRODUCT(('مصروفات اساسية'!$G$7:$BD$2005)*('مصروفات اساسية'!$A$7:$A$2005='تقرير شهرى'!F$3)*('مصروفات اساسية'!$G$6:$BD$6='تقرير شهرى'!$C16)), SUMPRODUCT(('مصروفات متغيره'!$G$7:$BD$2005)*('مصروفات متغيره'!$A$7:$A$2005='تقرير شهرى'!F$3)*('مصروفات متغيره'!$G$6:$BD$6='تقرير شهرى'!$C16))) -> 0 | G16: =IF($C$4=$U$5,SUMPRODUCT(('مصروفات اساسية'!$G$7:$BD$2005)*('مصروفات اساسية'!$A$7:$A$2005='تقرير شهرى'!G$3)*('مصروفات اساسية'!$G$6:$BD$6='تقرير شهرى'!$C16)), SUMPRODUCT(('مصروفات متغيره'!$G$7:$BD$2005)*('مصروفات متغيره'!$A$7:$A$2005='تقرير شهرى'!G$3)*('مصروفات متغيره'!$G$6:$BD$6='تقرير شهرى'!$C16))) -> 0 | H16: =IF($C$4=$U$5,SUMPRODUCT(('مصروفات اساسية'!$G$7:$BD$2005)*('مصروفات اساسية'!$A$7:$A$2005='تقرير شهرى'!H$3)*('مصروفات اساسية'!$G$6:$BD$6='تقرير شهرى'!$C16)), SUMPRODUCT(('مصروفات متغيره'!$G$7:$BD$2005)*('مصروفات متغيره'!$A$7:$A$2005='تقرير شهرى'!H$3)*('مصروفات متغيره'!$G$6:$BD$6='تقرير شهرى'!$C16))) -> 0 | I16: =IF($C$4=$U$5,SUMPRODUCT(('مصروفات اساسية'!$G$7:$BD$2005)*('مصروفات اساسية'!$A$7:$A$2005='تقرير شهرى'!I$3)*('مصروفات اساسية'!$G$6:$BD$6='تقرير شهرى'!$C16)), SUMPRODUCT(('مصروفات متغيره'!$G$7:$BD$2005)*('مصروفات متغيره'!$A$7:$A$2005='تقرير شهرى'!I$3)*('مصروفات متغيره'!$G$6:$BD$6='تقرير شهرى'!$C16))) -> 0 | J16: =IF($C$4=$U$5,SUMPRODUCT(('مصروفات اساسية'!$G$7:$BD$2005)*('مصروفات اساسية'!$A$7:$A$2005='تقرير شهرى'!J$3)*('مصروفات اساسية'!$G$6:$BD$6='تقرير شهرى'!$C16)), SUMPRODUCT(('مصروفات متغيره'!$G$7:$BD$2005)*('مصروفات متغيره'!$A$7:$A$2005='تقرير شهرى'!J$3)*('مصروفات متغيره'!$G$6:$BD$6='تقرير شهرى'!$C16))) -> 0 | K16: =IF($C$4=$U$5,SUMPRODUCT(('مصروفات اساسية'!$G$7:$BD$2005)*('مصروفات اساسية'!$A$7:$A$2005='تقرير شهرى'!K$3)*('مصروفات اساسية'!$G$6:$BD$6='تقرير شهرى'!$C16)), SUMPRODUCT(('مصروفات متغيره'!$G$7:$BD$2005)*('مصروفات متغيره'!$A$7:$A$2005='تقرير شهرى'!K$3)*('مصروفات متغيره'!$G$6:$BD$6='تقرير شهرى'!$C16))) -> 0 | L16: =IF($C$4=$U$5,SUMPRODUCT(('مصروفات اساسية'!$G$7:$BD$2005)*('مصروفات اساسية'!$A$7:$A$2005='تقرير شهرى'!L$3)*('مصروفات اساسية'!$G$6:$BD$6='تقرير شهرى'!$C16)), SUMPRODUCT(('مصروفات متغيره'!$G$7:$BD$2005)*('مصروفات متغيره'!$A$7:$A$2005='تقرير شهرى'!L$3)*('مصروفات متغيره'!$G$6:$BD$6='تقرير شهرى'!$C16))) -> 0 | M16: =IF($C$4=$U$5,SUMPRODUCT(('مصروفات اساسية'!$G$7:$BD$2005)*('مصروفات اساسية'!$A$7:$A$2005='تقرير شهرى'!M$3)*('مصروفات اساسية'!$G$6:$BD$6='تقرير شهرى'!$C16)), SUMPRODUCT(('مصروفات متغيره'!$G$7:$BD$2005)*('مصروفات متغيره'!$A$7:$A$2005='تقرير شهرى'!M$3)*('مصروفات متغيره'!$G$6:$BD$6='تقرير شهرى'!$C16))) -> 0 | N16: =IF($C$4=$U$5,SUMPRODUCT(('مصروفات اساسية'!$G$7:$BD$2005)*('مصروفات اساسية'!$A$7:$A$2005='تقرير شهرى'!N$3)*('مصروفات اساسية'!$G$6:$BD$6='تقرير شهرى'!$C16)), SUMPRODUCT(('مصروفات متغيره'!$G$7:$BD$2005)*('مصروفات متغيره'!$A$7:$A$2005='تقرير شهرى'!N$3)*('مصروفات متغيره'!$G$6:$BD$6='تقرير شهرى'!$C16))) -> 0 | O16: =IF($C$4=$U$5,SUMPRODUCT(('مصروفات اساسية'!$G$7:$BD$2005)*('مصروفات اساسية'!$A$7:$A$2005='تقرير شهرى'!O$3)*('مصروفات اساسية'!$G$6:$BD$6='تقرير شهرى'!$C16)), SUMPRODUCT(('مصروفات متغيره'!$G$7:$BD$2005)*('مصروفات متغيره'!$A$7:$A$2005='تقرير شهرى'!O$3)*('مصروفات متغيره'!$G$6:$BD$6='تقرير شهرى'!$C16))) -> 0 | P16: 2450 | Q16: 2450
C17: =IF($C$4=$U$5,IF(الدليل!$C18="","",الدليل!C18),IF(الدليل!$E18="","",الدليل!E18)) -> فارغ8 | D17: =IF($C$4=$U$5,SUMPRODUCT(('مصروفات اساسية'!$G$7:$BD$2005)*('مصروفات اساسية'!$A$7:$A$2005='تقرير شهرى'!D$3)*('مصروفات اساسية'!$G$6:$BD$6='تقرير شهرى'!$C17)), SUMPRODUCT(('مصروفات متغيره'!$G$7:$BD$2005)*('مصروفات متغيره'!$A$7:$A$2005='تقرير شهرى'!D$3)*('مصروفات متغيره'!$G$6:$BD$6='تقرير شهرى'!$C17))) -> 2900 | E17: =IF($C$4=$U$5,SUMPRODUCT(('مصروفات اساسية'!$G$7:$BD$2005)*('مصروفات اساسية'!$A$7:$A$2005='تقرير شهرى'!E$3)*('مصروفات اساسية'!$G$6:$BD$6='تقرير شهرى'!$C17)), SUMPRODUCT(('مصروفات متغيره'!$G$7:$BD$2005)*('مصروفات متغيره'!$A$7:$A$2005='تقرير شهرى'!E$3)*('مصروفات متغيره'!$G$6:$BD$6='تقرير شهرى'!$C17))) -> 0 | F17: =IF($C$4=$U$5,SUMPRODUCT(('مصروفات اساسية'!$G$7:$BD$2005)*('مصروفات اساسية'!$A$7:$A$2005='تقرير شهرى'!F$3)*('مصروفات اساسية'!$G$6:$BD$6='تقرير شهرى'!$C17)), SUMPRODUCT(('مصروفات متغيره'!$G$7:$BD$2005)*('مصروفات متغيره'!$A$7:$A$2005='تقرير شهرى'!F$3)*('مصروفات متغيره'!$G$6:$BD$6='تقرير شهرى'!$C17))) -> 0 | G17: =IF($C$4=$U$5,SUMPRODUCT(('مصروفات اساسية'!$G$7:$BD$2005)*('مصروفات اساسية'!$A$7:$A$2005='تقرير شهرى'!G$3)*('مصروفات اساسية'!$G$6:$BD$6='تقرير شهرى'!$C17)), SUMPRODUCT(('مصروفات متغيره'!$G$7:$BD$2005)*('مصروفات متغيره'!$A$7:$A$2005='تقرير شهرى'!G$3)*('مصروفات متغيره'!$G$6:$BD$6='تقرير شهرى'!$C17))) -> 0 | H17: =IF($C$4=$U$5,SUMPRODUCT(('مصروفات اساسية'!$G$7:$BD$2005)*('مصروفات اساسية'!$A$7:$A$2005='تقرير شهرى'!H$3)*('مصروفات اساسية'!$G$6:$BD$6='تقرير شهرى'!$C17)), SUMPRODUCT(('مصروفات متغيره'!$G$7:$BD$2005)*('مصروفات متغيره'!$A$7:$A$2005='تقرير شهرى'!H$3)*('مصروفات متغيره'!$G$6:$BD$6='تقرير شهرى'!$C17))) -> 0 | I17: =IF($C$4=$U$5,SUMPRODUCT(('مصروفات اساسية'!$G$7:$BD$2005)*('مصروفات اساسية'!$A$7:$A$2005='تقرير شهرى'!I$3)*('مصروفات اساسية'!$G$6:$BD$6='تقرير شهرى'!$C17)), SUMPRODUCT(('مصروفات متغيره'!$G$7:$BD$2005)*('مصروفات متغيره'!$A$7:$A$2005='تقرير شهرى'!I$3)*('مصروفات متغيره'!$G$6:$BD$6='تقرير شهرى'!$C17))) -> 0 | J17: =IF($C$4=$U$5,SUMPRODUCT(('مصروفات اساسية'!$G$7:$BD$2005)*('مصروفات اساسية'!$A$7:$A$2005='تقرير شهرى'!J$3)*('مصروفات اساسية'!$G$6:$BD$6='تقرير شهرى'!$C17)), SUMPRODUCT(('مصروفات متغيره'!$G$7:$BD$2005)*('مصروفات متغيره'!$A$7:$A$2005='تقرير شهرى'!J$3)*('مصروفات متغيره'!$G$6:$BD$6='تقرير شهرى'!$C17))) -> 0 | K17: =IF($C$4=$U$5,SUMPRODUCT(('مصروفات اساسية'!$G$7:$BD$2005)*('مصروفات اساسية'!$A$7:$A$2005='تقرير شهرى'!K$3)*('مصروفات اساسية'!$G$6:$BD$6='تقرير شهرى'!$C17)), SUMPRODUCT(('مصروفات متغيره'!$G$7:$BD$2005)*('مصروفات متغيره'!$A$7:$A$2005='تقرير شهرى'!K$3)*('مصروفات متغيره'!$G$6:$BD$6='تقرير شهرى'!$C17))) -> 0 | L17: =IF($C$4=$U$5,SUMPRODUCT(('مصروفات اساسية'!$G$7:$BD$2005)*('مصروفات اساسية'!$A$7:$A$2005='تقرير شهرى'!L$3)*('مصروفات اساسية'!$G$6:$BD$6='تقرير شهرى'!$C17)), SUMPRODUCT(('مصروفات متغيره'!$G$7:$BD$2005)*('مصروفات متغيره'!$A$7:$A$2005='تقرير شهرى'!L$3)*('مصروفات متغيره'!$G$6:$BD$6='تقرير شهرى'!$C17))) -> 0 | M17: =IF($C$4=$U$5,SUMPRODUCT(('مصروفات اساسية'!$G$7:$BD$2005)*('مصروفات اساسية'!$A$7:$A$2005='تقرير شهرى'!M$3)*('مصروفات اساسية'!$G$6:$BD$6='تقرير شهرى'!$C17)), SUMPRODUCT(('مصروفات متغيره'!$G$7:$BD$2005)*('مصروفات متغيره'!$A$7:$A$2005='تقرير شهرى'!M$3)*('مصروفات متغيره'!$G$6:$BD$6='تقرير شهرى'!$C17))) -> 0 | N17: =IF($C$4=$U$5,SUMPRODUCT(('مصروفات اساسية'!$G$7:$BD$2005)*('مصروفات اساسية'!$A$7:$A$2005='تقرير شهرى'!N$3)*('مصروفات اساسية'!$G$6:$BD$6='تقرير شهرى'!$C17)), SUMPRODUCT(('مصروفات متغيره'!$G$7:$BD$2005)*('مصروفات متغيره'!$A$7:$A$2005='تقرير شهرى'!N$3)*('مصروفات متغيره'!$G$6:$BD$6='تقرير شهرى'!$C17))) -> 0 | O17: =IF($C$4=$U$5,SUMPRODUCT(('مصروفات اساسية'!$G$7:$BD$2005)*('مصروفات اساسية'!$A$7:$A$2005='تقرير شهرى'!O$3)*('مصروفات اساسية'!$G$6:$BD$6='تقرير شهرى'!$C17)), SUMPRODUCT(('مصروفات متغيره'!$G$7:$BD$2005)*('مصروفات متغيره'!$A$7:$A$2005='تقرير شهرى'!O$3)*('مصروفات متغيره'!$G$6:$BD$6='تقرير شهرى'!$C17))) -> 0 | P17: 2900 | Q17: 2900
C18: =IF($C$4=$U$5,IF(الدليل!$C19="","",الدليل!C19),IF(الدليل!$E19="","",الدليل!E19)) -> فارغ9 | D18: =IF($C$4=$U$5,SUMPRODUCT(('مصروفات اساسية'!$G$7:$BD$2005)*('مصروفات اساسية'!$A$7:$A$2005='تقرير شهرى'!D$3)*('مصروفات اساسية'!$G$6:$BD$6='تقرير شهرى'!$C18)), SUMPRODUCT(('مصروفات متغيره'!$G$7:$BD$2005)*('مصروفات متغيره'!$A$7:$A$2005='تقرير شهرى'!D$3)*('مصروفات متغيره'!$G$6:$BD$6='تقرير شهرى'!$C18))) -> 1900 | E18: =IF($C$4=$U$5,SUMPRODUCT(('مصروفات اساسية'!$G$7:$BD$2005)*('مصروفات اساسية'!$A$7:$A$2005='تقرير شهرى'!E$3)*('مصروفات اساسية'!$G$6:$BD$6='تقرير شهرى'!$C18)), SUMPRODUCT(('مصروفات متغيره'!$G$7:$BD$2005)*('مصروفات متغيره'!$A$7:$A$2005='تقرير شهرى'!E$3)*('مصروفات متغيره'!$G$6:$BD$6='تقرير شهرى'!$C18))) -> 0 | F18: =IF($C$4=$U$5,SUMPRODUCT(('مصروفات اساسية'!$G$7:$BD$2005)*('مصروفات اساسية'!$A$7:$A$2005='تقرير شهرى'!F$3)*('مصروفات اساسية'!$G$6:$BD$6='تقرير شهرى'!$C18)), SUMPRODUCT(('مصروفات متغيره'!$G$7:$BD$2005)*('مصروفات متغيره'!$A$7:$A$2005='تقرير شهرى'!F$3)*('مصروفات متغيره'!$G$6:$BD$6='تقرير شهرى'!$C18))) -> 0 | G18: =IF($C$4=$U$5,SUMPRODUCT(('مصروفات اساسية'!$G$7:$BD$2005)*('مصروفات اساسية'!$A$7:$A$2005='تقرير شهرى'!G$3)*('مصروفات اساسية'!$G$6:$BD$6='تقرير شهرى'!$C18)), SUMPRODUCT(('مصروفات متغيره'!$G$7:$BD$2005)*('مصروفات متغيره'!$A$7:$A$2005='تقرير شهرى'!G$3)*('مصروفات متغيره'!$G$6:$BD$6='تقرير شهرى'!$C18))) -> 0 | H18: =IF($C$4=$U$5,SUMPRODUCT(('مصروفات اساسية'!$G$7:$BD$2005)*('مصروفات اساسية'!$A$7:$A$2005='تقرير شهرى'!H$3)*('مصروفات اساسية'!$G$6:$BD$6='تقرير شهرى'!$C18)), SUMPRODUCT(('مصروفات متغيره'!$G$7:$BD$2005)*('مصروفات متغيره'!$A$7:$A$2005='تقرير شهرى'!H$3)*('مصروفات متغيره'!$G$6:$BD$6='تقرير شهرى'!$C18))) -> 0 | I18: =IF($C$4=$U$5,SUMPRODUCT(('مصروفات اساسية'!$G$7:$BD$2005)*('مصروفات اساسية'!$A$7:$A$2005='تقرير شهرى'!I$3)*('مصروفات اساسية'!$G$6:$BD$6='تقرير شهرى'!$C18)), SUMPRODUCT(('مصروفات متغيره'!$G$7:$BD$2005)*('مصروفات متغيره'!$A$7:$A$2005='تقرير شهرى'!I$3)*('مصروفات متغيره'!$G$6:$BD$6='تقرير شهرى'!$C18))) -> 0 | J18: =IF($C$4=$U$5,SUMPRODUCT(('مصروفات اساسية'!$G$7:$BD$2005)*('مصروفات اساسية'!$A$7:$A$2005='تقرير شهرى'!J$3)*('مصروفات اساسية'!$G$6:$BD$6='تقرير شهرى'!$C18)), SUMPRODUCT(('مصروفات متغيره'!$G$7:$BD$2005)*('مصروفات متغيره'!$A$7:$A$2005='تقرير شهرى'!J$3)*('مصروفات متغيره'!$G$6:$BD$6='تقرير شهرى'!$C18))) -> 0 | K18: =IF($C$4=$U$5,SUMPRODUCT(('مصروفات اساسية'!$G$7:$BD$2005)*('مصروفات اساسية'!$A$7:$A$2005='تقرير شهرى'!K$3)*('مصروفات اساسية'!$G$6:$BD$6='تقرير شهرى'!$C18)), SUMPRODUCT(('مصروفات متغيره'!$G$7:$BD$2005)*('مصروفات متغيره'!$A$7:$A$2005='تقرير شهرى'!K$3)*('مصروفات متغيره'!$G$6:$BD$6='تقرير شهرى'!$C18))) -> 0 | L18: =IF($C$4=$U$5,SUMPRODUCT(('مصروفات اساسية'!$G$7:$BD$2005)*('مصروفات اساسية'!$A$7:$A$2005='تقرير شهرى'!L$3)*('مصروفات اساسية'!$G$6:$BD$6='تقرير شهرى'!$C18)), SUMPRODUCT(('مصروفات متغيره'!$G$7:$BD$2005)*('مصروفات متغيره'!$A$7:$A$2005='تقرير شهرى'!L$3)*('مصروفات متغيره'!$G$6:$BD$6='تقرير شهرى'!$C18))) -> 0 | M18: =IF($C$4=$U$5,SUMPRODUCT(('مصروفات اساسية'!$G$7:$BD$2005)*('مصروفات اساسية'!$A$7:$A$2005='تقرير شهرى'!M$3)*('مصروفات اساسية'!$G$6:$BD$6='تقرير شهرى'!$C18)), SUMPRODUCT(('مصروفات متغيره'!$G$7:$BD$2005)*('مصروفات متغيره'!$A$7:$A$2005='تقرير شهرى'!M$3)*('مصروفات متغيره'!$G$6:$BD$6='تقرير شهرى'!$C18))) -> 0 | N18: =IF($C$4=$U$5,SUMPRODUCT(('مصروفات اساسية'!$G$7:$BD$2005)*('مصروفات اساسية'!$A$7:$A$2005='تقرير شهرى'!N$3)*('مصروفات اساسية'!$G$6:$BD$6='تقرير شهرى'!$C18)), SUMPRODUCT(('مصروفات متغيره'!$G$7:$BD$2005)*('مصروفات متغيره'!$A$7:$A$2005='تقرير شهرى'!N$3)*('مصروفات متغيره'!$G$6:$BD$6='تقرير شهرى'!$C18))) -> 0 | O18: =IF($C$4=$U$5,SUMPRODUCT(('مصروفات اساسية'!$G$7:$BD$2005)*('مصروفات اساسية'!$A$7:$A$2005='تقرير شهرى'!O$3)*('مصروفات اساسية'!$G$6:$BD$6='تقرير شهرى'!$C18)), SUMPRODUCT(('مصروفات متغيره'!$G$7:$BD$2005)*('مصروفات متغيره'!$A$7:$A$2005='تقرير شهرى'!O$3)*('مصروفات متغيره'!$G$6:$BD$6='تقرير شهرى'!$C18))) -> 0 | P18: 1900 | Q18: 1900
C19: =IF($C$4=$U$5,IF(الدليل!$C20="","",الدليل!C20),IF(الدليل!$E20="","",الدليل!E20)) -> فارغ10 | D19: =IF($C$4=$U$5,SUMPRODUCT(('مصروفات اساسية'!$G$7:$BD$2005)*('مصروفات اساسية'!$A$7:$A$2005='تقرير شهرى'!D$3)*('مصروفات اساسية'!$G$6:$BD$6='تقرير شهرى'!$C19)), SUMPRODUCT(('مصروفات متغيره'!$G$7:$BD$2005)*('مصروفات متغيره'!$A$7:$A$2005='تقرير شهرى'!D$3)*('مصروفات متغيره'!$G$6:$BD$6='تقرير شهرى'!$C19))) -> 789 | E19: =IF($C$4=$U$5,SUMPRODUCT(('مصروفات اساسية'!$G$7:$BD$2005)*('مصروفات اساسية'!$A$7:$A$2005='تقرير شهرى'!E$3)*('مصروفات اساسية'!$G$6:$BD$6='تقرير شهرى'!$C19)), SUMPRODUCT(('مصروفات متغيره'!$G$7:$BD$2005)*('مصروفات متغيره'!$A$7:$A$2005='تقرير شهرى'!E$3)*('مصروفات متغيره'!$G$6:$BD$6='تقرير شهرى'!$C19))) -> 0 | F19: =IF($C$4=$U$5,SUMPRODUCT(('مصروفات اساسية'!$G$7:$BD$2005)*('مصروفات اساسية'!$A$7:$A$2005='تقرير شهرى'!F$3)*('مصروفات اساسية'!$G$6:$BD$6='تقرير شهرى'!$C19)), SUMPRODUCT(('مصروفات متغيره'!$G$7:$BD$2005)*('مصروفات متغيره'!$A$7:$A$2005='تقرير شهرى'!F$3)*('مصروفات متغيره'!$G$6:$BD$6='تقرير شهرى'!$C19))) -> 0 | G19: =IF($C$4=$U$5,SUMPRODUCT(('مصروفات اساسية'!$G$7:$BD$2005)*('مصروفات اساسية'!$A$7:$A$2005='تقرير شهرى'!G$3)*('مصروفات اساسية'!$G$6:$BD$6='تقرير شهرى'!$C19)), SUMPRODUCT(('مصروفات متغيره'!$G$7:$BD$2005)*('مصروفات متغيره'!$A$7:$A$2005='تقرير شهرى'!G$3)*('مصروفات متغيره'!$G$6:$BD$6='تقرير شهرى'!$C19))) -> 0 | H19: =IF($C$4=$U$5,SUMPRODUCT(('مصروفات اساسية'!$G$7:$BD$2005)*('مصروفات اساسية'!$A$7:$A$2005='تقرير شهرى'!H$3)*('مصروفات اساسية'!$G$6:$BD$6='تقرير شهرى'!$C19)), SUMPRODUCT(('مصروفات متغيره'!$G$7:$BD$2005)*('مصروفات متغيره'!$A$7:$A$2005='تقرير شهرى'!H$3)*('مصروفات متغيره'!$G$6:$BD$6='تقرير شهرى'!$C19))) -> 0 | I19: =IF($C$4=$U$5,SUMPRODUCT(('مصروفات اساسية'!$G$7:$BD$2005)*('مصروفات اساسية'!$A$7:$A$2005='تقرير شهرى'!I$3)*('مصروفات اساسية'!$G$6:$BD$6='تقرير شهرى'!$C19)), SUMPRODUCT(('مصروفات متغيره'!$G$7:$BD$2005)*('مصروفات متغيره'!$A$7:$A$2005='تقرير شهرى'!I$3)*('مصروفات متغيره'!$G$6:$BD$6='تقرير شهرى'!$C19))) -> 0 | J19: =IF($C$4=$U$5,SUMPRODUCT(('مصروفات اساسية'!$G$7:$BD$2005)*('مصروفات اساسية'!$A$7:$A$2005='تقرير شهرى'!J$3)*('مصروفات اساسية'!$G$6:$BD$6='تقرير شهرى'!$C19)), SUMPRODUCT(('مصروفات متغيره'!$G$7:$BD$2005)*('مصروفات متغيره'!$A$7:$A$2005='تقرير شهرى'!J$3)*('مصروفات متغيره'!$G$6:$BD$6='تقرير شهرى'!$C19))) -> 0 | K19: =IF($C$4=$U$5,SUMPRODUCT(('مصروفات اساسية'!$G$7:$BD$2005)*('مصروفات اساسية'!$A$7:$A$2005='تقرير شهرى'!K$3)*('مصروفات اساسية'!$G$6:$BD$6='تقرير شهرى'!$C19)), SUMPRODUCT(('مصروفات متغيره'!$G$7:$BD$2005)*('مصروفات متغيره'!$A$7:$A$2005='تقرير شهرى'!K$3)*('مصروفات متغيره'!$G$6:$BD$6='تقرير شهرى'!$C19))) -> 0 | L19: =IF($C$4=$U$5,SUMPRODUCT(('مصروفات اساسية'!$G$7:$BD$2005)*('مصروفات اساسية'!$A$7:$A$2005='تقرير شهرى'!L$3)*('مصروفات اساسية'!$G$6:$BD$6='تقرير شهرى'!$C19)), SUMPRODUCT(('مصروفات متغيره'!$G$7:$BD$2005)*('مصروفات متغيره'!$A$7:$A$2005='تقرير شهرى'!L$3)*('مصروفات متغيره'!$G$6:$BD$6='تقرير شهرى'!$C19))) -> 0 | M19: =IF($C$4=$U$5,SUMPRODUCT(('مصروفات اساسية'!$G$7:$BD$2005)*('مصروفات اساسية'!$A$7:$A$2005='تقرير شهرى'!M$3)*('مصروفات اساسية'!$G$6:$BD$6='تقرير شهرى'!$C19)), SUMPRODUCT(('مصروفات متغيره'!$G$7:$BD$2005)*('مصروفات متغيره'!$A$7:$A$2005='تقرير شهرى'!M$3)*('مصروفات متغيره'!$G$6:$BD$6='تقرير شهرى'!$C19))) -> 0 | N19: =IF($C$4=$U$5,SUMPRODUCT(('مصروفات اساسية'!$G$7:$BD$2005)*('مصروفات اساسية'!$A$7:$A$2005='تقرير شهرى'!N$3)*('مصروفات اساسية'!$G$6:$BD$6='تقرير شهرى'!$C19)), SUMPRODUCT(('مصروفات متغيره'!$G$7:$BD$2005)*('مصروفات متغيره'!$A$7:$A$2005='تقرير شهرى'!N$3)*('مصروفات متغيره'!$G$6:$BD$6='تقرير شهرى'!$C19))) -> 0 | O19: =IF($C$4=$U$5,SUMPRODUCT(('مصروفات اساسية'!$G$7:$BD$2005)*('مصروفات اساسية'!$A$7:$A$2005='تقرير شهرى'!O$3)*('مصروفات اساسية'!$G$6:$BD$6='تقرير شهرى'!$C19)), SUMPRODUCT(('مصروفات متغيره'!$G$7:$BD$2005)*('مصروفات متغيره'!$A$7:$A$2005='تقرير شهرى'!O$3)*('مصروفات متغيره'!$G$6:$BD$6='تقرير شهرى'!$C19))) -> 0 | P19: 789 | Q19: 789
C20: =IF($C$4=$U$5,IF(الدليل!$C21="","",الدليل!C21),IF(الدليل!$E21="","",الدليل!E21)) -> فارغ11 | D20: =IF($C$4=$U$5,SUMPRODUCT(('مصروفات اساسية'!$G$7:$BD$2005)*('مصروفات اساسية'!$A$7:$A$2005='تقرير شهرى'!D$3)*('مصروفات اساسية'!$G$6:$BD$6='تقرير شهرى'!$C20)), SUMPRODUCT(('مصروفات متغيره'!$G$7:$BD$2005)*('مصروفات متغيره'!$A$7:$A$2005='تقرير شهرى'!D$3)*('مصروفات متغيره'!$G$6:$BD$6='تقرير شهرى'!$C20))) -> 643 | E20: =IF($C$4=$U$5,SUMPRODUCT(('مصروفات اساسية'!$G$7:$BD$2005)*('مصروفات اساسية'!$A$7:$A$2005='تقرير شهرى'!E$3)*('مصروفات اساسية'!$G$6:$BD$6='تقرير شهرى'!$C20)), SUMPRODUCT(('مصروفات متغيره'!$G$7:$BD$2005)*('مصروفات متغيره'!$A$7:$A$2005='تقرير شهرى'!E$3)*('مصروفات متغيره'!$G$6:$BD$6='تقرير شهرى'!$C20))) -> 0 | F20: =IF($C$4=$U$5,SUMPRODUCT(('مصروفات اساسية'!$G$7:$BD$2005)*('مصروفات اساسية'!$A$7:$A$2005='تقرير شهرى'!F$3)*('مصروفات اساسية'!$G$6:$BD$6='تقرير شهرى'!$C20)), SUMPRODUCT(('مصروفات متغيره'!$G$7:$BD$2005)*('مصروفات متغيره'!$A$7:$A$2005='تقرير شهرى'!F$3)*('مصروفات متغيره'!$G$6:$BD$6='تقرير شهرى'!$C20))) -> 0 | G20: =IF($C$4=$U$5,SUMPRODUCT(('مصروفات اساسية'!$G$7:$BD$2005)*('مصروفات اساسية'!$A$7:$A$2005='تقرير شهرى'!G$3)*('مصروفات اساسية'!$G$6:$BD$6='تقرير شهرى'!$C20)), SUMPRODUCT(('مصروفات متغيره'!$G$7:$BD$2005)*('مصروفات متغيره'!$A$7:$A$2005='تقرير شهرى'!G$3)*('مصروفات متغيره'!$G$6:$BD$6='تقرير شهرى'!$C20))) -> 0 | H20: =IF($C$4=$U$5,SUMPRODUCT(('مصروفات اساسية'!$G$7:$BD$2005)*('مصروفات اساسية'!$A$7:$A$2005='تقرير شهرى'!H$3)*('مصروفات اساسية'!$G$6:$BD$6='تقرير شهرى'!$C20)), SUMPRODUCT(('مصروفات متغيره'!$G$7:$BD$2005)*('مصروفات متغيره'!$A$7:$A$2005='تقرير شهرى'!H$3)*('مصروفات متغيره'!$G$6:$BD$6='تقرير شهرى'!$C20))) -> 0 | I20: =IF($C$4=$U$5,SUMPRODUCT(('مصروفات اساسية'!$G$7:$BD$2005)*('مصروفات اساسية'!$A$7:$A$2005='تقرير شهرى'!I$3)*('مصروفات اساسية'!$G$6:$BD$6='تقرير شهرى'!$C20)), SUMPRODUCT(('مصروفات متغيره'!$G$7:$BD$2005)*('مصروفات متغيره'!$A$7:$A$2005='تقرير شهرى'!I$3)*('مصروفات متغيره'!$G$6:$BD$6='تقرير شهرى'!$C20))) -> 0 | J20: =IF($C$4=$U$5,SUMPRODUCT(('مصروفات اساسية'!$G$7:$BD$2005)*('مصروفات اساسية'!$A$7:$A$2005='تقرير شهرى'!J$3)*('مصروفات اساسية'!$G$6:$BD$6='تقرير شهرى'!$C20)), SUMPRODUCT(('مصروفات متغيره'!$G$7:$BD$2005)*('مصروفات متغيره'!$A$7:$A$2005='تقرير شهرى'!J$3)*('مصروفات متغيره'!$G$6:$BD$6='تقرير شهرى'!$C20))) -> 0 | K20: =IF($C$4=$U$5,SUMPRODUCT(('مصروفات اساسية'!$G$7:$BD$2005)*('مصروفات اساسية'!$A$7:$A$2005='تقرير شهرى'!K$3)*('مصروفات اساسية'!$G$6:$BD$6='تقرير شهرى'!$C20)), SUMPRODUCT(('مصروفات متغيره'!$G$7:$BD$2005)*('مصروفات متغيره'!$A$7:$A$2005='تقرير شهرى'!K$3)*('مصروفات متغيره'!$G$6:$BD$6='تقرير شهرى'!$C20))) -> 0 | L20: =IF($C$4=$U$5,SUMPRODUCT(('مصروفات اساسية'!$G$7:$BD$2005)*('مصروفات اساسية'!$A$7:$A$2005='تقرير شهرى'!L$3)*('مصروفات اساسية'!$G$6:$BD$6='تقرير شهرى'!$C20)), SUMPRODUCT(('مصروفات متغيره'!$G$7:$BD$2005)*('مصروفات متغيره'!$A$7:$A$2005='تقرير شهرى'!L$3)*('مصروفات متغيره'!$G$6:$BD$6='تقرير شهرى'!$C20))) -> 0 | M20: =IF($C$4=$U$5,SUMPRODUCT(('مصروفات اساسية'!$G$7:$BD$2005)*('مصروفات اساسية'!$A$7:$A$2005='تقرير شهرى'!M$3)*('مصروفات اساسية'!$G$6:$BD$6='تقرير شهرى'!$C20)), SUMPRODUCT(('مصروفات متغيره'!$G$7:$BD$2005)*('مصروفات متغيره'!$A$7:$A$2005='تقرير شهرى'!M$3)*('مصروفات متغيره'!$G$6:$BD$6='تقرير شهرى'!$C20))) -> 0 | N20: =IF($C$4=$U$5,SUMPRODUCT(('مصروفات اساسية'!$G$7:$BD$2005)*('مصروفات اساسية'!$A$7:$A$2005='تقرير شهرى'!N$3)*('مصروفات اساسية'!$G$6:$BD$6='تقرير شهرى'!$C20)), SUMPRODUCT(('مصروفات متغيره'!$G$7:$BD$2005)*('مصروفات متغيره'!$A$7:$A$2005='تقرير شهرى'!N$3)*('مصروفات متغيره'!$G$6:$BD$6='تقرير شهرى'!$C20))) -> 0 | O20: =IF($C$4=$U$5,SUMPRODUCT(('مصروفات اساسية'!$G$7:$BD$2005)*('مصروفات اساسية'!$A$7:$A$2005='تقرير شهرى'!O$3)*('مصروفات اساسية'!$G$6:$BD$6='تقرير شهرى'!$C20)), SUMPRODUCT(('مصروفات متغيره'!$G$7:$BD$2005)*('مصروفات متغيره'!$A$7:$A$2005='تقرير شهرى'!O$3)*('مصروفات متغيره'!$G$6:$BD$6='تقرير شهرى'!$C20))) -> 0 | P20: 643 | Q20: 643
C21: =IF($C$4=$U$5,IF(الدليل!$C22="","",الدليل!C22),IF(الدليل!$E22="","",الدليل!E22)) -> فارغ12 | D21: =IF($C$4=$U$5,SUMPRODUCT(('مصروفات اساسية'!$G$7:$BD$2005)*('مصروفات اساسية'!$A$7:$A$2005='تقرير شهرى'!D$3)*('مصروفات اساسية'!$G$6:$BD$6='تقرير شهرى'!$C21)), SUMPRODUCT(('مصروفات متغيره'!$G$7:$BD$2005)*('مصروفات متغيره'!$A$7:$A$2005='تقرير شهرى'!D$3)*('مصروفات متغيره'!$G$6:$BD$6='تقرير شهرى'!$C21))) -> 669.4 | E21: =IF($C$4=$U$5,SUMPRODUCT(('مصروفات اساسية'!$G$7:$BD$2005)*('مصروفات اساسية'!$A$7:$A$2005='تقرير شهرى'!E$3)*('مصروفات اساسية'!$G$6:$BD$6='تقرير شهرى'!$C21)), SUMPRODUCT(('مصروفات متغيره'!$G$7:$BD$2005)*('مصروفات متغيره'!$A$7:$A$2005='تقرير شهرى'!E$3)*('مصروفات متغيره'!$G$6:$BD$6='تقرير شهرى'!$C21))) -> 0 | F21: =IF($C$4=$U$5,SUMPRODUCT(('مصروفات اساسية'!$G$7:$BD$2005)*('مصروفات اساسية'!$A$7:$A$2005='تقرير شهرى'!F$3)*('مصروفات اساسية'!$G$6:$BD$6='تقرير شهرى'!$C21)), SUMPRODUCT(('مصروفات متغيره'!$G$7:$BD$2005)*('مصروفات متغيره'!$A$7:$A$2005='تقرير شهرى'!F$3)*('مصروفات متغيره'!$G$6:$BD$6='تقرير شهرى'!$C21))) -> 0 | G21: =IF($C$4=$U$5,SUMPRODUCT(('مصروفات اساسية'!$G$7:$BD$2005)*('مصروفات اساسية'!$A$7:$A$2005='تقرير شهرى'!G$3)*('مصروفات اساسية'!$G$6:$BD$6='تقرير شهرى'!$C21)), SUMPRODUCT(('مصروفات متغيره'!$G$7:$BD$2005)*('مصروفات متغيره'!$A$7:$A$2005='تقرير شهرى'!G$3)*('مصروفات متغيره'!$G$6:$BD$6='تقرير شهرى'!$C21))) -> 0 | H21: =IF($C$4=$U$5,SUMPRODUCT(('مصروفات اساسية'!$G$7:$BD$2005)*('مصروفات اساسية'!$A$7:$A$2005='تقرير شهرى'!H$3)*('مصروفات اساسية'!$G$6:$BD$6='تقرير شهرى'!$C21)), SUMPRODUCT(('مصروفات متغيره'!$G$7:$BD$2005)*('مصروفات متغيره'!$A$7:$A$2005='تقرير شهرى'!H$3)*('مصروفات متغيره'!$G$6:$BD$6='تقرير شهرى'!$C21))) -> 0 | I21: =IF($C$4=$U$5,SUMPRODUCT(('مصروفات اساسية'!$G$7:$BD$2005)*('مصروفات اساسية'!$A$7:$A$2005='تقرير شهرى'!I$3)*('مصروفات اساسية'!$G$6:$BD$6='تقرير شهرى'!$C21)), SUMPRODUCT(('مصروفات متغيره'!$G$7:$BD$2005)*('مصروفات متغيره'!$A$7:$A$2005='تقرير شهرى'!I$3)*('مصروفات متغيره'!$G$6:$BD$6='تقرير شهرى'!$C21))) -> 0 | J21: =IF($C$4=$U$5,SUMPRODUCT(('مصروفات اساسية'!$G$7:$BD$2005)*('مصروفات اساسية'!$A$7:$A$2005='تقرير شهرى'!J$3)*('مصروفات اساسية'!$G$6:$BD$6='تقرير شهرى'!$C21)), SUMPRODUCT(('مصروفات متغيره'!$G$7:$BD$2005)*('مصروفات متغيره'!$A$7:$A$2005='تقرير شهرى'!J$3)*('مصروفات متغيره'!$G$6:$BD$6='تقرير شهرى'!$C21))) -> 0 | K21: =IF($C$4=$U$5,SUMPRODUCT(('مصروفات اساسية'!$G$7:$BD$2005)*('مصروفات اساسية'!$A$7:$A$2005='تقرير شهرى'!K$3)*('مصروفات اساسية'!$G$6:$BD$6='تقرير شهرى'!$C21)), SUMPRODUCT(('مصروفات متغيره'!$G$7:$BD$2005)*('مصروفات متغيره'!$A$7:$A$2005='تقرير شهرى'!K$3)*('مصروفات متغيره'!$G$6:$BD$6='تقرير شهرى'!$C21))) -> 0 | L21: =IF($C$4=$U$5,SUMPRODUCT(('مصروفات اساسية'!$G$7:$BD$2005)*('مصروفات اساسية'!$A$7:$A$2005='تقرير شهرى'!L$3)*('مصروفات اساسية'!$G$6:$BD$6='تقرير شهرى'!$C21)), SUMPRODUCT(('مصروفات متغيره'!$G$7:$BD$2005)*('مصروفات متغيره'!$A$7:$A$2005='تقرير شهرى'!L$3)*('مصروفات متغيره'!$G$6:$BD$6='تقرير شهرى'!$C21))) -> 0 | M21: =IF($C$4=$U$5,SUMPRODUCT(('مصروفات اساسية'!$G$7:$BD$2005)*('مصروفات اساسية'!$A$7:$A$2005='تقرير شهرى'!M$3)*('مصروفات اساسية'!$G$6:$BD$6='تقرير شهرى'!$C21)), SUMPRODUCT(('مصروفات متغيره'!$G$7:$BD$2005)*('مصروفات متغيره'!$A$7:$A$2005='تقرير شهرى'!M$3)*('مصروفات متغيره'!$G$6:$BD$6='تقرير شهرى'!$C21))) -> 0 | N21: =IF($C$4=$U$5,SUMPRODUCT(('مصروفات اساسية'!$G$7:$BD$2005)*('مصروفات اساسية'!$A$7:$A$2005='تقرير شهرى'!N$3)*('مصروفات اساسية'!$G$6:$BD$6='تقرير شهرى'!$C21)), SUMPRODUCT(('مصروفات متغيره'!$G$7:$BD$2005)*('مصروفات متغيره'!$A$7:$A$2005='تقرير شهرى'!N$3)*('مصروفات متغيره'!$G$6:$BD$6='تقرير شهرى'!$C21))) -> 0 | O21: =IF($C$4=$U$5,SUMPRODUCT(('مصروفات اساسية'!$G$7:$BD$2005)*('مصروفات اساسية'!$A$7:$A$2005='تقرير شهرى'!O$3)*('مصروفات اساسية'!$G$6:$BD$6='تقرير شهرى'!$C21)), SUMPRODUCT(('مصروفات متغيره'!$G$7:$BD$2005)*('مصروفات متغيره'!$A$7:$A$2005='تقرير شهرى'!O$3)*('مصروفات متغيره'!$G$6:$BD$6='تقرير شهرى'!$C21))) -> 0 | P21: 669.4 | Q21: 669.4
C22: =IF($C$4=$U$5,IF(الدليل!$C23="","",الدليل!C23),IF(الدليل!$E23="","",الدليل!E23)) -> فارغ13 | D22: =IF($C$4=$U$5,SUMPRODUCT(('مصروفات اساسية'!$G$7:$BD$2005)*('مصروفات اساسية'!$A$7:$A$2005='تقرير شهرى'!D$3)*('مصروفات اساسية'!$G$6:$BD$6='تقرير شهرى'!$C22)), SUMPRODUCT(('مصروفات متغيره'!$G$7:$BD$2005)*('مصروفات متغيره'!$A$7:$A$2005='تقرير شهرى'!D$3)*('مصروفات متغيره'!$G$6:$BD$6='تقرير شهرى'!$C22))) -> 695.8 | E22: =IF($C$4=$U$5,SUMPRODUCT(('مصروفات اساسية'!$G$7:$BD$2005)*('مصروفات اساسية'!$A$7:$A$2005='تقرير شهرى'!E$3)*('مصروفات اساسية'!$G$6:$BD$6='تقرير شهرى'!$C22)), SUMPRODUCT(('مصروفات متغيره'!$G$7:$BD$2005)*('مصروفات متغيره'!$A$7:$A$2005='تقرير شهرى'!E$3)*('مصروفات متغيره'!$G$6:$BD$6='تقرير شهرى'!$C22))) -> 0 | F22: =IF($C$4=$U$5,SUMPRODUCT(('مصروفات اساسية'!$G$7:$BD$2005)*('مصروفات اساسية'!$A$7:$A$2005='تقرير شهرى'!F$3)*('مصروفات اساسية'!$G$6:$BD$6='تقرير شهرى'!$C22)), SUMPRODUCT(('مصروفات متغيره'!$G$7:$BD$2005)*('مصروفات متغيره'!$A$7:$A$2005='تقرير شهرى'!F$3)*('مصروفات متغيره'!$G$6:$BD$6='تقرير شهرى'!$C22))) -> 0 | G22: =IF($C$4=$U$5,SUMPRODUCT(('مصروفات اساسية'!$G$7:$BD$2005)*('مصروفات اساسية'!$A$7:$A$2005='تقرير شهرى'!G$3)*('مصروفات اساسية'!$G$6:$BD$6='تقرير شهرى'!$C22)), SUMPRODUCT(('مصروفات متغيره'!$G$7:$BD$2005)*('مصروفات متغيره'!$A$7:$A$2005='تقرير شهرى'!G$3)*('مصروفات متغيره'!$G$6:$BD$6='تقرير شهرى'!$C22))) -> 0 | H22: =IF($C$4=$U$5,SUMPRODUCT(('مصروفات اساسية'!$G$7:$BD$2005)*('مصروفات اساسية'!$A$7:$A$2005='تقرير شهرى'!H$3)*('مصروفات اساسية'!$G$6:$BD$6='تقرير شهرى'!$C22)), SUMPRODUCT(('مصروفات متغيره'!$G$7:$BD$2005)*('مصروفات متغيره'!$A$7:$A$2005='تقرير شهرى'!H$3)*('مصروفات متغيره'!$G$6:$BD$6='تقرير شهرى'!$C22))) -> 0 | I22: =IF($C$4=$U$5,SUMPRODUCT(('مصروفات اساسية'!$G$7:$BD$2005)*('مصروفات اساسية'!$A$7:$A$2005='تقرير شهرى'!I$3)*('مصروفات اساسية'!$G$6:$BD$6='تقرير شهرى'!$C22)), SUMPRODUCT(('مصروفات متغيره'!$G$7:$BD$2005)*('مصروفات متغيره'!$A$7:$A$2005='تقرير شهرى'!I$3)*('مصروفات متغيره'!$G$6:$BD$6='تقرير شهرى'!$C22))) -> 0 | J22: =IF($C$4=$U$5,SUMPRODUCT(('مصروفات اساسية'!$G$7:$BD$2005)*('مصروفات اساسية'!$A$7:$A$2005='تقرير شهرى'!J$3)*('مصروفات اساسية'!$G$6:$BD$6='تقرير شهرى'!$C22)), SUMPRODUCT(('مصروفات متغيره'!$G$7:$BD$2005)*('مصروفات متغيره'!$A$7:$A$2005='تقرير شهرى'!J$3)*('مصروفات متغيره'!$G$6:$BD$6='تقرير شهرى'!$C22))) -> 0 | K22: =IF($C$4=$U$5,SUMPRODUCT(('مصروفات اساسية'!$G$7:$BD$2005)*('مصروفات اساسية'!$A$7:$A$2005='تقرير شهرى'!K$3)*('مصروفات اساسية'!$G$6:$BD$6='تقرير شهرى'!$C22)), SUMPRODUCT(('مصروفات متغيره'!$G$7:$BD$2005)*('مصروفات متغيره'!$A$7:$A$2005='تقرير شهرى'!K$3)*('مصروفات متغيره'!$G$6:$BD$6='تقرير شهرى'!$C22))) -> 0 | L22: =IF($C$4=$U$5,SUMPRODUCT(('مصروفات اساسية'!$G$7:$BD$2005)*('مصروفات اساسية'!$A$7:$A$2005='تقرير شهرى'!L$3)*('مصروفات اساسية'!$G$6:$BD$6='تقرير شهرى'!$C22)), SUMPRODUCT(('مصروفات متغيره'!$G$7:$BD$2005)*('مصروفات متغيره'!$A$7:$A$2005='تقرير شهرى'!L$3)*('مصروفات متغيره'!$G$6:$BD$6='تقرير شهرى'!$C22))) -> 0 | M22: =IF($C$4=$U$5,SUMPRODUCT(('مصروفات اساسية'!$G$7:$BD$2005)*('مصروفات اساسية'!$A$7:$A$2005='تقرير شهرى'!M$3)*('مصروفات اساسية'!$G$6:$BD$6='تقرير شهرى'!$C22)), SUMPRODUCT(('مصروفات متغيره'!$G$7:$BD$2005)*('مصروفات متغيره'!$A$7:$A$2005='تقرير شهرى'!M$3)*('مصروفات متغيره'!$G$6:$BD$6='تقرير شهرى'!$C22))) -> 0 | N22: =IF($C$4=$U$5,SUMPRODUCT(('مصروفات اساسية'!$G$7:$BD$2005)*('مصروفات اساسية'!$A$7:$A$2005='تقرير شهرى'!N$3)*('مصروفات اساسية'!$G$6:$BD$6='تقرير شهرى'!$C22)), SUMPRODUCT(('مصروفات متغيره'!$G$7:$BD$2005)*('مصروفات متغيره'!$A$7:$A$2005='تقرير شهرى'!N$3)*('مصروفات متغيره'!$G$6:$BD$6='تقرير شهرى'!$C22))) -> 0 | O22: =IF($C$4=$U$5,SUMPRODUCT(('مصروفات اساسية'!$G$7:$BD$2005)*('مصروفات اساسية'!$A$7:$A$2005='تقرير شهرى'!O$3)*('مصروفات اساسية'!$G$6:$BD$6='تقرير شهرى'!$C22)), SUMPRODUCT(('مصروفات متغيره'!$G$7:$BD$2005)*('مصروفات متغيره'!$A$7:$A$2005='تقرير شهرى'!O$3)*('مصروفات متغيره'!$G$6:$BD$6='تقرير شهرى'!$C22))) -> 0 | P22: 695.8 | Q22: 695.8
C23: =IF($C$4=$U$5,IF(الدليل!$C24="","",الدليل!C24),IF(الدليل!$E24="","",الدليل!E24)) -> فارغ14 | D23: =IF($C$4=$U$5,SUMPRODUCT(('مصروفات اساسية'!$G$7:$BD$2005)*('مصروفات اساسية'!$A$7:$A$2005='تقرير شهرى'!D$3)*('مصروفات اساسية'!$G$6:$BD$6='تقرير شهرى'!$C23)), SUMPRODUCT(('مصروفات متغيره'!$G$7:$BD$2005)*('مصروفات متغيره'!$A$7:$A$2005='تقرير شهرى'!D$3)*('مصروفات متغيره'!$G$6:$BD$6='تقرير شهرى'!$C23))) -> 722.2 | E23: =IF($C$4=$U$5,SUMPRODUCT(('مصروفات اساسية'!$G$7:$BD$2005)*('مصروفات اساسية'!$A$7:$A$2005='تقرير شهرى'!E$3)*('مصروفات اساسية'!$G$6:$BD$6='تقرير شهرى'!$C23)), SUMPRODUCT(('مصروفات متغيره'!$G$7:$BD$2005)*('مصروفات متغيره'!$A$7:$A$2005='تقرير شهرى'!E$3)*('مصروفات متغيره'!$G$6:$BD$6='تقرير شهرى'!$C23))) -> 0 | F23: =IF($C$4=$U$5,SUMPRODUCT(('مصروفات اساسية'!$G$7:$BD$2005)*('مصروفات اساسية'!$A$7:$A$2005='تقرير شهرى'!F$3)*('مصروفات اساسية'!$G$6:$BD$6='تقرير شهرى'!$C23)), SUMPRODUCT(('مصروفات متغيره'!$G$7:$BD$2005)*('مصروفات متغيره'!$A$7:$A$2005='تقرير شهرى'!F$3)*('مصروفات متغيره'!$G$6:$BD$6='تقرير شهرى'!$C23))) -> 0 | G23: =IF($C$4=$U$5,SUMPRODUCT(('مصروفات اساسية'!$G$7:$BD$2005)*('مصروفات اساسية'!$A$7:$A$2005='تقرير شهرى'!G$3)*('مصروفات اساسية'!$G$6:$BD$6='تقرير شهرى'!$C23)), SUMPRODUCT(('مصروفات متغيره'!$G$7:$BD$2005)*('مصروفات متغيره'!$A$7:$A$2005='تقرير شهرى'!G$3)*('مصروفات متغيره'!$G$6:$BD$6='تقرير شهرى'!$C23))) -> 0 | H23: =IF($C$4=$U$5,SUMPRODUCT(('مصروفات اساسية'!$G$7:$BD$2005)*('مصروفات اساسية'!$A$7:$A$2005='تقرير شهرى'!H$3)*('مصروفات اساسية'!$G$6:$BD$6='تقرير شهرى'!$C23)), SUMPRODUCT(('مصروفات متغيره'!$G$7:$BD$2005)*('مصروفات متغيره'!$A$7:$A$2005='تقرير شهرى'!H$3)*('مصروفات متغيره'!$G$6:$BD$6='تقرير شهرى'!$C23))) -> 0 | I23: =IF($C$4=$U$5,SUMPRODUCT(('مصروفات اساسية'!$G$7:$BD$2005)*('مصروفات اساسية'!$A$7:$A$2005='تقرير شهرى'!I$3)*('مصروفات اساسية'!$G$6:$BD$6='تقرير شهرى'!$C23)), SUMPRODUCT(('مصروفات متغيره'!$G$7:$BD$2005)*('مصروفات متغيره'!$A$7:$A$2005='تقرير شهرى'!I$3)*('مصروفات متغيره'!$G$6:$BD$6='تقرير شهرى'!$C23))) -> 0 | J23: =IF($C$4=$U$5,SUMPRODUCT(('مصروفات اساسية'!$G$7:$BD$2005)*('مصروفات اساسية'!$A$7:$A$2005='تقرير شهرى'!J$3)*('مصروفات اساسية'!$G$6:$BD$6='تقرير شهرى'!$C23)), SUMPRODUCT(('مصروفات متغيره'!$G$7:$BD$2005)*('مصروفات متغيره'!$A$7:$A$2005='تقرير شهرى'!J$3)*('مصروفات متغيره'!$G$6:$BD$6='تقرير شهرى'!$C23))) -> 0 | K23: =IF($C$4=$U$5,SUMPRODUCT(('مصروفات اساسية'!$G$7:$BD$2005)*('مصروفات اساسية'!$A$7:$A$2005='تقرير شهرى'!K$3)*('مصروفات اساسية'!$G$6:$BD$6='تقرير شهرى'!$C23)), SUMPRODUCT(('مصروفات متغيره'!$G$7:$BD$2005)*('مصروفات متغيره'!$A$7:$A$2005='تقرير شهرى'!K$3)*('مصروفات متغيره'!$G$6:$BD$6='تقرير شهرى'!$C23))) -> 0 | L23: =IF($C$4=$U$5,SUMPRODUCT(('مصروفات اساسية'!$G$7:$BD$2005)*('مصروفات اساسية'!$A$7:$A$2005='تقرير شهرى'!L$3)*('مصروفات اساسية'!$G$6:$BD$6='تقرير شهرى'!$C23)), SUMPRODUCT(('مصروفات متغيره'!$G$7:$BD$2005)*('مصروفات متغيره'!$A$7:$A$2005='تقرير شهرى'!L$3)*('مصروفات متغيره'!$G$6:$BD$6='تقرير شهرى'!$C23))) -> 0 | M23: =IF($C$4=$U$5,SUMPRODUCT(('مصروفات اساسية'!$G$7:$BD$2005)*('مصروفات اساسية'!$A$7:$A$2005='تقرير شهرى'!M$3)*('مصروفات اساسية'!$G$6:$BD$6='تقرير شهرى'!$C23)), SUMPRODUCT(('مصروفات متغيره'!$G$7:$BD$2005)*('مصروفات متغيره'!$A$7:$A$2005='تقرير شهرى'!M$3)*('مصروفات متغيره'!$G$6:$BD$6='تقرير شهرى'!$C23))) -> 0 | N23: =IF($C$4=$U$5,SUMPRODUCT(('مصروفات اساسية'!$G$7:$BD$2005)*('مصروفات اساسية'!$A$7:$A$2005='تقرير شهرى'!N$3)*('مصروفات اساسية'!$G$6:$BD$6='تقرير شهرى'!$C23)), SUMPRODUCT(('مصروفات متغيره'!$G$7:$BD$2005)*('مصروفات متغيره'!$A$7:$A$2005='تقرير شهرى'!N$3)*('مصروفات متغيره'!$G$6:$BD$6='تقرير شهرى'!$C23))) -> 0 | O23: =IF($C$4=$U$5,SUMPRODUCT(('مصروفات اساسية'!$G$7:$BD$2005)*('مصروفات اساسية'!$A$7:$A$2005='تقرير شهرى'!O$3)*('مصروفات اساسية'!$G$6:$BD$6='تقرير شهرى'!$C23)), SUMPRODUCT(('مصروفات متغيره'!$G$7:$BD$2005)*('مصروفات متغيره'!$A$7:$A$2005='تقرير شهرى'!O$3)*('مصروفات متغيره'!$G$6:$BD$6='تقرير شهرى'!$C23))) -> 0 | P23: 722.2 | Q23: 722.2
C24: =IF($C$4=$U$5,IF(الدليل!$C25="","",الدليل!C25),IF(الدليل!$E25="","",الدليل!E25)) -> فارغ15 | D24: =IF($C$4=$U$5,SUMPRODUCT(('مصروفات اساسية'!$G$7:$BD$2005)*('مصروفات اساسية'!$A$7:$A$2005='تقرير شهرى'!D$3)*('مصروفات اساسية'!$G$6:$BD$6='تقرير شهرى'!$C24)), SUMPRODUCT(('مصروفات متغيره'!$G$7:$BD$2005)*('مصروفات متغيره'!$A$7:$A$2005='تقرير شهرى'!D$3)*('مصروفات متغيره'!$G$6:$BD$6='تقرير شهرى'!$C24))) -> 748.6 | E24: =IF($C$4=$U$5,SUMPRODUCT(('مصروفات اساسية'!$G$7:$BD$2005)*('مصروفات اساسية'!$A$7:$A$2005='تقرير شهرى'!E$3)*('مصروفات اساسية'!$G$6:$BD$6='تقرير شهرى'!$C24)), SUMPRODUCT(('مصروفات متغيره'!$G$7:$BD$2005)*('مصروفات متغيره'!$A$7:$A$2005='تقرير شهرى'!E$3)*('مصروفات متغيره'!$G$6:$BD$6='تقرير شهرى'!$C24))) -> 0 | F24: =IF($C$4=$U$5,SUMPRODUCT(('مصروفات اساسية'!$G$7:$BD$2005)*('مصروفات اساسية'!$A$7:$A$2005='تقرير شهرى'!F$3)*('مصروفات اساسية'!$G$6:$BD$6='تقرير شهرى'!$C24)), SUMPRODUCT(('مصروفات متغيره'!$G$7:$BD$2005)*('مصروفات متغيره'!$A$7:$A$2005='تقرير شهرى'!F$3)*('مصروفات متغيره'!$G$6:$BD$6='تقرير شهرى'!$C24))) -> 0 | G24: =IF($C$4=$U$5,SUMPRODUCT(('مصروفات اساسية'!$G$7:$BD$2005)*('مصروفات اساسية'!$A$7:$A$2005='تقرير شهرى'!G$3)*('مصروفات اساسية'!$G$6:$BD$6='تقرير شهرى'!$C24)), SUMPRODUCT(('مصروفات متغيره'!$G$7:$BD$2005)*('مصروفات متغيره'!$A$7:$A$2005='تقرير شهرى'!G$3)*('مصروفات متغيره'!$G$6:$BD$6='تقرير شهرى'!$C24))) -> 0 | H24: =IF($C$4=$U$5,SUMPRODUCT(('مصروفات اساسية'!$G$7:$BD$2005)*('مصروفات اساسية'!$A$7:$A$2005='تقرير شهرى'!H$3)*('مصروفات اساسية'!$G$6:$BD$6='تقرير شهرى'!$C24)), SUMPRODUCT(('مصروفات متغيره'!$G$7:$BD$2005)*('مصروفات متغيره'!$A$7:$A$2005='تقرير شهرى'!H$3)*('مصروفات متغيره'!$G$6:$BD$6='تقرير شهرى'!$C24))) -> 0 | I24: =IF($C$4=$U$5,SUMPRODUCT(('مصروفات اساسية'!$G$7:$BD$2005)*('مصروفات اساسية'!$A$7:$A$2005='تقرير شهرى'!I$3)*('مصروفات اساسية'!$G$6:$BD$6='تقرير شهرى'!$C24)), SUMPRODUCT(('مصروفات متغيره'!$G$7:$BD$2005)*('مصروفات متغيره'!$A$7:$A$2005='تقرير شهرى'!I$3)*('مصروفات متغيره'!$G$6:$BD$6='تقرير شهرى'!$C24))) -> 0 | J24: =IF($C$4=$U$5,SUMPRODUCT(('مصروفات اساسية'!$G$7:$BD$2005)*('مصروفات اساسية'!$A$7:$A$2005='تقرير شهرى'!J$3)*('مصروفات اساسية'!$G$6:$BD$6='تقرير شهرى'!$C24)), SUMPRODUCT(('مصروفات متغيره'!$G$7:$BD$2005)*('مصروفات متغيره'!$A$7:$A$2005='تقرير شهرى'!J$3)*('مصروفات متغيره'!$G$6:$BD$6='تقرير شهرى'!$C24))) -> 0 | K24: =IF($C$4=$U$5,SUMPRODUCT(('مصروفات اساسية'!$G$7:$BD$2005)*('مصروفات اساسية'!$A$7:$A$2005='تقرير شهرى'!K$3)*('مصروفات اساسية'!$G$6:$BD$6='تقرير شهرى'!$C24)), SUMPRODUCT(('مصروفات متغيره'!$G$7:$BD$2005)*('مصروفات متغيره'!$A$7:$A$2005='تقرير شهرى'!K$3)*('مصروفات متغيره'!$G$6:$BD$6='تقرير شهرى'!$C24))) -> 0 | L24: =IF($C$4=$U$5,SUMPRODUCT(('مصروفات اساسية'!$G$7:$BD$2005)*('مصروفات اساسية'!$A$7:$A$2005='تقرير شهرى'!L$3)*('مصروفات اساسية'!$G$6:$BD$6='تقرير شهرى'!$C24)), SUMPRODUCT(('مصروفات متغيره'!$G$7:$BD$2005)*('مصروفات متغيره'!$A$7:$A$2005='تقرير شهرى'!L$3)*('مصروفات متغيره'!$G$6:$BD$6='تقرير شهرى'!$C24))) -> 0 | M24: =IF($C$4=$U$5,SUMPRODUCT(('مصروفات اساسية'!$G$7:$BD$2005)*('مصروفات اساسية'!$A$7:$A$2005='تقرير شهرى'!M$3)*('مصروفات اساسية'!$G$6:$BD$6='تقرير شهرى'!$C24)), SUMPRODUCT(('مصروفات متغيره'!$G$7:$BD$2005)*('مصروفات متغيره'!$A$7:$A$2005='تقرير شهرى'!M$3)*('مصروفات متغيره'!$G$6:$BD$6='تقرير شهرى'!$C24))) -> 0 | N24: =IF($C$4=$U$5,SUMPRODUCT(('مصروفات اساسية'!$G$7:$BD$2005)*('مصروفات اساسية'!$A$7:$A$2005='تقرير شهرى'!N$3)*('مصروفات اساسية'!$G$6:$BD$6='تقرير شهرى'!$C24)), SUMPRODUCT(('مصروفات متغيره'!$G$7:$BD$2005)*('مصروفات متغيره'!$A$7:$A$2005='تقرير شهرى'!N$3)*('مصروفات متغيره'!$G$6:$BD$6='تقرير شهرى'!$C24))) -> 0 | O24: =IF($C$4=$U$5,SUMPRODUCT(('مصروفات اساسية'!$G$7:$BD$2005)*('مصروفات اساسية'!$A$7:$A$2005='تقرير شهرى'!O$3)*('مصروفات اساسية'!$G$6:$BD$6='تقرير شهرى'!$C24)), SUMPRODUCT(('مصروفات متغيره'!$G$7:$BD$2005)*('مصروفات متغيره'!$A$7:$A$2005='تقرير شهرى'!O$3)*('مصروفات متغيره'!$G$6:$BD$6='تقرير شهرى'!$C24))) -> 0 | P24: 748.6 | Q24: 748.6
C25: =IF($C$4=$U$5,IF(الدليل!$C26="","",الدليل!C26),IF(الدليل!$E26="","",الدليل!E26)) -> فارغ16 | D25: =IF($C$4=$U$5,SUMPRODUCT(('مصروفات اساسية'!$G$7:$BD$2005)*('مصروفات اساسية'!$A$7:$A$2005='تقرير شهرى'!D$3)*('مصروفات اساسية'!$G$6:$BD$6='تقرير شهرى'!$C25)), SUMPRODUCT(('مصروفات متغيره'!$G$7:$BD$2005)*('مصروفات متغيره'!$A$7:$A$2005='تقرير شهرى'!D$3)*('مصروفات متغيره'!$G$6:$BD$6='تقرير شهرى'!$C25))) -> 775 | E25: =IF($C$4=$U$5,SUMPRODUCT(('مصروفات اساسية'!$G$7:$BD$2005)*('مصروفات اساسية'!$A$7:$A$2005='تقرير شهرى'!E$3)*('مصروفات اساسية'!$G$6:$BD$6='تقرير شهرى'!$C25)), SUMPRODUCT(('مصروفات متغيره'!$G$7:$BD$2005)*('مصروفات متغيره'!$A$7:$A$2005='تقرير شهرى'!E$3)*('مصروفات متغيره'!$G$6:$BD$6='تقرير شهرى'!$C25))) -> 0 | F25: =IF($C$4=$U$5,SUMPRODUCT(('مصروفات اساسية'!$G$7:$BD$2005)*('مصروفات اساسية'!$A$7:$A$2005='تقرير شهرى'!F$3)*('مصروفات اساسية'!$G$6:$BD$6='تقرير شهرى'!$C25)), SUMPRODUCT(('مصروفات متغيره'!$G$7:$BD$2005)*('مصروفات متغيره'!$A$7:$A$2005='تقرير شهرى'!F$3)*('مصروفات متغيره'!$G$6:$BD$6='تقرير شهرى'!$C25))) -> 0 | G25: =IF($C$4=$U$5,SUMPRODUCT(('مصروفات اساسية'!$G$7:$BD$2005)*('مصروفات اساسية'!$A$7:$A$2005='تقرير شهرى'!G$3)*('مصروفات اساسية'!$G$6:$BD$6='تقرير شهرى'!$C25)), SUMPRODUCT(('مصروفات متغيره'!$G$7:$BD$2005)*('مصروفات متغيره'!$A$7:$A$2005='تقرير شهرى'!G$3)*('مصروفات متغيره'!$G$6:$BD$6='تقرير شهرى'!$C25))) -> 0 | H25: =IF($C$4=$U$5,SUMPRODUCT(('مصروفات اساسية'!$G$7:$BD$2005)*('مصروفات اساسية'!$A$7:$A$2005='تقرير شهرى'!H$3)*('مصروفات اساسية'!$G$6:$BD$6='تقرير شهرى'!$C25)), SUMPRODUCT(('مصروفات متغيره'!$G$7:$BD$2005)*('مصروفات متغيره'!$A$7:$A$2005='تقرير شهرى'!H$3)*('مصروفات متغيره'!$G$6:$BD$6='تقرير شهرى'!$C25))) -> 0 | I25: =IF($C$4=$U$5,SUMPRODUCT(('مصروفات اساسية'!$G$7:$BD$2005)*('مصروفات اساسية'!$A$7:$A$2005='تقرير شهرى'!I$3)*('مصروفات اساسية'!$G$6:$BD$6='تقرير شهرى'!$C25)), SUMPRODUCT(('مصروفات متغيره'!$G$7:$BD$2005)*('مصروفات متغيره'!$A$7:$A$2005='تقرير شهرى'!I$3)*('مصروفات متغيره'!$G$6:$BD$6='تقرير شهرى'!$C25))) -> 0 | J25: =IF($C$4=$U$5,SUMPRODUCT(('مصروفات اساسية'!$G$7:$BD$2005)*('مصروفات اساسية'!$A$7:$A$2005='تقرير شهرى'!J$3)*('مصروفات اساسية'!$G$6:$BD$6='تقرير شهرى'!$C25)), SUMPRODUCT(('مصروفات متغيره'!$G$7:$BD$2005)*('مصروفات متغيره'!$A$7:$A$2005='تقرير شهرى'!J$3)*('مصروفات متغيره'!$G$6:$BD$6='تقرير شهرى'!$C25))) -> 0 | K25: =IF($C$4=$U$5,SUMPRODUCT(('مصروفات اساسية'!$G$7:$BD$2005)*('مصروفات اساسية'!$A$7:$A$2005='تقرير شهرى'!K$3)*('مصروفات اساسية'!$G$6:$BD$6='تقرير شهرى'!$C25)), SUMPRODUCT(('مصروفات متغيره'!$G$7:$BD$2005)*('مصروفات متغيره'!$A$7:$A$2005='تقرير شهرى'!K$3)*('مصروفات متغيره'!$G$6:$BD$6='تقرير شهرى'!$C25))) -> 0 | L25: =IF($C$4=$U$5,SUMPRODUCT(('مصروفات اساسية'!$G$7:$BD$2005)*('مصروفات اساسية'!$A$7:$A$2005='تقرير شهرى'!L$3)*('مصروفات اساسية'!$G$6:$BD$6='تقرير شهرى'!$C25)), SUMPRODUCT(('مصروفات متغيره'!$G$7:$BD$2005)*('مصروفات متغيره'!$A$7:$A$2005='تقرير شهرى'!L$3)*('مصروفات متغيره'!$G$6:$BD$6='تقرير شهرى'!$C25))) -> 0 | M25: =IF($C$4=$U$5,SUMPRODUCT(('مصروفات اساسية'!$G$7:$BD$2005)*('مصروفات اساسية'!$A$7:$A$2005='تقرير شهرى'!M$3)*('مصروفات اساسية'!$G$6:$BD$6='تقرير شهرى'!$C25)), SUMPRODUCT(('مصروفات متغيره'!$G$7:$BD$2005)*('مصروفات متغيره'!$A$7:$A$2005='تقرير شهرى'!M$3)*('مصروفات متغيره'!$G$6:$BD$6='تقرير شهرى'!$C25))) -> 0 | N25: =IF($C$4=$U$5,SUMPRODUCT(('مصروفات اساسية'!$G$7:$BD$2005)*('مصروفات اساسية'!$A$7:$A$2005='تقرير شهرى'!N$3)*('مصروفات اساسية'!$G$6:$BD$6='تقرير شهرى'!$C25)), SUMPRODUCT(('مصروفات متغيره'!$G$7:$BD$2005)*('مصروفات متغيره'!$A$7:$A$2005='تقرير شهرى'!N$3)*('مصروفات متغيره'!$G$6:$BD$6='تقرير شهرى'!$C25))) -> 0 | O25: =IF($C$4=$U$5,SUMPRODUCT(('مصروفات اساسية'!$G$7:$BD$2005)*('مصروفات اساسية'!$A$7:$A$2005='تقرير شهرى'!O$3)*('مصروفات اساسية'!$G$6:$BD$6='تقرير شهرى'!$C25)), SUMPRODUCT(('مصروفات متغيره'!$G$7:$BD$2005)*('مصروفات متغيره'!$A$7:$A$2005='تقرير شهرى'!O$3)*('مصروفات متغيره'!$G$6:$BD$6='تقرير شهرى'!$C25))) -> 0 | P25: 775 | Q25: 775
C26: =IF($C$4=$U$5,IF(الدليل!$C27="","",الدليل!C27),IF(الدليل!$E27="","",الدليل!E27)) -> فارغ17 | D26: =IF($C$4=$U$5,SUMPRODUCT(('مصروفات اساسية'!$G$7:$BD$2005)*('مصروفات اساسية'!$A$7:$A$2005='تقرير شهرى'!D$3)*('مصروفات اساسية'!$G$6:$BD$6='تقرير شهرى'!$C26)), SUMPRODUCT(('مصروفات متغيره'!$G$7:$BD$2005)*('مصروفات متغيره'!$A$7:$A$2005='تقرير شهرى'!D$3)*('مصروفات متغيره'!$G$6:$BD$6='تقرير شهرى'!$C26))) -> 801.4 | E26: =IF($C$4=$U$5,SUMPRODUCT(('مصروفات اساسية'!$G$7:$BD$2005)*('مصروفات اساسية'!$A$7:$A$2005='تقرير شهرى'!E$3)*('مصروفات اساسية'!$G$6:$BD$6='تقرير شهرى'!$C26)), SUMPRODUCT(('مصروفات متغيره'!$G$7:$BD$2005)*('مصروفات متغيره'!$A$7:$A$2005='تقرير شهرى'!E$3)*('مصروفات متغيره'!$G$6:$BD$6='تقرير شهرى'!$C26))) -> 0 | F26: =IF($C$4=$U$5,SUMPRODUCT(('مصروفات اساسية'!$G$7:$BD$2005)*('مصروفات اساسية'!$A$7:$A$2005='تقرير شهرى'!F$3)*('مصروفات اساسية'!$G$6:$BD$6='تقرير شهرى'!$C26)), SUMPRODUCT(('مصروفات متغيره'!$G$7:$BD$2005)*('مصروفات متغيره'!$A$7:$A$2005='تقرير شهرى'!F$3)*('مصروفات متغيره'!$G$6:$BD$6='تقرير شهرى'!$C26))) -> 0 | G26: =IF($C$4=$U$5,SUMPRODUCT(('مصروفات اساسية'!$G$7:$BD$2005)*('مصروفات اساسية'!$A$7:$A$2005='تقرير شهرى'!G$3)*('مصروفات اساسية'!$G$6:$BD$6='تقرير شهرى'!$C26)), SUMPRODUCT(('مصروفات متغيره'!$G$7:$BD$2005)*('مصروفات متغيره'!$A$7:$A$2005='تقرير شهرى'!G$3)*('مصروفات متغيره'!$G$6:$BD$6='تقرير شهرى'!$C26))) -> 0 | H26: =IF($C$4=$U$5,SUMPRODUCT(('مصروفات اساسية'!$G$7:$BD$2005)*('مصروفات اساسية'!$A$7:$A$2005='تقرير شهرى'!H$3)*('مصروفات اساسية'!$G$6:$BD$6='تقرير شهرى'!$C26)), SUMPRODUCT(('مصروفات متغيره'!$G$7:$BD$2005)*('مصروفات متغيره'!$A$7:$A$2005='تقرير شهرى'!H$3)*('مصروفات متغيره'!$G$6:$BD$6='تقرير شهرى'!$C26))) -> 0 | I26: =IF($C$4=$U$5,SUMPRODUCT(('مصروفات اساسية'!$G$7:$BD$2005)*('مصروفات اساسية'!$A$7:$A$2005='تقرير شهرى'!I$3)*('مصروفات اساسية'!$G$6:$BD$6='تقرير شهرى'!$C26)), SUMPRODUCT(('مصروفات متغيره'!$G$7:$BD$2005)*('مصروفات متغيره'!$A$7:$A$2005='تقرير شهرى'!I$3)*('مصروفات متغيره'!$G$6:$BD$6='تقرير شهرى'!$C26))) -> 0 | J26: =IF($C$4=$U$5,SUMPRODUCT(('مصروفات اساسية'!$G$7:$BD$2005)*('مصروفات اساسية'!$A$7:$A$2005='تقرير شهرى'!J$3)*('مصروفات اساسية'!$G$6:$BD$6='تقرير شهرى'!$C26)), SUMPRODUCT(('مصروفات متغيره'!$G$7:$BD$2005)*('مصروفات متغيره'!$A$7:$A$2005='تقرير شهرى'!J$3)*('مصروفات متغيره'!$G$6:$BD$6='تقرير شهرى'!$C26))) -> 0 | K26: =IF($C$4=$U$5,SUMPRODUCT(('مصروفات اساسية'!$G$7:$BD$2005)*('مصروفات اساسية'!$A$7:$A$2005='تقرير شهرى'!K$3)*('مصروفات اساسية'!$G$6:$BD$6='تقرير شهرى'!$C26)), SUMPRODUCT(('مصروفات متغيره'!$G$7:$BD$2005)*('مصروفات متغيره'!$A$7:$A$2005='تقرير شهرى'!K$3)*('مصروفات متغيره'!$G$6:$BD$6='تقرير شهرى'!$C26))) -> 0 | L26: =IF($C$4=$U$5,SUMPRODUCT(('مصروفات اساسية'!$G$7:$BD$2005)*('مصروفات اساسية'!$A$7:$A$2005='تقرير شهرى'!L$3)*('مصروفات اساسية'!$G$6:$BD$6='تقرير شهرى'!$C26)), SUMPRODUCT(('مصروفات متغيره'!$G$7:$BD$2005)*('مصروفات متغيره'!$A$7:$A$2005='تقرير شهرى'!L$3)*('مصروفات متغيره'!$G$6:$BD$6='تقرير شهرى'!$C26))) -> 0 | M26: =IF($C$4=$U$5,SUMPRODUCT(('مصروفات اساسية'!$G$7:$BD$2005)*('مصروفات اساسية'!$A$7:$A$2005='تقرير شهرى'!M$3)*('مصروفات اساسية'!$G$6:$BD$6='تقرير شهرى'!$C26)), SUMPRODUCT(('مصروفات متغيره'!$G$7:$BD$2005)*('مصروفات متغيره'!$A$7:$A$2005='تقرير شهرى'!M$3)*('مصروفات متغيره'!$G$6:$BD$6='تقرير شهرى'!$C26))) -> 0 | N26: =IF($C$4=$U$5,SUMPRODUCT(('مصروفات اساسية'!$G$7:$BD$2005)*('مصروفات اساسية'!$A$7:$A$2005='تقرير شهرى'!N$3)*('مصروفات اساسية'!$G$6:$BD$6='تقرير شهرى'!$C26)), SUMPRODUCT(('مصروفات متغيره'!$G$7:$BD$2005)*('مصروفات متغيره'!$A$7:$A$2005='تقرير شهرى'!N$3)*('مصروفات متغيره'!$G$6:$BD$6='تقرير شهرى'!$C26))) -> 0 | O26: =IF($C$4=$U$5,SUMPRODUCT(('مصروفات اساسية'!$G$7:$BD$2005)*('مصروفات اساسية'!$A$7:$A$2005='تقرير شهرى'!O$3)*('مصروفات اساسية'!$G$6:$BD$6='تقرير شهرى'!$C26)), SUMPRODUCT(('مصروفات متغيره'!$G$7:$BD$2005)*('مصروفات متغيره'!$A$7:$A$2005='تقرير شهرى'!O$3)*('مصروفات متغيره'!$G$6:$BD$6='تقرير شهرى'!$C26))) -> 0 | P26: 801.4 | Q26: 801.4
C27: =IF($C$4=$U$5,IF(الدليل!$C28="","",الدليل!C28),IF(الدليل!$E28="","",الدليل!E28)) -> فارغ18 | D27: =IF($C$4=$U$5,SUMPRODUCT(('مصروفات اساسية'!$G$7:$BD$2005)*('مصروفات اساسية'!$A$7:$A$2005='تقرير شهرى'!D$3)*('مصروفات اساسية'!$G$6:$BD$6='تقرير شهرى'!$C27)), SUMPRODUCT(('مصروفات متغيره'!$G$7:$BD$2005)*('مصروفات متغيره'!$A$7:$A$2005='تقرير شهرى'!D$3)*('مصروفات متغيره'!$G$6:$BD$6='تقرير شهرى'!$C27))) -> 827.8 | E27: =IF($C$4=$U$5,SUMPRODUCT(('مصروفات اساسية'!$G$7:$BD$2005)*('مصروفات اساسية'!$A$7:$A$2005='تقرير شهرى'!E$3)*('مصروفات اساسية'!$G$6:$BD$6='تقرير شهرى'!$C27)), SUMPRODUCT(('مصروفات متغيره'!$G$7:$BD$2005)*('مصروفات متغيره'!$A$7:$A$2005='تقرير شهرى'!E$3)*('مصروفات متغيره'!$G$6:$BD$6='تقرير شهرى'!$C27))) -> 0 | F27: =IF($C$4=$U$5,SUMPRODUCT(('مصروفات اساسية'!$G$7:$BD$2005)*('مصروفات اساسية'!$A$7:$A$2005='تقرير شهرى'!F$3)*('مصروفات اساسية'!$G$6:$BD$6='تقرير شهرى'!$C27)), SUMPRODUCT(('مصروفات متغيره'!$G$7:$BD$2005)*('مصروفات متغيره'!$A$7:$A$2005='تقرير شهرى'!F$3)*('مصروفات متغيره'!$G$6:$BD$6='تقرير شهرى'!$C27))) -> 0 | G27: =IF($C$4=$U$5,SUMPRODUCT(('مصروفات اساسية'!$G$7:$BD$2005)*('مصروفات اساسية'!$A$7:$A$2005='تقرير شهرى'!G$3)*('مصروفات اساسية'!$G$6:$BD$6='تقرير شهرى'!$C27)), SUMPRODUCT(('مصروفات متغيره'!$G$7:$BD$2005)*('مصروفات متغيره'!$A$7:$A$2005='تقرير شهرى'!G$3)*('مصروفات متغيره'!$G$6:$BD$6='تقرير شهرى'!$C27))) -> 0 | H27: =IF($C$4=$U$5,SUMPRODUCT(('مصروفات اساسية'!$G$7:$BD$2005)*('مصروفات اساسية'!$A$7:$A$2005='تقرير شهرى'!H$3)*('مصروفات اساسية'!$G$6:$BD$6='تقرير شهرى'!$C27)), SUMPRODUCT(('مصروفات متغيره'!$G$7:$BD$2005)*('مصروفات متغيره'!$A$7:$A$2005='تقرير شهرى'!H$3)*('مصروفات متغيره'!$G$6:$BD$6='تقرير شهرى'!$C27))) -> 0 | I27: =IF($C$4=$U$5,SUMPRODUCT(('مصروفات اساسية'!$G$7:$BD$2005)*('مصروفات اساسية'!$A$7:$A$2005='تقرير شهرى'!I$3)*('مصروفات اساسية'!$G$6:$BD$6='تقرير شهرى'!$C27)), SUMPRODUCT(('مصروفات متغيره'!$G$7:$BD$2005)*('مصروفات متغيره'!$A$7:$A$2005='تقرير شهرى'!I$3)*('مصروفات متغيره'!$G$6:$BD$6='تقرير شهرى'!$C27))) -> 0 | J27: =IF($C$4=$U$5,SUMPRODUCT(('مصروفات اساسية'!$G$7:$BD$2005)*('مصروفات اساسية'!$A$7:$A$2005='تقرير شهرى'!J$3)*('مصروفات اساسية'!$G$6:$BD$6='تقرير شهرى'!$C27)), SUMPRODUCT(('مصروفات متغيره'!$G$7:$BD$2005)*('مصروفات متغيره'!$A$7:$A$2005='تقرير شهرى'!J$3)*('مصروفات متغيره'!$G$6:$BD$6='تقرير شهرى'!$C27))) -> 0 | K27: =IF($C$4=$U$5,SUMPRODUCT(('مصروفات اساسية'!$G$7:$BD$2005)*('مصروفات اساسية'!$A$7:$A$2005='تقرير شهرى'!K$3)*('مصروفات اساسية'!$G$6:$BD$6='تقرير شهرى'!$C27)), SUMPRODUCT(('مصروفات متغيره'!$G$7:$BD$2005)*('مصروفات متغيره'!$A$7:$A$2005='تقرير شهرى'!K$3)*('مصروفات متغيره'!$G$6:$BD$6='تقرير شهرى'!$C27))) -> 0 | L27: =IF($C$4=$U$5,SUMPRODUCT(('مصروفات اساسية'!$G$7:$BD$2005)*('مصروفات اساسية'!$A$7:$A$2005='تقرير شهرى'!L$3)*('مصروفات اساسية'!$G$6:$BD$6='تقرير شهرى'!$C27)), SUMPRODUCT(('مصروفات متغيره'!$G$7:$BD$2005)*('مصروفات متغيره'!$A$7:$A$2005='تقرير شهرى'!L$3)*('مصروفات متغيره'!$G$6:$BD$6='تقرير شهرى'!$C27))) -> 0 | M27: =IF($C$4=$U$5,SUMPRODUCT(('مصروفات اساسية'!$G$7:$BD$2005)*('مصروفات اساسية'!$A$7:$A$2005='تقرير شهرى'!M$3)*('مصروفات اساسية'!$G$6:$BD$6='تقرير شهرى'!$C27)), SUMPRODUCT(('مصروفات متغيره'!$G$7:$BD$2005)*('مصروفات متغيره'!$A$7:$A$2005='تقرير شهرى'!M$3)*('مصروفات متغيره'!$G$6:$BD$6='تقرير شهرى'!$C27))) -> 0 | N27: =IF($C$4=$U$5,SUMPRODUCT(('مصروفات اساسية'!$G$7:$BD$2005)*('مصروفات اساسية'!$A$7:$A$2005='تقرير شهرى'!N$3)*('مصروفات اساسية'!$G$6:$BD$6='تقرير شهرى'!$C27)), SUMPRODUCT(('مصروفات متغيره'!$G$7:$BD$2005)*('مصروفات متغيره'!$A$7:$A$2005='تقرير شهرى'!N$3)*('مصروفات متغيره'!$G$6:$BD$6='تقرير شهرى'!$C27))) -> 0 | O27: =IF($C$4=$U$5,SUMPRODUCT(('مصروفات اساسية'!$G$7:$BD$2005)*('مصروفات اساسية'!$A$7:$A$2005='تقرير شهرى'!O$3)*('مصروفات اساسية'!$G$6:$BD$6='تقرير شهرى'!$C27)), SUMPRODUCT(('مصروفات متغيره'!$G$7:$BD$2005)*('مصروفات متغيره'!$A$7:$A$2005='تقرير شهرى'!O$3)*('مصروفات متغيره'!$G$6:$BD$6='تقرير شهرى'!$C27))) -> 0 | P27: 827.8 | Q27: 827.8
C28: =IF($C$4=$U$5,IF(الدليل!$C29="","",الدليل!C29),IF(الدليل!$E29="","",الدليل!E29)) -> فارغ19 | D28: =IF($C$4=$U$5,SUMPRODUCT(('مصروفات اساسية'!$G$7:$BD$2005)*('مصروفات اساسية'!$A$7:$A$2005='تقرير شهرى'!D$3)*('مصروفات اساسية'!$G$6:$BD$6='تقرير شهرى'!$C28)), SUMPRODUCT(('مصروفات متغيره'!$G$7:$BD$2005)*('مصروفات متغيره'!$A$7:$A$2005='تقرير شهرى'!D$3)*('مصروفات متغيره'!$G$6:$BD$6='تقرير شهرى'!$C28))) -> 854.2 | E28: =IF($C$4=$U$5,SUMPRODUCT(('مصروفات اساسية'!$G$7:$BD$2005)*('مصروفات اساسية'!$A$7:$A$2005='تقرير شهرى'!E$3)*('مصروفات اساسية'!$G$6:$BD$6='تقرير شهرى'!$C28)), SUMPRODUCT(('مصروفات متغيره'!$G$7:$BD$2005)*('مصروفات متغيره'!$A$7:$A$2005='تقرير شهرى'!E$3)*('مصروفات متغيره'!$G$6:$BD$6='تقرير شهرى'!$C28))) -> 0 | F28: =IF($C$4=$U$5,SUMPRODUCT(('مصروفات اساسية'!$G$7:$BD$2005)*('مصروفات اساسية'!$A$7:$A$2005='تقرير شهرى'!F$3)*('مصروفات اساسية'!$G$6:$BD$6='تقرير شهرى'!$C28)), SUMPRODUCT(('مصروفات متغيره'!$G$7:$BD$2005)*('مصروفات متغيره'!$A$7:$A$2005='تقرير شهرى'!F$3)*('مصروفات متغيره'!$G$6:$BD$6='تقرير شهرى'!$C28))) -> 0 | G28: =IF($C$4=$U$5,SUMPRODUCT(('مصروفات اساسية'!$G$7:$BD$2005)*('مصروفات اساسية'!$A$7:$A$2005='تقرير شهرى'!G$3)*('مصروفات اساسية'!$G$6:$BD$6='تقرير شهرى'!$C28)), SUMPRODUCT(('مصروفات متغيره'!$G$7:$BD$2005)*('مصروفات متغيره'!$A$7:$A$2005='تقرير شهرى'!G$3)*('مصروفات متغيره'!$G$6:$BD$6='تقرير شهرى'!$C28))) -> 0 | H28: =IF($C$4=$U$5,SUMPRODUCT(('مصروفات اساسية'!$G$7:$BD$2005)*('مصروفات اساسية'!$A$7:$A$2005='تقرير شهرى'!H$3)*('مصروفات اساسية'!$G$6:$BD$6='تقرير شهرى'!$C28)), SUMPRODUCT(('مصروفات متغيره'!$G$7:$BD$2005)*('مصروفات متغيره'!$A$7:$A$2005='تقرير شهرى'!H$3)*('مصروفات متغيره'!$G$6:$BD$6='تقرير شهرى'!$C28))) -> 0 | I28: =IF($C$4=$U$5,SUMPRODUCT(('مصروفات اساسية'!$G$7:$BD$2005)*('مصروفات اساسية'!$A$7:$A$2005='تقرير شهرى'!I$3)*('مصروفات اساسية'!$G$6:$BD$6='تقرير شهرى'!$C28)), SUMPRODUCT(('مصروفات متغيره'!$G$7:$BD$2005)*('مصروفات متغيره'!$A$7:$A$2005='تقرير شهرى'!I$3)*('مصروفات متغيره'!$G$6:$BD$6='تقرير شهرى'!$C28))) -> 0 | J28: =IF($C$4=$U$5,SUMPRODUCT(('مصروفات اساسية'!$G$7:$BD$2005)*('مصروفات اساسية'!$A$7:$A$2005='تقرير شهرى'!J$3)*('مصروفات اساسية'!$G$6:$BD$6='تقرير شهرى'!$C28)), SUMPRODUCT(('مصروفات متغيره'!$G$7:$BD$2005)*('مصروفات متغيره'!$A$7:$A$2005='تقرير شهرى'!J$3)*('مصروفات متغيره'!$G$6:$BD$6='تقرير شهرى'!$C28))) -> 0 | K28: =IF($C$4=$U$5,SUMPRODUCT(('مصروفات اساسية'!$G$7:$BD$2005)*('مصروفات اساسية'!$A$7:$A$2005='تقرير شهرى'!K$3)*('مصروفات اساسية'!$G$6:$BD$6='تقرير شهرى'!$C28)), SUMPRODUCT(('مصروفات متغيره'!$G$7:$BD$2005)*('مصروفات متغيره'!$A$7:$A$2005='تقرير شهرى'!K$3)*('مصروفات متغيره'!$G$6:$BD$6='تقرير شهرى'!$C28))) -> 0 | L28: =IF($C$4=$U$5,SUMPRODUCT(('مصروفات اساسية'!$G$7:$BD$2005)*('مصروفات اساسية'!$A$7:$A$2005='تقرير شهرى'!L$3)*('مصروفات اساسية'!$G$6:$BD$6='تقرير شهرى'!$C28)), SUMPRODUCT(('مصروفات متغيره'!$G$7:$BD$2005)*('مصروفات متغيره'!$A$7:$A$2005='تقرير شهرى'!L$3)*('مصروفات متغيره'!$G$6:$BD$6='تقرير شهرى'!$C28))) -> 0 | M28: =IF($C$4=$U$5,SUMPRODUCT(('مصروفات اساسية'!$G$7:$BD$2005)*('مصروفات اساسية'!$A$7:$A$2005='تقرير شهرى'!M$3)*('مصروفات اساسية'!$G$6:$BD$6='تقرير شهرى'!$C28)), SUMPRODUCT(('مصروفات متغيره'!$G$7:$BD$2005)*('مصروفات متغيره'!$A$7:$A$2005='تقرير شهرى'!M$3)*('مصروفات متغيره'!$G$6:$BD$6='تقرير شهرى'!$C28))) -> 0 | N28: =IF($C$4=$U$5,SUMPRODUCT(('مصروفات اساسية'!$G$7:$BD$2005)*('مصروفات اساسية'!$A$7:$A$2005='تقرير شهرى'!N$3)*('مصروفات اساسية'!$G$6:$BD$6='تقرير شهرى'!$C28)), SUMPRODUCT(('مصروفات متغيره'!$G$7:$BD$2005)*('مصروفات متغيره'!$A$7:$A$2005='تقرير شهرى'!N$3)*('مصروفات متغيره'!$G$6:$BD$6='تقرير شهرى'!$C28))) -> 0 | O28: =IF($C$4=$U$5,SUMPRODUCT(('مصروفات اساسية'!$G$7:$BD$2005)*('مصروفات اساسية'!$A$7:$A$2005='تقرير شهرى'!O$3)*('مصروفات اساسية'!$G$6:$BD$6='تقرير شهرى'!$C28)), SUMPRODUCT(('مصروفات متغيره'!$G$7:$BD$2005)*('مصروفات متغيره'!$A$7:$A$2005='تقرير شهرى'!O$3)*('مصروفات متغيره'!$G$6:$BD$6='تقرير شهرى'!$C28))) -> 0 | P28: 854.2 | Q28: 854.2
C29: =IF($C$4=$U$5,IF(الدليل!$C30="","",الدليل!C30),IF(الدليل!$E30="","",الدليل!E30)) -> فارغ20 | D29: =IF($C$4=$U$5,SUMPRODUCT(('مصروفات اساسية'!$G$7:$BD$2005)*('مصروفات اساسية'!$A$7:$A$2005='تقرير شهرى'!D$3)*('مصروفات اساسية'!$G$6:$BD$6='تقرير شهرى'!$C29)), SUMPRODUCT(('مصروفات متغيره'!$G$7:$BD$2005)*('مصروفات متغيره'!$A$7:$A$2005='تقرير شهرى'!D$3)*('مصروفات متغيره'!$G$6:$BD$6='تقرير شهرى'!$C29))) -> 880.6 | E29: =IF($C$4=$U$5,SUMPRODUCT(('مصروفات اساسية'!$G$7:$BD$2005)*('مصروفات اساسية'!$A$7:$A$2005='تقرير شهرى'!E$3)*('مصروفات اساسية'!$G$6:$BD$6='تقرير شهرى'!$C29)), SUMPRODUCT(('مصروفات متغيره'!$G$7:$BD$2005)*('مصروفات متغيره'!$A$7:$A$2005='تقرير شهرى'!E$3)*('مصروفات متغيره'!$G$6:$BD$6='تقرير شهرى'!$C29))) -> 0 | F29: =IF($C$4=$U$5,SUMPRODUCT(('مصروفات اساسية'!$G$7:$BD$2005)*('مصروفات اساسية'!$A$7:$A$2005='تقرير شهرى'!F$3)*('مصروفات اساسية'!$G$6:$BD$6='تقرير شهرى'!$C29)), SUMPRODUCT(('مصروفات متغيره'!$G$7:$BD$2005)*('مصروفات متغيره'!$A$7:$A$2005='تقرير شهرى'!F$3)*('مصروفات متغيره'!$G$6:$BD$6='تقرير شهرى'!$C29))) -> 0 | G29: =IF($C$4=$U$5,SUMPRODUCT(('مصروفات اساسية'!$G$7:$BD$2005)*('مصروفات اساسية'!$A$7:$A$2005='تقرير شهرى'!G$3)*('مصروفات اساسية'!$G$6:$BD$6='تقرير شهرى'!$C29)), SUMPRODUCT(('مصروفات متغيره'!$G$7:$BD$2005)*('مصروفات متغيره'!$A$7:$A$2005='تقرير شهرى'!G$3)*('مصروفات متغيره'!$G$6:$BD$6='تقرير شهرى'!$C29))) -> 0 | H29: =IF($C$4=$U$5,SUMPRODUCT(('مصروفات اساسية'!$G$7:$BD$2005)*('مصروفات اساسية'!$A$7:$A$2005='تقرير شهرى'!H$3)*('مصروفات اساسية'!$G$6:$BD$6='تقرير شهرى'!$C29)), SUMPRODUCT(('مصروفات متغيره'!$G$7:$BD$2005)*('مصروفات متغيره'!$A$7:$A$2005='تقرير شهرى'!H$3)*('مصروفات متغيره'!$G$6:$BD$6='تقرير شهرى'!$C29))) -> 0 | I29: =IF($C$4=$U$5,SUMPRODUCT(('مصروفات اساسية'!$G$7:$BD$2005)*('مصروفات اساسية'!$A$7:$A$2005='تقرير شهرى'!I$3)*('مصروفات اساسية'!$G$6:$BD$6='تقرير شهرى'!$C29)), SUMPRODUCT(('مصروفات متغيره'!$G$7:$BD$2005)*('مصروفات متغيره'!$A$7:$A$2005='تقرير شهرى'!I$3)*('مصروفات متغيره'!$G$6:$BD$6='تقرير شهرى'!$C29))) -> 0 | J29: =IF($C$4=$U$5,SUMPRODUCT(('مصروفات اساسية'!$G$7:$BD$2005)*('مصروفات اساسية'!$A$7:$A$2005='تقرير شهرى'!J$3)*('مصروفات اساسية'!$G$6:$BD$6='تقرير شهرى'!$C29)), SUMPRODUCT(('مصروفات متغيره'!$G$7:$BD$2005)*('مصروفات متغيره'!$A$7:$A$2005='تقرير شهرى'!J$3)*('مصروفات متغيره'!$G$6:$BD$6='تقرير شهرى'!$C29))) -> 0 | K29: =IF($C$4=$U$5,SUMPRODUCT(('مصروفات اساسية'!$G$7:$BD$2005)*('مصروفات اساسية'!$A$7:$A$2005='تقرير شهرى'!K$3)*('مصروفات اساسية'!$G$6:$BD$6='تقرير شهرى'!$C29)), SUMPRODUCT(('مصروفات متغيره'!$G$7:$BD$2005)*('مصروفات متغيره'!$A$7:$A$2005='تقرير شهرى'!K$3)*('مصروفات متغيره'!$G$6:$BD$6='تقرير شهرى'!$C29))) -> 0 | L29: =IF($C$4=$U$5,SUMPRODUCT(('مصروفات اساسية'!$G$7:$BD$2005)*('مصروفات اساسية'!$A$7:$A$2005='تقرير شهرى'!L$3)*('مصروفات اساسية'!$G$6:$BD$6='تقرير شهرى'!$C29)), SUMPRODUCT(('مصروفات متغيره'!$G$7:$BD$2005)*('مصروفات متغيره'!$A$7:$A$2005='تقرير شهرى'!L$3)*('مصروفات متغيره'!$G$6:$BD$6='تقرير شهرى'!$C29))) -> 0 | M29: =IF($C$4=$U$5,SUMPRODUCT(('مصروفات اساسية'!$G$7:$BD$2005)*('مصروفات اساسية'!$A$7:$A$2005='تقرير شهرى'!M$3)*('مصروفات اساسية'!$G$6:$BD$6='تقرير شهرى'!$C29)), SUMPRODUCT(('مصروفات متغيره'!$G$7:$BD$2005)*('مصروفات متغيره'!$A$7:$A$2005='تقرير شهرى'!M$3)*('مصروفات متغيره'!$G$6:$BD$6='تقرير شهرى'!$C29))) -> 0 | N29: =IF($C$4=$U$5,SUMPRODUCT(('مصروفات اساسية'!$G$7:$BD$2005)*('مصروفات اساسية'!$A$7:$A$2005='تقرير شهرى'!N$3)*('مصروفات اساسية'!$G$6:$BD$6='تقرير شهرى'!$C29)), SUMPRODUCT(('مصروفات متغيره'!$G$7:$BD$2005)*('مصروفات متغيره'!$A$7:$A$2005='تقرير شهرى'!N$3)*('مصروفات متغيره'!$G$6:$BD$6='تقرير شهرى'!$C29))) -> 0 | O29: =IF($C$4=$U$5,SUMPRODUCT(('مصروفات اساسية'!$G$7:$BD$2005)*('مصروفات اساسية'!$A$7:$A$2005='تقرير شهرى'!O$3)*('مصروفات اساسية'!$G$6:$BD$6='تقرير شهرى'!$C29)), SUMPRODUCT(('مصروفات متغيره'!$G$7:$BD$2005)*('مصروفات متغيره'!$A$7:$A$2005='تقرير شهرى'!O$3)*('مصروفات متغيره'!$G$6:$BD$6='تقرير شهرى'!$C29))) -> 0 | P29: 880.6 | Q29: 880.6
C30: =IF($C$4=$U$5,IF(الدليل!$C31="","",الدليل!C31),IF(الدليل!$E31="","",الدليل!E31)) -> فارغ21 | D30: =IF($C$4=$U$5,SUMPRODUCT(('مصروفات اساسية'!$G$7:$BD$2005)*('مصروفات اساسية'!$A$7:$A$2005='تقرير شهرى'!D$3)*('مصروفات اساسية'!$G$6:$BD$6='تقرير شهرى'!$C30)), SUMPRODUCT(('مصروفات متغيره'!$G$7:$BD$2005)*('مصروفات متغيره'!$A$7:$A$2005='تقرير شهرى'!D$3)*('مصروفات متغيره'!$G$6:$BD$6='تقرير شهرى'!$C30))) -> 907 | E30: =IF($C$4=$U$5,SUMPRODUCT(('مصروفات اساسية'!$G$7:$BD$2005)*('مصروفات اساسية'!$A$7:$A$2005='تقرير شهرى'!E$3)*('مصروفات اساسية'!$G$6:$BD$6='تقرير شهرى'!$C30)), SUMPRODUCT(('مصروفات متغيره'!$G$7:$BD$2005)*('مصروفات متغيره'!$A$7:$A$2005='تقرير شهرى'!E$3)*('مصروفات متغيره'!$G$6:$BD$6='تقرير شهرى'!$C30))) -> 0 | F30: =IF($C$4=$U$5,SUMPRODUCT(('مصروفات اساسية'!$G$7:$BD$2005)*('مصروفات اساسية'!$A$7:$A$2005='تقرير شهرى'!F$3)*('مصروفات اساسية'!$G$6:$BD$6='تقرير شهرى'!$C30)), SUMPRODUCT(('مصروفات متغيره'!$G$7:$BD$2005)*('مصروفات متغيره'!$A$7:$A$2005='تقرير شهرى'!F$3)*('مصروفات متغيره'!$G$6:$BD$6='تقرير شهرى'!$C30))) -> 0 | G30: =IF($C$4=$U$5,SUMPRODUCT(('مصروفات اساسية'!$G$7:$BD$2005)*('مصروفات اساسية'!$A$7:$A$2005='تقرير شهرى'!G$3)*('مصروفات اساسية'!$G$6:$BD$6='تقرير شهرى'!$C30)), SUMPRODUCT(('مصروفات متغيره'!$G$7:$BD$2005)*('مصروفات متغيره'!$A$7:$A$2005='تقرير شهرى'!G$3)*('مصروفات متغيره'!$G$6:$BD$6='تقرير شهرى'!$C30))) -> 0 | H30: =IF($C$4=$U$5,SUMPRODUCT(('مصروفات اساسية'!$G$7:$BD$2005)*('مصروفات اساسية'!$A$7:$A$2005='تقرير شهرى'!H$3)*('مصروفات اساسية'!$G$6:$BD$6='تقرير شهرى'!$C30)), SUMPRODUCT(('مصروفات متغيره'!$G$7:$BD$2005)*('مصروفات متغيره'!$A$7:$A$2005='تقرير شهرى'!H$3)*('مصروفات متغيره'!$G$6:$BD$6='تقرير شهرى'!$C30))) -> 0 | I30: =IF($C$4=$U$5,SUMPRODUCT(('مصروفات اساسية'!$G$7:$BD$2005)*('مصروفات اساسية'!$A$7:$A$2005='تقرير شهرى'!I$3)*('مصروفات اساسية'!$G$6:$BD$6='تقرير شهرى'!$C30)), SUMPRODUCT(('مصروفات متغيره'!$G$7:$BD$2005)*('مصروفات متغيره'!$A$7:$A$2005='تقرير شهرى'!I$3)*('مصروفات متغيره'!$G$6:$BD$6='تقرير شهرى'!$C30))) -> 0 | J30: =IF($C$4=$U$5,SUMPRODUCT(('مصروفات اساسية'!$G$7:$BD$2005)*('مصروفات اساسية'!$A$7:$A$2005='تقرير شهرى'!J$3)*('مصروفات اساسية'!$G$6:$BD$6='تقرير شهرى'!$C30)), SUMPRODUCT(('مصروفات متغيره'!$G$7:$BD$2005)*('مصروفات متغيره'!$A$7:$A$2005='تقرير شهرى'!J$3)*('مصروفات متغيره'!$G$6:$BD$6='تقرير شهرى'!$C30))) -> 0 | K30: =IF($C$4=$U$5,SUMPRODUCT(('مصروفات اساسية'!$G$7:$BD$2005)*('مصروفات اساسية'!$A$7:$A$2005='تقرير شهرى'!K$3)*('مصروفات اساسية'!$G$6:$BD$6='تقرير شهرى'!$C30)), SUMPRODUCT(('مصروفات متغيره'!$G$7:$BD$2005)*('مصروفات متغيره'!$A$7:$A$2005='تقرير شهرى'!K$3)*('مصروفات متغيره'!$G$6:$BD$6='تقرير شهرى'!$C30))) -> 0 | L30: =IF($C$4=$U$5,SUMPRODUCT(('مصروفات اساسية'!$G$7:$BD$2005)*('مصروفات اساسية'!$A$7:$A$2005='تقرير شهرى'!L$3)*('مصروفات اساسية'!$G$6:$BD$6='تقرير شهرى'!$C30)), SUMPRODUCT(('مصروفات متغيره'!$G$7:$BD$2005)*('مصروفات متغيره'!$A$7:$A$2005='تقرير شهرى'!L$3)*('مصروفات متغيره'!$G$6:$BD$6='تقرير شهرى'!$C30))) -> 0 | M30: =IF($C$4=$U$5,SUMPRODUCT(('مصروفات اساسية'!$G$7:$BD$2005)*('مصروفات اساسية'!$A$7:$A$2005='تقرير شهرى'!M$3)*('مصروفات اساسية'!$G$6:$BD$6='تقرير شهرى'!$C30)), SUMPRODUCT(('مصروفات متغيره'!$G$7:$BD$2005)*('مصروفات متغيره'!$A$7:$A$2005='تقرير شهرى'!M$3)*('مصروفات متغيره'!$G$6:$BD$6='تقرير شهرى'!$C30))) -> 0 | N30: =IF($C$4=$U$5,SUMPRODUCT(('مصروفات اساسية'!$G$7:$BD$2005)*('مصروفات اساسية'!$A$7:$A$2005='تقرير شهرى'!N$3)*('مصروفات اساسية'!$G$6:$BD$6='تقرير شهرى'!$C30)), SUMPRODUCT(('مصروفات متغيره'!$G$7:$BD$2005)*('مصروفات متغيره'!$A$7:$A$2005='تقرير شهرى'!N$3)*('مصروفات متغيره'!$G$6:$BD$6='تقرير شهرى'!$C30))) -> 0 | O30: =IF($C$4=$U$5,SUMPRODUCT(('مصروفات اساسية'!$G$7:$BD$2005)*('مصروفات اساسية'!$A$7:$A$2005='تقرير شهرى'!O$3)*('مصروفات اساسية'!$G$6:$BD$6='تقرير شهرى'!$C30)), SUMPRODUCT(('مصروفات متغيره'!$G$7:$BD$2005)*('مصروفات متغيره'!$A$7:$A$2005='تقرير شهرى'!O$3)*('مصروفات متغيره'!$G$6:$BD$6='تقرير شهرى'!$C30))) -> 0 | P30: 907 | Q30: 907
C31: =IF($C$4=$U$5,IF(الدليل!$C32="","",الدليل!C32),IF(الدليل!$E32="","",الدليل!E32)) -> فارغ22 | D31: =IF($C$4=$U$5,SUMPRODUCT(('مصروفات اساسية'!$G$7:$BD$2005)*('مصروفات اساسية'!$A$7:$A$2005='تقرير شهرى'!D$3)*('مصروفات اساسية'!$G$6:$BD$6='تقرير شهرى'!$C31)), SUMPRODUCT(('مصروفات متغيره'!$G$7:$BD$2005)*('مصروفات متغيره'!$A$7:$A$2005='تقرير شهرى'!D$3)*('مصروفات متغيره'!$G$6:$BD$6='تقرير شهرى'!$C31))) -> 933.4 | E31: =IF($C$4=$U$5,SUMPRODUCT(('مصروفات اساسية'!$G$7:$BD$2005)*('مصروفات اساسية'!$A$7:$A$2005='تقرير شهرى'!E$3)*('مصروفات اساسية'!$G$6:$BD$6='تقرير شهرى'!$C31)), SUMPRODUCT(('مصروفات متغيره'!$G$7:$BD$2005)*('مصروفات متغيره'!$A$7:$A$2005='تقرير شهرى'!E$3)*('مصروفات متغيره'!$G$6:$BD$6='تقرير شهرى'!$C31))) -> 0 | F31: =IF($C$4=$U$5,SUMPRODUCT(('مصروفات اساسية'!$G$7:$BD$2005)*('مصروفات اساسية'!$A$7:$A$2005='تقرير شهرى'!F$3)*('مصروفات اساسية'!$G$6:$BD$6='تقرير شهرى'!$C31)), SUMPRODUCT(('مصروفات متغيره'!$G$7:$BD$2005)*('مصروفات متغيره'!$A$7:$A$2005='تقرير شهرى'!F$3)*('مصروفات متغيره'!$G$6:$BD$6='تقرير شهرى'!$C31))) -> 0 | G31: =IF($C$4=$U$5,SUMPRODUCT(('مصروفات اساسية'!$G$7:$BD$2005)*('مصروفات اساسية'!$A$7:$A$2005='تقرير شهرى'!G$3)*('مصروفات اساسية'!$G$6:$BD$6='تقرير شهرى'!$C31)), SUMPRODUCT(('مصروفات متغيره'!$G$7:$BD$2005)*('مصروفات متغيره'!$A$7:$A$2005='تقرير شهرى'!G$3)*('مصروفات متغيره'!$G$6:$BD$6='تقرير شهرى'!$C31))) -> 0 | H31: =IF($C$4=$U$5,SUMPRODUCT(('مصروفات اساسية'!$G$7:$BD$2005)*('مصروفات اساسية'!$A$7:$A$2005='تقرير شهرى'!H$3)*('مصروفات اساسية'!$G$6:$BD$6='تقرير شهرى'!$C31)), SUMPRODUCT(('مصروفات متغيره'!$G$7:$BD$2005)*('مصروفات متغيره'!$A$7:$A$2005='تقرير شهرى'!H$3)*('مصروفات متغيره'!$G$6:$BD$6='تقرير شهرى'!$C31))) -> 0 | I31: =IF($C$4=$U$5,SUMPRODUCT(('مصروفات اساسية'!$G$7:$BD$2005)*('مصروفات اساسية'!$A$7:$A$2005='تقرير شهرى'!I$3)*('مصروفات اساسية'!$G$6:$BD$6='تقرير شهرى'!$C31)), SUMPRODUCT(('مصروفات متغيره'!$G$7:$BD$2005)*('مصروفات متغيره'!$A$7:$A$2005='تقرير شهرى'!I$3)*('مصروفات متغيره'!$G$6:$BD$6='تقرير شهرى'!$C31))) -> 0 | J31: =IF($C$4=$U$5,SUMPRODUCT(('مصروفات اساسية'!$G$7:$BD$2005)*('مصروفات اساسية'!$A$7:$A$2005='تقرير شهرى'!J$3)*('مصروفات اساسية'!$G$6:$BD$6='تقرير شهرى'!$C31)), SUMPRODUCT(('مصروفات متغيره'!$G$7:$BD$2005)*('مصروفات متغيره'!$A$7:$A$2005='تقرير شهرى'!J$3)*('مصروفات متغيره'!$G$6:$BD$6='تقرير شهرى'!$C31))) -> 0 | K31: =IF($C$4=$U$5,SUMPRODUCT(('مصروفات اساسية'!$G$7:$BD$2005)*('مصروفات اساسية'!$A$7:$A$2005='تقرير شهرى'!K$3)*('مصروفات اساسية'!$G$6:$BD$6='تقرير شهرى'!$C31)), SUMPRODUCT(('مصروفات متغيره'!$G$7:$BD$2005)*('مصروفات متغيره'!$A$7:$A$2005='تقرير شهرى'!K$3)*('مصروفات متغيره'!$G$6:$BD$6='تقرير شهرى'!$C31))) -> 0 | L31: =IF($C$4=$U$5,SUMPRODUCT(('مصروفات اساسية'!$G$7:$BD$2005)*('مصروفات اساسية'!$A$7:$A$2005='تقرير شهرى'!L$3)*('مصروفات اساسية'!$G$6:$BD$6='تقرير شهرى'!$C31)), SUMPRODUCT(('مصروفات متغيره'!$G$7:$BD$2005)*('مصروفات متغيره'!$A$7:$A$2005='تقرير شهرى'!L$3)*('مصروفات متغيره'!$G$6:$BD$6='تقرير شهرى'!$C31))) -> 0 | M31: =IF($C$4=$U$5,SUMPRODUCT(('مصروفات اساسية'!$G$7:$BD$2005)*('مصروفات اساسية'!$A$7:$A$2005='تقرير شهرى'!M$3)*('مصروفات اساسية'!$G$6:$BD$6='تقرير شهرى'!$C31)), SUMPRODUCT(('مصروفات متغيره'!$G$7:$BD$2005)*('مصروفات متغيره'!$A$7:$A$2005='تقرير شهرى'!M$3)*('مصروفات متغيره'!$G$6:$BD$6='تقرير شهرى'!$C31))) -> 0 | N31: =IF($C$4=$U$5,SUMPRODUCT(('مصروفات اساسية'!$G$7:$BD$2005)*('مصروفات اساسية'!$A$7:$A$2005='تقرير شهرى'!N$3)*('مصروفات اساسية'!$G$6:$BD$6='تقرير شهرى'!$C31)), SUMPRODUCT(('مصروفات متغيره'!$G$7:$BD$2005)*('مصروفات متغيره'!$A$7:$A$2005='تقرير شهرى'!N$3)*('مصروفات متغيره'!$G$6:$BD$6='تقرير شهرى'!$C31))) -> 0 | O31: =IF($C$4=$U$5,SUMPRODUCT(('مصروفات اساسية'!$G$7:$BD$2005)*('مصروفات اساسية'!$A$7:$A$2005='تقرير شهرى'!O$3)*('مصروفات اساسية'!$G$6:$BD$6='تقرير شهرى'!$C31)), SUMPRODUCT(('مصروفات متغيره'!$G$7:$BD$2005)*('مصروفات متغيره'!$A$7:$A$2005='تقرير شهرى'!O$3)*('مصروفات متغيره'!$G$6:$BD$6='تقرير شهرى'!$C31))) -> 0 | P31: 933.4 | Q31: 933.4
C32: =IF($C$4=$U$5,IF(الدليل!$C33="","",الدليل!C33),IF(الدليل!$E33="","",الدليل!E33)) -> فارغ23 | D32: =IF($C$4=$U$5,SUMPRODUCT(('مصروفات اساسية'!$G$7:$BD$2005)*('مصروفات اساسية'!$A$7:$A$2005='تقرير شهرى'!D$3)*('مصروفات اساسية'!$G$6:$BD$6='تقرير شهرى'!$C32)), SUMPRODUCT(('مصروفات متغيره'!$G$7:$BD$2005)*('مصروفات متغيره'!$A$7:$A$2005='تقرير شهرى'!D$3)*('مصروفات متغيره'!$G$6:$BD$6='تقرير شهرى'!$C32))) -> 959.8 | E32: =IF($C$4=$U$5,SUMPRODUCT(('مصروفات اساسية'!$G$7:$BD$2005)*('مصروفات اساسية'!$A$7:$A$2005='تقرير شهرى'!E$3)*('مصروفات اساسية'!$G$6:$BD$6='تقرير شهرى'!$C32)), SUMPRODUCT(('مصروفات متغيره'!$G$7:$BD$2005)*('مصروفات متغيره'!$A$7:$A$2005='تقرير شهرى'!E$3)*('مصروفات متغيره'!$G$6:$BD$6='تقرير شهرى'!$C32))) -> 0 | F32: =IF($C$4=$U$5,SUMPRODUCT(('مصروفات اساسية'!$G$7:$BD$2005)*('مصروفات اساسية'!$A$7:$A$2005='تقرير شهرى'!F$3)*('مصروفات اساسية'!$G$6:$BD$6='تقرير شهرى'!$C32)), SUMPRODUCT(('مصروفات متغيره'!$G$7:$BD$2005)*('مصروفات متغيره'!$A$7:$A$2005='تقرير شهرى'!F$3)*('مصروفات متغيره'!$G$6:$BD$6='تقرير شهرى'!$C32))) -> 0 | G32: =IF($C$4=$U$5,SUMPRODUCT(('مصروفات اساسية'!$G$7:$BD$2005)*('مصروفات اساسية'!$A$7:$A$2005='تقرير شهرى'!G$3)*('مصروفات اساسية'!$G$6:$BD$6='تقرير شهرى'!$C32)), SUMPRODUCT(('مصروفات متغيره'!$G$7:$BD$2005)*('مصروفات متغيره'!$A$7:$A$2005='تقرير شهرى'!G$3)*('مصروفات متغيره'!$G$6:$BD$6='تقرير شهرى'!$C32))) -> 0 | H32: =IF($C$4=$U$5,SUMPRODUCT(('مصروفات اساسية'!$G$7:$BD$2005)*('مصروفات اساسية'!$A$7:$A$2005='تقرير شهرى'!H$3)*('مصروفات اساسية'!$G$6:$BD$6='تقرير شهرى'!$C32)), SUMPRODUCT(('مصروفات متغيره'!$G$7:$BD$2005)*('مصروفات متغيره'!$A$7:$A$2005='تقرير شهرى'!H$3)*('مصروفات متغيره'!$G$6:$BD$6='تقرير شهرى'!$C32))) -> 0 | I32: =IF($C$4=$U$5,SUMPRODUCT(('مصروفات اساسية'!$G$7:$BD$2005)*('مصروفات اساسية'!$A$7:$A$2005='تقرير شهرى'!I$3)*('مصروفات اساسية'!$G$6:$BD$6='تقرير شهرى'!$C32)), SUMPRODUCT(('مصروفات متغيره'!$G$7:$BD$2005)*('مصروفات متغيره'!$A$7:$A$2005='تقرير شهرى'!I$3)*('مصروفات متغيره'!$G$6:$BD$6='تقرير شهرى'!$C32))) -> 0 | J32: =IF($C$4=$U$5,SUMPRODUCT(('مصروفات اساسية'!$G$7:$BD$2005)*('مصروفات اساسية'!$A$7:$A$2005='تقرير شهرى'!J$3)*('مصروفات اساسية'!$G$6:$BD$6='تقرير شهرى'!$C32)), SUMPRODUCT(('مصروفات متغيره'!$G$7:$BD$2005)*('مصروفات متغيره'!$A$7:$A$2005='تقرير شهرى'!J$3)*('مصروفات متغيره'!$G$6:$BD$6='تقرير شهرى'!$C32))) -> 0 | K32: =IF($C$4=$U$5,SUMPRODUCT(('مصروفات اساسية'!$G$7:$BD$2005)*('مصروفات اساسية'!$A$7:$A$2005='تقرير شهرى'!K$3)*('مصروفات اساسية'!$G$6:$BD$6='تقرير شهرى'!$C32)), SUMPRODUCT(('مصروفات متغيره'!$G$7:$BD$2005)*('مصروفات متغيره'!$A$7:$A$2005='تقرير شهرى'!K$3)*('مصروفات متغيره'!$G$6:$BD$6='تقرير شهرى'!$C32))) -> 0 | L32: =IF($C$4=$U$5,SUMPRODUCT(('مصروفات اساسية'!$G$7:$BD$2005)*('مصروفات اساسية'!$A$7:$A$2005='تقرير شهرى'!L$3)*('مصروفات اساسية'!$G$6:$BD$6='تقرير شهرى'!$C32)), SUMPRODUCT(('مصروفات متغيره'!$G$7:$BD$2005)*('مصروفات متغيره'!$A$7:$A$2005='تقرير شهرى'!L$3)*('مصروفات متغيره'!$G$6:$BD$6='تقرير شهرى'!$C32))) -> 0 | M32: =IF($C$4=$U$5,SUMPRODUCT(('مصروفات اساسية'!$G$7:$BD$2005)*('مصروفات اساسية'!$A$7:$A$2005='تقرير شهرى'!M$3)*('مصروفات اساسية'!$G$6:$BD$6='تقرير شهرى'!$C32)), SUMPRODUCT(('مصروفات متغيره'!$G$7:$BD$2005)*('مصروفات متغيره'!$A$7:$A$2005='تقرير شهرى'!M$3)*('مصروفات متغيره'!$G$6:$BD$6='تقرير شهرى'!$C32))) -> 0 | N32: =IF($C$4=$U$5,SUMPRODUCT(('مصروفات اساسية'!$G$7:$BD$2005)*('مصروفات اساسية'!$A$7:$A$2005='تقرير شهرى'!N$3)*('مصروفات اساسية'!$G$6:$BD$6='تقرير شهرى'!$C32)), SUMPRODUCT(('مصروفات متغيره'!$G$7:$BD$2005)*('مصروفات متغيره'!$A$7:$A$2005='تقرير شهرى'!N$3)*('مصروفات متغيره'!$G$6:$BD$6='تقرير شهرى'!$C32))) -> 0 | O32: =IF($C$4=$U$5,SUMPRODUCT(('مصروفات اساسية'!$G$7:$BD$2005)*('مصروفات اساسية'!$A$7:$A$2005='تقرير شهرى'!O$3)*('مصروفات اساسية'!$G$6:$BD$6='تقرير شهرى'!$C32)), SUMPRODUCT(('مصروفات متغيره'!$G$7:$BD$2005)*('مصروفات متغيره'!$A$7:$A$2005='تقرير شهرى'!O$3)*('مصروفات متغيره'!$G$6:$BD$6='تقرير شهرى'!$C32))) -> 0 | P32: 959.8 | Q32: 959.8
C33: =IF($C$4=$U$5,IF(الدليل!$C34="","",الدليل!C34),IF(الدليل!$E34="","",الدليل!E34)) -> فارغ24 | D33: =IF($C$4=$U$5,SUMPRODUCT(('مصروفات اساسية'!$G$7:$BD$2005)*('مصروفات اساسية'!$A$7:$A$2005='تقرير شهرى'!D$3)*('مصروفات اساسية'!$G$6:$BD$6='تقرير شهرى'!$C33)), SUMPRODUCT(('مصروفات متغيره'!$G$7:$BD$2005)*('مصروفات متغيره'!$A$7:$A$2005='تقرير شهرى'!D$3)*('مصروفات متغيره'!$G$6:$BD$6='تقرير شهرى'!$C33))) -> 986.2 | E33: =IF($C$4=$U$5,SUMPRODUCT(('مصروفات اساسية'!$G$7:$BD$2005)*('مصروفات اساسية'!$A$7:$A$2005='تقرير شهرى'!E$3)*('مصروفات اساسية'!$G$6:$BD$6='تقرير شهرى'!$C33)), SUMPRODUCT(('مصروفات متغيره'!$G$7:$BD$2005)*('مصروفات متغيره'!$A$7:$A$2005='تقرير شهرى'!E$3)*('مصروفات متغيره'!$G$6:$BD$6='تقرير شهرى'!$C33))) -> 0 | F33: =IF($C$4=$U$5,SUMPRODUCT(('مصروفات اساسية'!$G$7:$BD$2005)*('مصروفات اساسية'!$A$7:$A$2005='تقرير شهرى'!F$3)*('مصروفات اساسية'!$G$6:$BD$6='تقرير شهرى'!$C33)), SUMPRODUCT(('مصروفات متغيره'!$G$7:$BD$2005)*('مصروفات متغيره'!$A$7:$A$2005='تقرير شهرى'!F$3)*('مصروفات متغيره'!$G$6:$BD$6='تقرير شهرى'!$C33))) -> 0 | G33: =IF($C$4=$U$5,SUMPRODUCT(('مصروفات اساسية'!$G$7:$BD$2005)*('مصروفات اساسية'!$A$7:$A$2005='تقرير شهرى'!G$3)*('مصروفات اساسية'!$G$6:$BD$6='تقرير شهرى'!$C33)), SUMPRODUCT(('مصروفات متغيره'!$G$7:$BD$2005)*('مصروفات متغيره'!$A$7:$A$2005='تقرير شهرى'!G$3)*('مصروفات متغيره'!$G$6:$BD$6='تقرير شهرى'!$C33))) -> 0 | H33: =IF($C$4=$U$5,SUMPRODUCT(('مصروفات اساسية'!$G$7:$BD$2005)*('مصروفات اساسية'!$A$7:$A$2005='تقرير شهرى'!H$3)*('مصروفات اساسية'!$G$6:$BD$6='تقرير شهرى'!$C33)), SUMPRODUCT(('مصروفات متغيره'!$G$7:$BD$2005)*('مصروفات متغيره'!$A$7:$A$2005='تقرير شهرى'!H$3)*('مصروفات متغيره'!$G$6:$BD$6='تقرير شهرى'!$C33))) -> 0 | I33: =IF($C$4=$U$5,SUMPRODUCT(('مصروفات اساسية'!$G$7:$BD$2005)*('مصروفات اساسية'!$A$7:$A$2005='تقرير شهرى'!I$3)*('مصروفات اساسية'!$G$6:$BD$6='تقرير شهرى'!$C33)), SUMPRODUCT(('مصروفات متغيره'!$G$7:$BD$2005)*('مصروفات متغيره'!$A$7:$A$2005='تقرير شهرى'!I$3)*('مصروفات متغيره'!$G$6:$BD$6='تقرير شهرى'!$C33))) -> 0 | J33: =IF($C$4=$U$5,SUMPRODUCT(('مصروفات اساسية'!$G$7:$BD$2005)*('مصروفات اساسية'!$A$7:$A$2005='تقرير شهرى'!J$3)*('مصروفات اساسية'!$G$6:$BD$6='تقرير شهرى'!$C33)), SUMPRODUCT(('مصروفات متغيره'!$G$7:$BD$2005)*('مصروفات متغيره'!$A$7:$A$2005='تقرير شهرى'!J$3)*('مصروفات متغيره'!$G$6:$BD$6='تقرير شهرى'!$C33))) -> 0 | K33: =IF($C$4=$U$5,SUMPRODUCT(('مصروفات اساسية'!$G$7:$BD$2005)*('مصروفات اساسية'!$A$7:$A$2005='تقرير شهرى'!K$3)*('مصروفات اساسية'!$G$6:$BD$6='تقرير شهرى'!$C33)), SUMPRODUCT(('مصروفات متغيره'!$G$7:$BD$2005)*('مصروفات متغيره'!$A$7:$A$2005='تقرير شهرى'!K$3)*('مصروفات متغيره'!$G$6:$BD$6='تقرير شهرى'!$C33))) -> 0 | L33: =IF($C$4=$U$5,SUMPRODUCT(('مصروفات اساسية'!$G$7:$BD$2005)*('مصروفات اساسية'!$A$7:$A$2005='تقرير شهرى'!L$3)*('مصروفات اساسية'!$G$6:$BD$6='تقرير شهرى'!$C33)), SUMPRODUCT(('مصروفات متغيره'!$G$7:$BD$2005)*('مصروفات متغيره'!$A$7:$A$2005='تقرير شهرى'!L$3)*('مصروفات متغيره'!$G$6:$BD$6='تقرير شهرى'!$C33))) -> 0 | M33: =IF($C$4=$U$5,SUMPRODUCT(('مصروفات اساسية'!$G$7:$BD$2005)*('مصروفات اساسية'!$A$7:$A$2005='تقرير شهرى'!M$3)*('مصروفات اساسية'!$G$6:$BD$6='تقرير شهرى'!$C33)), SUMPRODUCT(('مصروفات متغيره'!$G$7:$BD$2005)*('مصروفات متغيره'!$A$7:$A$2005='تقرير شهرى'!M$3)*('مصروفات متغيره'!$G$6:$BD$6='تقرير شهرى'!$C33))) -> 0 | N33: =IF($C$4=$U$5,SUMPRODUCT(('مصروفات اساسية'!$G$7:$BD$2005)*('مصروفات اساسية'!$A$7:$A$2005='تقرير شهرى'!N$3)*('مصروفات اساسية'!$G$6:$BD$6='تقرير شهرى'!$C33)), SUMPRODUCT(('مصروفات متغيره'!$G$7:$BD$2005)*('مصروفات متغيره'!$A$7:$A$2005='تقرير شهرى'!N$3)*('مصروفات متغيره'!$G$6:$BD$6='تقرير شهرى'!$C33))) -> 0 | O33: =IF($C$4=$U$5,SUMPRODUCT(('مصروفات اساسية'!$G$7:$BD$2005)*('مصروفات اساسية'!$A$7:$A$2005='تقرير شهرى'!O$3)*('مصروفات اساسية'!$G$6:$BD$6='تقرير شهرى'!$C33)), SUMPRODUCT(('مصروفات متغيره'!$G$7:$BD$2005)*('مصروفات متغيره'!$A$7:$A$2005='تقرير شهرى'!O$3)*('مصروفات متغيره'!$G$6:$BD$6='تقرير شهرى'!$C33))) -> 0 | P33: 986.2 | Q33: 986.2
C34: =IF($C$4=$U$5,IF(الدليل!$C35="","",الدليل!C35),IF(الدليل!$E35="","",الدليل!E35)) -> فارغ25 | D34: =IF($C$4=$U$5,SUMPRODUCT(('مصروفات اساسية'!$G$7:$BD$2005)*('مصروفات اساسية'!$A$7:$A$2005='تقرير شهرى'!D$3)*('مصروفات اساسية'!$G$6:$BD$6='تقرير شهرى'!$C34)), SUMPRODUCT(('مصروفات متغيره'!$G$7:$BD$2005)*('مصروفات متغيره'!$A$7:$A$2005='تقرير شهرى'!D$3)*('مصروفات متغيره'!$G$6:$BD$6='تقرير شهرى'!$C34))) -> 1012.6 | E34: =IF($C$4=$U$5,SUMPRODUCT(('مصروفات اساسية'!$G$7:$BD$2005)*('مصروفات اساسية'!$A$7:$A$2005='تقرير شهرى'!E$3)*('مصروفات اساسية'!$G$6:$BD$6='تقرير شهرى'!$C34)), SUMPRODUCT(('مصروفات متغيره'!$G$7:$BD$2005)*('مصروفات متغيره'!$A$7:$A$2005='تقرير شهرى'!E$3)*('مصروفات متغيره'!$G$6:$BD$6='تقرير شهرى'!$C34))) -> 0 | F34: =IF($C$4=$U$5,SUMPRODUCT(('مصروفات اساسية'!$G$7:$BD$2005)*('مصروفات اساسية'!$A$7:$A$2005='تقرير شهرى'!F$3)*('مصروفات اساسية'!$G$6:$BD$6='تقرير شهرى'!$C34)), SUMPRODUCT(('مصروفات متغيره'!$G$7:$BD$2005)*('مصروفات متغيره'!$A$7:$A$2005='تقرير شهرى'!F$3)*('مصروفات متغيره'!$G$6:$BD$6='تقرير شهرى'!$C34))) -> 0 | G34: =IF($C$4=$U$5,SUMPRODUCT(('مصروفات اساسية'!$G$7:$BD$2005)*('مصروفات اساسية'!$A$7:$A$2005='تقرير شهرى'!G$3)*('مصروفات اساسية'!$G$6:$BD$6='تقرير شهرى'!$C34)), SUMPRODUCT(('مصروفات متغيره'!$G$7:$BD$2005)*('مصروفات متغيره'!$A$7:$A$2005='تقرير شهرى'!G$3)*('مصروفات متغيره'!$G$6:$BD$6='تقرير شهرى'!$C34))) -> 0 | H34: =IF($C$4=$U$5,SUMPRODUCT(('مصروفات اساسية'!$G$7:$BD$2005)*('مصروفات اساسية'!$A$7:$A$2005='تقرير شهرى'!H$3)*('مصروفات اساسية'!$G$6:$BD$6='تقرير شهرى'!$C34)), SUMPRODUCT(('مصروفات متغيره'!$G$7:$BD$2005)*('مصروفات متغيره'!$A$7:$A$2005='تقرير شهرى'!H$3)*('مصروفات متغيره'!$G$6:$BD$6='تقرير شهرى'!$C34))) -> 0 | I34: =IF($C$4=$U$5,SUMPRODUCT(('مصروفات اساسية'!$G$7:$BD$2005)*('مصروفات اساسية'!$A$7:$A$2005='تقرير شهرى'!I$3)*('مصروفات اساسية'!$G$6:$BD$6='تقرير شهرى'!$C34)), SUMPRODUCT(('مصروفات متغيره'!$G$7:$BD$2005)*('مصروفات متغيره'!$A$7:$A$2005='تقرير شهرى'!I$3)*('مصروفات متغيره'!$G$6:$BD$6='تقرير شهرى'!$C34))) -> 0 | J34: =IF($C$4=$U$5,SUMPRODUCT(('مصروفات اساسية'!$G$7:$BD$2005)*('مصروفات اساسية'!$A$7:$A$2005='تقرير شهرى'!J$3)*('مصروفات اساسية'!$G$6:$BD$6='تقرير شهرى'!$C34)), SUMPRODUCT(('مصروفات متغيره'!$G$7:$BD$2005)*('مصروفات متغيره'!$A$7:$A$2005='تقرير شهرى'!J$3)*('مصروفات متغيره'!$G$6:$BD$6='تقرير شهرى'!$C34))) -> 0 | K34: =IF($C$4=$U$5,SUMPRODUCT(('مصروفات اساسية'!$G$7:$BD$2005)*('مصروفات اساسية'!$A$7:$A$2005='تقرير شهرى'!K$3)*('مصروفات اساسية'!$G$6:$BD$6='تقرير شهرى'!$C34)), SUMPRODUCT(('مصروفات متغيره'!$G$7:$BD$2005)*('مصروفات متغيره'!$A$7:$A$2005='تقرير شهرى'!K$3)*('مصروفات متغيره'!$G$6:$BD$6='تقرير شهرى'!$C34))) -> 0 | L34: =IF($C$4=$U$5,SUMPRODUCT(('مصروفات اساسية'!$G$7:$BD$2005)*('مصروفات اساسية'!$A$7:$A$2005='تقرير شهرى'!L$3)*('مصروفات اساسية'!$G$6:$BD$6='تقرير شهرى'!$C34)), SUMPRODUCT(('مصروفات متغيره'!$G$7:$BD$2005)*('مصروفات متغيره'!$A$7:$A$2005='تقرير شهرى'!L$3)*('مصروفات متغيره'!$G$6:$BD$6='تقرير شهرى'!$C34))) -> 0 | M34: =IF($C$4=$U$5,SUMPRODUCT(('مصروفات اساسية'!$G$7:$BD$2005)*('مصروفات اساسية'!$A$7:$A$2005='تقرير شهرى'!M$3)*('مصروفات اساسية'!$G$6:$BD$6='تقرير شهرى'!$C34)), SUMPRODUCT(('مصروفات متغيره'!$G$7:$BD$2005)*('مصروفات متغيره'!$A$7:$A$2005='تقرير شهرى'!M$3)*('مصروفات متغيره'!$G$6:$BD$6='تقرير شهرى'!$C34))) -> 0 | N34: =IF($C$4=$U$5,SUMPRODUCT(('مصروفات اساسية'!$G$7:$BD$2005)*('مصروفات اساسية'!$A$7:$A$2005='تقرير شهرى'!N$3)*('مصروفات اساسية'!$G$6:$BD$6='تقرير شهرى'!$C34)), SUMPRODUCT(('مصروفات متغيره'!$G$7:$BD$2005)*('مصروفات متغيره'!$A$7:$A$2005='تقرير شهرى'!N$3)*('مصروفات متغيره'!$G$6:$BD$6='تقرير شهرى'!$C34))) -> 0 | O34: =IF($C$4=$U$5,SUMPRODUCT(('مصروفات اساسية'!$G$7:$BD$2005)*('مصروفات اساسية'!$A$7:$A$2005='تقرير شهرى'!O$3)*('مصروفات اساسية'!$G$6:$BD$6='تقرير شهرى'!$C34)), SUMPRODUCT(('مصروفات متغيره'!$G$7:$BD$2005)*('مصروفات متغيره'!$A$7:$A$2005='تقرير شهرى'!O$3)*('مصروفات متغيره'!$G$6:$BD$6='تقرير شهرى'!$C34))) -> 0 | P34: 1012.6 | Q34: 1012.6
C35: =IF($C$4=$U$5,IF(الدليل!$C36="","",الدليل!C36),IF(الدليل!$E36="","",الدليل!E36)) -> فارغ26 | D35: =IF($C$4=$U$5,SUMPRODUCT(('مصروفات اساسية'!$G$7:$BD$2005)*('مصروفات اساسية'!$A$7:$A$2005='تقرير شهرى'!D$3)*('مصروفات اساسية'!$G$6:$BD$6='تقرير شهرى'!$C35)), SUMPRODUCT(('مصروفات متغيره'!$G$7:$BD$2005)*('مصروفات متغيره'!$A$7:$A$2005='تقرير شهرى'!D$3)*('مصروفات متغيره'!$G$6:$BD$6='تقرير شهرى'!$C35))) -> 1500 | E35: =IF($C$4=$U$5,SUMPRODUCT(('مصروفات اساسية'!$G$7:$BD$2005)*('مصروفات اساسية'!$A$7:$A$2005='تقرير شهرى'!E$3)*('مصروفات اساسية'!$G$6:$BD$6='تقرير شهرى'!$C35)), SUMPRODUCT(('مصروفات متغيره'!$G$7:$BD$2005)*('مصروفات متغيره'!$A$7:$A$2005='تقرير شهرى'!E$3)*('مصروفات متغيره'!$G$6:$BD$6='تقرير شهرى'!$C35))) -> 0 | F35: =IF($C$4=$U$5,SUMPRODUCT(('مصروفات اساسية'!$G$7:$BD$2005)*('مصروفات اساسية'!$A$7:$A$2005='تقرير شهرى'!F$3)*('مصروفات اساسية'!$G$6:$BD$6='تقرير شهرى'!$C35)), SUMPRODUCT(('مصروفات متغيره'!$G$7:$BD$2005)*('مصروفات متغيره'!$A$7:$A$2005='تقرير شهرى'!F$3)*('مصروفات متغيره'!$G$6:$BD$6='تقرير شهرى'!$C35))) -> 0 | G35: =IF($C$4=$U$5,SUMPRODUCT(('مصروفات اساسية'!$G$7:$BD$2005)*('مصروفات اساسية'!$A$7:$A$2005='تقرير شهرى'!G$3)*('مصروفات اساسية'!$G$6:$BD$6='تقرير شهرى'!$C35)), SUMPRODUCT(('مصروفات متغيره'!$G$7:$BD$2005)*('مصروفات متغيره'!$A$7:$A$2005='تقرير شهرى'!G$3)*('مصروفات متغيره'!$G$6:$BD$6='تقرير شهرى'!$C35))) -> 0 | H35: =IF($C$4=$U$5,SUMPRODUCT(('مصروفات اساسية'!$G$7:$BD$2005)*('مصروفات اساسية'!$A$7:$A$2005='تقرير شهرى'!H$3)*('مصروفات اساسية'!$G$6:$BD$6='تقرير شهرى'!$C35)), SUMPRODUCT(('مصروفات متغيره'!$G$7:$BD$2005)*('مصروفات متغيره'!$A$7:$A$2005='تقرير شهرى'!H$3)*('مصروفات متغيره'!$G$6:$BD$6='تقرير شهرى'!$C35))) -> 0 | I35: =IF($C$4=$U$5,SUMPRODUCT(('مصروفات اساسية'!$G$7:$BD$2005)*('مصروفات اساسية'!$A$7:$A$2005='تقرير شهرى'!I$3)*('مصروفات اساسية'!$G$6:$BD$6='تقرير شهرى'!$C35)), SUMPRODUCT(('مصروفات متغيره'!$G$7:$BD$2005)*('مصروفات متغيره'!$A$7:$A$2005='تقرير شهرى'!I$3)*('مصروفات متغيره'!$G$6:$BD$6='تقرير شهرى'!$C35))) -> 0 | J35: =IF($C$4=$U$5,SUMPRODUCT(('مصروفات اساسية'!$G$7:$BD$2005)*('مصروفات اساسية'!$A$7:$A$2005='تقرير شهرى'!J$3)*('مصروفات اساسية'!$G$6:$BD$6='تقرير شهرى'!$C35)), SUMPRODUCT(('مصروفات متغيره'!$G$7:$BD$2005)*('مصروفات متغيره'!$A$7:$A$2005='تقرير شهرى'!J$3)*('مصروفات متغيره'!$G$6:$BD$6='تقرير شهرى'!$C35))) -> 0 | K35: =IF($C$4=$U$5,SUMPRODUCT(('مصروفات اساسية'!$G$7:$BD$2005)*('مصروفات اساسية'!$A$7:$A$2005='تقرير شهرى'!K$3)*('مصروفات اساسية'!$G$6:$BD$6='تقرير شهرى'!$C35)), SUMPRODUCT(('مصروفات متغيره'!$G$7:$BD$2005)*('مصروفات متغيره'!$A$7:$A$2005='تقرير شهرى'!K$3)*('مصروفات متغيره'!$G$6:$BD$6='تقرير شهرى'!$C35))) -> 0 | L35: =IF($C$4=$U$5,SUMPRODUCT(('مصروفات اساسية'!$G$7:$BD$2005)*('مصروفات اساسية'!$A$7:$A$2005='تقرير شهرى'!L$3)*('مصروفات اساسية'!$G$6:$BD$6='تقرير شهرى'!$C35)), SUMPRODUCT(('مصروفات متغيره'!$G$7:$BD$2005)*('مصروفات متغيره'!$A$7:$A$2005='تقرير شهرى'!L$3)*('مصروفات متغيره'!$G$6:$BD$6='تقرير شهرى'!$C35))) -> 0 | M35: =IF($C$4=$U$5,SUMPRODUCT(('مصروفات اساسية'!$G$7:$BD$2005)*('مصروفات اساسية'!$A$7:$A$2005='تقرير شهرى'!M$3)*('مصروفات اساسية'!$G$6:$BD$6='تقرير شهرى'!$C35)), SUMPRODUCT(('مصروفات متغيره'!$G$7:$BD$2005)*('مصروفات متغيره'!$A$7:$A$2005='تقرير شهرى'!M$3)*('مصروفات متغيره'!$G$6:$BD$6='تقرير شهرى'!$C35))) -> 0 | N35: =IF($C$4=$U$5,SUMPRODUCT(('مصروفات اساسية'!$G$7:$BD$2005)*('مصروفات اساسية'!$A$7:$A$2005='تقرير شهرى'!N$3)*('مصروفات اساسية'!$G$6:$BD$6='تقرير شهرى'!$C35)), SUMPRODUCT(('مصروفات متغيره'!$G$7:$BD$2005)*('مصروفات متغيره'!$A$7:$A$2005='تقرير شهرى'!N$3)*('مصروفات متغيره'!$G$6:$BD$6='تقرير شهرى'!$C35))) -> 0 | O35: =IF($C$4=$U$5,SUMPRODUCT(('مصروفات اساسية'!$G$7:$BD$2005)*('مصروفات اساسية'!$A$7:$A$2005='تقرير شهرى'!O$3)*('مصروفات اساسية'!$G$6:$BD$6='تقرير شهرى'!$C35)), SUMPRODUCT(('مصروفات متغيره'!$G$7:$BD$2005)*('مصروفات متغيره'!$A$7:$A$2005='تقرير شهرى'!O$3)*('مصروفات متغيره'!$G$6:$BD$6='تقرير شهرى'!$C35))) -> 0 | P35: 1500 | Q35: 1500
C36: =IF($C$4=$U$5,IF(الدليل!$C37="","",الدليل!C37),IF(الدليل!$E37="","",الدليل!E37)) -> فارغ27 | D36: =IF($C$4=$U$5,SUMPRODUCT(('مصروفات اساسية'!$G$7:$BD$2005)*('مصروفات اساسية'!$A$7:$A$2005='تقرير شهرى'!D$3)*('مصروفات اساسية'!$G$6:$BD$6='تقرير شهرى'!$C36)), SUMPRODUCT(('مصروفات متغيره'!$G$7:$BD$2005)*('مصروفات متغيره'!$A$7:$A$2005='تقرير شهرى'!D$3)*('مصروفات متغيره'!$G$6:$BD$6='تقرير شهرى'!$C36))) -> 1300 | E36: =IF($C$4=$U$5,SUMPRODUCT(('مصروفات اساسية'!$G$7:$BD$2005)*('مصروفات اساسية'!$A$7:$A$2005='تقرير شهرى'!E$3)*('مصروفات اساسية'!$G$6:$BD$6='تقرير شهرى'!$C36)), SUMPRODUCT(('مصروفات متغيره'!$G$7:$BD$2005)*('مصروفات متغيره'!$A$7:$A$2005='تقرير شهرى'!E$3)*('مصروفات متغيره'!$G$6:$BD$6='تقرير شهرى'!$C36))) -> 0 | F36: =IF($C$4=$U$5,SUMPRODUCT(('مصروفات اساسية'!$G$7:$BD$2005)*('مصروفات اساسية'!$A$7:$A$2005='تقرير شهرى'!F$3)*('مصروفات اساسية'!$G$6:$BD$6='تقرير شهرى'!$C36)), SUMPRODUCT(('مصروفات متغيره'!$G$7:$BD$2005)*('مصروفات متغيره'!$A$7:$A$2005='تقرير شهرى'!F$3)*('مصروفات متغيره'!$G$6:$BD$6='تقرير شهرى'!$C36))) -> 0 | G36: =IF($C$4=$U$5,SUMPRODUCT(('مصروفات اساسية'!$G$7:$BD$2005)*('مصروفات اساسية'!$A$7:$A$2005='تقرير شهرى'!G$3)*('مصروفات اساسية'!$G$6:$BD$6='تقرير شهرى'!$C36)), SUMPRODUCT(('مصروفات متغيره'!$G$7:$BD$2005)*('مصروفات متغيره'!$A$7:$A$2005='تقرير شهرى'!G$3)*('مصروفات متغيره'!$G$6:$BD$6='تقرير شهرى'!$C36))) -> 0 | H36: =IF($C$4=$U$5,SUMPRODUCT(('مصروفات اساسية'!$G$7:$BD$2005)*('مصروفات اساسية'!$A$7:$A$2005='تقرير شهرى'!H$3)*('مصروفات اساسية'!$G$6:$BD$6='تقرير شهرى'!$C36)), SUMPRODUCT(('مصروفات متغيره'!$G$7:$BD$2005)*('مصروفات متغيره'!$A$7:$A$2005='تقرير شهرى'!H$3)*('مصروفات متغيره'!$G$6:$BD$6='تقرير شهرى'!$C36))) -> 0 | I36: =IF($C$4=$U$5,SUMPRODUCT(('مصروفات اساسية'!$G$7:$BD$2005)*('مصروفات اساسية'!$A$7:$A$2005='تقرير شهرى'!I$3)*('مصروفات اساسية'!$G$6:$BD$6='تقرير شهرى'!$C36)), SUMPRODUCT(('مصروفات متغيره'!$G$7:$BD$2005)*('مصروفات متغيره'!$A$7:$A$2005='تقرير شهرى'!I$3)*('مصروفات متغيره'!$G$6:$BD$6='تقرير شهرى'!$C36))) -> 0 | J36: =IF($C$4=$U$5,SUMPRODUCT(('مصروفات اساسية'!$G$7:$BD$2005)*('مصروفات اساسية'!$A$7:$A$2005='تقرير شهرى'!J$3)*('مصروفات اساسية'!$G$6:$BD$6='تقرير شهرى'!$C36)), SUMPRODUCT(('مصروفات متغيره'!$G$7:$BD$2005)*('مصروفات متغيره'!$A$7:$A$2005='تقرير شهرى'!J$3)*('مصروفات متغيره'!$G$6:$BD$6='تقرير شهرى'!$C36))) -> 0 | K36: =IF($C$4=$U$5,SUMPRODUCT(('مصروفات اساسية'!$G$7:$BD$2005)*('مصروفات اساسية'!$A$7:$A$2005='تقرير شهرى'!K$3)*('مصروفات اساسية'!$G$6:$BD$6='تقرير شهرى'!$C36)), SUMPRODUCT(('مصروفات متغيره'!$G$7:$BD$2005)*('مصروفات متغيره'!$A$7:$A$2005='تقرير شهرى'!K$3)*('مصروفات متغيره'!$G$6:$BD$6='تقرير شهرى'!$C36))) -> 0 | L36: =IF($C$4=$U$5,SUMPRODUCT(('مصروفات اساسية'!$G$7:$BD$2005)*('مصروفات اساسية'!$A$7:$A$2005='تقرير شهرى'!L$3)*('مصروفات اساسية'!$G$6:$BD$6='تقرير شهرى'!$C36)), SUMPRODUCT(('مصروفات متغيره'!$G$7:$BD$2005)*('مصروفات متغيره'!$A$7:$A$2005='تقرير شهرى'!L$3)*('مصروفات متغيره'!$G$6:$BD$6='تقرير شهرى'!$C36))) -> 0 | M36: =IF($C$4=$U$5,SUMPRODUCT(('مصروفات اساسية'!$G$7:$BD$2005)*('مصروفات اساسية'!$A$7:$A$2005='تقرير شهرى'!M$3)*('مصروفات اساسية'!$G$6:$BD$6='تقرير شهرى'!$C36)), SUMPRODUCT(('مصروفات متغيره'!$G$7:$BD$2005)*('مصروفات متغيره'!$A$7:$A$2005='تقرير شهرى'!M$3)*('مصروفات متغيره'!$G$6:$BD$6='تقرير شهرى'!$C36))) -> 0 | N36: =IF($C$4=$U$5,SUMPRODUCT(('مصروفات اساسية'!$G$7:$BD$2005)*('مصروفات اساسية'!$A$7:$A$2005='تقرير شهرى'!N$3)*('مصروفات اساسية'!$G$6:$BD$6='تقرير شهرى'!$C36)), SUMPRODUCT(('مصروفات متغيره'!$G$7:$BD$2005)*('مصروفات متغيره'!$A$7:$A$2005='تقرير شهرى'!N$3)*('مصروفات متغيره'!$G$6:$BD$6='تقرير شهرى'!$C36))) -> 0 | O36: =IF($C$4=$U$5,SUMPRODUCT(('مصروفات اساسية'!$G$7:$BD$2005)*('مصروفات اساسية'!$A$7:$A$2005='تقرير شهرى'!O$3)*('مصروفات اساسية'!$G$6:$BD$6='تقرير شهرى'!$C36)), SUMPRODUCT(('مصروفات متغيره'!$G$7:$BD$2005)*('مصروفات متغيره'!$A$7:$A$2005='تقرير شهرى'!O$3)*('مصروفات متغيره'!$G$6:$BD$6='تقرير شهرى'!$C36))) -> 0 | P36: 1300 | Q36: 1300
C37: =IF($C$4=$U$5,IF(الدليل!$C38="","",الدليل!C38),IF(الدليل!$E38="","",الدليل!E38)) -> فارغ28 | D37: =IF($C$4=$U$5,SUMPRODUCT(('مصروفات اساسية'!$G$7:$BD$2005)*('مصروفات اساسية'!$A$7:$A$2005='تقرير شهرى'!D$3)*('مصروفات اساسية'!$G$6:$BD$6='تقرير شهرى'!$C37)), SUMPRODUCT(('مصروفات متغيره'!$G$7:$BD$2005)*('مصروفات متغيره'!$A$7:$A$2005='تقرير شهرى'!D$3)*('مصروفات متغيره'!$G$6:$BD$6='تقرير شهرى'!$C37))) -> 1091.8 | E37: =IF($C$4=$U$5,SUMPRODUCT(('مصروفات اساسية'!$G$7:$BD$2005)*('مصروفات اساسية'!$A$7:$A$2005='تقرير شهرى'!E$3)*('مصروفات اساسية'!$G$6:$BD$6='تقرير شهرى'!$C37)), SUMPRODUCT(('مصروفات متغيره'!$G$7:$BD$2005)*('مصروفات متغيره'!$A$7:$A$2005='تقرير شهرى'!E$3)*('مصروفات متغيره'!$G$6:$BD$6='تقرير شهرى'!$C37))) -> 0 | F37: =IF($C$4=$U$5,SUMPRODUCT(('مصروفات اساسية'!$G$7:$BD$2005)*('مصروفات اساسية'!$A$7:$A$2005='تقرير شهرى'!F$3)*('مصروفات اساسية'!$G$6:$BD$6='تقرير شهرى'!$C37)), SUMPRODUCT(('مصروفات متغيره'!$G$7:$BD$2005)*('مصروفات متغيره'!$A$7:$A$2005='تقرير شهرى'!F$3)*('مصروفات متغيره'!$G$6:$BD$6='تقرير شهرى'!$C37))) -> 0 | G37: =IF($C$4=$U$5,SUMPRODUCT(('مصروفات اساسية'!$G$7:$BD$2005)*('مصروفات اساسية'!$A$7:$A$2005='تقرير شهرى'!G$3)*('مصروفات اساسية'!$G$6:$BD$6='تقرير شهرى'!$C37)), SUMPRODUCT(('مصروفات متغيره'!$G$7:$BD$2005)*('مصروفات متغيره'!$A$7:$A$2005='تقرير شهرى'!G$3)*('مصروفات متغيره'!$G$6:$BD$6='تقرير شهرى'!$C37))) -> 0 | H37: =IF($C$4=$U$5,SUMPRODUCT(('مصروفات اساسية'!$G$7:$BD$2005)*('مصروفات اساسية'!$A$7:$A$2005='تقرير شهرى'!H$3)*('مصروفات اساسية'!$G$6:$BD$6='تقرير شهرى'!$C37)), SUMPRODUCT(('مصروفات متغيره'!$G$7:$BD$2005)*('مصروفات متغيره'!$A$7:$A$2005='تقرير شهرى'!H$3)*('مصروفات متغيره'!$G$6:$BD$6='تقرير شهرى'!$C37))) -> 0 | I37: =IF($C$4=$U$5,SUMPRODUCT(('مصروفات اساسية'!$G$7:$BD$2005)*('مصروفات اساسية'!$A$7:$A$2005='تقرير شهرى'!I$3)*('مصروفات اساسية'!$G$6:$BD$6='تقرير شهرى'!$C37)), SUMPRODUCT(('مصروفات متغيره'!$G$7:$BD$2005)*('مصروفات متغيره'!$A$7:$A$2005='تقرير شهرى'!I$3)*('مصروفات متغيره'!$G$6:$BD$6='تقرير شهرى'!$C37))) -> 0 | J37: =IF($C$4=$U$5,SUMPRODUCT(('مصروفات اساسية'!$G$7:$BD$2005)*('مصروفات اساسية'!$A$7:$A$2005='تقرير شهرى'!J$3)*('مصروفات اساسية'!$G$6:$BD$6='تقرير شهرى'!$C37)), SUMPRODUCT(('مصروفات متغيره'!$G$7:$BD$2005)*('مصروفات متغيره'!$A$7:$A$2005='تقرير شهرى'!J$3)*('مصروفات متغيره'!$G$6:$BD$6='تقرير شهرى'!$C37))) -> 0 | K37: =IF($C$4=$U$5,SUMPRODUCT(('مصروفات اساسية'!$G$7:$BD$2005)*('مصروفات اساسية'!$A$7:$A$2005='تقرير شهرى'!K$3)*('مصروفات اساسية'!$G$6:$BD$6='تقرير شهرى'!$C37)), SUMPRODUCT(('مصروفات متغيره'!$G$7:$BD$2005)*('مصروفات متغيره'!$A$7:$A$2005='تقرير شهرى'!K$3)*('مصروفات متغيره'!$G$6:$BD$6='تقرير شهرى'!$C37))) -> 0 | L37: =IF($C$4=$U$5,SUMPRODUCT(('مصروفات اساسية'!$G$7:$BD$2005)*('مصروفات اساسية'!$A$7:$A$2005='تقرير شهرى'!L$3)*('مصروفات اساسية'!$G$6:$BD$6='تقرير شهرى'!$C37)), SUMPRODUCT(('مصروفات متغيره'!$G$7:$BD$2005)*('مصروفات متغيره'!$A$7:$A$2005='تقرير شهرى'!L$3)*('مصروفات متغيره'!$G$6:$BD$6='تقرير شهرى'!$C37))) -> 0 | M37: =IF($C$4=$U$5,SUMPRODUCT(('مصروفات اساسية'!$G$7:$BD$2005)*('مصروفات اساسية'!$A$7:$A$2005='تقرير شهرى'!M$3)*('مصروفات اساسية'!$G$6:$BD$6='تقرير شهرى'!$C37)), SUMPRODUCT(('مصروفات متغيره'!$G$7:$BD$2005)*('مصروفات متغيره'!$A$7:$A$2005='تقرير شهرى'!M$3)*('مصروفات متغيره'!$G$6:$BD$6='تقرير شهرى'!$C37))) -> 0 | N37: =IF($C$4=$U$5,SUMPRODUCT(('مصروفات اساسية'!$G$7:$BD$2005)*('مصروفات اساسية'!$A$7:$A$2005='تقرير شهرى'!N$3)*('مصروفات اساسية'!$G$6:$BD$6='تقرير شهرى'!$C37)), SUMPRODUCT(('مصروفات متغيره'!$G$7:$BD$2005)*('مصروفات متغيره'!$A$7:$A$2005='تقرير شهرى'!N$3)*('مصروفات متغيره'!$G$6:$BD$6='تقرير شهرى'!$C37))) -> 0 | O37: =IF($C$4=$U$5,SUMPRODUCT(('مصروفات اساسية'!$G$7:$BD$2005)*('مصروفات اساسية'!$A$7:$A$2005='تقرير شهرى'!O$3)*('مصروفات اساسية'!$G$6:$BD$6='تقرير شهرى'!$C37)), SUMPRODUCT(('مصروفات متغيره'!$G$7:$BD$2005)*('مصروفات متغيره'!$A$7:$A$2005='تقرير شهرى'!O$3)*('مصروفات متغيره'!$G$6:$BD$6='تقرير شهرى'!$C37))) -> 0 | P37: 1091.8 | Q37: 1091.8
C38: =IF($C$4=$U$5,IF(الدليل!$C39="","",الدليل!C39),IF(الدليل!$E39="","",الدليل!E39)) -> فارغ29 | D38: =IF($C$4=$U$5,SUMPRODUCT(('مصروفات اساسية'!$G$7:$BD$2005)*('مصروفات اساسية'!$A$7:$A$2005='تقرير شهرى'!D$3)*('مصروفات اساسية'!$G$6:$BD$6='تقرير شهرى'!$C38)), SUMPRODUCT(('مصروفات متغيره'!$G$7:$BD$2005)*('مصروفات متغيره'!$A$7:$A$2005='تقرير شهرى'!D$3)*('مصروفات متغيره'!$G$6:$BD$6='تقرير شهرى'!$C38))) -> 1118.2 | E38: =IF($C$4=$U$5,SUMPRODUCT(('مصروفات اساسية'!$G$7:$BD$2005)*('مصروفات اساسية'!$A$7:$A$2005='تقرير شهرى'!E$3)*('مصروفات اساسية'!$G$6:$BD$6='تقرير شهرى'!$C38)), SUMPRODUCT(('مصروفات متغيره'!$G$7:$BD$2005)*('مصروفات متغيره'!$A$7:$A$2005='تقرير شهرى'!E$3)*('مصروفات متغيره'!$G$6:$BD$6='تقرير شهرى'!$C38))) -> 0 | F38: =IF($C$4=$U$5,SUMPRODUCT(('مصروفات اساسية'!$G$7:$BD$2005)*('مصروفات اساسية'!$A$7:$A$2005='تقرير شهرى'!F$3)*('مصروفات اساسية'!$G$6:$BD$6='تقرير شهرى'!$C38)), SUMPRODUCT(('مصروفات متغيره'!$G$7:$BD$2005)*('مصروفات متغيره'!$A$7:$A$2005='تقرير شهرى'!F$3)*('مصروفات متغيره'!$G$6:$BD$6='تقرير شهرى'!$C38))) -> 0 | G38: =IF($C$4=$U$5,SUMPRODUCT(('مصروفات اساسية'!$G$7:$BD$2005)*('مصروفات اساسية'!$A$7:$A$2005='تقرير شهرى'!G$3)*('مصروفات اساسية'!$G$6:$BD$6='تقرير شهرى'!$C38)), SUMPRODUCT(('مصروفات متغيره'!$G$7:$BD$2005)*('مصروفات متغيره'!$A$7:$A$2005='تقرير شهرى'!G$3)*('مصروفات متغيره'!$G$6:$BD$6='تقرير شهرى'!$C38))) -> 0 | H38: =IF($C$4=$U$5,SUMPRODUCT(('مصروفات اساسية'!$G$7:$BD$2005)*('مصروفات اساسية'!$A$7:$A$2005='تقرير شهرى'!H$3)*('مصروفات اساسية'!$G$6:$BD$6='تقرير شهرى'!$C38)), SUMPRODUCT(('مصروفات متغيره'!$G$7:$BD$2005)*('مصروفات متغيره'!$A$7:$A$2005='تقرير شهرى'!H$3)*('مصروفات متغيره'!$G$6:$BD$6='تقرير شهرى'!$C38))) -> 0 | I38: =IF($C$4=$U$5,SUMPRODUCT(('مصروفات اساسية'!$G$7:$BD$2005)*('مصروفات اساسية'!$A$7:$A$2005='تقرير شهرى'!I$3)*('مصروفات اساسية'!$G$6:$BD$6='تقرير شهرى'!$C38)), SUMPRODUCT(('مصروفات متغيره'!$G$7:$BD$2005)*('مصروفات متغيره'!$A$7:$A$2005='تقرير شهرى'!I$3)*('مصروفات متغيره'!$G$6:$BD$6='تقرير شهرى'!$C38))) -> 0 | J38: =IF($C$4=$U$5,SUMPRODUCT(('مصروفات اساسية'!$G$7:$BD$2005)*('مصروفات اساسية'!$A$7:$A$2005='تقرير شهرى'!J$3)*('مصروفات اساسية'!$G$6:$BD$6='تقرير شهرى'!$C38)), SUMPRODUCT(('مصروفات متغيره'!$G$7:$BD$2005)*('مصروفات متغيره'!$A$7:$A$2005='تقرير شهرى'!J$3)*('مصروفات متغيره'!$G$6:$BD$6='تقرير شهرى'!$C38))) -> 0 | K38: =IF($C$4=$U$5,SUMPRODUCT(('مصروفات اساسية'!$G$7:$BD$2005)*('مصروفات اساسية'!$A$7:$A$2005='تقرير شهرى'!K$3)*('مصروفات اساسية'!$G$6:$BD$6='تقرير شهرى'!$C38)), SUMPRODUCT(('مصروفات متغيره'!$G$7:$BD$2005)*('مصروفات متغيره'!$A$7:$A$2005='تقرير شهرى'!K$3)*('مصروفات متغيره'!$G$6:$BD$6='تقرير شهرى'!$C38))) -> 0 | L38: =IF($C$4=$U$5,SUMPRODUCT(('مصروفات اساسية'!$G$7:$BD$2005)*('مصروفات اساسية'!$A$7:$A$2005='تقرير شهرى'!L$3)*('مصروفات اساسية'!$G$6:$BD$6='تقرير شهرى'!$C38)), SUMPRODUCT(('مصروفات متغيره'!$G$7:$BD$2005)*('مصروفات متغيره'!$A$7:$A$2005='تقرير شهرى'!L$3)*('مصروفات متغيره'!$G$6:$BD$6='تقرير شهرى'!$C38))) -> 0 | M38: =IF($C$4=$U$5,SUMPRODUCT(('مصروفات اساسية'!$G$7:$BD$2005)*('مصروفات اساسية'!$A$7:$A$2005='تقرير شهرى'!M$3)*('مصروفات اساسية'!$G$6:$BD$6='تقرير شهرى'!$C38)), SUMPRODUCT(('مصروفات متغيره'!$G$7:$BD$2005)*('مصروفات متغيره'!$A$7:$A$2005='تقرير شهرى'!M$3)*('مصروفات متغيره'!$G$6:$BD$6='تقرير شهرى'!$C38))) -> 0 | N38: =IF($C$4=$U$5,SUMPRODUCT(('مصروفات اساسية'!$G$7:$BD$2005)*('مصروفات اساسية'!$A$7:$A$2005='تقرير شهرى'!N$3)*('مصروفات اساسية'!$G$6:$BD$6='تقرير شهرى'!$C38)), SUMPRODUCT(('مصروفات متغيره'!$G$7:$BD$2005)*('مصروفات متغيره'!$A$7:$A$2005='تقرير شهرى'!N$3)*('مصروفات متغيره'!$G$6:$BD$6='تقرير شهرى'!$C38))) -> 0 | O38: =IF($C$4=$U$5,SUMPRODUCT(('مصروفات اساسية'!$G$7:$BD$2005)*('مصروفات اساسية'!$A$7:$A$2005='تقرير شهرى'!O$3)*('مصروفات اساسية'!$G$6:$BD$6='تقرير شهرى'!$C38)), SUMPRODUCT(('مصروفات متغيره'!$G$7:$BD$2005)*('مصروفات متغيره'!$A$7:$A$2005='تقرير شهرى'!O$3)*('مصروفات متغيره'!$G$6:$BD$6='تقرير شهرى'!$C38))) -> 0 | P38: 1118.2 | Q38: 1118.2
C39: =IF($C$4=$U$5,IF(الدليل!$C40="","",الدليل!C40),IF(الدليل!$E40="","",الدليل!E40)) -> فارغ30 | D39: =IF($C$4=$U$5,SUMPRODUCT(('مصروفات اساسية'!$G$7:$BD$2005)*('مصروفات اساسية'!$A$7:$A$2005='تقرير شهرى'!D$3)*('مصروفات اساسية'!$G$6:$BD$6='تقرير شهرى'!$C39)), SUMPRODUCT(('مصروفات متغيره'!$G$7:$BD$2005)*('مصروفات متغيره'!$A$7:$A$2005='تقرير شهرى'!D$3)*('مصروفات متغيره'!$G$6:$BD$6='تقرير شهرى'!$C39))) -> 1144.6 | E39: =IF($C$4=$U$5,SUMPRODUCT(('مصروفات اساسية'!$G$7:$BD$2005)*('مصروفات اساسية'!$A$7:$A$2005='تقرير شهرى'!E$3)*('مصروفات اساسية'!$G$6:$BD$6='تقرير شهرى'!$C39)), SUMPRODUCT(('مصروفات متغيره'!$G$7:$BD$2005)*('مصروفات متغيره'!$A$7:$A$2005='تقرير شهرى'!E$3)*('مصروفات متغيره'!$G$6:$BD$6='تقرير شهرى'!$C39))) -> 0 | F39: =IF($C$4=$U$5,SUMPRODUCT(('مصروفات اساسية'!$G$7:$BD$2005)*('مصروفات اساسية'!$A$7:$A$2005='تقرير شهرى'!F$3)*('مصروفات اساسية'!$G$6:$BD$6='تقرير شهرى'!$C39)), SUMPRODUCT(('مصروفات متغيره'!$G$7:$BD$2005)*('مصروفات متغيره'!$A$7:$A$2005='تقرير شهرى'!F$3)*('مصروفات متغيره'!$G$6:$BD$6='تقرير شهرى'!$C39))) -> 0 | G39: =IF($C$4=$U$5,SUMPRODUCT(('مصروفات اساسية'!$G$7:$BD$2005)*('مصروفات اساسية'!$A$7:$A$2005='تقرير شهرى'!G$3)*('مصروفات اساسية'!$G$6:$BD$6='تقرير شهرى'!$C39)), SUMPRODUCT(('مصروفات متغيره'!$G$7:$BD$2005)*('مصروفات متغيره'!$A$7:$A$2005='تقرير شهرى'!G$3)*('مصروفات متغيره'!$G$6:$BD$6='تقرير شهرى'!$C39))) -> 0 | H39: =IF($C$4=$U$5,SUMPRODUCT(('مصروفات اساسية'!$G$7:$BD$2005)*('مصروفات اساسية'!$A$7:$A$2005='تقرير شهرى'!H$3)*('مصروفات اساسية'!$G$6:$BD$6='تقرير شهرى'!$C39)), SUMPRODUCT(('مصروفات متغيره'!$G$7:$BD$2005)*('مصروفات متغيره'!$A$7:$A$2005='تقرير شهرى'!H$3)*('مصروفات متغيره'!$G$6:$BD$6='تقرير شهرى'!$C39))) -> 0 | I39: =IF($C$4=$U$5,SUMPRODUCT(('مصروفات اساسية'!$G$7:$BD$2005)*('مصروفات اساسية'!$A$7:$A$2005='تقرير شهرى'!I$3)*('مصروفات اساسية'!$G$6:$BD$6='تقرير شهرى'!$C39)), SUMPRODUCT(('مصروفات متغيره'!$G$7:$BD$2005)*('مصروفات متغيره'!$A$7:$A$2005='تقرير شهرى'!I$3)*('مصروفات متغيره'!$G$6:$BD$6='تقرير شهرى'!$C39))) -> 0 | J39: =IF($C$4=$U$5,SUMPRODUCT(('مصروفات اساسية'!$G$7:$BD$2005)*('مصروفات اساسية'!$A$7:$A$2005='تقرير شهرى'!J$3)*('مصروفات اساسية'!$G$6:$BD$6='تقرير شهرى'!$C39)), SUMPRODUCT(('مصروفات متغيره'!$G$7:$BD$2005)*('مصروفات متغيره'!$A$7:$A$2005='تقرير شهرى'!J$3)*('مصروفات متغيره'!$G$6:$BD$6='تقرير شهرى'!$C39))) -> 0 | K39: =IF($C$4=$U$5,SUMPRODUCT(('مصروفات اساسية'!$G$7:$BD$2005)*('مصروفات اساسية'!$A$7:$A$2005='تقرير شهرى'!K$3)*('مصروفات اساسية'!$G$6:$BD$6='تقرير شهرى'!$C39)), SUMPRODUCT(('مصروفات متغيره'!$G$7:$BD$2005)*('مصروفات متغيره'!$A$7:$A$2005='تقرير شهرى'!K$3)*('مصروفات متغيره'!$G$6:$BD$6='تقرير شهرى'!$C39))) -> 0 | L39: =IF($C$4=$U$5,SUMPRODUCT(('مصروفات اساسية'!$G$7:$BD$2005)*('مصروفات اساسية'!$A$7:$A$2005='تقرير شهرى'!L$3)*('مصروفات اساسية'!$G$6:$BD$6='تقرير شهرى'!$C39)), SUMPRODUCT(('مصروفات متغيره'!$G$7:$BD$2005)*('مصروفات متغيره'!$A$7:$A$2005='تقرير شهرى'!L$3)*('مصروفات متغيره'!$G$6:$BD$6='تقرير شهرى'!$C39))) -> 0 | M39: =IF($C$4=$U$5,SUMPRODUCT(('مصروفات اساسية'!$G$7:$BD$2005)*('مصروفات اساسية'!$A$7:$A$2005='تقرير شهرى'!M$3)*('مصروفات اساسية'!$G$6:$BD$6='تقرير شهرى'!$C39)), SUMPRODUCT(('مصروفات متغيره'!$G$7:$BD$2005)*('مصروفات متغيره'!$A$7:$A$2005='تقرير شهرى'!M$3)*('مصروفات متغيره'!$G$6:$BD$6='تقرير شهرى'!$C39))) -> 0 | N39: =IF($C$4=$U$5,SUMPRODUCT(('مصروفات اساسية'!$G$7:$BD$2005)*('مصروفات اساسية'!$A$7:$A$2005='تقرير شهرى'!N$3)*('مصروفات اساسية'!$G$6:$BD$6='تقرير شهرى'!$C39)), SUMPRODUCT(('مصروفات متغيره'!$G$7:$BD$2005)*('مصروفات متغيره'!$A$7:$A$2005='تقرير شهرى'!N$3)*('مصروفات متغيره'!$G$6:$BD$6='تقرير شهرى'!$C39))) -> 0 | O39: =IF($C$4=$U$5,SUMPRODUCT(('مصروفات اساسية'!$G$7:$BD$2005)*('مصروفات اساسية'!$A$7:$A$2005='تقرير شهرى'!O$3)*('مصروفات اساسية'!$G$6:$BD$6='تقرير شهرى'!$C39)), SUMPRODUCT(('مصروفات متغيره'!$G$7:$BD$2005)*('مصروفات متغيره'!$A$7:$A$2005='تقرير شهرى'!O$3)*('مصروفات متغيره'!$G$6:$BD$6='تقرير شهرى'!$C39))) -> 0 | P39: 1144.6 | Q39: 1144.6
C40: =IF($C$4=$U$5,IF(الدليل!$C41="","",الدليل!C41),IF(الدليل!$E41="","",الدليل!E41)) -> فارغ31 | D40: =IF($C$4=$U$5,SUMPRODUCT(('مصروفات اساسية'!$G$7:$BD$2005)*('مصروفات اساسية'!$A$7:$A$2005='تقرير شهرى'!D$3)*('مصروفات اساسية'!$G$6:$BD$6='تقرير شهرى'!$C40)), SUMPRODUCT(('مصروفات متغيره'!$G$7:$BD$2005)*('مصروفات متغيره'!$A$7:$A$2005='تقرير شهرى'!D$3)*('مصروفات متغيره'!$G$6:$BD$6='تقرير شهرى'!$C40))) -> 1171 | E40: =IF($C$4=$U$5,SUMPRODUCT(('مصروفات اساسية'!$G$7:$BD$2005)*('مصروفات اساسية'!$A$7:$A$2005='تقرير شهرى'!E$3)*('مصروفات اساسية'!$G$6:$BD$6='تقرير شهرى'!$C40)), SUMPRODUCT(('مصروفات متغيره'!$G$7:$BD$2005)*('مصروفات متغيره'!$A$7:$A$2005='تقرير شهرى'!E$3)*('مصروفات متغيره'!$G$6:$BD$6='تقرير شهرى'!$C40))) -> 0 | F40: =IF($C$4=$U$5,SUMPRODUCT(('مصروفات اساسية'!$G$7:$BD$2005)*('مصروفات اساسية'!$A$7:$A$2005='تقرير شهرى'!F$3)*('مصروفات اساسية'!$G$6:$BD$6='تقرير شهرى'!$C40)), SUMPRODUCT(('مصروفات متغيره'!$G$7:$BD$2005)*('مصروفات متغيره'!$A$7:$A$2005='تقرير شهرى'!F$3)*('مصروفات متغيره'!$G$6:$BD$6='تقرير شهرى'!$C40))) -> 0 | G40: =IF($C$4=$U$5,SUMPRODUCT(('مصروفات اساسية'!$G$7:$BD$2005)*('مصروفات اساسية'!$A$7:$A$2005='تقرير شهرى'!G$3)*('مصروفات اساسية'!$G$6:$BD$6='تقرير شهرى'!$C40)), SUMPRODUCT(('مصروفات متغيره'!$G$7:$BD$2005)*('مصروفات متغيره'!$A$7:$A$2005='تقرير شهرى'!G$3)*('مصروفات متغيره'!$G$6:$BD$6='تقرير شهرى'!$C40))) -> 0 | H40: =IF($C$4=$U$5,SUMPRODUCT(('مصروفات اساسية'!$G$7:$BD$2005)*('مصروفات اساسية'!$A$7:$A$2005='تقرير شهرى'!H$3)*('مصروفات اساسية'!$G$6:$BD$6='تقرير شهرى'!$C40)), SUMPRODUCT(('مصروفات متغيره'!$G$7:$BD$2005)*('مصروفات متغيره'!$A$7:$A$2005='تقرير شهرى'!H$3)*('مصروفات متغيره'!$G$6:$BD$6='تقرير شهرى'!$C40))) -> 0 | I40: =IF($C$4=$U$5,SUMPRODUCT(('مصروفات اساسية'!$G$7:$BD$2005)*('مصروفات اساسية'!$A$7:$A$2005='تقرير شهرى'!I$3)*('مصروفات اساسية'!$G$6:$BD$6='تقرير شهرى'!$C40)), SUMPRODUCT(('مصروفات متغيره'!$G$7:$BD$2005)*('مصروفات متغيره'!$A$7:$A$2005='تقرير شهرى'!I$3)*('مصروفات متغيره'!$G$6:$BD$6='تقرير شهرى'!$C40))) -> 0 | J40: =IF($C$4=$U$5,SUMPRODUCT(('مصروفات اساسية'!$G$7:$BD$2005)*('مصروفات اساسية'!$A$7:$A$2005='تقرير شهرى'!J$3)*('مصروفات اساسية'!$G$6:$BD$6='تقرير شهرى'!$C40)), SUMPRODUCT(('مصروفات متغيره'!$G$7:$BD$2005)*('مصروفات متغيره'!$A$7:$A$2005='تقرير شهرى'!J$3)*('مصروفات متغيره'!$G$6:$BD$6='تقرير شهرى'!$C40))) -> 0 | K40: =IF($C$4=$U$5,SUMPRODUCT(('مصروفات اساسية'!$G$7:$BD$2005)*('مصروفات اساسية'!$A$7:$A$2005='تقرير شهرى'!K$3)*('مصروفات اساسية'!$G$6:$BD$6='تقرير شهرى'!$C40)), SUMPRODUCT(('مصروفات متغيره'!$G$7:$BD$2005)*('مصروفات متغيره'!$A$7:$A$2005='تقرير شهرى'!K$3)*('مصروفات متغيره'!$G$6:$BD$6='تقرير شهرى'!$C40))) -> 0 | L40: =IF($C$4=$U$5,SUMPRODUCT(('مصروفات اساسية'!$G$7:$BD$2005)*('مصروفات اساسية'!$A$7:$A$2005='تقرير شهرى'!L$3)*('مصروفات اساسية'!$G$6:$BD$6='تقرير شهرى'!$C40)), SUMPRODUCT(('مصروفات متغيره'!$G$7:$BD$2005)*('مصروفات متغيره'!$A$7:$A$2005='تقرير شهرى'!L$3)*('مصروفات متغيره'!$G$6:$BD$6='تقرير شهرى'!$C40))) -> 0 | M40: =IF($C$4=$U$5,SUMPRODUCT(('مصروفات اساسية'!$G$7:$BD$2005)*('مصروفات اساسية'!$A$7:$A$2005='تقرير شهرى'!M$3)*('مصروفات اساسية'!$G$6:$BD$6='تقرير شهرى'!$C40)), SUMPRODUCT(('مصروفات متغيره'!$G$7:$BD$2005)*('مصروفات متغيره'!$A$7:$A$2005='تقرير شهرى'!M$3)*('مصروفات متغيره'!$G$6:$BD$6='تقرير شهرى'!$C40))) -> 0 | N40: =IF($C$4=$U$5,SUMPRODUCT(('مصروفات اساسية'!$G$7:$BD$2005)*('مصروفات اساسية'!$A$7:$A$2005='تقرير شهرى'!N$3)*('مصروفات اساسية'!$G$6:$BD$6='تقرير شهرى'!$C40)), SUMPRODUCT(('مصروفات متغيره'!$G$7:$BD$2005)*('مصروفات متغيره'!$A$7:$A$2005='تقرير شهرى'!N$3)*('مصروفات متغيره'!$G$6:$BD$6='تقرير شهرى'!$C40))) -> 0 | O40: =IF($C$4=$U$5,SUMPRODUCT(('مصروفات اساسية'!$G$7:$BD$2005)*('مصروفات اساسية'!$A$7:$A$2005='تقرير شهرى'!O$3)*('مصروفات اساسية'!$G$6:$BD$6='تقرير شهرى'!$C40)), SUMPRODUCT(('مصروفات متغيره'!$G$7:$BD$2005)*('مصروفات متغيره'!$A$7:$A$2005='تقرير شهرى'!O$3)*('مصروفات متغيره'!$G$6:$BD$6='تقرير شهرى'!$C40))) -> 0 | P40: 1171 | Q40: 1171
C41: =IF($C$4=$U$5,IF(الدليل!$C42="","",الدليل!C42),IF(الدليل!$E42="","",الدليل!E42)) -> فارغ32 | D41: =IF($C$4=$U$5,SUMPRODUCT(('مصروفات اساسية'!$G$7:$BD$2005)*('مصروفات اساسية'!$A$7:$A$2005='تقرير شهرى'!D$3)*('مصروفات اساسية'!$G$6:$BD$6='تقرير شهرى'!$C41)), SUMPRODUCT(('مصروفات متغيره'!$G$7:$BD$2005)*('مصروفات متغيره'!$A$7:$A$2005='تقرير شهرى'!D$3)*('مصروفات متغيره'!$G$6:$BD$6='تقرير شهرى'!$C41))) -> 1197.4 | E41: =IF($C$4=$U$5,SUMPRODUCT(('مصروفات اساسية'!$G$7:$BD$2005)*('مصروفات اساسية'!$A$7:$A$2005='تقرير شهرى'!E$3)*('مصروفات اساسية'!$G$6:$BD$6='تقرير شهرى'!$C41)), SUMPRODUCT(('مصروفات متغيره'!$G$7:$BD$2005)*('مصروفات متغيره'!$A$7:$A$2005='تقرير شهرى'!E$3)*('مصروفات متغيره'!$G$6:$BD$6='تقرير شهرى'!$C41))) -> 0 | F41: =IF($C$4=$U$5,SUMPRODUCT(('مصروفات اساسية'!$G$7:$BD$2005)*('مصروفات اساسية'!$A$7:$A$2005='تقرير شهرى'!F$3)*('مصروفات اساسية'!$G$6:$BD$6='تقرير شهرى'!$C41)), SUMPRODUCT(('مصروفات متغيره'!$G$7:$BD$2005)*('مصروفات متغيره'!$A$7:$A$2005='تقرير شهرى'!F$3)*('مصروفات متغيره'!$G$6:$BD$6='تقرير شهرى'!$C41))) -> 0 | G41: =IF($C$4=$U$5,SUMPRODUCT(('مصروفات اساسية'!$G$7:$BD$2005)*('مصروفات اساسية'!$A$7:$A$2005='تقرير شهرى'!G$3)*('مصروفات اساسية'!$G$6:$BD$6='تقرير شهرى'!$C41)), SUMPRODUCT(('مصروفات متغيره'!$G$7:$BD$2005)*('مصروفات متغيره'!$A$7:$A$2005='تقرير شهرى'!G$3)*('مصروفات متغيره'!$G$6:$BD$6='تقرير شهرى'!$C41))) -> 0 | H41: =IF($C$4=$U$5,SUMPRODUCT(('مصروفات اساسية'!$G$7:$BD$2005)*('مصروفات اساسية'!$A$7:$A$2005='تقرير شهرى'!H$3)*('مصروفات اساسية'!$G$6:$BD$6='تقرير شهرى'!$C41)), SUMPRODUCT(('مصروفات متغيره'!$G$7:$BD$2005)*('مصروفات متغيره'!$A$7:$A$2005='تقرير شهرى'!H$3)*('مصروفات متغيره'!$G$6:$BD$6='تقرير شهرى'!$C41))) -> 0 | I41: =IF($C$4=$U$5,SUMPRODUCT(('مصروفات اساسية'!$G$7:$BD$2005)*('مصروفات اساسية'!$A$7:$A$2005='تقرير شهرى'!I$3)*('مصروفات اساسية'!$G$6:$BD$6='تقرير شهرى'!$C41)), SUMPRODUCT(('مصروفات متغيره'!$G$7:$BD$2005)*('مصروفات متغيره'!$A$7:$A$2005='تقرير شهرى'!I$3)*('مصروفات متغيره'!$G$6:$BD$6='تقرير شهرى'!$C41))) -> 0 | J41: =IF($C$4=$U$5,SUMPRODUCT(('مصروفات اساسية'!$G$7:$BD$2005)*('مصروفات اساسية'!$A$7:$A$2005='تقرير شهرى'!J$3)*('مصروفات اساسية'!$G$6:$BD$6='تقرير شهرى'!$C41)), SUMPRODUCT(('مصروفات متغيره'!$G$7:$BD$2005)*('مصروفات متغيره'!$A$7:$A$2005='تقرير شهرى'!J$3)*('مصروفات متغيره'!$G$6:$BD$6='تقرير شهرى'!$C41))) -> 0 | K41: =IF($C$4=$U$5,SUMPRODUCT(('مصروفات اساسية'!$G$7:$BD$2005)*('مصروفات اساسية'!$A$7:$A$2005='تقرير شهرى'!K$3)*('مصروفات اساسية'!$G$6:$BD$6='تقرير شهرى'!$C41)), SUMPRODUCT(('مصروفات متغيره'!$G$7:$BD$2005)*('مصروفات متغيره'!$A$7:$A$2005='تقرير شهرى'!K$3)*('مصروفات متغيره'!$G$6:$BD$6='تقرير شهرى'!$C41))) -> 0 | L41: =IF($C$4=$U$5,SUMPRODUCT(('مصروفات اساسية'!$G$7:$BD$2005)*('مصروفات اساسية'!$A$7:$A$2005='تقرير شهرى'!L$3)*('مصروفات اساسية'!$G$6:$BD$6='تقرير شهرى'!$C41)), SUMPRODUCT(('مصروفات متغيره'!$G$7:$BD$2005)*('مصروفات متغيره'!$A$7:$A$2005='تقرير شهرى'!L$3)*('مصروفات متغيره'!$G$6:$BD$6='تقرير شهرى'!$C41))) -> 0 | M41: =IF($C$4=$U$5,SUMPRODUCT(('مصروفات اساسية'!$G$7:$BD$2005)*('مصروفات اساسية'!$A$7:$A$2005='تقرير شهرى'!M$3)*('مصروفات اساسية'!$G$6:$BD$6='تقرير شهرى'!$C41)), SUMPRODUCT(('مصروفات متغيره'!$G$7:$BD$2005)*('مصروفات متغيره'!$A$7:$A$2005='تقرير شهرى'!M$3)*('مصروفات متغيره'!$G$6:$BD$6='تقرير شهرى'!$C41))) -> 0 | N41: =IF($C$4=$U$5,SUMPRODUCT(('مصروفات اساسية'!$G$7:$BD$2005)*('مصروفات اساسية'!$A$7:$A$2005='تقرير شهرى'!N$3)*('مصروفات اساسية'!$G$6:$BD$6='تقرير شهرى'!$C41)), SUMPRODUCT(('مصروفات متغيره'!$G$7:$BD$2005)*('مصروفات متغيره'!$A$7:$A$2005='تقرير شهرى'!N$3)*('مصروفات متغيره'!$G$6:$BD$6='تقرير شهرى'!$C41))) -> 0 | O41: =IF($C$4=$U$5,SUMPRODUCT(('مصروفات اساسية'!$G$7:$BD$2005)*('مصروفات اساسية'!$A$7:$A$2005='تقرير شهرى'!O$3)*('مصروفات اساسية'!$G$6:$BD$6='تقرير شهرى'!$C41)), SUMPRODUCT(('مصروفات متغيره'!$G$7:$BD$2005)*('مصروفات متغيره'!$A$7:$A$2005='تقرير شهرى'!O$3)*('مصروفات متغيره'!$G$6:$BD$6='تقرير شهرى'!$C41))) -> 0 | P41: 1197.4 | Q41: 1197.4
C42: =IF($C$4=$U$5,IF(الدليل!$C43="","",الدليل!C43),IF(الدليل!$E43="","",الدليل!E43)) -> فارغ33 | D42: =IF($C$4=$U$5,SUMPRODUCT(('مصروفات اساسية'!$G$7:$BD$2005)*('مصروفات اساسية'!$A$7:$A$2005='تقرير شهرى'!D$3)*('مصروفات اساسية'!$G$6:$BD$6='تقرير شهرى'!$C42)), SUMPRODUCT(('مصروفات متغيره'!$G$7:$BD$2005)*('مصروفات متغيره'!$A$7:$A$2005='تقرير شهرى'!D$3)*('مصروفات متغيره'!$G$6:$BD$6='تقرير شهرى'!$C42))) -> 1223.8 | E42: =IF($C$4=$U$5,SUMPRODUCT(('مصروفات اساسية'!$G$7:$BD$2005)*('مصروفات اساسية'!$A$7:$A$2005='تقرير شهرى'!E$3)*('مصروفات اساسية'!$G$6:$BD$6='تقرير شهرى'!$C42)), SUMPRODUCT(('مصروفات متغيره'!$G$7:$BD$2005)*('مصروفات متغيره'!$A$7:$A$2005='تقرير شهرى'!E$3)*('مصروفات متغيره'!$G$6:$BD$6='تقرير شهرى'!$C42))) -> 0 | F42: =IF($C$4=$U$5,SUMPRODUCT(('مصروفات اساسية'!$G$7:$BD$2005)*('مصروفات اساسية'!$A$7:$A$2005='تقرير شهرى'!F$3)*('مصروفات اساسية'!$G$6:$BD$6='تقرير شهرى'!$C42)), SUMPRODUCT(('مصروفات متغيره'!$G$7:$BD$2005)*('مصروفات متغيره'!$A$7:$A$2005='تقرير شهرى'!F$3)*('مصروفات متغيره'!$G$6:$BD$6='تقرير شهرى'!$C42))) -> 0 | G42: =IF($C$4=$U$5,SUMPRODUCT(('مصروفات اساسية'!$G$7:$BD$2005)*('مصروفات اساسية'!$A$7:$A$2005='تقرير شهرى'!G$3)*('مصروفات اساسية'!$G$6:$BD$6='تقرير شهرى'!$C42)), SUMPRODUCT(('مصروفات متغيره'!$G$7:$BD$2005)*('مصروفات متغيره'!$A$7:$A$2005='تقرير شهرى'!G$3)*('مصروفات متغيره'!$G$6:$BD$6='تقرير شهرى'!$C42))) -> 0 | H42: =IF($C$4=$U$5,SUMPRODUCT(('مصروفات اساسية'!$G$7:$BD$2005)*('مصروفات اساسية'!$A$7:$A$2005='تقرير شهرى'!H$3)*('مصروفات اساسية'!$G$6:$BD$6='تقرير شهرى'!$C42)), SUMPRODUCT(('مصروفات متغيره'!$G$7:$BD$2005)*('مصروفات متغيره'!$A$7:$A$2005='تقرير شهرى'!H$3)*('مصروفات متغيره'!$G$6:$BD$6='تقرير شهرى'!$C42))) -> 0 | I42: =IF($C$4=$U$5,SUMPRODUCT(('مصروفات اساسية'!$G$7:$BD$2005)*('مصروفات اساسية'!$A$7:$A$2005='تقرير شهرى'!I$3)*('مصروفات اساسية'!$G$6:$BD$6='تقرير شهرى'!$C42)), SUMPRODUCT(('مصروفات متغيره'!$G$7:$BD$2005)*('مصروفات متغيره'!$A$7:$A$2005='تقرير شهرى'!I$3)*('مصروفات متغيره'!$G$6:$BD$6='تقرير شهرى'!$C42))) -> 0 | J42: =IF($C$4=$U$5,SUMPRODUCT(('مصروفات اساسية'!$G$7:$BD$2005)*('مصروفات اساسية'!$A$7:$A$2005='تقرير شهرى'!J$3)*('مصروفات اساسية'!$G$6:$BD$6='تقرير شهرى'!$C42)), SUMPRODUCT(('مصروفات متغيره'!$G$7:$BD$2005)*('مصروفات متغيره'!$A$7:$A$2005='تقرير شهرى'!J$3)*('مصروفات متغيره'!$G$6:$BD$6='تقرير شهرى'!$C42))) -> 0 | K42: =IF($C$4=$U$5,SUMPRODUCT(('مصروفات اساسية'!$G$7:$BD$2005)*('مصروفات اساسية'!$A$7:$A$2005='تقرير شهرى'!K$3)*('مصروفات اساسية'!$G$6:$BD$6='تقرير شهرى'!$C42)), SUMPRODUCT(('مصروفات متغيره'!$G$7:$BD$2005)*('مصروفات متغيره'!$A$7:$A$2005='تقرير شهرى'!K$3)*('مصروفات متغيره'!$G$6:$BD$6='تقرير شهرى'!$C42))) -> 0 | L42: =IF($C$4=$U$5,SUMPRODUCT(('مصروفات اساسية'!$G$7:$BD$2005)*('مصروفات اساسية'!$A$7:$A$2005='تقرير شهرى'!L$3)*('مصروفات اساسية'!$G$6:$BD$6='تقرير شهرى'!$C42)), SUMPRODUCT(('مصروفات متغيره'!$G$7:$BD$2005)*('مصروفات متغيره'!$A$7:$A$2005='تقرير شهرى'!L$3)*('مصروفات متغيره'!$G$6:$BD$6='تقرير شهرى'!$C42))) -> 0 | M42: =IF($C$4=$U$5,SUMPRODUCT(('مصروفات اساسية'!$G$7:$BD$2005)*('مصروفات اساسية'!$A$7:$A$2005='تقرير شهرى'!M$3)*('مصروفات اساسية'!$G$6:$BD$6='تقرير شهرى'!$C42)), SUMPRODUCT(('مصروفات متغيره'!$G$7:$BD$2005)*('مصروفات متغيره'!$A$7:$A$2005='تقرير شهرى'!M$3)*('مصروفات متغيره'!$G$6:$BD$6='تقرير شهرى'!$C42))) -> 0 | N42: =IF($C$4=$U$5,SUMPRODUCT(('مصروفات اساسية'!$G$7:$BD$2005)*('مصروفات اساسية'!$A$7:$A$2005='تقرير شهرى'!N$3)*('مصروفات اساسية'!$G$6:$BD$6='تقرير شهرى'!$C42)), SUMPRODUCT(('مصروفات متغيره'!$G$7:$BD$2005)*('مصروفات متغيره'!$A$7:$A$2005='تقرير شهرى'!N$3)*('مصروفات متغيره'!$G$6:$BD$6='تقرير شهرى'!$C42))) -> 0 | O42: =IF($C$4=$U$5,SUMPRODUCT(('مصروفات اساسية'!$G$7:$BD$2005)*('مصروفات اساسية'!$A$7:$A$2005='تقرير شهرى'!O$3)*('مصروفات اساسية'!$G$6:$BD$6='تقرير شهرى'!$C42)), SUMPRODUCT(('مصروفات متغيره'!$G$7:$BD$2005)*('مصروفات متغيره'!$A$7:$A$2005='تقرير شهرى'!O$3)*('مصروفات متغيره'!$G$6:$BD$6='تقرير شهرى'!$C42))) -> 0 | P42: 1223.8 | Q42: 1223.8
C43: =IF($C$4=$U$5,IF(الدليل!$C44="","",الدليل!C44),IF(الدليل!$E44="","",الدليل!E44)) -> فارغ34 | D43: =IF($C$4=$U$5,SUMPRODUCT(('مصروفات اساسية'!$G$7:$BD$2005)*('مصروفات اساسية'!$A$7:$A$2005='تقرير شهرى'!D$3)*('مصروفات اساسية'!$G$6:$BD$6='تقرير شهرى'!$C43)), SUMPRODUCT(('مصروفات متغيره'!$G$7:$BD$2005)*('مصروفات متغيره'!$A$7:$A$2005='تقرير شهرى'!D$3)*('مصروفات متغيره'!$G$6:$BD$6='تقرير شهرى'!$C43))) -> 1250.2 | E43: =IF($C$4=$U$5,SUMPRODUCT(('مصروفات اساسية'!$G$7:$BD$2005)*('مصروفات اساسية'!$A$7:$A$2005='تقرير شهرى'!E$3)*('مصروفات اساسية'!$G$6:$BD$6='تقرير شهرى'!$C43)), SUMPRODUCT(('مصروفات متغيره'!$G$7:$BD$2005)*('مصروفات متغيره'!$A$7:$A$2005='تقرير شهرى'!E$3)*('مصروفات متغيره'!$G$6:$BD$6='تقرير شهرى'!$C43))) -> 0 | F43: =IF($C$4=$U$5,SUMPRODUCT(('مصروفات اساسية'!$G$7:$BD$2005)*('مصروفات اساسية'!$A$7:$A$2005='تقرير شهرى'!F$3)*('مصروفات اساسية'!$G$6:$BD$6='تقرير شهرى'!$C43)), SUMPRODUCT(('مصروفات متغيره'!$G$7:$BD$2005)*('مصروفات متغيره'!$A$7:$A$2005='تقرير شهرى'!F$3)*('مصروفات متغيره'!$G$6:$BD$6='تقرير شهرى'!$C43))) -> 0 | G43: =IF($C$4=$U$5,SUMPRODUCT(('مصروفات اساسية'!$G$7:$BD$2005)*('مصروفات اساسية'!$A$7:$A$2005='تقرير شهرى'!G$3)*('مصروفات اساسية'!$G$6:$BD$6='تقرير شهرى'!$C43)), SUMPRODUCT(('مصروفات متغيره'!$G$7:$BD$2005)*('مصروفات متغيره'!$A$7:$A$2005='تقرير شهرى'!G$3)*('مصروفات متغيره'!$G$6:$BD$6='تقرير شهرى'!$C43))) -> 0 | H43: =IF($C$4=$U$5,SUMPRODUCT(('مصروفات اساسية'!$G$7:$BD$2005)*('مصروفات اساسية'!$A$7:$A$2005='تقرير شهرى'!H$3)*('مصروفات اساسية'!$G$6:$BD$6='تقرير شهرى'!$C43)), SUMPRODUCT(('مصروفات متغيره'!$G$7:$BD$2005)*('مصروفات متغيره'!$A$7:$A$2005='تقرير شهرى'!H$3)*('مصروفات متغيره'!$G$6:$BD$6='تقرير شهرى'!$C43))) -> 0 | I43: =IF($C$4=$U$5,SUMPRODUCT(('مصروفات اساسية'!$G$7:$BD$2005)*('مصروفات اساسية'!$A$7:$A$2005='تقرير شهرى'!I$3)*('مصروفات اساسية'!$G$6:$BD$6='تقرير شهرى'!$C43)), SUMPRODUCT(('مصروفات متغيره'!$G$7:$BD$2005)*('مصروفات متغيره'!$A$7:$A$2005='تقرير شهرى'!I$3)*('مصروفات متغيره'!$G$6:$BD$6='تقرير شهرى'!$C43))) -> 0 | J43: =IF($C$4=$U$5,SUMPRODUCT(('مصروفات اساسية'!$G$7:$BD$2005)*('مصروفات اساسية'!$A$7:$A$2005='تقرير شهرى'!J$3)*('مصروفات اساسية'!$G$6:$BD$6='تقرير شهرى'!$C43)), SUMPRODUCT(('مصروفات متغيره'!$G$7:$BD$2005)*('مصروفات متغيره'!$A$7:$A$2005='تقرير شهرى'!J$3)*('مصروفات متغيره'!$G$6:$BD$6='تقرير شهرى'!$C43))) -> 0 | K43: =IF($C$4=$U$5,SUMPRODUCT(('مصروفات اساسية'!$G$7:$BD$2005)*('مصروفات اساسية'!$A$7:$A$2005='تقرير شهرى'!K$3)*('مصروفات اساسية'!$G$6:$BD$6='تقرير شهرى'!$C43)), SUMPRODUCT(('مصروفات متغيره'!$G$7:$BD$2005)*('مصروفات متغيره'!$A$7:$A$2005='تقرير شهرى'!K$3)*('مصروفات متغيره'!$G$6:$BD$6='تقرير شهرى'!$C43))) -> 0 | L43: =IF($C$4=$U$5,SUMPRODUCT(('مصروفات اساسية'!$G$7:$BD$2005)*('مصروفات اساسية'!$A$7:$A$2005='تقرير شهرى'!L$3)*('مصروفات اساسية'!$G$6:$BD$6='تقرير شهرى'!$C43)), SUMPRODUCT(('مصروفات متغيره'!$G$7:$BD$2005)*('مصروفات متغيره'!$A$7:$A$2005='تقرير شهرى'!L$3)*('مصروفات متغيره'!$G$6:$BD$6='تقرير شهرى'!$C43))) -> 0 | M43: =IF($C$4=$U$5,SUMPRODUCT(('مصروفات اساسية'!$G$7:$BD$2005)*('مصروفات اساسية'!$A$7:$A$2005='تقرير شهرى'!M$3)*('مصروفات اساسية'!$G$6:$BD$6='تقرير شهرى'!$C43)), SUMPRODUCT(('مصروفات متغيره'!$G$7:$BD$2005)*('مصروفات متغيره'!$A$7:$A$2005='تقرير شهرى'!M$3)*('مصروفات متغيره'!$G$6:$BD$6='تقرير شهرى'!$C43))) -> 0 | N43: =IF($C$4=$U$5,SUMPRODUCT(('مصروفات اساسية'!$G$7:$BD$2005)*('مصروفات اساسية'!$A$7:$A$2005='تقرير شهرى'!N$3)*('مصروفات اساسية'!$G$6:$BD$6='تقرير شهرى'!$C43)), SUMPRODUCT(('مصروفات متغيره'!$G$7:$BD$2005)*('مصروفات متغيره'!$A$7:$A$2005='تقرير شهرى'!N$3)*('مصروفات متغيره'!$G$6:$BD$6='تقرير شهرى'!$C43))) -> 0 | O43: =IF($C$4=$U$5,SUMPRODUCT(('مصروفات اساسية'!$G$7:$BD$2005)*('مصروفات اساسية'!$A$7:$A$2005='تقرير شهرى'!O$3)*('مصروفات اساسية'!$G$6:$BD$6='تقرير شهرى'!$C43)), SUMPRODUCT(('مصروفات متغيره'!$G$7:$BD$2005)*('مصروفات متغيره'!$A$7:$A$2005='تقرير شهرى'!O$3)*('مصروفات متغيره'!$G$6:$BD$6='تقرير شهرى'!$C43))) -> 0 | P43: 1250.2 | Q43: 1250.2
C44: =IF($C$4=$U$5,IF(الدليل!$C45="","",الدليل!C45),IF(الدليل!$E45="","",الدليل!E45)) -> فارغ35 | D44: =IF($C$4=$U$5,SUMPRODUCT(('مصروفات اساسية'!$G$7:$BD$2005)*('مصروفات اساسية'!$A$7:$A$2005='تقرير شهرى'!D$3)*('مصروفات اساسية'!$G$6:$BD$6='تقرير شهرى'!$C44)), SUMPRODUCT(('مصروفات متغيره'!$G$7:$BD$2005)*('مصروفات متغيره'!$A$7:$A$2005='تقرير شهرى'!D$3)*('مصروفات متغيره'!$G$6:$BD$6='تقرير شهرى'!$C44))) -> 1276.6 | E44: =IF($C$4=$U$5,SUMPRODUCT(('مصروفات اساسية'!$G$7:$BD$2005)*('مصروفات اساسية'!$A$7:$A$2005='تقرير شهرى'!E$3)*('مصروفات اساسية'!$G$6:$BD$6='تقرير شهرى'!$C44)), SUMPRODUCT(('مصروفات متغيره'!$G$7:$BD$2005)*('مصروفات متغيره'!$A$7:$A$2005='تقرير شهرى'!E$3)*('مصروفات متغيره'!$G$6:$BD$6='تقرير شهرى'!$C44))) -> 0 | F44: =IF($C$4=$U$5,SUMPRODUCT(('مصروفات اساسية'!$G$7:$BD$2005)*('مصروفات اساسية'!$A$7:$A$2005='تقرير شهرى'!F$3)*('مصروفات اساسية'!$G$6:$BD$6='تقرير شهرى'!$C44)), SUMPRODUCT(('مصروفات متغيره'!$G$7:$BD$2005)*('مصروفات متغيره'!$A$7:$A$2005='تقرير شهرى'!F$3)*('مصروفات متغيره'!$G$6:$BD$6='تقرير شهرى'!$C44))) -> 0 | G44: =IF($C$4=$U$5,SUMPRODUCT(('مصروفات اساسية'!$G$7:$BD$2005)*('مصروفات اساسية'!$A$7:$A$2005='تقرير شهرى'!G$3)*('مصروفات اساسية'!$G$6:$BD$6='تقرير شهرى'!$C44)), SUMPRODUCT(('مصروفات متغيره'!$G$7:$BD$2005)*('مصروفات متغيره'!$A$7:$A$2005='تقرير شهرى'!G$3)*('مصروفات متغيره'!$G$6:$BD$6='تقرير شهرى'!$C44))) -> 0 | H44: =IF($C$4=$U$5,SUMPRODUCT(('مصروفات اساسية'!$G$7:$BD$2005)*('مصروفات اساسية'!$A$7:$A$2005='تقرير شهرى'!H$3)*('مصروفات اساسية'!$G$6:$BD$6='تقرير شهرى'!$C44)), SUMPRODUCT(('مصروفات متغيره'!$G$7:$BD$2005)*('مصروفات متغيره'!$A$7:$A$2005='تقرير شهرى'!H$3)*('مصروفات متغيره'!$G$6:$BD$6='تقرير شهرى'!$C44))) -> 0 | I44: =IF($C$4=$U$5,SUMPRODUCT(('مصروفات اساسية'!$G$7:$BD$2005)*('مصروفات اساسية'!$A$7:$A$2005='تقرير شهرى'!I$3)*('مصروفات اساسية'!$G$6:$BD$6='تقرير شهرى'!$C44)), SUMPRODUCT(('مصروفات متغيره'!$G$7:$BD$2005)*('مصروفات متغيره'!$A$7:$A$2005='تقرير شهرى'!I$3)*('مصروفات متغيره'!$G$6:$BD$6='تقرير شهرى'!$C44))) -> 0 | J44: =IF($C$4=$U$5,SUMPRODUCT(('مصروفات اساسية'!$G$7:$BD$2005)*('مصروفات اساسية'!$A$7:$A$2005='تقرير شهرى'!J$3)*('مصروفات اساسية'!$G$6:$BD$6='تقرير شهرى'!$C44)), SUMPRODUCT(('مصروفات متغيره'!$G$7:$BD$2005)*('مصروفات متغيره'!$A$7:$A$2005='تقرير شهرى'!J$3)*('مصروفات متغيره'!$G$6:$BD$6='تقرير شهرى'!$C44))) -> 0 | K44: =IF($C$4=$U$5,SUMPRODUCT(('مصروفات اساسية'!$G$7:$BD$2005)*('مصروفات اساسية'!$A$7:$A$2005='تقرير شهرى'!K$3)*('مصروفات اساسية'!$G$6:$BD$6='تقرير شهرى'!$C44)), SUMPRODUCT(('مصروفات متغيره'!$G$7:$BD$2005)*('مصروفات متغيره'!$A$7:$A$2005='تقرير شهرى'!K$3)*('مصروفات متغيره'!$G$6:$BD$6='تقرير شهرى'!$C44))) -> 0 | L44: =IF($C$4=$U$5,SUMPRODUCT(('مصروفات اساسية'!$G$7:$BD$2005)*('مصروفات اساسية'!$A$7:$A$2005='تقرير شهرى'!L$3)*('مصروفات اساسية'!$G$6:$BD$6='تقرير شهرى'!$C44)), SUMPRODUCT(('مصروفات متغيره'!$G$7:$BD$2005)*('مصروفات متغيره'!$A$7:$A$2005='تقرير شهرى'!L$3)*('مصروفات متغيره'!$G$6:$BD$6='تقرير شهرى'!$C44))) -> 0 | M44: =IF($C$4=$U$5,SUMPRODUCT(('مصروفات اساسية'!$G$7:$BD$2005)*('مصروفات اساسية'!$A$7:$A$2005='تقرير شهرى'!M$3)*('مصروفات اساسية'!$G$6:$BD$6='تقرير شهرى'!$C44)), SUMPRODUCT(('مصروفات متغيره'!$G$7:$BD$2005)*('مصروفات متغيره'!$A$7:$A$2005='تقرير شهرى'!M$3)*('مصروفات متغيره'!$G$6:$BD$6='تقرير شهرى'!$C44))) -> 0 | N44: =IF($C$4=$U$5,SUMPRODUCT(('مصروفات اساسية'!$G$7:$BD$2005)*('مصروفات اساسية'!$A$7:$A$2005='تقرير شهرى'!N$3)*('مصروفات اساسية'!$G$6:$BD$6='تقرير شهرى'!$C44)), SUMPRODUCT(('مصروفات متغيره'!$G$7:$BD$2005)*('مصروفات متغيره'!$A$7:$A$2005='تقرير شهرى'!N$3)*('مصروفات متغيره'!$G$6:$BD$6='تقرير شهرى'!$C44))) -> 0 | O44: =IF($C$4=$U$5,SUMPRODUCT(('مصروفات اساسية'!$G$7:$BD$2005)*('مصروفات اساسية'!$A$7:$A$2005='تقرير شهرى'!O$3)*('مصروفات اساسية'!$G$6:$BD$6='تقرير شهرى'!$C44)), SUMPRODUCT(('مصروفات متغيره'!$G$7:$BD$2005)*('مصروفات متغيره'!$A$7:$A$2005='تقرير شهرى'!O$3)*('مصروفات متغيره'!$G$6:$BD$6='تقرير شهرى'!$C44))) -> 0 | P44: 1276.6 | Q44: 1276.6
C45: =IF($C$4=$U$5,IF(الدليل!$C46="","",الدليل!C46),IF(الدليل!$E46="","",الدليل!E46)) -> فارغ36 | D45: =IF($C$4=$U$5,SUMPRODUCT(('مصروفات اساسية'!$G$7:$BD$2005)*('مصروفات اساسية'!$A$7:$A$2005='تقرير شهرى'!D$3)*('مصروفات اساسية'!$G$6:$BD$6='تقرير شهرى'!$C45)), SUMPRODUCT(('مصروفات متغيره'!$G$7:$BD$2005)*('مصروفات متغيره'!$A$7:$A$2005='تقرير شهرى'!D$3)*('مصروفات متغيره'!$G$6:$BD$6='تقرير شهرى'!$C45))) -> 1303 | E45: =IF($C$4=$U$5,SUMPRODUCT(('مصروفات اساسية'!$G$7:$BD$2005)*('مصروفات اساسية'!$A$7:$A$2005='تقرير شهرى'!E$3)*('مصروفات اساسية'!$G$6:$BD$6='تقرير شهرى'!$C45)), SUMPRODUCT(('مصروفات متغيره'!$G$7:$BD$2005)*('مصروفات متغيره'!$A$7:$A$2005='تقرير شهرى'!E$3)*('مصروفات متغيره'!$G$6:$BD$6='تقرير شهرى'!$C45))) -> 0 | F45: =IF($C$4=$U$5,SUMPRODUCT(('مصروفات اساسية'!$G$7:$BD$2005)*('مصروفات اساسية'!$A$7:$A$2005='تقرير شهرى'!F$3)*('مصروفات اساسية'!$G$6:$BD$6='تقرير شهرى'!$C45)), SUMPRODUCT(('مصروفات متغيره'!$G$7:$BD$2005)*('مصروفات متغيره'!$A$7:$A$2005='تقرير شهرى'!F$3)*('مصروفات متغيره'!$G$6:$BD$6='تقرير شهرى'!$C45))) -> 0 | G45: =IF($C$4=$U$5,SUMPRODUCT(('مصروفات اساسية'!$G$7:$BD$2005)*('مصروفات اساسية'!$A$7:$A$2005='تقرير شهرى'!G$3)*('مصروفات اساسية'!$G$6:$BD$6='تقرير شهرى'!$C45)), SUMPRODUCT(('مصروفات متغيره'!$G$7:$BD$2005)*('مصروفات متغيره'!$A$7:$A$2005='تقرير شهرى'!G$3)*('مصروفات متغيره'!$G$6:$BD$6='تقرير شهرى'!$C45))) -> 0 | H45: =IF($C$4=$U$5,SUMPRODUCT(('مصروفات اساسية'!$G$7:$BD$2005)*('مصروفات اساسية'!$A$7:$A$2005='تقرير شهرى'!H$3)*('مصروفات اساسية'!$G$6:$BD$6='تقرير شهرى'!$C45)), SUMPRODUCT(('مصروفات متغيره'!$G$7:$BD$2005)*('مصروفات متغيره'!$A$7:$A$2005='تقرير شهرى'!H$3)*('مصروفات متغيره'!$G$6:$BD$6='تقرير شهرى'!$C45))) -> 0 | I45: =IF($C$4=$U$5,SUMPRODUCT(('مصروفات اساسية'!$G$7:$BD$2005)*('مصروفات اساسية'!$A$7:$A$2005='تقرير شهرى'!I$3)*('مصروفات اساسية'!$G$6:$BD$6='تقرير شهرى'!$C45)), SUMPRODUCT(('مصروفات متغيره'!$G$7:$BD$2005)*('مصروفات متغيره'!$A$7:$A$2005='تقرير شهرى'!I$3)*('مصروفات متغيره'!$G$6:$BD$6='تقرير شهرى'!$C45))) -> 0 | J45: =IF($C$4=$U$5,SUMPRODUCT(('مصروفات اساسية'!$G$7:$BD$2005)*('مصروفات اساسية'!$A$7:$A$2005='تقرير شهرى'!J$3)*('مصروفات اساسية'!$G$6:$BD$6='تقرير شهرى'!$C45)), SUMPRODUCT(('مصروفات متغيره'!$G$7:$BD$2005)*('مصروفات متغيره'!$A$7:$A$2005='تقرير شهرى'!J$3)*('مصروفات متغيره'!$G$6:$BD$6='تقرير شهرى'!$C45))) -> 0 | K45: =IF($C$4=$U$5,SUMPRODUCT(('مصروفات اساسية'!$G$7:$BD$2005)*('مصروفات اساسية'!$A$7:$A$2005='تقرير شهرى'!K$3)*('مصروفات اساسية'!$G$6:$BD$6='تقرير شهرى'!$C45)), SUMPRODUCT(('مصروفات متغيره'!$G$7:$BD$2005)*('مصروفات متغيره'!$A$7:$A$2005='تقرير شهرى'!K$3)*('مصروفات متغيره'!$G$6:$BD$6='تقرير شهرى'!$C45))) -> 0 | L45: =IF($C$4=$U$5,SUMPRODUCT(('مصروفات اساسية'!$G$7:$BD$2005)*('مصروفات اساسية'!$A$7:$A$2005='تقرير شهرى'!L$3)*('مصروفات اساسية'!$G$6:$BD$6='تقرير شهرى'!$C45)), SUMPRODUCT(('مصروفات متغيره'!$G$7:$BD$2005)*('مصروفات متغيره'!$A$7:$A$2005='تقرير شهرى'!L$3)*('مصروفات متغيره'!$G$6:$BD$6='تقرير شهرى'!$C45))) -> 0 | M45: =IF($C$4=$U$5,SUMPRODUCT(('مصروفات اساسية'!$G$7:$BD$2005)*('مصروفات اساسية'!$A$7:$A$2005='تقرير شهرى'!M$3)*('مصروفات اساسية'!$G$6:$BD$6='تقرير شهرى'!$C45)), SUMPRODUCT(('مصروفات متغيره'!$G$7:$BD$2005)*('مصروفات متغيره'!$A$7:$A$2005='تقرير شهرى'!M$3)*('مصروفات متغيره'!$G$6:$BD$6='تقرير شهرى'!$C45))) -> 0 | N45: =IF($C$4=$U$5,SUMPRODUCT(('مصروفات اساسية'!$G$7:$BD$2005)*('مصروفات اساسية'!$A$7:$A$2005='تقرير شهرى'!N$3)*('مصروفات اساسية'!$G$6:$BD$6='تقرير شهرى'!$C45)), SUMPRODUCT(('مصروفات متغيره'!$G$7:$BD$2005)*('مصروفات متغيره'!$A$7:$A$2005='تقرير شهرى'!N$3)*('مصروفات متغيره'!$G$6:$BD$6='تقرير شهرى'!$C45))) -> 0 | O45: =IF($C$4=$U$5,SUMPRODUCT(('مصروفات اساسية'!$G$7:$BD$2005)*('مصروفات اساسية'!$A$7:$A$2005='تقرير شهرى'!O$3)*('مصروفات اساسية'!$G$6:$BD$6='تقرير شهرى'!$C45)), SUMPRODUCT(('مصروفات متغيره'!$G$7:$BD$2005)*('مصروفات متغيره'!$A$7:$A$2005='تقرير شهرى'!O$3)*('مصروفات متغيره'!$G$6:$BD$6='تقرير شهرى'!$C45))) -> 0 | P45: 1303 | Q45: 1303
C46: =IF($C$4=$U$5,IF(الدليل!$C47="","",الدليل!C47),IF(الدليل!$E47="","",الدليل!E47)) -> فارغ37 | D46: =IF($C$4=$U$5,SUMPRODUCT(('مصروفات اساسية'!$G$7:$BD$2005)*('مصروفات اساسية'!$A$7:$A$2005='تقرير شهرى'!D$3)*('مصروفات اساسية'!$G$6:$BD$6='تقرير شهرى'!$C46)), SUMPRODUCT(('مصروفات متغيره'!$G$7:$BD$2005)*('مصروفات متغيره'!$A$7:$A$2005='تقرير شهرى'!D$3)*('مصروفات متغيره'!$G$6:$BD$6='تقرير شهرى'!$C46))) -> 990 | E46: =IF($C$4=$U$5,SUMPRODUCT(('مصروفات اساسية'!$G$7:$BD$2005)*('مصروفات اساسية'!$A$7:$A$2005='تقرير شهرى'!E$3)*('مصروفات اساسية'!$G$6:$BD$6='تقرير شهرى'!$C46)), SUMPRODUCT(('مصروفات متغيره'!$G$7:$BD$2005)*('مصروفات متغيره'!$A$7:$A$2005='تقرير شهرى'!E$3)*('مصروفات متغيره'!$G$6:$BD$6='تقرير شهرى'!$C46))) -> 0 | F46: =IF($C$4=$U$5,SUMPRODUCT(('مصروفات اساسية'!$G$7:$BD$2005)*('مصروفات اساسية'!$A$7:$A$2005='تقرير شهرى'!F$3)*('مصروفات اساسية'!$G$6:$BD$6='تقرير شهرى'!$C46)), SUMPRODUCT(('مصروفات متغيره'!$G$7:$BD$2005)*('مصروفات متغيره'!$A$7:$A$2005='تقرير شهرى'!F$3)*('مصروفات متغيره'!$G$6:$BD$6='تقرير شهرى'!$C46))) -> 0 | G46: =IF($C$4=$U$5,SUMPRODUCT(('مصروفات اساسية'!$G$7:$BD$2005)*('مصروفات اساسية'!$A$7:$A$2005='تقرير شهرى'!G$3)*('مصروفات اساسية'!$G$6:$BD$6='تقرير شهرى'!$C46)), SUMPRODUCT(('مصروفات متغيره'!$G$7:$BD$2005)*('مصروفات متغيره'!$A$7:$A$2005='تقرير شهرى'!G$3)*('مصروفات متغيره'!$G$6:$BD$6='تقرير شهرى'!$C46))) -> 0 | H46: =IF($C$4=$U$5,SUMPRODUCT(('مصروفات اساسية'!$G$7:$BD$2005)*('مصروفات اساسية'!$A$7:$A$2005='تقرير شهرى'!H$3)*('مصروفات اساسية'!$G$6:$BD$6='تقرير شهرى'!$C46)), SUMPRODUCT(('مصروفات متغيره'!$G$7:$BD$2005)*('مصروفات متغيره'!$A$7:$A$2005='تقرير شهرى'!H$3)*('مصروفات متغيره'!$G$6:$BD$6='تقرير شهرى'!$C46))) -> 0 | I46: =IF($C$4=$U$5,SUMPRODUCT(('مصروفات اساسية'!$G$7:$BD$2005)*('مصروفات اساسية'!$A$7:$A$2005='تقرير شهرى'!I$3)*('مصروفات اساسية'!$G$6:$BD$6='تقرير شهرى'!$C46)), SUMPRODUCT(('مصروفات متغيره'!$G$7:$BD$2005)*('مصروفات متغيره'!$A$7:$A$2005='تقرير شهرى'!I$3)*('مصروفات متغيره'!$G$6:$BD$6='تقرير شهرى'!$C46))) -> 0 | J46: =IF($C$4=$U$5,SUMPRODUCT(('مصروفات اساسية'!$G$7:$BD$2005)*('مصروفات اساسية'!$A$7:$A$2005='تقرير شهرى'!J$3)*('مصروفات اساسية'!$G$6:$BD$6='تقرير شهرى'!$C46)), SUMPRODUCT(('مصروفات متغيره'!$G$7:$BD$2005)*('مصروفات متغيره'!$A$7:$A$2005='تقرير شهرى'!J$3)*('مصروفات متغيره'!$G$6:$BD$6='تقرير شهرى'!$C46))) -> 0 | K46: =IF($C$4=$U$5,SUMPRODUCT(('مصروفات اساسية'!$G$7:$BD$2005)*('مصروفات اساسية'!$A$7:$A$2005='تقرير شهرى'!K$3)*('مصروفات اساسية'!$G$6:$BD$6='تقرير شهرى'!$C46)), SUMPRODUCT(('مصروفات متغيره'!$G$7:$BD$2005)*('مصروفات متغيره'!$A$7:$A$2005='تقرير شهرى'!K$3)*('مصروفات متغيره'!$G$6:$BD$6='تقرير شهرى'!$C46))) -> 0 | L46: =IF($C$4=$U$5,SUMPRODUCT(('مصروفات اساسية'!$G$7:$BD$2005)*('مصروفات اساسية'!$A$7:$A$2005='تقرير شهرى'!L$3)*('مصروفات اساسية'!$G$6:$BD$6='تقرير شهرى'!$C46)), SUMPRODUCT(('مصروفات متغيره'!$G$7:$BD$2005)*('مصروفات متغيره'!$A$7:$A$2005='تقرير شهرى'!L$3)*('مصروفات متغيره'!$G$6:$BD$6='تقرير شهرى'!$C46))) -> 0 | M46: =IF($C$4=$U$5,SUMPRODUCT(('مصروفات اساسية'!$G$7:$BD$2005)*('مصروفات اساسية'!$A$7:$A$2005='تقرير شهرى'!M$3)*('مصروفات اساسية'!$G$6:$BD$6='تقرير شهرى'!$C46)), SUMPRODUCT(('مصروفات متغيره'!$G$7:$BD$2005)*('مصروفات متغيره'!$A$7:$A$2005='تقرير شهرى'!M$3)*('مصروفات متغيره'!$G$6:$BD$6='تقرير شهرى'!$C46))) -> 0 | N46: =IF($C$4=$U$5,SUMPRODUCT(('مصروفات اساسية'!$G$7:$BD$2005)*('مصروفات اساسية'!$A$7:$A$2005='تقرير شهرى'!N$3)*('مصروفات اساسية'!$G$6:$BD$6='تقرير شهرى'!$C46)), SUMPRODUCT(('مصروفات متغيره'!$G$7:$BD$2005)*('مصروفات متغيره'!$A$7:$A$2005='تقرير شهرى'!N$3)*('مصروفات متغيره'!$G$6:$BD$6='تقرير شهرى'!$C46))) -> 0 | O46: =IF($C$4=$U$5,SUMPRODUCT(('مصروفات اساسية'!$G$7:$BD$2005)*('مصروفات اساسية'!$A$7:$A$2005='تقرير شهرى'!O$3)*('مصروفات اساسية'!$G$6:$BD$6='تقرير شهرى'!$C46)), SUMPRODUCT(('مصروفات متغيره'!$G$7:$BD$2005)*('مصروفات متغيره'!$A$7:$A$2005='تقرير شهرى'!O$3)*('مصروفات متغيره'!$G$6:$BD$6='تقرير شهرى'!$C46))) -> 0 | P46: 990 | Q46: 990
C47: =IF($C$4=$U$5,IF(الدليل!$C48="","",الدليل!C48),IF(الدليل!$E48="","",الدليل!E48)) -> فارغ38 | D47: =IF($C$4=$U$5,SUMPRODUCT(('مصروفات اساسية'!$G$7:$BD$2005)*('مصروفات اساسية'!$A$7:$A$2005='تقرير شهرى'!D$3)*('مصروفات اساسية'!$G$6:$BD$6='تقرير شهرى'!$C47)), SUMPRODUCT(('مصروفات متغيره'!$G$7:$BD$2005)*('مصروفات متغيره'!$A$7:$A$2005='تقرير شهرى'!D$3)*('مصروفات متغيره'!$G$6:$BD$6='تقرير شهرى'!$C47))) -> 1355.8 | E47: =IF($C$4=$U$5,SUMPRODUCT(('مصروفات اساسية'!$G$7:$BD$2005)*('مصروفات اساسية'!$A$7:$A$2005='تقرير شهرى'!E$3)*('مصروفات اساسية'!$G$6:$BD$6='تقرير شهرى'!$C47)), SUMPRODUCT(('مصروفات متغيره'!$G$7:$BD$2005)*('مصروفات متغيره'!$A$7:$A$2005='تقرير شهرى'!E$3)*('مصروفات متغيره'!$G$6:$BD$6='تقرير شهرى'!$C47))) -> 0 | F47: =IF($C$4=$U$5,SUMPRODUCT(('مصروفات اساسية'!$G$7:$BD$2005)*('مصروفات اساسية'!$A$7:$A$2005='تقرير شهرى'!F$3)*('مصروفات اساسية'!$G$6:$BD$6='تقرير شهرى'!$C47)), SUMPRODUCT(('مصروفات متغيره'!$G$7:$BD$2005)*('مصروفات متغيره'!$A$7:$A$2005='تقرير شهرى'!F$3)*('مصروفات متغيره'!$G$6:$BD$6='تقرير شهرى'!$C47))) -> 0 | G47: =IF($C$4=$U$5,SUMPRODUCT(('مصروفات اساسية'!$G$7:$BD$2005)*('مصروفات اساسية'!$A$7:$A$2005='تقرير شهرى'!G$3)*('مصروفات اساسية'!$G$6:$BD$6='تقرير شهرى'!$C47)), SUMPRODUCT(('مصروفات متغيره'!$G$7:$BD$2005)*('مصروفات متغيره'!$A$7:$A$2005='تقرير شهرى'!G$3)*('مصروفات متغيره'!$G$6:$BD$6='تقرير شهرى'!$C47))) -> 0 | H47: =IF($C$4=$U$5,SUMPRODUCT(('مصروفات اساسية'!$G$7:$BD$2005)*('مصروفات اساسية'!$A$7:$A$2005='تقرير شهرى'!H$3)*('مصروفات اساسية'!$G$6:$BD$6='تقرير شهرى'!$C47)), SUMPRODUCT(('مصروفات متغيره'!$G$7:$BD$2005)*('مصروفات متغيره'!$A$7:$A$2005='تقرير شهرى'!H$3)*('مصروفات متغيره'!$G$6:$BD$6='تقرير شهرى'!$C47))) -> 0 | I47: =IF($C$4=$U$5,SUMPRODUCT(('مصروفات اساسية'!$G$7:$BD$2005)*('مصروفات اساسية'!$A$7:$A$2005='تقرير شهرى'!I$3)*('مصروفات اساسية'!$G$6:$BD$6='تقرير شهرى'!$C47)), SUMPRODUCT(('مصروفات متغيره'!$G$7:$BD$2005)*('مصروفات متغيره'!$A$7:$A$2005='تقرير شهرى'!I$3)*('مصروفات متغيره'!$G$6:$BD$6='تقرير شهرى'!$C47))) -> 0 | J47: =IF($C$4=$U$5,SUMPRODUCT(('مصروفات اساسية'!$G$7:$BD$2005)*('مصروفات اساسية'!$A$7:$A$2005='تقرير شهرى'!J$3)*('مصروفات اساسية'!$G$6:$BD$6='تقرير شهرى'!$C47)), SUMPRODUCT(('مصروفات متغيره'!$G$7:$BD$2005)*('مصروفات متغيره'!$A$7:$A$2005='تقرير شهرى'!J$3)*('مصروفات متغيره'!$G$6:$BD$6='تقرير شهرى'!$C47))) -> 0 | K47: =IF($C$4=$U$5,SUMPRODUCT(('مصروفات اساسية'!$G$7:$BD$2005)*('مصروفات اساسية'!$A$7:$A$2005='تقرير شهرى'!K$3)*('مصروفات اساسية'!$G$6:$BD$6='تقرير شهرى'!$C47)), SUMPRODUCT(('مصروفات متغيره'!$G$7:$BD$2005)*('مصروفات متغيره'!$A$7:$A$2005='تقرير شهرى'!K$3)*('مصروفات متغيره'!$G$6:$BD$6='تقرير شهرى'!$C47))) -> 0 | L47: =IF($C$4=$U$5,SUMPRODUCT(('مصروفات اساسية'!$G$7:$BD$2005)*('مصروفات اساسية'!$A$7:$A$2005='تقرير شهرى'!L$3)*('مصروفات اساسية'!$G$6:$BD$6='تقرير شهرى'!$C47)), SUMPRODUCT(('مصروفات متغيره'!$G$7:$BD$2005)*('مصروفات متغيره'!$A$7:$A$2005='تقرير شهرى'!L$3)*('مصروفات متغيره'!$G$6:$BD$6='تقرير شهرى'!$C47))) -> 0 | M47: =IF($C$4=$U$5,SUMPRODUCT(('مصروفات اساسية'!$G$7:$BD$2005)*('مصروفات اساسية'!$A$7:$A$2005='تقرير شهرى'!M$3)*('مصروفات اساسية'!$G$6:$BD$6='تقرير شهرى'!$C47)), SUMPRODUCT(('مصروفات متغيره'!$G$7:$BD$2005)*('مصروفات متغيره'!$A$7:$A$2005='تقرير شهرى'!M$3)*('مصروفات متغيره'!$G$6:$BD$6='تقرير شهرى'!$C47))) -> 0 | N47: =IF($C$4=$U$5,SUMPRODUCT(('مصروفات اساسية'!$G$7:$BD$2005)*('مصروفات اساسية'!$A$7:$A$2005='تقرير شهرى'!N$3)*('مصروفات اساسية'!$G$6:$BD$6='تقرير شهرى'!$C47)), SUMPRODUCT(('مصروفات متغيره'!$G$7:$BD$2005)*('مصروفات متغيره'!$A$7:$A$2005='تقرير شهرى'!N$3)*('مصروفات متغيره'!$G$6:$BD$6='تقرير شهرى'!$C47))) -> 0 | O47: =IF($C$4=$U$5,SUMPRODUCT(('مصروفات اساسية'!$G$7:$BD$2005)*('مصروفات اساسية'!$A$7:$A$2005='تقرير شهرى'!O$3)*('مصروفات اساسية'!$G$6:$BD$6='تقرير شهرى'!$C47)), SUMPRODUCT(('مصروفات متغيره'!$G$7:$BD$2005)*('مصروفات متغيره'!$A$7:$A$2005='تقرير شهرى'!O$3)*('مصروفات متغيره'!$G$6:$BD$6='تقرير شهرى'!$C47))) -> 0 | P47: 1355.8 | Q47: 1355.8
C48: =IF($C$4=$U$5,IF(الدليل!$C49="","",الدليل!C49),IF(الدليل!$E49="","",الدليل!E49)) -> فارغ39 | D48: =IF($C$4=$U$5,SUMPRODUCT(('مصروفات اساسية'!$G$7:$BD$2005)*('مصروفات اساسية'!$A$7:$A$2005='تقرير شهرى'!D$3)*('مصروفات اساسية'!$G$6:$BD$6='تقرير شهرى'!$C48)), SUMPRODUCT(('مصروفات متغيره'!$G$7:$BD$2005)*('مصروفات متغيره'!$A$7:$A$2005='تقرير شهرى'!D$3)*('مصروفات متغيره'!$G$6:$BD$6='تقرير شهرى'!$C48))) -> 1382.2 | E48: =IF($C$4=$U$5,SUMPRODUCT(('مصروفات اساسية'!$G$7:$BD$2005)*('مصروفات اساسية'!$A$7:$A$2005='تقرير شهرى'!E$3)*('مصروفات اساسية'!$G$6:$BD$6='تقرير شهرى'!$C48)), SUMPRODUCT(('مصروفات متغيره'!$G$7:$BD$2005)*('مصروفات متغيره'!$A$7:$A$2005='تقرير شهرى'!E$3)*('مصروفات متغيره'!$G$6:$BD$6='تقرير شهرى'!$C48))) -> 0 | F48: =IF($C$4=$U$5,SUMPRODUCT(('مصروفات اساسية'!$G$7:$BD$2005)*('مصروفات اساسية'!$A$7:$A$2005='تقرير شهرى'!F$3)*('مصروفات اساسية'!$G$6:$BD$6='تقرير شهرى'!$C48)), SUMPRODUCT(('مصروفات متغيره'!$G$7:$BD$2005)*('مصروفات متغيره'!$A$7:$A$2005='تقرير شهرى'!F$3)*('مصروفات متغيره'!$G$6:$BD$6='تقرير شهرى'!$C48))) -> 0 | G48: =IF($C$4=$U$5,SUMPRODUCT(('مصروفات اساسية'!$G$7:$BD$2005)*('مصروفات اساسية'!$A$7:$A$2005='تقرير شهرى'!G$3)*('مصروفات اساسية'!$G$6:$BD$6='تقرير شهرى'!$C48)), SUMPRODUCT(('مصروفات متغيره'!$G$7:$BD$2005)*('مصروفات متغيره'!$A$7:$A$2005='تقرير شهرى'!G$3)*('مصروفات متغيره'!$G$6:$BD$6='تقرير شهرى'!$C48))) -> 0 | H48: =IF($C$4=$U$5,SUMPRODUCT(('مصروفات اساسية'!$G$7:$BD$2005)*('مصروفات اساسية'!$A$7:$A$2005='تقرير شهرى'!H$3)*('مصروفات اساسية'!$G$6:$BD$6='تقرير شهرى'!$C48)), SUMPRODUCT(('مصروفات متغيره'!$G$7:$BD$2005)*('مصروفات متغيره'!$A$7:$A$2005='تقرير شهرى'!H$3)*('مصروفات متغيره'!$G$6:$BD$6='تقرير شهرى'!$C48))) -> 0 | I48: =IF($C$4=$U$5,SUMPRODUCT(('مصروفات اساسية'!$G$7:$BD$2005)*('مصروفات اساسية'!$A$7:$A$2005='تقرير شهرى'!I$3)*('مصروفات اساسية'!$G$6:$BD$6='تقرير شهرى'!$C48)), SUMPRODUCT(('مصروفات متغيره'!$G$7:$BD$2005)*('مصروفات متغيره'!$A$7:$A$2005='تقرير شهرى'!I$3)*('مصروفات متغيره'!$G$6:$BD$6='تقرير شهرى'!$C48))) -> 0 | J48: =IF($C$4=$U$5,SUMPRODUCT(('مصروفات اساسية'!$G$7:$BD$2005)*('مصروفات اساسية'!$A$7:$A$2005='تقرير شهرى'!J$3)*('مصروفات اساسية'!$G$6:$BD$6='تقرير شهرى'!$C48)), SUMPRODUCT(('مصروفات متغيره'!$G$7:$BD$2005)*('مصروفات متغيره'!$A$7:$A$2005='تقرير شهرى'!J$3)*('مصروفات متغيره'!$G$6:$BD$6='تقرير شهرى'!$C48))) -> 0 | K48: =IF($C$4=$U$5,SUMPRODUCT(('مصروفات اساسية'!$G$7:$BD$2005)*('مصروفات اساسية'!$A$7:$A$2005='تقرير شهرى'!K$3)*('مصروفات اساسية'!$G$6:$BD$6='تقرير شهرى'!$C48)), SUMPRODUCT(('مصروفات متغيره'!$G$7:$BD$2005)*('مصروفات متغيره'!$A$7:$A$2005='تقرير شهرى'!K$3)*('مصروفات متغيره'!$G$6:$BD$6='تقرير شهرى'!$C48))) -> 0 | L48: =IF($C$4=$U$5,SUMPRODUCT(('مصروفات اساسية'!$G$7:$BD$2005)*('مصروفات اساسية'!$A$7:$A$2005='تقرير شهرى'!L$3)*('مصروفات اساسية'!$G$6:$BD$6='تقرير شهرى'!$C48)), SUMPRODUCT(('مصروفات متغيره'!$G$7:$BD$2005)*('مصروفات متغيره'!$A$7:$A$2005='تقرير شهرى'!L$3)*('مصروفات متغيره'!$G$6:$BD$6='تقرير شهرى'!$C48))) -> 0 | M48: =IF($C$4=$U$5,SUMPRODUCT(('مصروفات اساسية'!$G$7:$BD$2005)*('مصروفات اساسية'!$A$7:$A$2005='تقرير شهرى'!M$3)*('مصروفات اساسية'!$G$6:$BD$6='تقرير شهرى'!$C48)), SUMPRODUCT(('مصروفات متغيره'!$G$7:$BD$2005)*('مصروفات متغيره'!$A$7:$A$2005='تقرير شهرى'!M$3)*('مصروفات متغيره'!$G$6:$BD$6='تقرير شهرى'!$C48))) -> 0 | N48: =IF($C$4=$U$5,SUMPRODUCT(('مصروفات اساسية'!$G$7:$BD$2005)*('مصروفات اساسية'!$A$7:$A$2005='تقرير شهرى'!N$3)*('مصروفات اساسية'!$G$6:$BD$6='تقرير شهرى'!$C48)), SUMPRODUCT(('مصروفات متغيره'!$G$7:$BD$2005)*('مصروفات متغيره'!$A$7:$A$2005='تقرير شهرى'!N$3)*('مصروفات متغيره'!$G$6:$BD$6='تقرير شهرى'!$C48))) -> 0 | O48: =IF($C$4=$U$5,SUMPRODUCT(('مصروفات اساسية'!$G$7:$BD$2005)*('مصروفات اساسية'!$A$7:$A$2005='تقرير شهرى'!O$3)*('مصروفات اساسية'!$G$6:$BD$6='تقرير شهرى'!$C48)), SUMPRODUCT(('مصروفات متغيره'!$G$7:$BD$2005)*('مصروفات متغيره'!$A$7:$A$2005='تقرير شهرى'!O$3)*('مصروفات متغيره'!$G$6:$BD$6='تقرير شهرى'!$C48))) -> 0 | P48: 1382.2 | Q48: 1382.2
C49: =IF($C$4=$U$5,IF(الدليل!$C50="","",الدليل!C50),IF(الدليل!$E50="","",الدليل!E50)) -> فارغ40 | D49: =IF($C$4=$U$5,SUMPRODUCT(('مصروفات اساسية'!$G$7:$BD$2005)*('مصروفات اساسية'!$A$7:$A$2005='تقرير شهرى'!D$3)*('مصروفات اساسية'!$G$6:$BD$6='تقرير شهرى'!$C49)), SUMPRODUCT(('مصروفات متغيره'!$G$7:$BD$2005)*('مصروفات متغيره'!$A$7:$A$2005='تقرير شهرى'!D$3)*('مصروفات متغيره'!$G$6:$BD$6='تقرير شهرى'!$C49))) -> 890 | E49: =IF($C$4=$U$5,SUMPRODUCT(('مصروفات اساسية'!$G$7:$BD$2005)*('مصروفات اساسية'!$A$7:$A$2005='تقرير شهرى'!E$3)*('مصروفات اساسية'!$G$6:$BD$6='تقرير شهرى'!$C49)), SUMPRODUCT(('مصروفات متغيره'!$G$7:$BD$2005)*('مصروفات متغيره'!$A$7:$A$2005='تقرير شهرى'!E$3)*('مصروفات متغيره'!$G$6:$BD$6='تقرير شهرى'!$C49))) -> 0 | F49: =IF($C$4=$U$5,SUMPRODUCT(('مصروفات اساسية'!$G$7:$BD$2005)*('مصروفات اساسية'!$A$7:$A$2005='تقرير شهرى'!F$3)*('مصروفات اساسية'!$G$6:$BD$6='تقرير شهرى'!$C49)), SUMPRODUCT(('مصروفات متغيره'!$G$7:$BD$2005)*('مصروفات متغيره'!$A$7:$A$2005='تقرير شهرى'!F$3)*('مصروفات متغيره'!$G$6:$BD$6='تقرير شهرى'!$C49))) -> 0 | G49: =IF($C$4=$U$5,SUMPRODUCT(('مصروفات اساسية'!$G$7:$BD$2005)*('مصروفات اساسية'!$A$7:$A$2005='تقرير شهرى'!G$3)*('مصروفات اساسية'!$G$6:$BD$6='تقرير شهرى'!$C49)), SUMPRODUCT(('مصروفات متغيره'!$G$7:$BD$2005)*('مصروفات متغيره'!$A$7:$A$2005='تقرير شهرى'!G$3)*('مصروفات متغيره'!$G$6:$BD$6='تقرير شهرى'!$C49))) -> 0 | H49: =IF($C$4=$U$5,SUMPRODUCT(('مصروفات اساسية'!$G$7:$BD$2005)*('مصروفات اساسية'!$A$7:$A$2005='تقرير شهرى'!H$3)*('مصروفات اساسية'!$G$6:$BD$6='تقرير شهرى'!$C49)), SUMPRODUCT(('مصروفات متغيره'!$G$7:$BD$2005)*('مصروفات متغيره'!$A$7:$A$2005='تقرير شهرى'!H$3)*('مصروفات متغيره'!$G$6:$BD$6='تقرير شهرى'!$C49))) -> 0 | I49: =IF($C$4=$U$5,SUMPRODUCT(('مصروفات اساسية'!$G$7:$BD$2005)*('مصروفات اساسية'!$A$7:$A$2005='تقرير شهرى'!I$3)*('مصروفات اساسية'!$G$6:$BD$6='تقرير شهرى'!$C49)), SUMPRODUCT(('مصروفات متغيره'!$G$7:$BD$2005)*('مصروفات متغيره'!$A$7:$A$2005='تقرير شهرى'!I$3)*('مصروفات متغيره'!$G$6:$BD$6='تقرير شهرى'!$C49))) -> 0 | J49: =IF($C$4=$U$5,SUMPRODUCT(('مصروفات اساسية'!$G$7:$BD$2005)*('مصروفات اساسية'!$A$7:$A$2005='تقرير شهرى'!J$3)*('مصروفات اساسية'!$G$6:$BD$6='تقرير شهرى'!$C49)), SUMPRODUCT(('مصروفات متغيره'!$G$7:$BD$2005)*('مصروفات متغيره'!$A$7:$A$2005='تقرير شهرى'!J$3)*('مصروفات متغيره'!$G$6:$BD$6='تقرير شهرى'!$C49))) -> 0 | K49: =IF($C$4=$U$5,SUMPRODUCT(('مصروفات اساسية'!$G$7:$BD$2005)*('مصروفات اساسية'!$A$7:$A$2005='تقرير شهرى'!K$3)*('مصروفات اساسية'!$G$6:$BD$6='تقرير شهرى'!$C49)), SUMPRODUCT(('مصروفات متغيره'!$G$7:$BD$2005)*('مصروفات متغيره'!$A$7:$A$2005='تقرير شهرى'!K$3)*('مصروفات متغيره'!$G$6:$BD$6='تقرير شهرى'!$C49))) -> 0 | L49: =IF($C$4=$U$5,SUMPRODUCT(('مصروفات اساسية'!$G$7:$BD$2005)*('مصروفات اساسية'!$A$7:$A$2005='تقرير شهرى'!L$3)*('مصروفات اساسية'!$G$6:$BD$6='تقرير شهرى'!$C49)), SUMPRODUCT(('مصروفات متغيره'!$G$7:$BD$2005)*('مصروفات متغيره'!$A$7:$A$2005='تقرير شهرى'!L$3)*('مصروفات متغيره'!$G$6:$BD$6='تقرير شهرى'!$C49))) -> 0 | M49: =IF($C$4=$U$5,SUMPRODUCT(('مصروفات اساسية'!$G$7:$BD$2005)*('مصروفات اساسية'!$A$7:$A$2005='تقرير شهرى'!M$3)*('مصروفات اساسية'!$G$6:$BD$6='تقرير شهرى'!$C49)), SUMPRODUCT(('مصروفات متغيره'!$G$7:$BD$2005)*('مصروفات متغيره'!$A$7:$A$2005='تقرير شهرى'!M$3)*('مصروفات متغيره'!$G$6:$BD$6='تقرير شهرى'!$C49))) -> 0 | N49: =IF($C$4=$U$5,SUMPRODUCT(('مصروفات اساسية'!$G$7:$BD$2005)*('مصروفات اساسية'!$A$7:$A$2005='تقرير شهرى'!N$3)*('مصروفات اساسية'!$G$6:$BD$6='تقرير شهرى'!$C49)), SUMPRODUCT(('مصروفات متغيره'!$G$7:$BD$2005)*('مصروفات متغيره'!$A$7:$A$2005='تقرير شهرى'!N$3)*('مصروفات متغيره'!$G$6:$BD$6='تقرير شهرى'!$C49))) -> 0 | O49: =IF($C$4=$U$5,SUMPRODUCT(('مصروفات اساسية'!$G$7:$BD$2005)*('مصروفات اساسية'!$A$7:$A$2005='تقرير شهرى'!O$3)*('مصروفات اساسية'!$G$6:$BD$6='تقرير شهرى'!$C49)), SUMPRODUCT(('مصروفات متغيره'!$G$7:$BD$2005)*('مصروفات متغيره'!$A$7:$A$2005='تقرير شهرى'!O$3)*('مصروفات متغيره'!$G$6:$BD$6='تقرير شهرى'!$C49))) -> 0 | P49: 890 | Q49: 890
C50: =IF($C$4=$U$5,IF(الدليل!$C51="","",الدليل!C51),IF(الدليل!$E51="","",الدليل!E51)) -> فارغ41 | D50: =IF($C$4=$U$5,SUMPRODUCT(('مصروفات اساسية'!$G$7:$BD$2005)*('مصروفات اساسية'!$A$7:$A$2005='تقرير شهرى'!D$3)*('مصروفات اساسية'!$G$6:$BD$6='تقرير شهرى'!$C50)), SUMPRODUCT(('مصروفات متغيره'!$G$7:$BD$2005)*('مصروفات متغيره'!$A$7:$A$2005='تقرير شهرى'!D$3)*('مصروفات متغيره'!$G$6:$BD$6='تقرير شهرى'!$C50))) -> 1435 | E50: =IF($C$4=$U$5,SUMPRODUCT(('مصروفات اساسية'!$G$7:$BD$2005)*('مصروفات اساسية'!$A$7:$A$2005='تقرير شهرى'!E$3)*('مصروفات اساسية'!$G$6:$BD$6='تقرير شهرى'!$C50)), SUMPRODUCT(('مصروفات متغيره'!$G$7:$BD$2005)*('مصروفات متغيره'!$A$7:$A$2005='تقرير شهرى'!E$3)*('مصروفات متغيره'!$G$6:$BD$6='تقرير شهرى'!$C50))) -> 0 | F50: =IF($C$4=$U$5,SUMPRODUCT(('مصروفات اساسية'!$G$7:$BD$2005)*('مصروفات اساسية'!$A$7:$A$2005='تقرير شهرى'!F$3)*('مصروفات اساسية'!$G$6:$BD$6='تقرير شهرى'!$C50)), SUMPRODUCT(('مصروفات متغيره'!$G$7:$BD$2005)*('مصروفات متغيره'!$A$7:$A$2005='تقرير شهرى'!F$3)*('مصروفات متغيره'!$G$6:$BD$6='تقرير شهرى'!$C50))) -> 0 | G50: =IF($C$4=$U$5,SUMPRODUCT(('مصروفات اساسية'!$G$7:$BD$2005)*('مصروفات اساسية'!$A$7:$A$2005='تقرير شهرى'!G$3)*('مصروفات اساسية'!$G$6:$BD$6='تقرير شهرى'!$C50)), SUMPRODUCT(('مصروفات متغيره'!$G$7:$BD$2005)*('مصروفات متغيره'!$A$7:$A$2005='تقرير شهرى'!G$3)*('مصروفات متغيره'!$G$6:$BD$6='تقرير شهرى'!$C50))) -> 0 | H50: =IF($C$4=$U$5,SUMPRODUCT(('مصروفات اساسية'!$G$7:$BD$2005)*('مصروفات اساسية'!$A$7:$A$2005='تقرير شهرى'!H$3)*('مصروفات اساسية'!$G$6:$BD$6='تقرير شهرى'!$C50)), SUMPRODUCT(('مصروفات متغيره'!$G$7:$BD$2005)*('مصروفات متغيره'!$A$7:$A$2005='تقرير شهرى'!H$3)*('مصروفات متغيره'!$G$6:$BD$6='تقرير شهرى'!$C50))) -> 0 | I50: =IF($C$4=$U$5,SUMPRODUCT(('مصروفات اساسية'!$G$7:$BD$2005)*('مصروفات اساسية'!$A$7:$A$2005='تقرير شهرى'!I$3)*('مصروفات اساسية'!$G$6:$BD$6='تقرير شهرى'!$C50)), SUMPRODUCT(('مصروفات متغيره'!$G$7:$BD$2005)*('مصروفات متغيره'!$A$7:$A$2005='تقرير شهرى'!I$3)*('مصروفات متغيره'!$G$6:$BD$6='تقرير شهرى'!$C50))) -> 0 | J50: =IF($C$4=$U$5,SUMPRODUCT(('مصروفات اساسية'!$G$7:$BD$2005)*('مصروفات اساسية'!$A$7:$A$2005='تقرير شهرى'!J$3)*('مصروفات اساسية'!$G$6:$BD$6='تقرير شهرى'!$C50)), SUMPRODUCT(('مصروفات متغيره'!$G$7:$BD$2005)*('مصروفات متغيره'!$A$7:$A$2005='تقرير شهرى'!J$3)*('مصروفات متغيره'!$G$6:$BD$6='تقرير شهرى'!$C50))) -> 0 | K50: =IF($C$4=$U$5,SUMPRODUCT(('مصروفات اساسية'!$G$7:$BD$2005)*('مصروفات اساسية'!$A$7:$A$2005='تقرير شهرى'!K$3)*('مصروفات اساسية'!$G$6:$BD$6='تقرير شهرى'!$C50)), SUMPRODUCT(('مصروفات متغيره'!$G$7:$BD$2005)*('مصروفات متغيره'!$A$7:$A$2005='تقرير شهرى'!K$3)*('مصروفات متغيره'!$G$6:$BD$6='تقرير شهرى'!$C50))) -> 0 | L50: =IF($C$4=$U$5,SUMPRODUCT(('مصروفات اساسية'!$G$7:$BD$2005)*('مصروفات اساسية'!$A$7:$A$2005='تقرير شهرى'!L$3)*('مصروفات اساسية'!$G$6:$BD$6='تقرير شهرى'!$C50)), SUMPRODUCT(('مصروفات متغيره'!$G$7:$BD$2005)*('مصروفات متغيره'!$A$7:$A$2005='تقرير شهرى'!L$3)*('مصروفات متغيره'!$G$6:$BD$6='تقرير شهرى'!$C50))) -> 0 | M50: =IF($C$4=$U$5,SUMPRODUCT(('مصروفات اساسية'!$G$7:$BD$2005)*('مصروفات اساسية'!$A$7:$A$2005='تقرير شهرى'!M$3)*('مصروفات اساسية'!$G$6:$BD$6='تقرير شهرى'!$C50)), SUMPRODUCT(('مصروفات متغيره'!$G$7:$BD$2005)*('مصروفات متغيره'!$A$7:$A$2005='تقرير شهرى'!M$3)*('مصروفات متغيره'!$G$6:$BD$6='تقرير شهرى'!$C50))) -> 0 | N50: =IF($C$4=$U$5,SUMPRODUCT(('مصروفات اساسية'!$G$7:$BD$2005)*('مصروفات اساسية'!$A$7:$A$2005='تقرير شهرى'!N$3)*('مصروفات اساسية'!$G$6:$BD$6='تقرير شهرى'!$C50)), SUMPRODUCT(('مصروفات متغيره'!$G$7:$BD$2005)*('مصروفات متغيره'!$A$7:$A$2005='تقرير شهرى'!N$3)*('مصروفات متغيره'!$G$6:$BD$6='تقرير شهرى'!$C50))) -> 0 | O50: =IF($C$4=$U$5,SUMPRODUCT(('مصروفات اساسية'!$G$7:$BD$2005)*('مصروفات اساسية'!$A$7:$A$2005='تقرير شهرى'!O$3)*('مصروفات اساسية'!$G$6:$BD$6='تقرير شهرى'!$C50)), SUMPRODUCT(('مصروفات متغيره'!$G$7:$BD$2005)*('مصروفات متغيره'!$A$7:$A$2005='تقرير شهرى'!O$3)*('مصروفات متغيره'!$G$6:$BD$6='تقرير شهرى'!$C50))) -> 0 | P50: 1435 | Q50: 1435
C51: =IF($C$4=$U$5,IF(الدليل!$C52="","",الدليل!C52),IF(الدليل!$E52="","",الدليل!E52)) -> فارغ42 | D51: =IF($C$4=$U$5,SUMPRODUCT(('مصروفات اساسية'!$G$7:$BD$2005)*('مصروفات اساسية'!$A$7:$A$2005='تقرير شهرى'!D$3)*('مصروفات اساسية'!$G$6:$BD$6='تقرير شهرى'!$C51)), SUMPRODUCT(('مصروفات متغيره'!$G$7:$BD$2005)*('مصروفات متغيره'!$A$7:$A$2005='تقرير شهرى'!D$3)*('مصروفات متغيره'!$G$6:$BD$6='تقرير شهرى'!$C51))) -> 1461.4 | E51: =IF($C$4=$U$5,SUMPRODUCT(('مصروفات اساسية'!$G$7:$BD$2005)*('مصروفات اساسية'!$A$7:$A$2005='تقرير شهرى'!E$3)*('مصروفات اساسية'!$G$6:$BD$6='تقرير شهرى'!$C51)), SUMPRODUCT(('مصروفات متغيره'!$G$7:$BD$2005)*('مصروفات متغيره'!$A$7:$A$2005='تقرير شهرى'!E$3)*('مصروفات متغيره'!$G$6:$BD$6='تقرير شهرى'!$C51))) -> 0 | F51: =IF($C$4=$U$5,SUMPRODUCT(('مصروفات اساسية'!$G$7:$BD$2005)*('مصروفات اساسية'!$A$7:$A$2005='تقرير شهرى'!F$3)*('مصروفات اساسية'!$G$6:$BD$6='تقرير شهرى'!$C51)), SUMPRODUCT(('مصروفات متغيره'!$G$7:$BD$2005)*('مصروفات متغيره'!$A$7:$A$2005='تقرير شهرى'!F$3)*('مصروفات متغيره'!$G$6:$BD$6='تقرير شهرى'!$C51))) -> 0 | G51: =IF($C$4=$U$5,SUMPRODUCT(('مصروفات اساسية'!$G$7:$BD$2005)*('مصروفات اساسية'!$A$7:$A$2005='تقرير شهرى'!G$3)*('مصروفات اساسية'!$G$6:$BD$6='تقرير شهرى'!$C51)), SUMPRODUCT(('مصروفات متغيره'!$G$7:$BD$2005)*('مصروفات متغيره'!$A$7:$A$2005='تقرير شهرى'!G$3)*('مصروفات متغيره'!$G$6:$BD$6='تقرير شهرى'!$C51))) -> 0 | H51: =IF($C$4=$U$5,SUMPRODUCT(('مصروفات اساسية'!$G$7:$BD$2005)*('مصروفات اساسية'!$A$7:$A$2005='تقرير شهرى'!H$3)*('مصروفات اساسية'!$G$6:$BD$6='تقرير شهرى'!$C51)), SUMPRODUCT(('مصروفات متغيره'!$G$7:$BD$2005)*('مصروفات متغيره'!$A$7:$A$2005='تقرير شهرى'!H$3)*('مصروفات متغيره'!$G$6:$BD$6='تقرير شهرى'!$C51))) -> 0 | I51: =IF($C$4=$U$5,SUMPRODUCT(('مصروفات اساسية'!$G$7:$BD$2005)*('مصروفات اساسية'!$A$7:$A$2005='تقرير شهرى'!I$3)*('مصروفات اساسية'!$G$6:$BD$6='تقرير شهرى'!$C51)), SUMPRODUCT(('مصروفات متغيره'!$G$7:$BD$2005)*('مصروفات متغيره'!$A$7:$A$2005='تقرير شهرى'!I$3)*('مصروفات متغيره'!$G$6:$BD$6='تقرير شهرى'!$C51))) -> 0 | J51: =IF($C$4=$U$5,SUMPRODUCT(('مصروفات اساسية'!$G$7:$BD$2005)*('مصروفات اساسية'!$A$7:$A$2005='تقرير شهرى'!J$3)*('مصروفات اساسية'!$G$6:$BD$6='تقرير شهرى'!$C51)), SUMPRODUCT(('مصروفات متغيره'!$G$7:$BD$2005)*('مصروفات متغيره'!$A$7:$A$2005='تقرير شهرى'!J$3)*('مصروفات متغيره'!$G$6:$BD$6='تقرير شهرى'!$C51))) -> 0 | K51: =IF($C$4=$U$5,SUMPRODUCT(('مصروفات اساسية'!$G$7:$BD$2005)*('مصروفات اساسية'!$A$7:$A$2005='تقرير شهرى'!K$3)*('مصروفات اساسية'!$G$6:$BD$6='تقرير شهرى'!$C51)), SUMPRODUCT(('مصروفات متغيره'!$G$7:$BD$2005)*('مصروفات متغيره'!$A$7:$A$2005='تقرير شهرى'!K$3)*('مصروفات متغيره'!$G$6:$BD$6='تقرير شهرى'!$C51))) -> 0 | L51: =IF($C$4=$U$5,SUMPRODUCT(('مصروفات اساسية'!$G$7:$BD$2005)*('مصروفات اساسية'!$A$7:$A$2005='تقرير شهرى'!L$3)*('مصروفات اساسية'!$G$6:$BD$6='تقرير شهرى'!$C51)), SUMPRODUCT(('مصروفات متغيره'!$G$7:$BD$2005)*('مصروفات متغيره'!$A$7:$A$2005='تقرير شهرى'!L$3)*('مصروفات متغيره'!$G$6:$BD$6='تقرير شهرى'!$C51))) -> 0 | M51: =IF($C$4=$U$5,SUMPRODUCT(('مصروفات اساسية'!$G$7:$BD$2005)*('مصروفات اساسية'!$A$7:$A$2005='تقرير شهرى'!M$3)*('مصروفات اساسية'!$G$6:$BD$6='تقرير شهرى'!$C51)), SUMPRODUCT(('مصروفات متغيره'!$G$7:$BD$2005)*('مصروفات متغيره'!$A$7:$A$2005='تقرير شهرى'!M$3)*('مصروفات متغيره'!$G$6:$BD$6='تقرير شهرى'!$C51))) -> 0 | N51: =IF($C$4=$U$5,SUMPRODUCT(('مصروفات اساسية'!$G$7:$BD$2005)*('مصروفات اساسية'!$A$7:$A$2005='تقرير شهرى'!N$3)*('مصروفات اساسية'!$G$6:$BD$6='تقرير شهرى'!$C51)), SUMPRODUCT(('مصروفات متغيره'!$G$7:$BD$2005)*('مصروفات متغيره'!$A$7:$A$2005='تقرير شهرى'!N$3)*('مصروفات متغيره'!$G$6:$BD$6='تقرير شهرى'!$C51))) -> 0 | O51: =IF($C$4=$U$5,SUMPRODUCT(('مصروفات اساسية'!$G$7:$BD$2005)*('مصروفات اساسية'!$A$7:$A$2005='تقرير شهرى'!O$3)*('مصروفات اساسية'!$G$6:$BD$6='تقرير شهرى'!$C51)), SUMPRODUCT(('مصروفات متغيره'!$G$7:$BD$2005)*('مصروفات متغيره'!$A$7:$A$2005='تقرير شهرى'!O$3)*('مصروفات متغيره'!$G$6:$BD$6='تقرير شهرى'!$C51))) -> 0 | P51: 1461.4 | Q51: 1461.4
C52: =IF($C$4=$U$5,IF(الدليل!$C53="","",الدليل!C53),IF(الدليل!$E53="","",الدليل!E53)) -> فارغ43 | D52: =IF($C$4=$U$5,SUMPRODUCT(('مصروفات اساسية'!$G$7:$BD$2005)*('مصروفات اساسية'!$A$7:$A$2005='تقرير شهرى'!D$3)*('مصروفات اساسية'!$G$6:$BD$6='تقرير شهرى'!$C52)), SUMPRODUCT(('مصروفات متغيره'!$G$7:$BD$2005)*('مصروفات متغيره'!$A$7:$A$2005='تقرير شهرى'!D$3)*('مصروفات متغيره'!$G$6:$BD$6='تقرير شهرى'!$C52))) -> 1487.8 | E52: =IF($C$4=$U$5,SUMPRODUCT(('مصروفات اساسية'!$G$7:$BD$2005)*('مصروفات اساسية'!$A$7:$A$2005='تقرير شهرى'!E$3)*('مصروفات اساسية'!$G$6:$BD$6='تقرير شهرى'!$C52)), SUMPRODUCT(('مصروفات متغيره'!$G$7:$BD$2005)*('مصروفات متغيره'!$A$7:$A$2005='تقرير شهرى'!E$3)*('مصروفات متغيره'!$G$6:$BD$6='تقرير شهرى'!$C52))) -> 0 | F52: =IF($C$4=$U$5,SUMPRODUCT(('مصروفات اساسية'!$G$7:$BD$2005)*('مصروفات اساسية'!$A$7:$A$2005='تقرير شهرى'!F$3)*('مصروفات اساسية'!$G$6:$BD$6='تقرير شهرى'!$C52)), SUMPRODUCT(('مصروفات متغيره'!$G$7:$BD$2005)*('مصروفات متغيره'!$A$7:$A$2005='تقرير شهرى'!F$3)*('مصروفات متغيره'!$G$6:$BD$6='تقرير شهرى'!$C52))) -> 0 | G52: =IF($C$4=$U$5,SUMPRODUCT(('مصروفات اساسية'!$G$7:$BD$2005)*('مصروفات اساسية'!$A$7:$A$2005='تقرير شهرى'!G$3)*('مصروفات اساسية'!$G$6:$BD$6='تقرير شهرى'!$C52)), SUMPRODUCT(('مصروفات متغيره'!$G$7:$BD$2005)*('مصروفات متغيره'!$A$7:$A$2005='تقرير شهرى'!G$3)*('مصروفات متغيره'!$G$6:$BD$6='تقرير شهرى'!$C52))) -> 0 | H52: =IF($C$4=$U$5,SUMPRODUCT(('مصروفات اساسية'!$G$7:$BD$2005)*('مصروفات اساسية'!$A$7:$A$2005='تقرير شهرى'!H$3)*('مصروفات اساسية'!$G$6:$BD$6='تقرير شهرى'!$C52)), SUMPRODUCT(('مصروفات متغيره'!$G$7:$BD$2005)*('مصروفات متغيره'!$A$7:$A$2005='تقرير شهرى'!H$3)*('مصروفات متغيره'!$G$6:$BD$6='تقرير شهرى'!$C52))) -> 0 | I52: =IF($C$4=$U$5,SUMPRODUCT(('مصروفات اساسية'!$G$7:$BD$2005)*('مصروفات اساسية'!$A$7:$A$2005='تقرير شهرى'!I$3)*('مصروفات اساسية'!$G$6:$BD$6='تقرير شهرى'!$C52)), SUMPRODUCT(('مصروفات متغيره'!$G$7:$BD$2005)*('مصروفات متغيره'!$A$7:$A$2005='تقرير شهرى'!I$3)*('مصروفات متغيره'!$G$6:$BD$6='تقرير شهرى'!$C52))) -> 0 | J52: =IF($C$4=$U$5,SUMPRODUCT(('مصروفات اساسية'!$G$7:$BD$2005)*('مصروفات اساسية'!$A$7:$A$2005='تقرير شهرى'!J$3)*('مصروفات اساسية'!$G$6:$BD$6='تقرير شهرى'!$C52)), SUMPRODUCT(('مصروفات متغيره'!$G$7:$BD$2005)*('مصروفات متغيره'!$A$7:$A$2005='تقرير شهرى'!J$3)*('مصروفات متغيره'!$G$6:$BD$6='تقرير شهرى'!$C52))) -> 0 | K52: =IF($C$4=$U$5,SUMPRODUCT(('مصروفات اساسية'!$G$7:$BD$2005)*('مصروفات اساسية'!$A$7:$A$2005='تقرير شهرى'!K$3)*('مصروفات اساسية'!$G$6:$BD$6='تقرير شهرى'!$C52)), SUMPRODUCT(('مصروفات متغيره'!$G$7:$BD$2005)*('مصروفات متغيره'!$A$7:$A$2005='تقرير شهرى'!K$3)*('مصروفات متغيره'!$G$6:$BD$6='تقرير شهرى'!$C52))) -> 0 | L52: =IF($C$4=$U$5,SUMPRODUCT(('مصروفات اساسية'!$G$7:$BD$2005)*('مصروفات اساسية'!$A$7:$A$2005='تقرير شهرى'!L$3)*('مصروفات اساسية'!$G$6:$BD$6='تقرير شهرى'!$C52)), SUMPRODUCT(('مصروفات متغيره'!$G$7:$BD$2005)*('مصروفات متغيره'!$A$7:$A$2005='تقرير شهرى'!L$3)*('مصروفات متغيره'!$G$6:$BD$6='تقرير شهرى'!$C52))) -> 0 | M52: =IF($C$4=$U$5,SUMPRODUCT(('مصروفات اساسية'!$G$7:$BD$2005)*('مصروفات اساسية'!$A$7:$A$2005='تقرير شهرى'!M$3)*('مصروفات اساسية'!$G$6:$BD$6='تقرير شهرى'!$C52)), SUMPRODUCT(('مصروفات متغيره'!$G$7:$BD$2005)*('مصروفات متغيره'!$A$7:$A$2005='تقرير شهرى'!M$3)*('مصروفات متغيره'!$G$6:$BD$6='تقرير شهرى'!$C52))) -> 0 | N52: =IF($C$4=$U$5,SUMPRODUCT(('مصروفات اساسية'!$G$7:$BD$2005)*('مصروفات اساسية'!$A$7:$A$2005='تقرير شهرى'!N$3)*('مصروفات اساسية'!$G$6:$BD$6='تقرير شهرى'!$C52)), SUMPRODUCT(('مصروفات متغيره'!$G$7:$BD$2005)*('مصروفات متغيره'!$A$7:$A$2005='تقرير شهرى'!N$3)*('مصروفات متغيره'!$G$6:$BD$6='تقرير شهرى'!$C52))) -> 0 | O52: =IF($C$4=$U$5,SUMPRODUCT(('مصروفات اساسية'!$G$7:$BD$2005)*('مصروفات اساسية'!$A$7:$A$2005='تقرير شهرى'!O$3)*('مصروفات اساسية'!$G$6:$BD$6='تقرير شهرى'!$C52)), SUMPRODUCT(('مصروفات متغيره'!$G$7:$BD$2005)*('مصروفات متغيره'!$A$7:$A$2005='تقرير شهرى'!O$3)*('مصروفات متغيره'!$G$6:$BD$6='تقرير شهرى'!$C52))) -> 0 | P52: 1487.8 | Q52: 1487.8
C53: =IF($C$4=$U$5,IF(الدليل!$C54="","",الدليل!C54),IF(الدليل!$E54="","",الدليل!E54)) -> فارغ44 | D53: =IF($C$4=$U$5,SUMPRODUCT(('مصروفات اساسية'!$G$7:$BD$2005)*('مصروفات اساسية'!$A$7:$A$2005='تقرير شهرى'!D$3)*('مصروفات اساسية'!$G$6:$BD$6='تقرير شهرى'!$C53)), SUMPRODUCT(('مصروفات متغيره'!$G$7:$BD$2005)*('مصروفات متغيره'!$A$7:$A$2005='تقرير شهرى'!D$3)*('مصروفات متغيره'!$G$6:$BD$6='تقرير شهرى'!$C53))) -> 1514.2 | E53: =IF($C$4=$U$5,SUMPRODUCT(('مصروفات اساسية'!$G$7:$BD$2005)*('مصروفات اساسية'!$A$7:$A$2005='تقرير شهرى'!E$3)*('مصروفات اساسية'!$G$6:$BD$6='تقرير شهرى'!$C53)), SUMPRODUCT(('مصروفات متغيره'!$G$7:$BD$2005)*('مصروفات متغيره'!$A$7:$A$2005='تقرير شهرى'!E$3)*('مصروفات متغيره'!$G$6:$BD$6='تقرير شهرى'!$C53))) -> 0 | F53: =IF($C$4=$U$5,SUMPRODUCT(('مصروفات اساسية'!$G$7:$BD$2005)*('مصروفات اساسية'!$A$7:$A$2005='تقرير شهرى'!F$3)*('مصروفات اساسية'!$G$6:$BD$6='تقرير شهرى'!$C53)), SUMPRODUCT(('مصروفات متغيره'!$G$7:$BD$2005)*('مصروفات متغيره'!$A$7:$A$2005='تقرير شهرى'!F$3)*('مصروفات متغيره'!$G$6:$BD$6='تقرير شهرى'!$C53))) -> 0 | G53: =IF($C$4=$U$5,SUMPRODUCT(('مصروفات اساسية'!$G$7:$BD$2005)*('مصروفات اساسية'!$A$7:$A$2005='تقرير شهرى'!G$3)*('مصروفات اساسية'!$G$6:$BD$6='تقرير شهرى'!$C53)), SUMPRODUCT(('مصروفات متغيره'!$G$7:$BD$2005)*('مصروفات متغيره'!$A$7:$A$2005='تقرير شهرى'!G$3)*('مصروفات متغيره'!$G$6:$BD$6='تقرير شهرى'!$C53))) -> 0 | H53: =IF($C$4=$U$5,SUMPRODUCT(('مصروفات اساسية'!$G$7:$BD$2005)*('مصروفات اساسية'!$A$7:$A$2005='تقرير شهرى'!H$3)*('مصروفات اساسية'!$G$6:$BD$6='تقرير شهرى'!$C53)), SUMPRODUCT(('مصروفات متغيره'!$G$7:$BD$2005)*('مصروفات متغيره'!$A$7:$A$2005='تقرير شهرى'!H$3)*('مصروفات متغيره'!$G$6:$BD$6='تقرير شهرى'!$C53))) -> 0 | I53: =IF($C$4=$U$5,SUMPRODUCT(('مصروفات اساسية'!$G$7:$BD$2005)*('مصروفات اساسية'!$A$7:$A$2005='تقرير شهرى'!I$3)*('مصروفات اساسية'!$G$6:$BD$6='تقرير شهرى'!$C53)), SUMPRODUCT(('مصروفات متغيره'!$G$7:$BD$2005)*('مصروفات متغيره'!$A$7:$A$2005='تقرير شهرى'!I$3)*('مصروفات متغيره'!$G$6:$BD$6='تقرير شهرى'!$C53))) -> 0 | J53: =IF($C$4=$U$5,SUMPRODUCT(('مصروفات اساسية'!$G$7:$BD$2005)*('مصروفات اساسية'!$A$7:$A$2005='تقرير شهرى'!J$3)*('مصروفات اساسية'!$G$6:$BD$6='تقرير شهرى'!$C53)), SUMPRODUCT(('مصروفات متغيره'!$G$7:$BD$2005)*('مصروفات متغيره'!$A$7:$A$2005='تقرير شهرى'!J$3)*('مصروفات متغيره'!$G$6:$BD$6='تقرير شهرى'!$C53))) -> 0 | K53: =IF($C$4=$U$5,SUMPRODUCT(('مصروفات اساسية'!$G$7:$BD$2005)*('مصروفات اساسية'!$A$7:$A$2005='تقرير شهرى'!K$3)*('مصروفات اساسية'!$G$6:$BD$6='تقرير شهرى'!$C53)), SUMPRODUCT(('مصروفات متغيره'!$G$7:$BD$2005)*('مصروفات متغيره'!$A$7:$A$2005='تقرير شهرى'!K$3)*('مصروفات متغيره'!$G$6:$BD$6='تقرير شهرى'!$C53))) -> 0 | L53: =IF($C$4=$U$5,SUMPRODUCT(('مصروفات اساسية'!$G$7:$BD$2005)*('مصروفات اساسية'!$A$7:$A$2005='تقرير شهرى'!L$3)*('مصروفات اساسية'!$G$6:$BD$6='تقرير شهرى'!$C53)), SUMPRODUCT(('مصروفات متغيره'!$G$7:$BD$2005)*('مصروفات متغيره'!$A$7:$A$2005='تقرير شهرى'!L$3)*('مصروفات متغيره'!$G$6:$BD$6='تقرير شهرى'!$C53))) -> 0 | M53: =IF($C$4=$U$5,SUMPRODUCT(('مصروفات اساسية'!$G$7:$BD$2005)*('مصروفات اساسية'!$A$7:$A$2005='تقرير شهرى'!M$3)*('مصروفات اساسية'!$G$6:$BD$6='تقرير شهرى'!$C53)), SUMPRODUCT(('مصروفات متغيره'!$G$7:$BD$2005)*('مصروفات متغيره'!$A$7:$A$2005='تقرير شهرى'!M$3)*('مصروفات متغيره'!$G$6:$BD$6='تقرير شهرى'!$C53))) -> 0 | N53: =IF($C$4=$U$5,SUMPRODUCT(('مصروفات اساسية'!$G$7:$BD$2005)*('مصروفات اساسية'!$A$7:$A$2005='تقرير شهرى'!N$3)*('مصروفات اساسية'!$G$6:$BD$6='تقرير شهرى'!$C53)), SUMPRODUCT(('مصروفات متغيره'!$G$7:$BD$2005)*('مصروفات متغيره'!$A$7:$A$2005='تقرير شهرى'!N$3)*('مصروفات متغيره'!$G$6:$BD$6='تقرير شهرى'!$C53))) -> 0 | O53: =IF($C$4=$U$5,SUMPRODUCT(('مصروفات اساسية'!$G$7:$BD$2005)*('مصروفات اساسية'!$A$7:$A$2005='تقرير شهرى'!O$3)*('مصروفات اساسية'!$G$6:$BD$6='تقرير شهرى'!$C53)), SUMPRODUCT(('مصروفات متغيره'!$G$7:$BD$2005)*('مصروفات متغيره'!$A$7:$A$2005='تقرير شهرى'!O$3)*('مصروفات متغيره'!$G$6:$BD$6='تقرير شهرى'!$C53))) -> 0 | P53: 1514.2 | Q53: 1514.2
C54: =IF($C$4=$U$5,IF(الدليل!$C55="","",الدليل!C55),IF(الدليل!$E55="","",الدليل!E55)) -> فارغ45 | D54: =IF($C$4=$U$5,SUMPRODUCT(('مصروفات اساسية'!$G$7:$BD$2005)*('مصروفات اساسية'!$A$7:$A$2005='تقرير شهرى'!D$3)*('مصروفات اساسية'!$G$6:$BD$6='تقرير شهرى'!$C54)), SUMPRODUCT(('مصروفات متغيره'!$G$7:$BD$2005)*('مصروفات متغيره'!$A$7:$A$2005='تقرير شهرى'!D$3)*('مصروفات متغيره'!$G$6:$BD$6='تقرير شهرى'!$C54))) -> 1546.6 | E54: =IF($C$4=$U$5,SUMPRODUCT(('مصروفات اساسية'!$G$7:$BD$2005)*('مصروفات اساسية'!$A$7:$A$2005='تقرير شهرى'!E$3)*('مصروفات اساسية'!$G$6:$BD$6='تقرير شهرى'!$C54)), SUMPRODUCT(('مصروفات متغيره'!$G$7:$BD$2005)*('مصروفات متغيره'!$A$7:$A$2005='تقرير شهرى'!E$3)*('مصروفات متغيره'!$G$6:$BD$6='تقرير شهرى'!$C54))) -> 0 | F54: =IF($C$4=$U$5,SUMPRODUCT(('مصروفات اساسية'!$G$7:$BD$2005)*('مصروفات اساسية'!$A$7:$A$2005='تقرير شهرى'!F$3)*('مصروفات اساسية'!$G$6:$BD$6='تقرير شهرى'!$C54)), SUMPRODUCT(('مصروفات متغيره'!$G$7:$BD$2005)*('مصروفات متغيره'!$A$7:$A$2005='تقرير شهرى'!F$3)*('مصروفات متغيره'!$G$6:$BD$6='تقرير شهرى'!$C54))) -> 0 | G54: =IF($C$4=$U$5,SUMPRODUCT(('مصروفات اساسية'!$G$7:$BD$2005)*('مصروفات اساسية'!$A$7:$A$2005='تقرير شهرى'!G$3)*('مصروفات اساسية'!$G$6:$BD$6='تقرير شهرى'!$C54)), SUMPRODUCT(('مصروفات متغيره'!$G$7:$BD$2005)*('مصروفات متغيره'!$A$7:$A$2005='تقرير شهرى'!G$3)*('مصروفات متغيره'!$G$6:$BD$6='تقرير شهرى'!$C54))) -> 0 | H54: =IF($C$4=$U$5,SUMPRODUCT(('مصروفات اساسية'!$G$7:$BD$2005)*('مصروفات اساسية'!$A$7:$A$2005='تقرير شهرى'!H$3)*('مصروفات اساسية'!$G$6:$BD$6='تقرير شهرى'!$C54)), SUMPRODUCT(('مصروفات متغيره'!$G$7:$BD$2005)*('مصروفات متغيره'!$A$7:$A$2005='تقرير شهرى'!H$3)*('مصروفات متغيره'!$G$6:$BD$6='تقرير شهرى'!$C54))) -> 0 | I54: =IF($C$4=$U$5,SUMPRODUCT(('مصروفات اساسية'!$G$7:$BD$2005)*('مصروفات اساسية'!$A$7:$A$2005='تقرير شهرى'!I$3)*('مصروفات اساسية'!$G$6:$BD$6='تقرير شهرى'!$C54)), SUMPRODUCT(('مصروفات متغيره'!$G$7:$BD$2005)*('مصروفات متغيره'!$A$7:$A$2005='تقرير شهرى'!I$3)*('مصروفات متغيره'!$G$6:$BD$6='تقرير شهرى'!$C54))) -> 0 | J54: =IF($C$4=$U$5,SUMPRODUCT(('مصروفات اساسية'!$G$7:$BD$2005)*('مصروفات اساسية'!$A$7:$A$2005='تقرير شهرى'!J$3)*('مصروفات اساسية'!$G$6:$BD$6='تقرير شهرى'!$C54)), SUMPRODUCT(('مصروفات متغيره'!$G$7:$BD$2005)*('مصروفات متغيره'!$A$7:$A$2005='تقرير شهرى'!J$3)*('مصروفات متغيره'!$G$6:$BD$6='تقرير شهرى'!$C54))) -> 0 | K54: =IF($C$4=$U$5,SUMPRODUCT(('مصروفات اساسية'!$G$7:$BD$2005)*('مصروفات اساسية'!$A$7:$A$2005='تقرير شهرى'!K$3)*('مصروفات اساسية'!$G$6:$BD$6='تقرير شهرى'!$C54)), SUMPRODUCT(('مصروفات متغيره'!$G$7:$BD$2005)*('مصروفات متغيره'!$A$7:$A$2005='تقرير شهرى'!K$3)*('مصروفات متغيره'!$G$6:$BD$6='تقرير شهرى'!$C54))) -> 0 | L54: =IF($C$4=$U$5,SUMPRODUCT(('مصروفات اساسية'!$G$7:$BD$2005)*('مصروفات اساسية'!$A$7:$A$2005='تقرير شهرى'!L$3)*('مصروفات اساسية'!$G$6:$BD$6='تقرير شهرى'!$C54)), SUMPRODUCT(('مصروفات متغيره'!$G$7:$BD$2005)*('مصروفات متغيره'!$A$7:$A$2005='تقرير شهرى'!L$3)*('مصروفات متغيره'!$G$6:$BD$6='تقرير شهرى'!$C54))) -> 0 | M54: =IF($C$4=$U$5,SUMPRODUCT(('مصروفات اساسية'!$G$7:$BD$2005)*('مصروفات اساسية'!$A$7:$A$2005='تقرير شهرى'!M$3)*('مصروفات اساسية'!$G$6:$BD$6='تقرير شهرى'!$C54)), SUMPRODUCT(('مصروفات متغيره'!$G$7:$BD$2005)*('مصروفات متغيره'!$A$7:$A$2005='تقرير شهرى'!M$3)*('مصروفات متغيره'!$G$6:$BD$6='تقرير شهرى'!$C54))) -> 0 | N54: =IF($C$4=$U$5,SUMPRODUCT(('مصروفات اساسية'!$G$7:$BD$2005)*('مصروفات اساسية'!$A$7:$A$2005='تقرير شهرى'!N$3)*('مصروفات اساسية'!$G$6:$BD$6='تقرير شهرى'!$C54)), SUMPRODUCT(('مصروفات متغيره'!$G$7:$BD$2005)*('مصروفات متغيره'!$A$7:$A$2005='تقرير شهرى'!N$3)*('مصروفات متغيره'!$G$6:$BD$6='تقرير شهرى'!$C54))) -> 0 | O54: =IF($C$4=$U$5,SUMPRODUCT(('مصروفات اساسية'!$G$7:$BD$2005)*('مصروفات اساسية'!$A$7:$A$2005='تقرير شهرى'!O$3)*('مصروفات اساسية'!$G$6:$BD$6='تقرير شهرى'!$C54)), SUMPRODUCT(('مصروفات متغيره'!$G$7:$BD$2005)*('مصروفات متغيره'!$A$7:$A$2005='تقرير شهرى'!O$3)*('مصروفات متغيره'!$G$6:$BD$6='تقرير شهرى'!$C54))) -> 0 | P54: 1546.6 | Q54: 1546.6
C55: الاجمالى | D55: =SUM(D5:D54) -> 58143.6 | E55: =SUM(E5:E54) -> 6787 | F55: 7439 | G55: 7098 | H55: 7093 | I55: 7088 | J55: 7083 | K55: 7078 | L55: 7073 | M55: 7068 | N55: 7063 | O55: 7058 | P55: =SUM(P5:P54) -> 136071.6
R56: =الدليل!J57 -> Designed By: MOHAMED ELRIFY
